Workbook

Sheet RH-1
B2: GERENCIA DE AGUAS SUPERFICIALES E INGENIERÍA DE RÍOS
B3: REGION HIDROLOGICA No 1
B4: BAJA CALIFORNIA NOROESTE
A7: Cuenca | B7: Nombre | C7: Cp | D7: Ar | E7: Uc (a) | F7: Uc (b) | G7: Uc (c) | H7: Uc | I7: R | J7: Im | K7: Ex | L7: Ev | M7: Δv | N7: Ab | O7: Rxy | P7: Ab - Rxy | Q7: D | S7: ECUACIONES
A8: 1 | B8: Tijuana | C8: 83.014 | D8: 17.3586 | E8: 209.194066 | F8: 0 | G8: 0 | H8: =E8+F8+G8 -> 209.194066 | I8: 0 | J8: 126.144 | K8: 0 | L8: 5.826 | M8: -4.297 | N8: =C8+D8+I8+J8-H8-L8-M8-K8 -> 15.79353405 | O8: =C8*0.1 -> 8.3014 | P8: =N8-O8 -> 7.49213405 | Q8: =P8 -> 7.49213405
A9: 2 | B9: Descanso-Los Médanos | C9: 12.391 | D9: 0 | E9: 0.5661532 | F9: 0 | G9: 0 | H9: 0.5661532 | I9: 0 | J9: 0 | K9: 0 | L9: 0 | M9: 0 | N9: 11.8248468 | O9: =C9*0.1 -> 1.2391 | P9: =N9-O9 -> 10.5857468 | Q9: =P9 -> 10.5857468 | S9: Ab = Cp + Ar + R + Im - (Uc(a) + Uc(b) + Uc(c) + Ev + Ex + Av)
A10: 3 | B10: Guadalupe | C10: 48.848 | D10: 0 | E10: 36.27782507 | F10: 0 | G10: 0 | H10: 36.27782507 | I10: 0 | J10: 0 | K10: 0 | L10: 0 | M10: 0 | N10: 12.57017493 | O10: =C10*0.1 -> 4.8848 | P10: 7.68537493 | Q10: 7.68537493 | S10: D = Ab - Rxy
A11: 4 | B11: Ensenada-El Gallo | C11: 15.078 | D11: 0 | E11: 2.27481558 | F11: 0 | G11: 0 | H11: 2.27481558 | I11: 0 | J11: 0 | K11: 0 | L11: 0.488 | M11: 0.028 | N11: 12.28718442 | O11: =C11*0.1 -> 1.5078 | P11: =N11-O11 -> 10.77938442 | Q11: 10.77938442
A12: 5 | B12: San Carlos | C12: 16.194 | D12: 0 | E12: 0.80839625 | F12: 0 | G12: 0 | H12: 0.80839625 | I12: 0 | J12: 0 | K12: 0 | L12: 0 | M12: 0 | N12: 15.38560375 | O12: 1.6194 | P12: 13.76620375 | Q12: 13.76620375 | S12: SIMBOLOGIA
A13: 6 | B13: Maneadero-Las Animas | C13: 20.272 | D13: 0 | E13: 0.85984245 | F13: 0 | G13: 0 | H13: 0.85984245 | I13: 0 | J13: 0 | K13: 0 | L13: 0 | M13: 0 | N13: 19.41215755 | O13: 2.0272 | P13: 17.38495755 | Q13: 17.38495755
A14: 7 | B14: Santo Tomás | C14: 15.991 | D14: 0 | E14: 0.3602155 | F14: 0 | G14: 0 | H14: 0.3602155 | I14: 0 | J14: 0 | K14: 0 | L14: 0 | M14: 0 | N14: 15.6307845 | O14: 1.5991 | P14: 14.0316845 | Q14: 14.0316845 | S14: Cp.- Volumen medio anual de escurrimiento natural
A15: 8 | B15: San Vicente | C15: 33.46 | D15: 0 | E15: 1.5517831 | F15: 0.25 | G15: 0 | H15: 1.8017831 | I15: 0 | J15: 0 | K15: 0 | L15: 0 | M15: 0 | N15: 31.6582169 | O15: 3.346 | P15: 28.3122169 | Q15: 28.3122169 | S15: Ar.- Volumen medio anual de escurrimiento desde la cuenca aguas arriba
A16: 9 | B16: Los Cochis-El Salado | C16: 25.892 | D16: 0 | E16: 1.24873569 | F16: 0 | G16: 0 | H16: 1.24873569 | I16: 0 | J16: 0 | K16: 0 | L16: 0 | M16: 0 | N16: 24.64326431 | O16: 2.5892 | P16: 22.05406431 | Q16: 22.05406431 | S16: Uc (a).- Volumen anual de extracción de agua superficial mediante títulos inscritos actualmente en el REPDA
A17: 10 | B17: San Rafael | C17: 13.704 | D17: 0 | E17: 0.43896275 | F17: 0 | G17: 0 | H17: 0.43896275 | I17: 0 | J17: 0 | K17: 0 | L17: 0 | M17: 0 | N17: 13.26503725 | O17: =C17*0.1 -> 1.3704 | P17: 11.89463725 | Q17: 11.89463725 | S17: Uc (b).- Volumen anual de extracción de agua superficial de títulos en proceso de inscripción en el REPDA
A18: 11 | B18: San Telmo | C18: 10.744 | D18: 0 | E18: 4.313426 | F18: 0 | G18: 0 | H18: 4.313426 | I18: 0 | J18: 0 | K18: 0 | L18: 0 | M18: 0 | N18: 6.430574 | O18: 1.0744 | P18: 5.356174 | Q18: 5.356174 | S18: Uc (c).- Volumen anual correspondiente a las reservas y las zonas reglamentadas
A19: 12 | B19: Santo Domingo | C19: 9.48 | D19: 0 | E19: 3.8525323 | F19: 0.043 | G19: 0 | H19: 3.8955323 | I19: 0 | J19: 0 | K19: 0 | L19: 0 | M19: 0 | N19: 5.5844677 | O19: 0.948 | P19: 4.6364677 | Q19: 4.6364677 | S19: R.- Volumen anual de retornos
A20: 13 | B20: San Quintín | C20: 7.592 | D20: 0 | E20: 0.376729 | F20: 0 | G20: 0 | H20: 0.376729 | I20: 0 | J20: 0 | K20: 0 | L20: 0 | M20: 0 | N20: 7.215271 | O20: 0.7592 | P20: 6.456071 | Q20: 6.456071 | S20: Im.- Volumen anual de importaciones
A21: 14 | B21: San Simón | C21: 11.504 | D21: 0 | E21: 0.176493 | F21: 0 | G21: 0 | H21: 0.176493 | I21: 0 | J21: 0 | K21: 0 | L21: 0 | M21: 0 | N21: 11.327507 | O21: 1.1504 | P21: 10.177107 | Q21: 10.177107 | S21: Ex.- Volumen anual de exportaciones
A22: 15 | B22: El Socorro | C22: 6.06 | D22: 0 | E22: 0.002103 | F22: 0 | G22: 0 | H22: 0.002103 | I22: 0 | J22: 0 | K22: 0 | L22: 0 | M22: 0 | N22: 6.057897 | O22: 0.606 | P22: 5.451897 | Q22: 5.451897 | S22: Ev.- Volumen medio anual de evaporación en embalses
A23: 16 | B23: El Rosario | C23: 28.664 | D23: 0 | E23: 1.6150883 | F23: 0 | G23: 0 | H23: 1.6150883 | I23: 0 | J23: 0 | K23: 0 | L23: 0 | M23: 0 | N23: 27.0489117 | O23: 2.8664 | P23: 24.1825117 | Q23: 24.1825117 | S23: Av.- Volumen medio anual de variación de almacenamiento en embalses
B24: TOTAL | C24: =SUM(C8:C23) -> 358.888 | E24: =SUM(E8:E23) -> 263.9171671 | F24: 0.293 | G24: 0 | H24: 264.2101671 | I24: 0 | J24: 126.144 | K24: 0 | L24: 6.314 | M24: -4.269 | Q24: =SUM(Q8:Q23) -> 200.2466329 | S24: Ab.- Volumen medio anual de escurrimiento de la cuenca hacia aguas abajo
A25: Valores en millones de metros cúbicos | S25: Rxy.- Volumen anual actual comprometido aguas abajo y volumenes decretados para reservas medio ambiente
S26: D.- Disponibilidad media anual de agua superficial en la cuenca hidrológica

Sheet RH-2
B2: GERENCIA DE AGUAS SUPERFICIALES E INGENIERÍA DE RÍOS
B3: REGION HIDROLOGICA No 2
B4: BAJA CALIFORNIA CENTRO - OESTE
A7: Cuenca | B7: Nombre | C7: Cp | D7: Ar | E7: Uc (a) | F7: Uc (b) | G7: Uc (c) | H7: Uc | I7: R | J7: Im | K7: Ex | L7: Ev | M7: Δv | N7: Ab | O7: Rxy | P7: Ab - Rxy | Q7: D | S7: ECUACIONES
A8: 1 | B8: Santa Catarina | C8: 30.676 | D8: 0 | E8: 0.95740697 | F8: 0 | G8: 0 | H8: =E8+F8+G8 -> 0.95740697 | I8: 0 | J8: 0 | K8: 0 | L8: 0 | M8: 0 | N8: =C8+D8+I8+J8-H8-L8-M8-K8 -> 29.71859303 | O8: =C8*0.1 -> 3.0676 | P8: =N8-O8 -> 26.65099303 | Q8: =P8 -> 26.65099303
A9: 2 | B9: La Bocana | C9: 18.661 | D9: 0 | E9: 0.017745 | F9: 0 | G9: 0 | H9: 0.017745 | I9: 0 | J9: 0 | K9: 0 | L9: 0 | M9: 0 | N9: 18.643255 | O9: =C9*0.1 -> 1.8661 | P9: =N9-O9 -> 16.777155 | Q9: 16.777155 | S9: Ab = Cp + Ar + R + Im - (Uc(a) + Uc(b) + Uc(c) + Ev + Ex + Av)
A10: 3 | B10: Jaraguay | C10: 5.233 | D10: 0 | E10: 0.0434494 | F10: 0 | G10: 0 | H10: 0.0434494 | I10: 0 | J10: 0 | K10: 0 | L10: 0 | M10: 0 | N10: 5.1895506 | O10: =C10*0.1 -> 0.5233 | P10: 4.6662506 | Q10: 4.6662506 | S10: D = Ab - Rxy
A11: 4 | B11: San José | C11: 4.949 | D11: 0 | E11: 0.009314 | F11: 0 | G11: 0 | H11: 0.009314 | I11: 0 | J11: 0 | K11: 0 | L11: 0 | M11: 0 | N11: 4.939686 | O11: 0.4949 | P11: 4.444786 | Q11: 4.444786
A12: 5 | B12: Chapala | C12: 6.291 | D12: 0 | E12: 0.001825 | F12: 0 | G12: 0 | H12: 0.001825 | I12: 0 | J12: 0 | K12: 0 | L12: 0 | M12: 0 | N12: 6.289175 | O12: 0.6291 | P12: 5.660075 | Q12: 5.660075 | S12: SIMBOLOGIA
A13: 6 | B13: Boca del Carrizo | C13: 9.395 | D13: 0 | E13: 0.060162 | F13: 0 | G13: 0 | H13: 0.060162 | I13: 0 | J13: 0 | K13: 0 | L13: 0 | M13: 0 | N13: 9.334838 | O13: 0.9395 | P13: 8.395338 | Q13: 8.395338
A14: 7 | B14: San Andrés | C14: 12.559 | D14: 0 | E14: 0 | F14: 0 | G14: 0 | H14: 0 | I14: 0 | J14: 0 | K14: 0 | L14: 0 | M14: 0 | N14: 12.559 | O14: 1.2559 | P14: 11.3031 | Q14: 11.3031 | S14: Cp.- Volumen medio anual de escurrimiento natural
A15: 8 | B15: Santo Dominguito | C15: 3.266 | D15: 0 | E15: 0 | F15: 0 | G15: 0 | H15: 0 | I15: 0 | J15: 0 | K15: 0 | L15: 0 | M15: 0 | N15: 3.266 | O15: 0.3266 | P15: 2.9394 | Q15: 2.9394 | S15: Ar.- Volumen medio anual de escurrimiento desde la cuenca aguas arriba
A16: 9 | B16: Rosarito | C16: 5.624 | D16: 0 | E16: 0.0138285 | F16: 0 | G16: 0 | H16: 0.0138285 | I16: 0 | J16: 0 | K16: 0 | L16: 0 | M16: 0 | N16: 5.6101715 | O16: 0.5624 | P16: 5.0477715 | Q16: 5.0477715 | S16: Uc (a).- Volumen anual de extracción de agua superficial mediante títulos inscritos actualmente en el REPDA
A17: 10 | B17: San Miguel | C17: 3.683 | D17: 0 | E17: 0.08980934 | F17: 0 | G17: 0 | H17: 0.08980934 | I17: 0 | J17: 0 | K17: 0 | L17: 0 | M17: 0 | N17: 3.59319066 | O17: 0.3683 | P17: 3.22489066 | Q17: 3.22489066 | S17: Uc (b).- Volumen anual de extracción de agua superficial de títulos en proceso de inscripción en el REPDA
A18: 11 | B18: Paraíso | C18: 6.29 | D18: 0 | E18: 0.024365 | F18: 0 | G18: 0 | H18: 0.024365 | I18: 0 | J18: 0 | K18: 0 | L18: 0 | M18: 0 | N18: 6.265635 | O18: 0.629 | P18: 5.636635 | Q18: 5.636635 | S18: Uc (c).- Volumen anual correspondiente a las reservas y las zonas reglamentadas
A19: 12 | B19: San Luis | C19: 11.596 | D19: 0 | E19: 0 | F19: 0 | G19: 0 | H19: 0 | I19: 0 | J19: 0 | K19: 0 | L19: 0 | M19: 0 | N19: 11.596 | O19: 1.1596 | P19: 10.4364 | Q19: 10.4364 | S19: R.- Volumen anual de retornos
A20: 13 | B20: El Arco | C20: 5.482 | D20: 0 | E20: 0 | F20: 0 | G20: 0 | H20: 0 | I20: 0 | J20: 0 | K20: 0 | L20: 0 | M20: 0 | N20: 5.482 | O20: 0.5482 | P20: 4.9338 | Q20: 4.9338 | S20: Im.- Volumen anual de importaciones
A21: 14 | B21: Vizcaíno | C21: 31.762 | D21: 0 | E21: 0.082999 | F21: 0 | G21: 0 | H21: 0.082999 | I21: 0 | J21: 0 | K21: 0 | L21: 0 | M21: 0 | N21: 31.679001 | O21: 3.1762 | P21: 28.502801 | Q21: 28.502801 | S21: Ex.- Volumen anual de exportaciones
A22: 15 | B22: Punta Eugenia | C22: 4.891 | D22: 0 | E22: 0.02001 | F22: 0 | G22: 0 | H22: 0.02001 | I22: 0 | J22: 0 | K22: 0 | L22: 0 | M22: 0 | N22: 4.87099 | O22: 0.4891 | P22: 4.38189 | Q22: 4.38189 | S22: Ev.- Volumen medio anual de evaporación en embalses
A23: 16 | B23: San Ignacio | C23: 83.802 | D23: 0 | E23: 3.078863 | F23: 0.0033 | G23: 0 | H23: 3.082163 | I23: 0 | J23: 0 | K23: 0 | L23: 0 | M23: 0 | N23: 80.719837 | O23: 8.3802 | P23: 72.339637 | Q23: 72.339637 | S23: Av.- Volumen medio anual de variación de almacenamiento en embalses
B24: TOTAL | C24: =SUM(C8:C23) -> 244.16 | E24: =SUM(E8:E23) -> 4.39977721 | F24: 0.0033 | G24: 0 | H24: 4.40307721 | I24: 0 | J24: 0 | K24: 0 | L24: 0 | M24: 0 | Q24: =SUM(Q8:Q23) -> 215.3409228 | S24: Ab.- Volumen medio anual de escurrimiento de la cuenca hacia aguas abajo
A25: Valores en millones de metros cúbicos | S25: Rxy.- Volumen anual actual comprometido aguas abajo y volumenes decretados para reservas medio ambiente
S26: D.- Disponibilidad media anual de agua superficial en la cuenca hidrológica

Sheet RH-3
B2: GERENCIA DE AGUAS SUPERFICIALES E INGENIERÍA DE RÍOS
B3: REGION HIDROLOGICA No 3
B4: BAJA CALIFORNIA SUROESTE
A7: Cuenca | B7: Nombre | C7: Cp | D7: Ar | E7: Uc (a) | F7: Uc (b) | G7: Uc (c) | H7: Uc | I7: R | J7: Im | K7: Ex | L7: Ev | M7: Δv | N7: Ab | O7: Rxy | P7: Ab - Rxy | Q7: D | S7: ECUACIONES
A8: 1 | B8: La Purísima | C8: 41.905 | D8: 0 | E8: 4.635719 | F8: 0.0038 | G8: 0 | H8: =E8+F8+G8 -> 4.639519 | I8: 0 | J8: 0 | K8: 0 | L8: 0 | M8: 0 | N8: =C8+D8+I8+J8-H8-L8-M8-K8 -> 37.265481 | O8: =C8*0.1 -> 4.1905 | P8: =N8-O8 -> 33.074981 | Q8: =P8 -> 33.074981
A9: 2 | B9: Mezquital Seco | C9: 24.637 | D9: 0 | E9: 0.015165 | F9: 0.007 | G9: 0 | H9: 0.022165 | I9: 0 | J9: 0 | K9: 0 | L9: 0 | M9: 0 | N9: 24.614835 | O9: =C9*0.1 -> 2.4637 | P9: =N9-O9 -> 22.151135 | Q9: 22.151135 | S9: Ab = Cp + Ar + R + Im - (Uc(a) + Uc(b) + Uc(c) + Ev + Ex + Av)
A10: 3 | B10: Santo Domingo | C10: 67.633 | D10: 0 | E10: 0.751986 | F10: 0.006 | G10: 0 | H10: 0.757986 | I10: 0 | J10: 0 | K10: 0 | L10: 0 | M10: 0 | N10: 66.875014 | O10: =C10*0.1 -> 6.7633 | P10: 60.111714 | Q10: 60.111714 | S10: D = Ab - Rxy
A11: 4 | B11: Bramonas | C11: 91.183 | D11: 0 | E11: 0.423723 | F11: 0.006 | G11: 0 | H11: 0.429723 | I11: 0 | J11: 0 | K11: 0 | L11: 0 | M11: 0 | N11: 90.753277 | O11: 9.1183 | P11: 81.634977 | Q11: 81.634977
A12: 5 | B12: Santa Rita | C12: 33.022 | D12: 0 | E12: 0.8887 | F12: 0.01 | G12: 0 | H12: 0.8987 | I12: 0 | J12: 0 | K12: 0 | L12: 0 | M12: 0 | N12: 32.1233 | O12: 3.3022 | P12: 28.8211 | Q12: 28.8211 | S12: SIMBOLOGIA
A13: 6 | B13: Las Pocitas-San Hilario | C13: 38.036 | D13: 0 | E13: 0.5122 | F13: 0.0035 | G13: 0 | H13: 0.5157 | I13: 0 | J13: 0 | K13: 0 | L13: 0 | M13: 0 | N13: 37.5203 | O13: 3.8036 | P13: 33.7167 | Q13: 33.7167
A14: 7 | B14: Conejos-Los Viejos | C14: 19.733 | D14: 0 | E14: 0.033 | F14: 0 | G14: 0 | H14: 0.033 | I14: 0 | J14: 0 | K14: 0 | L14: 0 | M14: 0 | N14: 19.7 | O14: 1.9733 | P14: 17.7267 | Q14: 17.7267 | S14: Cp.- Volumen medio anual de escurrimiento natural
A15: 8 | B15: Melitón Albañez | C15: 20.95 | D15: 0 | E15: 0.02373 | F15: 0 | G15: 0 | H15: 0.02373 | I15: 0 | J15: 0 | K15: 0 | L15: 0 | M15: 0 | N15: 20.92627 | O15: 2.095 | P15: 18.83127 | Q15: 18.83127 | S15: Ar.- Volumen medio anual de escurrimiento desde la cuenca aguas arriba
A16: 9 | B16: La Matanza | C16: 6.981 | D16: 0 | E16: 0.730055 | F16: 0.0128 | G16: 0 | H16: 0.742855 | I16: 0 | J16: 0 | K16: 0 | L16: 0 | M16: 0 | N16: 6.238145 | O16: 0.6981 | P16: 5.540045 | Q16: 5.540045 | S16: Uc (a).- Volumen anual de extracción de agua superficial mediante títulos inscritos actualmente en el REPDA
A17: 10 | B17: Cañada Honda | C17: 0.724 | D17: 0 | E17: 0.003 | F17: 0 | G17: 0 | H17: 0.003 | I17: 0 | J17: 0 | K17: 0 | L17: 0 | M17: 0 | N17: 0.721 | O17: 0.0724 | P17: 0.6486 | Q17: 0.6486 | S17: Uc (b).- Volumen anual de extracción de agua superficial de títulos en proceso de inscripción en el REPDA
A18: 11 | B18: Todos Santos | C18: 3.227 | D18: 0 | E18: 5.6054 | F18: 0 | G18: 0 | H18: 5.6054 | I18: 0 | J18: 0 | K18: 0 | L18: 0 | M18: 0 | N18: -2.3784 | O18: 0.3227 | P18: -2.7011 | Q18: =N18-O18 -> -2.7011 | S18: Uc (c).- Volumen anual correspondiente a las reservas y las zonas reglamentadas
A19: 12 | B19: Pescaderos | C19: 8.318 | D19: 0 | E19: 0.558725 | F19: 1.13974 | G19: 0 | H19: 1.698465 | I19: 0 | J19: 0 | K19: 0 | L19: 0 | M19: 0 | N19: 6.619535 | O19: 0.8318 | P19: 5.787735 | Q19: 5.787735 | S19: R.- Volumen anual de retornos
A20: 13 | B20: Plutarco E Calles | C20: 11.647 | D20: 0 | E20: 1.970788 | F20: 0.0175 | G20: 0 | H20: 1.988288 | I20: 0 | J20: 0 | K20: 0 | L20: 0 | M20: 0 | N20: 9.658712 | O20: 1.1647 | P20: 8.494012 | Q20: 8.494012 | S20: Im.- Volumen anual de importaciones
A21: 14 | B21: Migriño | C21: 7.948 | D21: 0 | E21: 0.003 | F21: 0.003 | G21: 0 | H21: 0.006 | I21: 0 | J21: 0 | K21: 0 | L21: 0 | M21: 0 | N21: 7.942 | O21: 0.7948 | P21: 7.1472 | Q21: 7.1472 | S21: Ex.- Volumen anual de exportaciones
A22: 15 | B22: El Carrizal | C22: 4.385 | D22: 0 | E22: 0.00385 | F22: 0 | G22: 0 | H22: 0.00385 | I22: 0 | J22: 0 | K22: 0 | L22: 0 | M22: 0 | N22: 4.38115 | O22: 0.4385 | P22: 3.94265 | Q22: 3.94265 | S22: Ev.- Volumen medio anual de evaporación en embalses
B23: TOTAL | C23: =SUM(C8:C22) -> 380.329 | E23: =SUM(E8:E22) -> 16.159041 | F23: 1.20934 | G23: 0 | H23: 17.368381 | I23: 0 | J23: 0 | K23: 0 | L23: 0 | M23: 0 | Q23: =SUM(Q19:Q22,Q8:Q17) -> 327.628819 | S23: Av.- Volumen medio anual de variación de almacenamiento en embalses
A24: Valores en millones de metros cúbicos | S24: Ab.- Volumen medio anual de escurrimiento de la cuenca hacia aguas abajo
S25: Rxy.- Volumen anual actual comprometido aguas abajo y volumenes decretados para reservas medio ambiente
S26: D.- Disponibilidad media anual de agua superficial en la cuenca hidrológica

Sheet RH-4
B2: GERENCIA DE AGUAS SUPERFICIALES E INGENIERÍA DE RÍOS
B3: REGION HIDROLOGICA No 4
B4: BAJA CALIFORNIA NORESTE
A7: Cuenca | B7: Nombre | C7: Cp | D7: Ar | E7: Uc (a) | F7: Uc (b) | G7: Uc (c) | H7: Uc | I7: R | J7: Im | K7: Ex | L7: Ev | M7: Δv | N7: Ab | O7: Rxy | P7: Ab - Rxy | Q7: D | S7: ECUACIONES
A8: 1 | B8: Cerrada Laguna Salada | C8: 65.25 | D8: 0 | E8: 0.267098 | F8: 0 | G8: 0 | H8: =E8+F8+G8 -> 0.267098 | I8: 0 | J8: 0 | K8: 0 | L8: 0 | M8: 0 | N8: =C8+D8+I8+J8-H8-L8-M8-K8 -> 64.982902 | O8: =C8*0.1 -> 6.525 | P8: =N8-O8 -> 58.457902 | Q8: =P8 -> 58.457902
A9: 2 | B9: El Borrego | C9: 19.344 | D9: 0 | E9: 0 | F9: 0 | G9: 0 | H9: 0 | I9: 0 | J9: 0 | K9: 0 | L9: 0 | M9: 0 | N9: 19.344 | O9: =C9*0.1 -> 1.9344 | P9: =N9-O9 -> 17.4096 | Q9: 17.4096 | S9: Ab = Cp + Ar + R + Im - (Uc(a) + Uc(b) + Uc(c) + Ev + Ex + Av)
A10: 3 | B10: Cerrada Santa Clara | C10: 16.961 | D10: 0 | E10: 0.01210246 | F10: 0 | G10: 0 | H10: 0.01210246 | I10: 0 | J10: 0 | K10: 0 | L10: 0 | M10: 0 | N10: 16.94889754 | O10: =C10*0.1 -> 1.6961 | P10: 15.25279754 | Q10: 15.25279754 | S10: D = Ab - Rxy
A11: 4 | B11: Bahía San Felipe | C11: 3.808 | D11: 0 | E11: 0 | F11: 0 | G11: 0 | H11: 0 | I11: 0 | J11: 0 | K11: 0 | L11: 0 | M11: 0 | N11: 3.808 | O11: 0.3808 | P11: 3.4272 | Q11: 3.4272
A12: 5 | B12: Huatamote | C12: 11.594 | D12: 0 | E12: 0.0302435 | F12: 0 | G12: 0 | H12: 0.0302435 | I12: 0 | J12: 0 | K12: 0 | L12: 0 | M12: 0 | N12: 11.5637565 | O12: =C12*0.1 -> 1.1594 | P12: 10.4043565 | Q12: 10.4043565 | S12: SIMBOLOGIA
A13: 6 | B13: San Fermín | C13: 4.997 | D13: 0 | E13: 0 | F13: 0 | G13: 0 | H13: 0 | I13: 0 | J13: 0 | K13: 0 | L13: 0 | M13: 0 | N13: 4.997 | O13: =C13*0.1 -> 0.4997 | P13: 4.4973 | Q13: 4.4973
A14: 7 | B14: Agua Dulce | C14: 8.827 | D14: 0 | E14: 0 | F14: 0 | G14: 0 | H14: 0 | I14: 0 | J14: 0 | K14: 0 | L14: 0 | M14: 0 | N14: 8.827 | O14: 0.8827 | P14: 7.9443 | Q14: 7.9443 | S14: Cp.- Volumen medio anual de escurrimiento natural
A15: 8 | B15: Agua Grande | C15: 9.101 | D15: 0 | E15: 0.000215 | F15: 0 | G15: 0 | H15: 0.000215 | I15: 0 | J15: 0 | K15: 0 | L15: 0 | M15: 0 | N15: 9.100785 | O15: 0.9101 | P15: 8.190685 | Q15: 8.190685 | S15: Ar.- Volumen medio anual de escurrimiento desde la cuenca aguas arriba
B16: TOTAL | C16: =SUM(C8:C15) -> 139.882 | E16: =SUM(E8:E15) -> 0.30965896 | F16: 0 | G16: 0 | H16: 0.30965896 | I16: 0 | J16: 0 | K16: 0 | L16: 0 | M16: 0 | Q16: =SUM(Q8:Q15) -> 125.584141 | S16: Uc (a).- Volumen anual de extracción de agua superficial mediante títulos inscritos actualmente en el REPDA
A17: Valores en millones de metros cúbicos | S17: Uc (b).- Volumen anual de extracción de agua superficial de títulos en proceso de inscripción en el REPDA
S18: Uc (c).- Volumen anual correspondiente a las reservas y las zonas reglamentadas
S19: R.- Volumen anual de retornos
S20: Im.- Volumen anual de importaciones
S21: Ex.- Volumen anual de exportaciones
S22: Ev.- Volumen medio anual de evaporación en embalses
S23: Av.- Volumen medio anual de variación de almacenamiento en embalses
S24: Ab.- Volumen medio anual de escurrimiento de la cuenca hacia aguas abajo
S25: Rxy.- Volumen anual actual comprometido aguas abajo y volumenes decretados para reservas medio ambiente
S26: D.- Disponibilidad media anual de agua superficial en la cuenca hidrológica

Sheet RH-5
B2: GERENCIA DE AGUAS SUPERFICIALES E INGENIERÍA DE RÍOS
B3: REGION HIDROLOGICA No 5
B4: BAJA CALIFORNIA CENTRO - ESTE
A7: Cuenca | B7: Nombre | C7: Cp | D7: Ar | E7: Uc (a) | F7: Uc (b) | G7: Uc (c) | H7: Uc | I7: R | J7: Im | K7: Ex | L7: Ev | M7: Δv | N7: Ab | O7: Rxy | P7: Ab - Rxy | Q7: D | S7: ECUACIONES
A8: 1 | B8: La Palma | C8: 6.335 | D8: 0 | E8: 0.00055 | F8: 0 | G8: 0 | H8: =E8+F8+G8 -> 0.00055 | I8: 0 | J8: 0 | K8: 0 | L8: 0 | M8: 0 | N8: =C8+D8+I8+J8-H8-L8-M8-K8 -> 6.33445 | O8: =C8*0.1 -> 0.6335 | P8: =N8-O8 -> 5.70095 | Q8: =P8 -> 5.70095
A9: 2 | B9: Calamajue | C9: 6.208 | D9: 0 | E9: 0 | F9: 0 | G9: 0 | H9: 0 | I9: 0 | J9: 0 | K9: 0 | L9: 0 | M9: 0 | N9: 6.208 | O9: =C9*0.1 -> 0.6208 | P9: =N9-O9 -> 5.5872 | Q9: 5.5872 | S9: Ab = Cp + Ar + R + Im - (Uc(a) + Uc(b) + Uc(c) + Ev + Ex + Av)
A10: 3 | B10: Asamblea | C10: 7.791 | D10: 0 | E10: 0.003065 | F10: 0 | G10: 0 | H10: 0.003065 | I10: 0 | J10: 0 | K10: 0 | L10: 0 | M10: 0 | N10: 7.787935 | O10: =C10*0.1 -> 0.7791 | P10: 7.008835 | Q10: 7.008835 | S10: D = Ab - Rxy
A11: 4 | B11: Tepetate | C11: 5.822 | D11: 0 | E11: 0.0431235 | F11: 0 | G11: 0 | H11: 0.0431235 | I11: 0 | J11: 0 | K11: 0 | L11: 0 | M11: 0 | N11: 5.7788765 | O11: =C11*0.1 -> 0.5822 | P11: 5.1966765 | Q11: 5.1966765
A12: 5 | B12: San Pedro | C12: 5.104 | D12: 0 | E12: 0.244277 | F12: 0 | G12: 0 | H12: 0.244277 | I12: 0 | J12: 0 | K12: 0 | L12: 0 | M12: 0 | N12: 4.859723 | O12: 0.5104 | P12: 4.349323 | Q12: 4.349323 | S12: SIMBOLOGIA
A13: 6 | B13: Alambrado | C13: 5.12 | D13: 0 | E13: 0 | F13: 0 | G13: 0 | H13: 0 | I13: 0 | J13: 0 | K13: 0 | L13: 0 | M13: 0 | N13: 5.12 | O13: 0.512 | P13: 4.608 | Q13: 4.608
A14: 7 | B14: El Infiernito | C14: 7.221 | D14: 0 | E14: 0 | F14: 0 | G14: 0 | H14: 0 | I14: 0 | J14: 0 | K14: 0 | L14: 0 | M14: 0 | N14: 7.221 | O14: 0.7221 | P14: 6.4989 | Q14: 6.4989 | S14: Cp.- Volumen medio anual de escurrimiento natural
A15: 8 | B15: Mulegé | C15: 8.678 | D15: 0 | E15: 0.12115122 | F15: 0 | G15: 0 | H15: 0.12115122 | I15: 0 | J15: 0 | K15: 0 | L15: 0 | M15: 0 | N15: 8.55684878 | O15: 0.8678 | P15: 7.68904878 | Q15: 7.68904878 | S15: Ar.- Volumen medio anual de escurrimiento desde la cuenca aguas arriba
A16: 9 | B16: San Marcos-Palo Verde | C16: 14.87 | D16: 0 | E16: 0.7699605 | F16: 0.005037 | G16: 0 | H16: 0.7749975 | I16: 0 | J16: 0 | K16: 0 | L16: 0 | M16: 0 | N16: 14.0950025 | O16: 1.487 | P16: 12.6080025 | Q16: 12.6080025 | S16: Uc (a).- Volumen anual de extracción de agua superficial mediante títulos inscritos actualmente en el REPDA
A17: 10 | B17: San Bruno | C17: 1.162 | D17: 0 | E17: 0 | F17: 0 | G17: 0 | H17: 0 | I17: 0 | J17: 0 | K17: 0 | L17: 0 | M17: 0 | N17: 1.162 | O17: 0.1162 | P17: 1.0458 | Q17: 1.0458 | S17: Uc (b).- Volumen anual de extracción de agua superficial de títulos en proceso de inscripción en el REPDA
A18: 11 | B18: San Lucas | C18: 1.14 | D18: 0 | E18: 0 | F18: 0.003 | G18: 0 | H18: 0.003 | I18: 0 | J18: 0 | K18: 0 | L18: 0 | M18: 0 | N18: 1.137 | O18: 0.114 | P18: 1.023 | Q18: 1.023 | S18: Uc (c).- Volumen anual correspondiente a las reservas y las zonas reglamentadas
A19: 12 | B19: Santa Agueda | C19: 4.663 | D19: 0 | E19: 0.635145 | F19: 0 | G19: 0 | H19: 0.635145 | I19: 0 | J19: 0 | K19: 0 | L19: 0 | M19: 0 | N19: 4.027855 | O19: 0.4663 | P19: 3.561555 | Q19: 3.561555 | S19: R.- Volumen anual de retornos
A20: 13 | B20: Santa Rosalía | C20: 1.009 | D20: 0 | E20: 0 | F20: 0 | G20: 0 | H20: 0 | I20: 0 | J20: 0 | K20: 0 | L20: 0 | M20: 0 | N20: 1.009 | O20: 0.1009 | P20: 0.9081 | Q20: 0.9081 | S20: Im.- Volumen anual de importaciones
A21: 14 | B21: Las Vírgenes | C21: 16.552 | D21: 0 | E21: 0.030477 | F21: 0 | G21: 0 | H21: 0.030477 | I21: 0 | J21: 0 | K21: 0 | L21: 0 | M21: 0 | N21: 16.521523 | O21: =C21*0.1 -> 1.6552 | P21: 14.866323 | Q21: 14.866323 | S21: Ex.- Volumen anual de exportaciones
A22: 15 | B22: Paralelo 28 | C22: 11.701 | D22: 0 | E22: 0.009167 | F22: 0 | G22: 0 | H22: 0.009167 | I22: 0 | J22: 0 | K22: 0 | L22: 0 | M22: 0 | N22: 11.691833 | O22: =C22*0.1 -> 1.1701 | P22: 10.521733 | Q22: 10.521733 | S22: Ev.- Volumen medio anual de evaporación en embalses
B23: TOTAL | C23: =SUM(C8:C22) -> 103.376 | E23: =SUM(E8:E22) -> 1.85691622 | F23: 0.008037 | G23: 0 | H23: 1.86495322 | I23: 0 | J23: 0 | K23: 0 | L23: 0 | M23: 0 | Q23: =SUM(Q8:Q22) -> 91.17344678 | S23: Av.- Volumen medio anual de variación de almacenamiento en embalses
A24: Valores en millones de metros cúbicos | S24: Ab.- Volumen medio anual de escurrimiento de la cuenca hacia aguas abajo
S25: Rxy.- Volumen anual actual comprometido aguas abajo y volumenes decretados para reservas medio ambiente
S26: D.- Disponibilidad media anual de agua superficial en la cuenca hidrológica

Sheet RH-6
B2: GERENCIA DE AGUAS SUPERFICIALES E INGENIERÍA DE RÍOS
B3: REGION HIDROLOGICA No 6
B4: BAJA CALIFORNIA SURESTE
A7: Cuenca | B7: Nombre | C7: Cp | D7: Ar | E7: Uc (a) | F7: Uc (b) | G7: Uc (c) | H7: Uc | I7: R | J7: Im | K7: Ex | L7: Ev | M7: Δv | N7: Ab | O7: Rxy | P7: Ab - Rxy | Q7: D | S7: ECUACIONES
A8: 1 | B8: San Lucas | C8: 5.262 | D8: 0 | E8: 0.031427 | F8: 0.002 | G8: 0 | H8: =E8+F8+G8 -> 0.033427 | I8: 0 | J8: 0 | K8: 0 | L8: 0 | M8: 0 | N8: =C8+D8+I8+J8-H8-L8-M8-K8 -> 5.228573 | O8: =C8*0.1 -> 0.5262 | P8: =N8-O8 -> 4.702373 | Q8: =P8 -> 4.702373
A9: 2 | B9: San José del Cabo | C9: 42.428 | D9: 0 | E9: 3.982191 | F9: 0.039674 | G9: 0 | H9: 4.021865 | I9: 0 | J9: 0 | K9: 0 | L9: 0 | M9: 0 | N9: 38.406135 | O9: =C9*0.1 -> 4.2428 | P9: =N9-O9 -> 34.163335 | Q9: 34.163335 | S9: Ab = Cp + Ar + R + Im - (Uc(a) + Uc(b) + Uc(c) + Ev + Ex + Av)
A10: 3 | B10: Cabo Pulmo | C10: 9.492 | D10: 0 | E10: 0.015473 | F10: 0 | G10: 0 | H10: 0.015473 | I10: 0 | J10: 0 | K10: 0 | L10: 0 | M10: 0 | N10: 9.476527 | O10: =C10*0.1 -> 0.9492 | P10: 8.527327 | Q10: 8.527327 | S10: D = Ab - Rxy
A11: 4 | B11: Santiago | C11: 23.367 | D11: 0 | E11: 1.9096418 | F11: 0 | G11: 0 | H11: 1.9096418 | I11: 0 | J11: 0 | K11: 0 | L11: 0 | M11: 0 | N11: 21.4573582 | O11: 2.3367 | P11: 19.1206582 | Q11: 19.1206582
A12: 5 | B12: San Bartolo | C12: 11.52 | D12: 0 | E12: 0.74415 | F12: 0 | G12: 0 | H12: 0.74415 | I12: 0 | J12: 0 | K12: 0 | L12: 0 | M12: 0 | N12: 10.77585 | O12: 1.152 | P12: 9.62385 | Q12: 9.62385 | S12: SIMBOLOGIA
A13: 6 | B13: Los Planes | C13: 17.118 | D13: 0 | E13: 0.306562 | F13: 0.021 | G13: 0 | H13: 0.327562 | I13: 0 | J13: 0 | K13: 0 | L13: 0 | M13: 0 | N13: 16.790438 | O13: 1.7118 | P13: 15.078638 | Q13: 15.078638
A14: 7 | B14: La Paz | C14: 24.534 | D14: 0 | E14: 6.7819097 | F14: 0.005 | G14: 0 | H14: 6.7869097 | I14: 0 | J14: 0 | K14: 0 | L14: 0 | M14: 0 | N14: 17.7470903 | O14: 2.4534 | P14: 15.2936903 | Q14: 15.2936903 | S14: Cp.- Volumen medio anual de escurrimiento natural
A15: 8 | B15: El Coyote | C15: 3.875 | D15: 0 | E15: 0.624144 | F15: 0.0433 | G15: 0 | H15: 0.667444 | I15: 0 | J15: 0 | K15: 0 | L15: 0 | M15: 0 | N15: 3.207556 | O15: 0.3875 | P15: 2.820056 | Q15: 2.820056 | S15: Ar.- Volumen medio anual de escurrimiento desde la cuenca aguas arriba
A16: 9 | B16: Alfredo B. Bonfil | C16: 16.995 | D16: 0 | E16: 0.069515 | F16: 0 | G16: 0 | H16: 0.069515 | I16: 0 | J16: 0 | K16: 0 | L16: 0 | M16: 0 | N16: 16.925485 | O16: 1.6995 | P16: 15.225985 | Q16: 15.225985 | S16: Uc (a).- Volumen anual de extracción de agua superficial mediante títulos inscritos actualmente en el REPDA
A17: 10 | B17: Tepentu | C17: 8.1 | D17: 0 | E17: 0.032525 | F17: 0 | G17: 0 | H17: 0.032525 | I17: 0 | J17: 0 | K17: 0 | L17: 0 | M17: 0 | N17: 8.067475 | O17: =C17*0.1 -> 0.81 | P17: 7.257475 | Q17: 7.257475 | S17: Uc (b).- Volumen anual de extracción de agua superficial de títulos en proceso de inscripción en el REPDA
A18: 11 | B18: Loreto | C18: 9.501 | D18: 0 | E18: 0.14475 | F18: 0 | G18: 0 | H18: 0.14475 | I18: 0 | J18: 0 | K18: 0 | L18: 0 | M18: 0 | N18: 9.35625 | O18: 0.9501 | P18: 8.40615 | Q18: 8.40615 | S18: Uc (c).- Volumen anual correspondiente a las reservas y las zonas reglamentadas
A19: 12 | B19: San Juan B. Londo | C19: 8.837 | D19: 0 | E19: 0.0264 | F19: 0 | G19: 0 | H19: 0.0264 | I19: 0 | J19: 0 | K19: 0 | L19: 0 | M19: 0 | N19: 8.8106 | O19: 0.8837 | P19: 7.9269 | Q19: 7.9269 | S19: R.- Volumen anual de retornos
A20: 13 | B20: Rosarito | C20: 5.506 | D20: 0 | E20: 0.003 | F20: 0 | G20: 0 | H20: 0.003 | I20: 0 | J20: 0 | K20: 0 | L20: 0 | M20: 0 | N20: 5.503 | O20: 0.5506 | P20: 4.9524 | Q20: 4.9524 | S20: Im.- Volumen anual de importaciones
A21: 14 | B21: Bahía Concepción | C21: 11.512 | D21: 0 | E21: 0.077474 | F21: 0 | G21: 0 | H21: 0.077474 | I21: 0 | J21: 0 | K21: 0 | L21: 0 | M21: 0 | N21: 11.434526 | O21: 1.1512 | P21: 10.283326 | Q21: 10.283326 | S21: Ex.- Volumen anual de exportaciones
B22: TOTAL | C22: =SUM(C8:C21) -> 198.047 | E22: =SUM(E8:E21) -> 14.7491625 | F22: =SUM(F8:F21) -> 0.110974 | G22: =SUM(G8:G21) -> 0 | H22: =SUM(H8:H21) -> 14.8601365 | I22: 0 | J22: 0 | K22: 0 | L22: 0 | M22: 0 | Q22: =SUM(Q8:Q21) -> 163.3821635 | S22: Ev.- Volumen medio anual de evaporación en embalses
A23: Valores en millones de metros cúbicos | S23: Av.- Volumen medio anual de variación de almacenamiento en embalses
S24: Ab.- Volumen medio anual de escurrimiento de la cuenca hacia aguas abajo
S25: Rxy.- Volumen anual actual comprometido aguas abajo y volumenes decretados para reservas medio ambiente
S26: D.- Disponibilidad media anual de agua superficial en la cuenca hidrológica

Sheet RH-7
B2: GERENCIA DE AGUAS SUPERFICIALES E INGENIERÍA DE RÍOS
B3: REGION HIDROLOGICA No 7
B4: RÍO COLORADO
S6: ECUACIONES
A8: Cuenca | B8: Nombre | C8: Cp | D8: Ar | E8: Uc (a) | F8: Uc (b) | G8: Uc (c) | H8: Uc | I8: R | J8: Im | K8: Ex | L8: Ev | M8: Δv | N8: Ab | O8: Rxy | P8: Ab - Rxy | Q8: D | S8: Ab = Cp + Ar + R + Im - (Uc(a) + Uc(b) + Uc(c) + Ev + Ex + Av)
A9: 1 | B9: Río Colorado | C9: 19.985 | D9: 1850.234 | E9: 1729.061497 | F9: 0 | G9: 0 | H9: =E9+F9+G9 -> 1729.061497 | I9: 349.471529 | J9: 0 | K9: =430.304+60 -> 490.304 | L9: 0 | M9: 0 | N9: =C9+D9+I9+J9-H9-L9-M9-K9 -> 0.325032483 | O9: 0 | P9: =N9-O9 -> 0.325032483 | Q9: =P9 -> 0.325032483 | S9: D = Ab - Rxy
A10: 2 | B10: Arroyo Los Nogales | C10: 2.487 | D10: =I72 -> 0 | E10: 0 | F10: 0 | G10: 0 | H10: =E10+F10+G10 -> 0 | I10: 0 | J10: 0 | K10: 0 | L10: 0 | M10: 0 | N10: =C10+D10+I10+J10-H10-L10-M10-K10 -> 2.487 | O10: =C10*0.1 -> 0.2487 | P10: =N10-O10 -> 2.2383 | Q10: =P10 -> 2.2383
A11: 3 | B11: Río Santa Cruz | C11: 18.958 | D11: =I72 -> 0 | E11: 0.04878 | F11: 0 | G11: 0 | H11: =E11+F11+G11 -> 0.04878 | I11: 0 | J11: 0 | K11: 0 | L11: 0 | M11: 0 | N11: =C11+D11+I11+J11-H11-L11-M11-K11 -> 18.90922 | O11: =C11*0.1 -> 1.8958 | P11: =N11-O11 -> 17.01342 | Q11: =P11 -> 17.01342 | S11: SIMBOLOGIA
A12: 4 | B12: Río San Pedro | C12: 35.944 | D12: =I74 -> 0 | E12: 0.078975 | F12: 1.349228 | G12: 0 | H12: =E12+F12+G12 -> 1.428203 | I12: 0 | J12: 0 | K12: 0 | L12: 0 | M12: 0 | N12: =C12+D12+I12+J12-H12-L12-M12-K12 -> 34.515797 | O12: =C12*0.1 -> 3.5944 | P12: =N12-O12 -> 30.921397 | Q12: =P12 -> 30.921397
B13: TOTAL | C13: =SUM(C9:C12) -> 77.374 | E13: =SUM(E9:E12) -> 1729.189252 | F13: =SUM(F9:F12) -> 1.349228 | G13: 0 | H13: 1730.53848 | I13: 349.471529 | J13: 0 | K13: =SUM(K9:K12) -> 490.304 | L13: 0 | M13: 0 | Q13: =SUM(Q9:Q12) -> 50.49814948 | S13: Cp.- Volumen medio anual de escurrimiento natural
A14: Valores en millones de metros cúbicos | S14: Ar.- Volumen medio anual de escurrimiento desde la cuenca aguas arriba
S15: Uc (a).- Volumen anual de extracción de agua superficial mediante títulos inscritos actualmente en el REPDA
S16: Uc (b).- Volumen anual de extracción de agua superficial de títulos en proceso de inscripción en el REPDA
S17: Uc (c).- Volumen anual correspondiente a las reservas y las zonas reglamentadas
S18: R.- Volumen anual de retornos
S19: Im.- Volumen anual de importaciones
S20: Ex.- Volumen anual de exportaciones
S21: Ev.- Volumen medio anual de evaporación en embalses
S22: Av.- Volumen medio anual de variación de almacenamiento en embalses
S23: Ab.- Volumen medio anual de escurrimiento de la cuenca hacia aguas abajo
S24: Rxy.- Volumen anual actual comprometido aguas abajo y volumenes decretados para reservas medio ambiente
S25: D.- Disponibilidad media anual de agua superficial en la cuenca hidrológica

Sheet RH-8
B2: GERENCIA DE AGUAS SUPERFICIALES E INGENIERÍA DE RÍOS
B3: REGION HIDROLOGICA No 8
B4: SONORA NORTE
A7: Cuenca | B7: Nombre | C7: Cp | D7: Ar | E7: Uc (a) | F7: Uc (b) | G7: Uc (c) | H7: Uc | I7: R | J7: Im | K7: Ex | L7: Ev | M7: Δv | N7: Ab | O7: Rxy | P7: Ab - Rxy | Q7: D | S7: ECUACIONES
A8: 1 | B8: Río Sonoyta 1 | C8: 12.95338887 | D8: =I44 -> 0 | E8: 0.3715822 | F8: 0 | G8: 0 | H8: =E8+F8+G8 -> 0.3715822 | I8: 0 | J8: 0 | K8: 0 | L8: 0 | M8: 0 | N8: =C8+D8-H8+I8+J8-K8-L8-M8 -> 12.58180667 | O8: =$BE$43 -> 12.58180667 | P8: =N8-O8 -> 0 | Q8: =IF(P8<=0,0,P8) -> 0
A9: 2 | B9: Río Sonoyta 2 | C9: 16.54961113 | D9: =I45 -> 12.58180667 | E9: 0.188384 | F9: 0 | G9: 0 | H9: 0.188384 | I9: 0 | J9: 0 | K9: 28.9430338 | L9: 0 | M9: 0 | N9: 0 | O9: =$BE$45 -> 0 | P9: =N9-O9 -> 0 | Q9: 0 | S9: Ab = Cp + Ar + R + Im - (Uc(a) + Uc(b) + Uc(c) + Ev + Ex + Av)
A10: 3 | B10: Arroyo Cocospera | C10: 43.287 | D10: =I61 -> 0 | E10: 2.985665 | F10: 0 | G10: 0 | H10: 2.985665 | I10: 0 | J10: 0 | K10: 0 | L10: 0 | M10: 0 | N10: 40.301335 | O10: =BE61 -> 40.301335 | P10: 0 | Q10: 0 | S10: D = Ab - Rxy
A11: 4 | B11: Río Magdalena | C11: 49.145 | D11: =I63 -> 40.301335 | E11: 36.95741822 | F11: 0 | G11: 0 | H11: 36.95741822 | I11: 0 | J11: 0 | K11: 26.68065652 | L11: 6.106 | M11: -0.464 | N11: 20.16626026 | O11: =BE63 -> 20.16626026 | P11: 0 | Q11: 0
A12: 5 | B12: Río Concepción | C12: 37.444 | D12: =I65 -> 20.16626026 | E12: 24.2548503 | F12: 0 | G12: 0 | H12: 24.2548503 | I12: 0 | J12: 0 | K12: =C12+D12-H12 -> 33.35540996 | L12: 0 | M12: 0 | N12: 0 | O12: =BE65 -> 0 | P12: 0 | Q12: 0 | S12: SIMBOLOGIA
A13: 6 | B13: Valle de San Luis | C13: 11.37158451 | D13: 0 | E13: 0 | F13: 0 | G13: 0 | H13: 0 | I13: 0 | J13: 0 | K13: 11.37158451 | L13: 0 | M13: 0 | N13: 0 | O13: 0 | P13: 0 | Q13: 0
A14: 7 | B14: Los Vidrios 1 | C14: 7.633 | D14: 0 | E14: 0 | F14: 0 | G14: 0 | H14: 0 | I14: 0 | J14: 0 | K14: 7.633 | L14: 0 | M14: 0 | N14: 0 | O14: 0 | P14: 0 | Q14: 0
A15: 8 | B15: Los Vidrios 2 | C15: 2.12893717 | D15: 0 | E15: 0 | F15: 0 | G15: 0 | H15: 0 | I15: 0 | J15: 0 | K15: 2.12893717 | L15: 0 | M15: 0 | N15: 0 | O15: 0 | P15: 0 | Q15: 0
A16: 9 | B16: Arivaipa-Puerto Libertad | C16: 30.803 | D16: 0 | E16: 0.00438 | F16: 0 | G16: 0 | H16: 0.00438 | I16: 0 | J16: 0 | K16: =C16+D16-H16 -> 30.79862 | L16: 0 | M16: 0 | N16: 0 | O16: 0 | P16: 0 | Q16: 0
B17: Totales | C17: =SUM(C8:C16) -> 211.3155217 | E17: =SUM(E8:E16) -> 64.76227972 | F17: =SUM(F8:F16) -> 0 | G17: 0 | H17: 64.76227972 | I17: 0 | J17: 0 | K17: 140.911242 | L17: 6.106 | M17: -0.464 | Q17: =SUM(Q8:Q16) -> 0
A18: Valores en millones de metros cúbicos | S18: Cp.- Volumen medio anual de escurrimiento natural
S19: Ar.- Volumen medio anual de escurrimiento desde la cuenca aguas arriba
S20: Uc (a).- Volumen anual de extracción de agua superficial mediante títulos inscritos actualmente en el REPDA
S21: Uc (b).- Volumen anual de extracción de agua superficial de títulos en proceso de inscripción en el REPDA
S22: Uc (c).- Volumen anual correspondiente a las reservas y las zonas reglamentadas
S23: R.- Volumen anual de retornos
S24: Im.- Volumen anual de importaciones
S25: Ex.- Volumen anual de exportaciones
S26: Ev.- Volumen medio anual de evaporación en embalses
S27: Av.- Volumen medio anual de variación de almacenamiento en embalses
S28: Ab.- Volumen medio anual de escurrimiento de la cuenca hacia aguas abajo
S29: Rxy.- Volumen anual actual comprometido aguas abajo y volumenes decretados para reservas medio ambiente
S30: D.- Disponibilidad media anual de agua superficial en la cuenca hidrológica
A39: No LINEA | B39: CUENCA O REGION | C39: CONEXION | H39: OFERTA POTENCIAL | M39: DEMANDA CONSUNTIVA | U39: OFERTA REAL | AI39: EXTRACC Y VOLS RESERV PARA A ABAJO | BB39: POR CUENCA PROPIA | BE39: A LA SAL. DEL C PRINCIPAL | BG39: DISPONIBILIDAD RELATIVA | BK39: OFERTA - DEMANDA
B40: HIDROLOGICA | C40: DE | D40: HACIA | H40: Cp | I40: Cp A Arriba | J40: Im | K40: R | L40: TOTAL | M40: Uc | N40: Ev | O40: Ex | P40: TOTAL | Q40: TOTAL ACUM. | R40: Dv | S40: Ab | T40: Ab | U40: Cp | V40: Ar1 | W40: Ar2 | X40: Ar3 | Y40: Ar4 | Z40: Ar5 | AA40: Ar6 | AB40: Ar7 | AC40: Ar8 | AD40: Ar9 | AE40: Ar10 | AF40: Ar11 | AG40: Im | AH40: TOTAL | AI40: Uc | AJ40: Re1 | AK40: Re2 | AL40: RImp | AM40: TOTAL | AN40: para Cp | AO40: para Ar1 | AP40: para Ar2 | AQ40: para Ar3 | AR40: para Ar4 | AS40: para Ar5 | AT40: para Ar6 | AU40: para Ar7 | AV40: para Ar8 | AW40: para Ar9 | AX40: para Ar10 | AY40: para Ar11 | AZ40: para Im | BA40: TOTAL | BB40: RESERVADO | BC40: DISPONIBLE | BD40: DImp | BE40: RESERVADO | BF40: DISPONIBLE | BG40: INDICE | BH40: CLAVE | BI40: COLOR | BK40: OFERTA | BL40: DEMANDA | BM40: Indice
A41: Cuenca Río Cocoraque
U42: =IF(U43=0,"",U43/(SUM($U43:$AG43))) -> 1 | AH42: =SUM(U42:AG42) -> 1 | AN42: =IF(U42=0,"",U42) -> 1 | BA42: =SUM(AN42:AZ42) -> 1
A43: A | B43: =A43 -> A | C43: =A43 -> A | D43: B | H43: =C8 -> 12.95338887 | J43: =J8 -> 0 | K43: =I8 -> 0 | L43: =SUM(H43:K43) -> 12.95338887 | M43: =H8 -> 0.3715822 | N43: =L8 -> 0 | O43: =K8 -> 0 | P43: =SUM(M43:O43) -> 0.3715822 | Q43: =+P43 -> 0.3715822 | R43: =M8 -> 0 | S43: =L43-Q43-R43 -> 12.58180667 | T43: =IF(S43<0,0,S43) -> 12.58180667 | U43: =K43+H43 -> 12.95338887 | AG43: =J43 -> 0 | AH43: =SUM(U43:AG43) -> 12.95338887 | AI43: =+Q43 -> 0.3715822 | AJ43: =(AI45+R45)*V44 -> 12.58180667 | AK43: =AI43+R43+AJ43 -> 12.95338887 | AL43: =IF(AG43>0,(AI43+R43+AJ43)*AG42,"") ->  | AM43: =SUM(AI43:AK43) -> 25.90677774 | AN43: =IF(AN42="","",$AM43*AN42) -> 25.90677774 | BA43: =SUM(AN43:AZ43) -> 25.90677774 | BB43: =+U43 -> 12.95338887 | BC43: =IF(D43="MAR",IF((BB43-AJ43)<0,0,BB43-AJ43),IF(D43="Cerrada",IF((BB43-AJ43)<0,0,BB43-AJ43),IF((BB43-AK43)<0,0,BB43-AK43))) -> 0 | BD43: =IF(AG43=0,"",IF(AG43-AL43<0,0,AG43-AL43)) ->  | BE43: =IF(D43="MAR",0,IF(D43="Cerrada",0,AJ43)) -> 12.58180667 | BF43: =IF(T43-BE43<0,0,T43-BE43) -> 0 | BG43: =IF(D43="MAR",IF(AI43+R43+AJ43=0,"Infinito",(I43+U43+AG43)/(AI43+R43)),IF(D43="Cerrada",IF(AI43+R43+AJ43=0,"Infinito",(I43+U43+AG43)/(AI43+R43)),IF(AI43+R43+AJ43=0,"Infinito",(I43+U43+AG43)/(AI43+R43+AJ43)))) -> 1 | BH43: =IF(BG43<1.4,"1", IF(BG43<3,"2", IF(BG43<9,"3", "4"))) -> 1 | BI43: =IF(BG43<1.4,"ROJO", IF(BG43<3,"AMARILLO", IF(BG43<9,"VERDE", "AZUL"))) -> ROJO | BJ43: =IF(BG43<1.4,"Déficit", IF(BG43<3,"Equilibrio", IF(BG43<9,"Disponibilidad", "Abundante"))) -> Déficit | BK43: =I43+U43+AG43 -> 12.95338887 | BL43: =IF(D43="MAR",AI43+R43,IF(D43="Cerrada",AI43+R43,AI43+R43+AJ43)) -> 12.95338887 | BM43: =BK43/BL43 -> 1
U44: =IF(U45=0,"",U45/(SUM($U45:$AG45))) -> 0.5681018083 | V44: 0.4318981917 | AH44: =SUM(U44:AG44) -> 1 | AN44: =IF(U44=0,"",U44) -> 0.5681018083 | AO44: 0.4318981917 | BA44: =SUM(AN44:AZ44) -> 1
A45: B | B45: =A45 -> B | C45: =A45 -> B | D45: MAR | H45: =C9 -> 16.54961113 | I45: =T43 -> 12.58180667 | J45: =J9 -> 0 | K45: =I9 -> 0 | L45: =SUM(H45:K45) -> 29.1314178 | M45: =H9 -> 0.188384 | N45: =L9 -> 0 | O45: =K9 -> 28.9430338 | P45: =SUM(M45:O45) -> 29.1314178 | Q45: =+P45 -> 29.1314178 | R45: =M9 -> 0 | S45: =L45-Q45-R45 -> 0 | T45: =IF(S45<0,0,S45) -> 0 | U45: =K45+H45 -> 16.54961113 | V45: =T43 -> 12.58180667 | AG45: =J45 -> 0 | AH45: =SUM(U45:AG45) -> 29.1314178 | AI45: =+Q45 -> 29.1314178 | AJ45: =(AI45+R45)*U44 -> 16.54961113 | AL45: =IF(AG45>0,(AI45+R45+AJ45)*AG44,"") ->  | AM45: =SUM(AI45:AK45) -> 45.68102893 | AN45: =IF(AN44="","",$AM45*AN44) -> 25.95147514 | AO45: 19.72955379 | BA45: =SUM(AN45:AZ45) -> 45.68102893 | BB45: =+U45 -> 16.54961113 | BC45: =IF(D45="MAR",IF((BB45-AJ45)<0,0,BB45-AJ45),IF(D45="Cerrada",IF((BB45-AJ45)<0,0,BB45-AJ45),IF((BB45-AK45)<0,0,BB45-AK45))) -> 0 | BD45: =IF(AG45=0,"",IF(AG45-AL45<0,0,AG45-AL45)) ->  | BE45: =IF(D45="MAR",0,IF(D45="Cerrada",0,AJ45)) -> 0 | BF45: =IF(T45-BE45<0,0,T45-BE45) -> 0 | BG45: =IF(D45="MAR",IF(AI45+R45+AJ45=0,"Infinito",(I45+U45+AG45)/(AI45+R45)),IF(D45="Cerrada",IF(AI45+R45+AJ45=0,"Infinito",(I45+U45+AG45)/(AI45+R45)),IF(AI45+R45+AJ45=0,"Infinito",(I45+U45+AG45)/(AI45+R45+AJ45)))) -> 1 | BH45: =IF(BG45<1.4,"1", IF(BG45<3,"2", IF(BG45<9,"3", "4"))) -> 1 | BI45: =IF(BG45<1.4,"ROJO", IF(BG45<3,"AMARILLO", IF(BG45<9,"VERDE", "AZUL"))) -> ROJO | BJ45: =IF(BG45<1.4,"Déficit", IF(BG45<3,"Equilibrio", IF(BG45<9,"Disponibilidad", "Abundante"))) -> Déficit | BK45: =IF(I45+U45+AG45<=0,0,I45+U45+AG45) -> 29.1314178 | BL45: =IF(D45="MAR",AI45+R45,IF(D45="Cerrada",AI45+R45,AI45+R45+AJ45)) -> 29.1314178 | BM45: =BK45/BL45 -> 1
AL47: Comprobación | BB47: SDxx | BE47: Ab
BB48: =SUM(BC43:BD45) -> 0 | BC48: Mm3 | BE48: =T45 -> 0 | BF48: Mm3
A57: No LINEA | B57: CUENCA O REGION | C57: CONEXION | H57: OFERTA POTENCIAL | M57: DEMANDA CONSUNTIVA | U57: OFERTA REAL | AI57: EXTRACC Y VOLS RESERV PARA A ABAJO | BB57: POR CUENCA PROPIA | BE57: A LA SAL. DEL C PRINCIPAL | BG57: DISPONIBILIDAD RELATIVA | BK57: OFERTA - DEMANDA
B58: HIDROLOGICA | C58: DE | D58: HACIA | H58: Cp | I58: Cp A Arriba | J58: Im | K58: R | L58: TOTAL | M58: Uc | N58: Ev | O58: Ex | P58: TOTAL | Q58: TOTAL ACUM. | R58: Dv | S58: Ab | T58: Ab | U58: Cp | V58: Ar1 | W58: Ar2 | X58: Ar3 | Y58: Ar4 | Z58: Ar5 | AA58: Ar6 | AB58: Ar7 | AC58: Ar8 | AD58: Ar9 | AE58: Ar10 | AF58: Ar11 | AG58: Im | AH58: TOTAL | AI58: Uc | AJ58: Re1 | AK58: Re2 | AL58: RImp | AM58: TOTAL | AN58: para Cp | AO58: para Ar1 | AP58: para Ar2 | AQ58: para Ar3 | AR58: para Ar4 | AS58: para Ar5 | AT58: para Ar6 | AU58: para Ar7 | AV58: para Ar8 | AW58: para Ar9 | AX58: para Ar10 | AY58: para Ar11 | AZ58: para Im | BA58: TOTAL | BB58: RESERVADO | BC58: DISPONIBLE | BD58: DImp | BE58: RESERVADO | BF58: DISPONIBLE | BG58: INDICE | BH58: CLAVE | BI58: COLOR | BK58: OFERTA | BL58: DEMANDA | BM58: Indice
A59: Cuenca Río Concepción
U60: =IF(U61=0,"",U61/(SUM($U61:$AG61))) -> 1 | AH60: =SUM(U60:AG60) -> 1 | AN60: =IF(U60=0,"",U60) -> 1 | BA60: =SUM(AN60:AZ60) -> 1
A61: A | B61: =A61 -> A | C61: =A61 -> A | D61: B | H61: =C10 -> 43.287 | J61: =J10 -> 0 | K61: =I10 -> 0 | L61: =SUM(H61:K61) -> 43.287 | M61: =H10 -> 2.985665 | N61: =L10 -> 0 | O61: =K10 -> 0 | P61: =SUM(M61:O61) -> 2.985665 | Q61: =+P61 -> 2.985665 | R61: =M10 -> 0 | S61: =L61-Q61-R61 -> 40.301335 | T61: =IF(S61<0,0,S61) -> 40.301335 | U61: =K61+H61 -> 43.287 | AG61: =J61 -> 0 | AH61: 43.287 | AI61: =+Q61 -> 2.985665 | AJ61: =(AI63+R63+AJ63)*V62 -> 40.301335 | AK61: =AI61+R61+AJ61 -> 43.287 | AL61: =IF(AG61>0,(AI61+R61+AJ61)*AG60,"") ->  | AM61: =SUM(AI61:AK61) -> 86.574 | AN61: =IF(AN60="","",$AM61*AN60) -> 86.574 | BA61: 86.574 | BB61: =+U61 -> 43.287 | BC61: =IF(D61="MAR",IF((BB61-AJ61)<0,0,BB61-AJ61),IF(D61="Cerrada",IF((BB61-AJ61)<0,0,BB61-AJ61),IF((BB61-AK61)<0,0,BB61-AK61))) -> 0 | BD61: =IF(AG61=0,"",IF(AG61-AL61<0,0,AG61-AL61)) ->  | BE61: =IF(D61="MAR",0,IF(D61="Cerrada",0,AJ61)) -> 40.301335 | BF61: =IF(T61-BE61<0,0,T61-BE61) -> 0 | BG61: =IF(D61="MAR",IF(AI61+R61+AJ61=0,"Infinito",(I61+U61+AG61)/(AI61+R61)),IF(D61="Cerrada",IF(AI61+R61+AJ61=0,"Infinito",(I61+U61+AG61)/(AI61+R61)),IF(AI61+R61+AJ61=0,"Infinito",(I61+U61+AG61)/(AI61+R61+AJ61)))) -> 1 | BH61: =IF(BG61<1.4,"1", IF(BG61<3,"2", IF(BG61<9,"3", "4"))) -> 1 | BI61: =IF(BG61<1.4,"ROJO", IF(BG61<3,"AMARILLO", IF(BG61<9,"VERDE", "AZUL"))) -> ROJO | BJ61: =IF(BG61<1.4,"Déficit", IF(BG61<3,"Equilibrio", IF(BG61<9,"Disponibilidad", "Abundante"))) -> Déficit | BK61: =I61+U61+AG61 -> 43.287 | BL61: =IF(D61="MAR",AI61+R61,IF(D61="Cerrada",AI61+R61,AI61+R61+AJ61)) -> 43.287 | BM61: =BK61/BL61 -> 1
U62: =IF(U63=0,"",U63/(SUM($U63:$AG63))) -> 0.5494355917 | V62: 0.4505644083 | AH62: 1 | AN62: =IF(U62=0,"",U62) -> 0.5494355917 | AO62: 0.4505644083 | BA62: 1
A63: B | B63: =A63 -> B | C63: =A63 -> B | D63: C | H63: =C11 -> 49.145 | I63: =T61 -> 40.301335 | J63: =J11 -> 0 | K63: =I11 -> 0 | L63: =SUM(H63:K63) -> 89.446335 | M63: =H11 -> 36.95741822 | N63: =L11 -> 6.106 | O63: =K11 -> 26.68065652 | P63: =SUM(M63:O63) -> 69.74407474 | Q63: =+P63 -> 69.74407474 | R63: =M11 -> -0.464 | S63: =L63-Q63-R63 -> 20.16626026 | T63: =IF(S63<0,0,S63) -> 20.16626026 | U63: =K63+H63 -> 49.145 | V63: =T61 -> 40.301335 | AG63: =J63 -> 0 | AH63: 89.446335 | AI63: =+Q63 -> 69.74407474 | AJ63: =(AI65+R65)*V64 -> 20.16626026 | AK63: =(AI63+R63+AJ63)*U62 -> 49.145 | AL63: =IF(AG63>0,(AI63+R63+AJ63)*AG62,"") ->  | AM63: =SUM(AI63:AK63) -> 139.055335 | AN63: =IF(AN62="","",$AM63*AN62) -> 76.40195027 | AO63: 62.65338473 | BA63: 139.055335 | BB63: =+U63 -> 49.145 | BC63: =IF(D63="MAR",IF((BB63-AJ63)<0,0,BB63-AJ63),IF(D63="Cerrada",IF((BB63-AJ63)<0,0,BB63-AJ63),IF((BB63-AK63)<0,0,BB63-AK63))) -> 0 | BD63: =IF(AG63=0,"",IF(AG63-AL63<0,0,AG63-AL63)) ->  | BE63: =IF(D63="MAR",0,IF(D63="Cerrada",0,AJ63)) -> 20.16626026 | BF63: =IF(T63-BE63<0,0,T63-BE63) -> 0 | BG63: =IF(D63="MAR",IF(AI63+R63+AJ63=0,"Infinito",(I63+U63+AG63)/(AI63+R63)),IF(D63="Cerrada",IF(AI63+R63+AJ63=0,"Infinito",(I63+U63+AG63)/(AI63+R63)),IF(AI63+R63+AJ63=0,"Infinito",(I63+U63+AG63)/(AI63+R63+AJ63)))) -> 1 | BH63: =IF(BG63<1.4,"1", IF(BG63<3,"2", IF(BG63<9,"3", "4"))) -> 1 | BI63: =IF(BG63<1.4,"ROJO", IF(BG63<3,"AMARILLO", IF(BG63<9,"VERDE", "AZUL"))) -> ROJO | BJ63: =IF(BG63<1.4,"Déficit", IF(BG63<3,"Equilibrio", IF(BG63<9,"Disponibilidad", "Abundante"))) -> Déficit | BK63: =I63+U63+AG63 -> 89.446335 | BL63: =IF(D63="MAR",AI63+R63,IF(D63="Cerrada",AI63+R63,AI63+R63+AJ63)) -> 89.446335 | BM63: =BK63/BL63 -> 1
U64: =IF(U65=0,"",U65/(SUM($U65:$AG65))) -> 0.6499536685 | V64: 0.3500463315 | AH64: 1 | AN64: =IF(U64=0,"",U64) -> 0.6499536685 | AO64: 0.3500463315 | BA64: 1
A65: C | B65: =A65 -> C | C65: =A65 -> C | D65: MAR | H65: =C12 -> 37.444 | I65: =T63 -> 20.16626026 | J65: =J12 -> 0 | K65: =I12 -> 0 | L65: =SUM(H65:K65) -> 57.61026026 | M65: =H12 -> 24.2548503 | N65: =L12 -> 0 | O65: =K12 -> 33.35540996 | P65: =SUM(M65:O65) -> 57.61026026 | Q65: =+P65 -> 57.61026026 | R65: =M12 -> 0 | S65: =L65-Q65-R65 -> 0 | T65: =IF(S65<0,0,S65) -> 0 | U65: =K65+H65 -> 37.444 | V65: =T63 -> 20.16626026 | AG65: =J65 -> 0 | AH65: 57.61026026 | AI65: =+Q65 -> 57.61026026 | AJ65: =(AI65+R65)*U64 -> 37.444 | AL65: =IF(AG65>0,(AI65+R65+AJ65)*AG64,"") ->  | AM65: =SUM(AI65:AK65) -> 95.05426026 | AN65: =IF(AN64="","",$AM65*AN64) -> 61.78086516 | AO65: 33.27339509 | BA65: 95.05426026 | BB65: =+U65 -> 37.444 | BC65: =IF(D65="MAR",IF((BB65-AJ65)<0,0,BB65-AJ65),IF(D65="Cerrada",IF((BB65-AJ65)<0,0,BB65-AJ65),IF((BB65-AK65)<0,0,BB65-AK65))) -> 0 | BD65: =IF(AG65=0,"",IF(AG65-AL65<0,0,AG65-AL65)) ->  | BE65: =IF(D65="MAR",0,IF(D65="Cerrada",0,AJ65)) -> 0 | BF65: =IF(T65-BE65<0,0,T65-BE65) -> 0 | BG65: =IF(D65="MAR",IF(AI65+R65+AJ65=0,"Infinito",(I65+U65+AG65)/(AI65+R65)),IF(D65="Cerrada",IF(AI65+R65+AJ65=0,"Infinito",(I65+U65+AG65)/(AI65+R65)),IF(AI65+R65+AJ65=0,"Infinito",(I65+U65+AG65)/(AI65+R65+AJ65)))) -> 1 | BH65: =IF(BG65<1.4,"1", IF(BG65<3,"2", IF(BG65<9,"3", "4"))) -> 1 | BI65: =IF(BG65<1.4,"ROJO", IF(BG65<3,"AMARILLO", IF(BG65<9,"VERDE", "AZUL"))) -> ROJO | BJ65: =IF(BG65<1.4,"Déficit", IF(BG65<3,"Equilibrio", IF(BG65<9,"Disponibilidad", "Abundante"))) -> Déficit | BK65: =IF(I65+U65+AG65<=0,0,I65+U65+AG65) -> 57.61026026 | BL65: =IF(D65="MAR",AI65+R65,IF(D65="Cerrada",AI65+R65,AI65+R65+AJ65)) -> 57.61026026 | BM65: =BK65/BL65 -> 1
AL67: Comprobación | BB67: SDxx | BE67: Ab
BB68: =SUM(BC61:BD65) -> 0 | BC68: Mm3 | BE68: =T65 -> 0 | BF68: Mm3

Sheet RH-9
B2: GERENCIA DE AGUAS SUPERFICIALES E INGENIERÍA DE RÍOS
B3: REGION HIDROLOGICA No 9
B4: SONORA SUR
H6: Cambio de cuenca GE
A7: Cuenca | B7: Nombre | C7: Cp | D7: Ar | E7: Uc (a) | F7: Uc (b) | G7: Uc (c) | H7: Uc | I7: R | J7: Im | K7: Ex | L7: Ev | M7: Δv | N7: Ab | O7: Rxy | P7: Ab - Rxy | Q7: D | S7: ECUACIONES
A8: 1 | B8: Río Sonora 1 | C8: 127.614 | D8: =I71 -> 0 | E8: 37.2975246 | F8: 0 | G8: 0 | H8: =E8+F8+G8 -> 37.2975246 | I8: 0 | J8: 0 | K8: 0 | L8: 0 | M8: 0 | N8: =C8+D8+I8+J8-H8-K8-L8-M8 -> 90.3164754 | O8: =BE71 -> 90.316549 | P8: =N8-O8 -> -7.359804337e-05 | Q8: =P8 -> -7.359804337e-05
A9: 2 | B9: Río San Miguel | C9: 33.38 | D9: =I73 -> 0 | E9: 5.612946 | F9: 0 | G9: 0 | H9: 5.612946 | I9: 0 | J9: 0 | K9: 0 | L9: 0 | M9: 0 | N9: =C9+D9+I9+J9-H9-K9-L9-M9 -> 27.767054 | O9: =BE73 -> 27.76707663 | P9: =N9-O9 -> -2.262711023e-05 | Q9: =P9 -> -2.262711023e-05 | S9: Ab = Cp + Ar + R + Im - (Uc(a) + Uc(b) + Uc(c) + Ev + Ex + Av)
A10: 3 | B10: Río Sonora 2 | C10: 75.358 | D10: =I75 -> 118.0835294 | E10: 74.6940513 | F10: 0 | G10: 0 | H10: 74.6940513 | I10: 0 | J10: 60.4850446 | K10: 85.171 | L10: 30.099 | M10: -0.21 | N10: 64.1725227 | O10: =BE75 -> 64.17272962 | P10: =N10-O10 -> -0.0002069223686 | Q10: =P10 -> -0.0002069223686 | S10: D = Ab - Rxy
A11: 4 | B11: Río Sonora 3 | C11: 98.87190753 | D11: =I77 -> 64.1725227 | E11: 163.044956 | F11: 0 | G11: 0 | H11: 163.044956 | I11: 0 | J11: 0 | K11: 0 | L11: 0 | M11: 0 | N11: -0.0005257318594 | O11: =BE77 -> 0 | P11: =N11-O11 -> -0.0005257318594 | Q11: =P11 -> -0.0005257318594
A12: 5 | B12: Río Mátape 1 | C12: 33.244 | D12: =I88 -> 0 | E12: 2.4384364 | F12: 0 | G12: 0 | H12: 2.4384364 | I12: 0 | J12: 0 | K12: 0 | L12: 4.18 | M12: -0.005 | N12: 26.6305636 | O12: =BE88 -> 11.86196646 | P12: =N12-O12 -> 14.76859714 | Q12: =P12 -> 14.76859714 | S12: SIMBOLOGIA
A13: 6 | B13: Río Mátape 2 | C13: 46.638 | D13: =I90 -> 26.6305636 | E13: 20.1332811 | F13: 0.0025 | G13: 0 | H13: 20.1357811 | I13: 0 | J13: 0 | K13: 12.5 | L13: 0 | M13: 0 | N13: 40.6327825 | O13: =BE90 -> 0 | P13: 40.6327825 | Q13: 40.6327825
A14: 7 | B14: Río Bavispe | C14: 526.976 | D14: =$I$101 -> 0 | E14: 457.554657 | F14: 0 | G14: 0 | H14: 457.554657 | I14: 3.7735923 | J14: 0 | K14: 0 | L14: 53.245 | M14: -0.572 | N14: 20.5219353 | O14: =$BE$101 -> 20.51794734 | P14: 0.003987961304 | Q14: 0.003987961304 | R14: 55 | S14: Cp.- Volumen medio anual de escurrimiento natural
A15: 8 | B15: Río Yaqui 1 | C15: 2187.837 | D15: =$I$103 -> 20.5219353 | E15: 1970.892255 | F15: 7.2771914 | G15: 0 | H15: 1978.169446 | I15: 447.2118796 | J15: 0 | K15: 60.4850446 | L15: 132.847 | M15: 40.147 | N15: 443.9223242 | O15: =$BE$103 -> 443.4062758 | P15: 0.5160484864 | Q15: 0.5160484864 | S15: Ar.- Volumen medio anual de escurrimiento desde la cuenca aguas arriba
A16: 9 | B16: Río Yaqui 2 | C16: 382.623 | D16: =$I$105 -> 443.9223242 | E16: 1604.22145 | F16: 0 | G16: 0 | H16: 1604.22145 | I16: 1876.601443 | J16: 0 | K16: 0 | L16: 203.562 | M16: 1.203 | N16: 894.1603178 | O16: =$BE$105 -> 891.017978 | P16: 3.142339823 | Q16: 3.142339823 | S16: Uc (a).- Volumen anual de extracción de agua superficial mediante títulos inscritos actualmente en el REPDA
A17: 10 | B17: Río Yaqui 3 | C17: 54.119 | D17: =$I$107 -> 894.1603178 | E17: 2289.886936 | F17: 250 | G17: 0 | H17: 2539.886936 | I17: 1600.565 | J17: 0 | K17: 0 | L17: 0 | M17: 0 | N17: 8.957381404 | O17: =$BE$107 -> 0 | P17: 8.957381404 | Q17: 8.957381404 | S17: Uc (b).- Volumen anual de extracción de agua superficial de títulos en proceso de inscripción en el REPDA
A18: 11 | B18: Arroyo Cocoraque 1 | C18: 15.443 | D18: =$I$118 -> 0 | E18: 4.192925 | F18: 0 | G18: 0 | H18: 4.192925 | I18: 0 | J18: 0 | K18: 0 | L18: 0 | M18: 0 | N18: 11.250075 | O18: =$BE$118 -> 0.7546276307 | P18: 10.49544737 | Q18: 10.49544737 | S18: Uc (c).- Volumen anual correspondiente a las reservas y las zonas reglamentadas
A19: 12 | B19: Arroyo Cocoraque 2 | C19: 13.529 | D19: =$I$120 -> 11.250075 | E19: 1.66212 | F19: 0 | G19: 0 | H19: 1.66212 | I19: 0 | J19: 0 | K19: 0 | L19: 0 | M19: 0 | N19: 23.116955 | O19: =$BE$120 -> 0 | P19: 23.116955 | Q19: 23.116955 | S19: R.- Volumen anual de retornos
A20: 13 | B20: Río Mayo 1 | C20: 965.053 | D20: =$I$131 -> 0 | E20: 3.2557871 | F20: 25.0235 | G20: 0 | H20: 28.2792871 | I20: 2.024495625 | J20: 0 | K20: 0 | L20: 0 | M20: 0 | N20: 938.7982085 | O20: =$BE$131 -> 938.7484384 | P20: 0.04977015404 | Q20: 0.04977015404 | S20: Im.- Volumen anual de importaciones
A21: 14 | B21: Arroyo Quiriego | C21: 23.496 | D21: =$I$133 -> 0 | E21: 0.4022345 | F21: 0 | G21: 0 | H21: 0.4022345 | I21: 0.088737475 | J21: 0 | K21: 0 | L21: 0 | M21: 0 | N21: 23.18250297 | O21: =$BE$133 -> 23.18127396 | P21: 0.001229014642 | Q21: 0.001229014642 | S21: Ex.- Volumen anual de exportaciones
A22: 15 | B22: Río Mayo 2 | C22: 146.372 | D22: =$I$135 -> 961.9807115 | E22: 1034.774113 | F22: 0 | G22: 0 | H22: 1034.774113 | I22: 0.22889555 | J22: 0 | K22: 0 | L22: 73.009 | M22: 0.373 | N22: 0.42549405 | O22: =$BE$135 -> 0.3667228712 | P22: 0.05877117878 | Q22: 0.05877117878 | S22: Ev.- Volumen medio anual de evaporación en embalses
A23: 16 | B23: Río Mayo 3 | C23: 68.966 | D23: =$I$137 -> 0.42549405 | E23: 864.4881142 | F23: 0 | G23: 0 | H23: 864.4881142 | I23: 1036.671019 | J23: 0 | K23: 88.8 | L23: 0 | M23: 0 | N23: 152.7743988 | O23: =$BE$137 -> 0 | P23: 152.7743988 | Q23: 152.7743988 | S23: Av.- Volumen medio anual de variación de almacenamiento en embalses
B24: Totales | C24: =SUM(C8:C23) -> 4799.519908 | E24: =SUM(E8:E23) -> 8534.551787 | F24: 282.3031914 | G24: 0 | H24: 8816.854978 | I24: 4967.165063 | J24: 60.4850446 | K24: 246.9560446 | L24: 496.942 | M24: 40.936 | Q24: =Q19+Q17+Q23+Q13 -> 225.4815177 | S24: Ab.- Volumen medio anual de escurrimiento de la cuenca hacia aguas abajo
A25: Valores en millones de metros cúbicos | I25: =N6+Q6 -> 0 | S25: Rxy.- Volumen anual actual comprometido aguas abajo y volumenes decretados para reservas medio ambiente
S26: D.- Disponibilidad media anual de agua superficial en la cuenca hidrológica
O29: Cuenca | P29: Presa | Q29: Vol. Titulado Mm3
O30: Río Bavispe | P30: Lázaro Cárdenas (Angostura) | Q30: 416.669
O31: Río Yaqui 1 | P31: Plutarco Elias Calles (Novillo) | Q31: 2607.597
O32: Río Yaqui 2 | P32: Alvaro Obregón (Ovichic) | Q32: 1099.41 | R32: 640 | S32: 1739.41 | U32: Rebombeo
Q33: titulo 1 de la presa Oviachic | R33: titulo 2 de la presa Oviachic | T33: 269
T34: =T33+92 -> 361
A67: No LINEA | B67: CUENCA O REGION | C67: CONEXION | H67: OFERTA POTENCIAL | M67: DEMANDA CONSUNTIVA | U67: OFERTA REAL | AI67: EXTRACC Y VOLS RESERV PARA A ABAJO | BB67: POR CUENCA PROPIA | BE67: A LA SAL. DEL C PRINCIPAL | BG67: DISPONIBILIDAD RELATIVA | BK67: OFERTA - DEMANDA
B68: HIDROLOGICA | C68: DE | D68: HACIA | H68: Cp | I68: Cp A Arriba | J68: Im | K68: R | L68: TOTAL | M68: Uc | N68: Ev | O68: Ex | P68: TOTAL | Q68: TOTAL ACUM. | R68: Dv | S68: Ab | T68: Ab | U68: Cp | V68: Ar1 | W68: Ar2 | X68: Ar3 | Y68: Ar4 | Z68: Ar5 | AA68: Ar6 | AB68: Ar7 | AC68: Ar8 | AD68: Ar9 | AE68: Ar10 | AF68: Ar11 | AG68: Im | AH68: TOTAL | AI68: Uc | AJ68: Re1 | AK68: Re2 | AL68: RImp | AM68: TOTAL | AN68: para Cp | AO68: para Ar1 | AP68: para Ar2 | AQ68: para Ar3 | AR68: para Ar4 | AS68: para Ar5 | AT68: para Ar6 | AU68: para Ar7 | AV68: para Ar8 | AW68: para Ar9 | AX68: para Ar10 | AY68: para Ar11 | AZ68: para Im | BA68: TOTAL | BB68: RESERVADO | BC68: DISPONIBLE | BD68: DImp | BE68: RESERVADO | BF68: DISPONIBLE | BG68: INDICE | BH68: CLAVE | BI68: COLOR | BK68: OFERTA | BL68: DEMANDA | BM68: Indice
A69: Cuenca Río Sonora
U70: =IF(U71=0,"",U71/(SUM($U71:$AG71))) -> 1 | V70: =IF(V71=0,"",V71/(SUM($U71:$AG71))) ->  | AH70: =SUM(U70:AG70) -> 1 | AN70: =IF(U70=0,"",U70) -> 1 | AO70: =IF(V70=0,"",V70) ->  | AP70: =IF(W70=0,"",W70) ->  | AQ70: =IF(X70=0,"",X70) ->  | AR70: =IF(Y70=0,"",Y70) ->  | AY70: =IF(AF70=0,"",AF70) ->  | AZ70: =IF(AG70=0,"",AG70) ->  | BA70: =SUM(AN70:AZ70) -> 1
A71: A | B71: =A71 -> A | C71: =A71 -> A | D71: C | H71: =C8 -> 127.614 | J71: =J8 -> 0 | K71: =I8 -> 0 | L71: =SUM(H71:K71) -> 127.614 | M71: =H8 -> 37.2975246 | N71: =L8 -> 0 | O71: =K8 -> 0 | P71: =SUM(M71:O71) -> 37.2975246 | Q71: =+P71 -> 37.2975246 | R71: =M8 -> 0 | S71: =L71-Q71-R71 -> 90.3164754 | T71: =IF(S71<0,0,S71) -> 90.3164754 | U71: =K71+H71 -> 127.614 | AG71: =J71 -> 0 | AH71: =SUM(U71:AG71) -> 127.614 | AI71: =+Q71 -> 37.2975246 | AJ71: =(AI75+R75+AJ75)*V74 -> 90.316549 | AK71: =AI71+R71+AJ71 -> 127.6140736 | AL71: =IF(AG71>0,(AI71+R71+AJ71)*AG70,"") ->  | AM71: =SUM(AI71:AK71) -> 255.2281472 | AN71: =IF(AN70="","",$AM71*AN70) -> 255.2281472 | BA71: 255.2281472 | BB71: =+U71 -> 127.614 | BC71: =IF(D71="MAR",IF((BB71-AJ71)<0,0,BB71-AJ71),IF(D71="Cerrada",IF((BB71-AJ71)<0,0,BB71-AJ71),IF((BB71-AK71)<0,0,BB71-AK71))) -> 0 | BD71: =IF(AG71=0,"",IF(AG71-AL71<0,0,AG71-AL71)) ->  | BE71: =IF(D71="MAR",0,IF(D71="Cerrada",0,AJ71)) -> 90.316549 | BF71: =IF(T71-BE71<0,0,T71-BE71) -> 0 | BG71: =IF(D71="MAR",IF(AI71+R71+AJ71=0,"Infinito",(I71+U71+AG71)/(AI71+R71)),IF(D71="Cerrada",IF(AI71+R71+AJ71=0,"Infinito",(I71+U71+AG71)/(AI71+R71)),IF(AI71+R71+AJ71=0,"Infinito",(I71+U71+AG71)/(AI71+R71+AJ71)))) -> 0.9999994233 | BH71: =IF(BG71<1.4,"1", IF(BG71<3,"2", IF(BG71<9,"3", "4"))) -> 1 | BI71: =IF(BG71<1.4,"ROJO", IF(BG71<3,"AMARILLO", IF(BG71<9,"VERDE", "AZUL"))) -> ROJO | BJ71: =IF(BG71<1.4,"Déficit", IF(BG71<3,"Equilibrio", IF(BG71<9,"Disponibilidad", "Abundante"))) -> Déficit | BK71: =I71+U71+AG71 -> 127.614 | BL71: =IF(D71="MAR",AI71+R71,IF(D71="Cerrada",AI71+R71,AI71+R71+AJ71)) -> 127.6140736 | BM71: =BK71/BL71 -> 0.9999994233
U72: =IF(U73=0,"",U73/(SUM($U73:$AG73))) -> 0.2698540916 | V72: =IF(V73=0,"",V73/(SUM($U73:$AG73))) -> 0.7301459084 | AH72: 1 | AN72: =IF(U72=0,"",U72) -> 0.2698540916 | AO72: =IF(V72=0,"",V72) -> 0.7301459084 | BA72: 1
A73: B | B73: =A73 -> B | C73: =A73 -> B | D73: C | H73: =C9 -> 33.38 | J73: =J9 -> 0 | K73: =I9 -> 0 | L73: =SUM(H73:K73) -> 33.38 | M73: =H9 -> 5.612946 | N73: =L9 -> 0 | O73: =K9 -> 0 | P73: =SUM(M73:O73) -> 5.612946 | Q73: =+P73 -> 5.612946 | R73: =M9 -> 0 | S73: =L73-Q73-R73 -> 27.767054 | T73: =IF(S73<0,0,S73) -> 27.767054 | U73: =K73+H73 -> 33.38 | V73: =T71 -> 90.3164754 | AG73: =J73 -> 0 | AH73: 123.6964754 | AI73: =+Q73 -> 5.612946 | AJ73: =(AI75+R75+AJ75)*W74 -> 27.76707663 | AK73: =AI73+R73+AJ73 -> 33.38002263 | AL73: =IF(AG73>0,(AI73+R73+AJ73)*AG72,"") ->  | AM73: =SUM(AI73:AK73) -> 66.76004525 | AN73: =IF(AN72="","",$AM73*AN72) -> 18.01547137 | AO73: 48.74457389 | BA73: 66.76004525 | BB73: =+U73 -> 33.38 | BC73: =IF(D73="MAR",IF((BB73-AJ73)<0,0,BB73-AJ73),IF(D73="Cerrada",IF((BB73-AJ73)<0,0,BB73-AJ73),IF((BB73-AK73)<0,0,BB73-AK73))) -> 0 | BD73: =IF(AG73=0,"",IF(AG73-AL73<0,0,AG73-AL73)) ->  | BE73: =IF(D73="MAR",0,IF(D73="Cerrada",0,AJ73)) -> 27.76707663 | BF73: =IF(T73-BE73<0,0,T73-BE73) -> 0 | BG73: =IF(D73="MAR",IF(AI73+R73+AJ73=0,"Infinito",(I73+U73+AG73)/(AI73+R73)),IF(D73="Cerrada",IF(AI73+R73+AJ73=0,"Infinito",(I73+U73+AG73)/(AI73+R73)),IF(AI73+R73+AJ73=0,"Infinito",(I73+U73+AG73)/(AI73+R73+AJ73)))) -> 0.9999993221 | BH73: =IF(BG73<1.4,"1", IF(BG73<3,"2", IF(BG73<9,"3", "4"))) -> 1 | BI73: =IF(BG73<1.4,"ROJO", IF(BG73<3,"AMARILLO", IF(BG73<9,"VERDE", "AZUL"))) -> ROJO | BJ73: =IF(BG73<1.4,"Déficit", IF(BG73<3,"Equilibrio", IF(BG73<9,"Disponibilidad", "Abundante"))) -> Déficit | BK73: =I73+U73+AG73 -> 33.38 | BL73: =IF(D73="MAR",AI73+R73,IF(D73="Cerrada",AI73+R73,AI73+R73+AJ73)) -> 33.38002263 | BM73: =BK73/BL73 -> 0.9999993221
U74: =IF(U75=0,"",U75/(SUM($U75:$AG75))) -> 0.2967708295 | V74: =IF(V75=0,"",V75/(SUM($U75:$AG75))) -> 0.3556794942 | W74: 0.1093507212 | AG74: 0.2381989551 | AH74: 1 | AN74: =IF(U74=0,"",U74) -> 0.2967708295 | AO74: =IF(V74=0,"",V74) -> 0.3556794942 | AP74: 0.1093507212 | AZ74: 0.2381989551 | BA74: 1
A75: C | B75: =A75 -> C | C75: =A75 -> C | D75: D | H75: =C10 -> 75.358 | I75: =T71+T73 -> 118.0835294 | J75: =J10 -> 60.4850446 | K75: =I10 -> 0 | L75: =SUM(H75:K75) -> 253.926574 | M75: =H10 -> 74.6940513 | N75: =L10 -> 30.099 | O75: =K10 -> 85.171 | P75: =SUM(M75:O75) -> 189.9640513 | Q75: =+P75 -> 189.9640513 | R75: =M10 -> -0.21 | S75: =L75-Q75-R75 -> 64.1725227 | T75: =IF(S75<0,0,S75) -> 64.1725227 | U75: =K75+H75 -> 75.358 | V75: =T71 -> 90.3164754 | W75: =T73 -> 27.767054 | AG75: =J75 -> 60.4850446 | AH75: 253.926574 | AI75: =+Q75 -> 189.9640513 | AJ75: =(AI77+R77)*V76 -> 64.17272962 | AK75: =(AI75+R75+AJ75)*U74 -> 75.35806141 | AL75: =IF(AG75>0,(AI75+R75+AJ75)*AG74,"") -> 60.48509389 | AM75: =SUM(AI75:AK75) -> 329.4948423 | AN75: =IF(AN74="","",$AM75*AN74) -> 97.78445768 | AO75: 117.1945589 | AP75: 36.03049864 | AZ75: 78.48532716 | BA75: 329.4948423 | BB75: =+U75 -> 75.358 | BC75: =IF(D75="MAR",IF((BB75-AJ75)<0,0,BB75-AJ75),IF(D75="Cerrada",IF((BB75-AJ75)<0,0,BB75-AJ75),IF((BB75-AK75)<0,0,BB75-AK75))) -> 0 | BD75: =IF(AG75=0,"",IF(AG75-AL75<0,0,AG75-AL75)) -> 0 | BE75: =IF(D75="MAR",0,IF(D75="Cerrada",0,AJ75)) -> 64.17272962 | BF75: =IF(T75-BE75<0,0,T75-BE75) -> 0 | BG75: =IF(D75="MAR",IF(AI75+R75+AJ75=0,"Infinito",(I75+U75+AG75)/(AI75+R75)),IF(D75="Cerrada",IF(AI75+R75+AJ75=0,"Infinito",(I75+U75+AG75)/(AI75+R75)),IF(AI75+R75+AJ75=0,"Infinito",(I75+U75+AG75)/(AI75+R75+AJ75)))) -> 0.9999991851 | BH75: =IF(BG75<1.4,"1", IF(BG75<3,"2", IF(BG75<9,"3", "4"))) -> 1 | BI75: =IF(BG75<1.4,"ROJO", IF(BG75<3,"AMARILLO", IF(BG75<9,"VERDE", "AZUL"))) -> ROJO | BJ75: =IF(BG75<1.4,"Déficit", IF(BG75<3,"Equilibrio", IF(BG75<9,"Disponibilidad", "Abundante"))) -> Déficit | BK75: =I75+U75+AG75 -> 253.926574 | BL75: =IF(D75="MAR",AI75+R75,IF(D75="Cerrada",AI75+R75,AI75+R75+AJ75)) -> 253.9267809 | BM75: =BK75/BL75 -> 0.9999991851
U76: =IF(U77=0,"",U77/(SUM($U77:$AG77))) -> 0.6064108255 | V76: =IF(V77=0,"",V77/(SUM($U77:$AG77))) -> 0.3935891745 | AH76: 1 | AN76: =IF(U76=0,"",U76) -> 0.6064108255 | AO76: =IF(V76=0,"",V76) -> 0.3935891745 | BA76: 1
A77: D | B77: =A77 -> D | C77: =A77 -> D | D77: MAR | H77: =C11 -> 98.87190753 | I77: =T75 -> 64.1725227 | J77: =J11 -> 0 | K77: =I11 -> 0 | L77: =SUM(H77:K77) -> 163.0444302 | M77: =H11 -> 163.044956 | N77: =L11 -> 0 | O77: =K11 -> 0 | P77: =SUM(M77:O77) -> 163.044956 | Q77: =+P77 -> 163.044956 | R77: =M11 -> 0 | S77: =L77-Q77-R77 -> -0.0005257318594 | T77: =IF(S77<0,0,S77) -> 0 | U77: =K77+H77 -> 98.87190753 | V77: =T75 -> 64.1725227 | AG77: =J77 -> 0 | AH77: 163.0444302 | AI77: =+Q77 -> 163.044956 | AJ77: =(AI77+R77)*U76 -> 98.87222634 | AL77: =IF(AG77>0,(AI77+R77+AJ77)*AG76,"") ->  | AM77: =SUM(AI77:AK77) -> 261.9171823 | AN77: =IF(AN76="","",$AM77*AN76) -> 158.8294147 | AO77: 103.0877676 | BA77: 261.9171823 | BB77: =+U77 -> 98.87190753 | BC77: =IF(D77="MAR",IF((BB77-AJ77)<0,0,BB77-AJ77),IF(D77="Cerrada",IF((BB77-AJ77)<0,0,BB77-AJ77),IF((BB77-AK77)<0,0,BB77-AK77))) -> 0 | BD77: =IF(AG77=0,"",IF(AG77-AL77<0,0,AG77-AL77)) ->  | BE77: =IF(D77="MAR",0,IF(D77="Cerrada",0,AJ77)) -> 0 | BF77: =IF(T77-BE77<0,0,T77-BE77) -> 0 | BG77: =IF(D77="MAR",IF(AI77+R77+AJ77=0,"Infinito",(I77+U77+AG77)/(AI77+R77)),IF(D77="Cerrada",IF(AI77+R77+AJ77=0,"Infinito",(I77+U77+AG77)/(AI77+R77)),IF(AI77+R77+AJ77=0,"Infinito",(I77+U77+AG77)/(AI77+R77+AJ77)))) -> 0.9999967755 | BH77: =IF(BG77<1.4,"1", IF(BG77<3,"2", IF(BG77<9,"3", "4"))) -> 1 | BI77: =IF(BG77<1.4,"ROJO", IF(BG77<3,"AMARILLO", IF(BG77<9,"VERDE", "AZUL"))) -> ROJO | BJ77: =IF(BG77<1.4,"Déficit", IF(BG77<3,"Equilibrio", IF(BG77<9,"Disponibilidad", "Abundante"))) -> Déficit | BK77: =IF(I77+U77+AG77<=0,0,I77+U77+AG77) -> 163.0444302 | BL77: =IF(D77="MAR",AI77+R77,IF(D77="Cerrada",AI77+R77,AI77+R77+AJ77)) -> 163.044956 | BM77: =BK77/BL77 -> 0.9999967755
BC78: =BB77-AJ77 -> -0.0003188094909
AL79: Comprobación | BB79: SDxx | BE79: Ab
BB80: =SUM(BC71:BD77) -> 0 | BC80: Mm3 | BE80: =T77 -> 0 | BF80: Mm3
A84: No LINEA | B84: CUENCA O REGION | C84: CONEXION | H84: OFERTA POTENCIAL | M84: DEMANDA CONSUNTIVA | U84: OFERTA REAL | AI84: EXTRACC Y VOLS RESERV PARA A ABAJO | BB84: POR CUENCA PROPIA | BE84: A LA SAL. DEL C PRINCIPAL | BG84: DISPONIBILIDAD RELATIVA | BK84: OFERTA - DEMANDA
B85: HIDROLOGICA | C85: DE | D85: HACIA | H85: Cp | I85: Cp A Arriba | J85: Im | K85: R | L85: TOTAL | M85: Uc | N85: Ev | O85: Ex | P85: TOTAL | Q85: TOTAL ACUM. | R85: Dv | S85: Ab | T85: Ab | U85: Cp | V85: Ar1 | W85: Ar2 | X85: Ar3 | Y85: Ar4 | Z85: Ar5 | AA85: Ar6 | AB85: Ar7 | AC85: Ar8 | AD85: Ar9 | AE85: Ar10 | AF85: Ar11 | AG85: Im | AH85: TOTAL | AI85: Uc | AJ85: Re1 | AK85: Re2 | AL85: RImp | AM85: TOTAL | AN85: para Cp | AO85: para Ar1 | AP85: para Ar2 | AQ85: para Ar3 | AR85: para Ar4 | AS85: para Ar5 | AT85: para Ar6 | AU85: para Ar7 | AV85: para Ar8 | AW85: para Ar9 | AX85: para Ar10 | AY85: para Ar11 | AZ85: para Im | BA85: TOTAL | BB85: RESERVADO | BC85: DISPONIBLE | BD85: DImp | BE85: RESERVADO | BF85: DISPONIBLE | BG85: INDICE | BH85: CLAVE | BI85: COLOR | BK85: OFERTA | BL85: DEMANDA | BM85: Indice
A86: Cuenca Río Matape
U87: =IF(U88=0,"",U88/(SUM($U88:$AG88))) -> 1 | V87: =IF(V88=0,"",V88/(SUM($U88:$AG88))) ->  | AH87: =SUM(U87:AG87) -> 1 | AN87: =IF(U87=0,"",U87) -> 1 | AO87: =IF(V87=0,"",V87) ->  | AP87: =IF(W87=0,"",W87) ->  | AQ87: =IF(X87=0,"",X87) ->  | AR87: =IF(Y87=0,"",Y87) ->  | AY87: =IF(AF87=0,"",AF87) ->  | AZ87: =IF(AG87=0,"",AG87) ->  | BA87: =SUM(AN87:AZ87) -> 1
A88: A | B88: =A88 -> A | C88: =A88 -> A | D88: B | H88: =C12 -> 33.244 | J88: =J12 -> 0 | K88: =I12 -> 0 | L88: =SUM(H88:K88) -> 33.244 | M88: =H12 -> 2.4384364 | N88: =L12 -> 4.18 | O88: =K12 -> 0 | P88: =SUM(M88:O88) -> 6.6184364 | Q88: =+P88 -> 6.6184364 | R88: =M12 -> -0.005 | S88: =L88-Q88-R88 -> 26.6305636 | T88: =IF(S88<0,0,S88) -> 26.6305636 | U88: =K88+H88 -> 33.244 | AG88: =J88 -> 0 | AH88: =SUM(U88:AG88) -> 33.244 | AI88: =+Q88 -> 6.6184364 | AJ88: =(AI90+R90)*V89 -> 11.86196646 | AK88: =AI88+R88+AJ88 -> 18.47540286 | AL88: =IF(AG88>0,(AI88+R88+AJ88)*AG87,"") ->  | AM88: =SUM(AI88:AK88) -> 36.95580573 | AN88: =IF(AN87="","",$AM88*AN87) -> 36.95580573 | BA88: =SUM(AN88:AZ88) -> 36.95580573 | BB88: =+U88 -> 33.244 | BC88: =IF(D88="MAR",IF((BB88-AJ88)<0,0,BB88-AJ88),IF(D88="Cerrada",IF((BB88-AJ88)<0,0,BB88-AJ88),IF((BB88-AK88)<0,0,BB88-AK88))) -> 14.76859714 | BD88: =IF(AG88=0,"",IF(AG88-AL88<0,0,AG88-AL88)) ->  | BE88: =IF(D88="MAR",0,IF(D88="Cerrada",0,AJ88)) -> 11.86196646 | BF88: =IF(T88-BE88<0,0,T88-BE88) -> 14.76859714 | BG88: =IF(D88="MAR",IF(AI88+R88+AJ88=0,"Infinito",(I88+U88+AG88)/(AI88+R88)),IF(D88="Cerrada",IF(AI88+R88+AJ88=0,"Infinito",(I88+U88+AG88)/(AI88+R88)),IF(AI88+R88+AJ88=0,"Infinito",(I88+U88+AG88)/(AI88+R88+AJ88)))) -> 1.799365364 | BH88: =IF(BG88<1.4,"1", IF(BG88<3,"2", IF(BG88<9,"3", "4"))) -> 2 | BI88: =IF(BG88<1.4,"ROJO", IF(BG88<3,"AMARILLO", IF(BG88<9,"VERDE", "AZUL"))) -> AMARILLO | BJ88: =IF(BG88<1.4,"Déficit", IF(BG88<3,"Equilibrio", IF(BG88<9,"Disponibilidad", "Abundante"))) -> Equilibrio | BK88: =I88+U88+AG88 -> 33.244 | BL88: =IF(D88="MAR",AI88+R88,IF(D88="Cerrada",AI88+R88,AI88+R88+AJ88)) -> 18.47540286 | BM88: =BK88/BL88 -> 1.799365364
U89: =IF(U90=0,"",U90/(SUM($U90:$AG90))) -> 0.63653493 | V89: =IF(V90=0,"",V90/(SUM($U90:$AG90))) -> 0.36346507 | AH89: =SUM(U89:AG89) -> 1 | AN89: =IF(U89=0,"",U89) -> 0.63653493 | AO89: =IF(V89=0,"",V89) -> 0.36346507 | BA89: =SUM(AN89:AZ89) -> 1
A90: B | B90: =A90 -> B | C90: =A90 -> B | D90: MAR | H90: =C13 -> 46.638 | I90: =T88 -> 26.6305636 | J90: =J13 -> 0 | K90: =I13 -> 0 | L90: =SUM(H90:K90) -> 73.2685636 | M90: =H13 -> 20.1357811 | N90: =L13 -> 0 | O90: =K13 -> 12.5 | P90: =SUM(M90:O90) -> 32.6357811 | Q90: =+P90 -> 32.6357811 | R90: =M13 -> 0 | S90: =L90-Q90-R90 -> 40.6327825 | T90: =IF(S90<0,0,S90) -> 40.6327825 | U90: =K90+H90 -> 46.638 | V90: =T88 -> 26.6305636 | AG90: =J90 -> 0 | AH90: =SUM(U90:AG90) -> 73.2685636 | AI90: =+Q90 -> 32.6357811 | AJ90: =(AI90+R90)*U89 -> 20.77381464 | AL90: =IF(AG90>0,(AI90+R90+AJ90)*AG89,"") ->  | AM90: =SUM(AI90:AK90) -> 53.40959574 | AN90: =IF(AN89="","",$AM90*AN89) -> 33.99707328 | AO90: 19.41252245 | BA90: =SUM(AN90:AZ90) -> 53.40959574 | BB90: =+U90 -> 46.638 | BC90: =IF(D90="MAR",IF((BB90-AJ90)<0,0,BB90-AJ90),IF(D90="Cerrada",IF((BB90-AJ90)<0,0,BB90-AJ90),IF((BB90-AK90)<0,0,BB90-AK90))) -> 25.86418536 | BD90: =IF(AG90=0,"",IF(AG90-AL90<0,0,AG90-AL90)) ->  | BE90: =IF(D90="MAR",0,IF(D90="Cerrada",0,AJ90)) -> 0 | BF90: =IF(T90-BE90<0,0,T90-BE90) -> 40.6327825 | BG90: =IF(D90="MAR",IF(AI90+R90+AJ90=0,"Infinito",(I90+U90+AG90)/(AI90+R90)),IF(D90="Cerrada",IF(AI90+R90+AJ90=0,"Infinito",(I90+U90+AG90)/(AI90+R90)),IF(AI90+R90+AJ90=0,"Infinito",(I90+U90+AG90)/(AI90+R90+AJ90)))) -> 2.245037843 | BH90: =IF(BG90<1.4,"1", IF(BG90<3,"2", IF(BG90<9,"3", "4"))) -> 2 | BI90: =IF(BG90<1.4,"ROJO", IF(BG90<3,"AMARILLO", IF(BG90<9,"VERDE", "AZUL"))) -> AMARILLO | BJ90: =IF(BG90<1.4,"Déficit", IF(BG90<3,"Equilibrio", IF(BG90<9,"Disponibilidad", "Abundante"))) -> Equilibrio | BK90: =IF(I90+U90+AG90<=0,0,I90+U90+AG90) -> 73.2685636 | BL90: =IF(D90="MAR",AI90+R90,IF(D90="Cerrada",AI90+R90,AI90+R90+AJ90)) -> 32.6357811 | BM90: =BK90/BL90 -> 2.245037843
AL92: Comprobación | BB92: SDxx | BE92: Ab
BB93: =SUM(BC88:BD90) -> 40.6327825 | BC93: Mm3 | BE93: =T90 -> 40.6327825 | BF93: Mm3
A97: No LINEA | B97: CUENCA O REGION | C97: CONEXION | H97: OFERTA POTENCIAL | M97: DEMANDA CONSUNTIVA | U97: OFERTA REAL | AI97: EXTRACC Y VOLS RESERV PARA A ABAJO | BB97: POR CUENCA PROPIA | BE97: A LA SAL. DEL C PRINCIPAL | BG97: DISPONIBILIDAD RELATIVA | BK97: OFERTA - DEMANDA
B98: HIDROLOGICA | C98: DE | D98: HACIA | H98: Cp | I98: Cp A Arriba | J98: Im | K98: R | L98: TOTAL | M98: Uc | N98: Ev | O98: Ex | P98: TOTAL | Q98: TOTAL ACUM. | R98: Dv | S98: Ab | T98: Ab | U98: Cp | V98: Ar1 | W98: Ar2 | X98: Ar3 | Y98: Ar4 | Z98: Ar5 | AA98: Ar6 | AB98: Ar7 | AC98: Ar8 | AD98: Ar9 | AE98: Ar10 | AF98: Ar11 | AG98: Im | AH98: TOTAL | AI98: Uc | AJ98: Re1 | AK98: Re2 | AL98: RImp | AM98: TOTAL | AN98: para Cp | AO98: para Ar1 | AP98: para Ar2 | AQ98: para Ar3 | AR98: para Ar4 | AS98: para Ar5 | AT98: para Ar6 | AU98: para Ar7 | AV98: para Ar8 | AW98: para Ar9 | AX98: para Ar10 | AY98: para Ar11 | AZ98: para Im | BA98: TOTAL | BB98: RESERVADO | BC98: DISPONIBLE | BD98: DImp | BE98: RESERVADO | BF98: DISPONIBLE | BG98: INDICE | BH98: CLAVE | BI98: COLOR | BK98: OFERTA | BL98: DEMANDA | BM98: Indice
A99: Cuenca Río Yaqui
U100: =IF(U101=0,"",U101/(SUM($U101:$AG101))) -> 1 | V100: =IF(V101=0,"",V101/(SUM($U101:$AG101))) ->  | AH100: =SUM(U100:AG100) -> 1 | AN100: =IF(U100=0,"",U100) -> 1 | AO100: =IF(V100=0,"",V100) ->  | AP100: =IF(W100=0,"",W100) ->  | AQ100: =IF(X100=0,"",X100) ->  | AR100: =IF(Y100=0,"",Y100) ->  | AY100: =IF(AF100=0,"",AF100) ->  | AZ100: =IF(AG100=0,"",AG100) ->  | BA100: =SUM(AN100:AZ100) -> 1
A101: A | B101: =A101 -> A | C101: =A101 -> A | D101: B | H101: =C14 -> 526.976 | J101: =J14 -> 0 | K101: =I14 -> 3.7735923 | L101: =SUM(H101:K101) -> 530.7495923 | M101: =H14 -> 457.554657 | N101: =L14 -> 53.245 | O101: =K14 -> 0 | P101: =SUM(M101:O101) -> 510.799657 | Q101: =+P101 -> 510.799657 | R101: =M14 -> -0.572 | S101: =L101-Q101-R101 -> 20.5219353 | T101: =IF(S101<0,0,S101) -> 20.5219353 | U101: =K101+H101 -> 530.7495923 | AG101: =J101 -> 0 | AH101: =SUM(U101:AG101) -> 530.7495923 | AI101: =+Q101 -> 510.799657 | AJ101: =(AI103+R103+AJ103)*V102 -> 20.51794734 | AK101: =AI101+R101+AJ101 -> 530.7456043 | AL101: =IF(AG101>0,(AI101+R101+AJ101)*AG100,"") ->  | AM101: =SUM(AI101:AK101) -> 1062.063209 | AN101: =IF(AN100="","",$AM101*AN100) -> 1062.063209 | AO101: =IF(AO100="","",$AM101*AO100) ->  | BA101: =SUM(AN101:AZ101) -> 1062.063209 | BB101: =+U101 -> 530.7495923 | BC101: =IF(D101="MAR",IF((BB101-AJ101)<0,0,BB101-AJ101),IF(D101="Cerrada",IF((BB101-AJ101)<0,0,BB101-AJ101),IF((BB101-AK101)<0,0,BB101-AK101))) -> 0.003987961304 | BD101: =IF(AG101=0,"",IF(AG101-AL101<0,0,AG101-AL101)) ->  | BE101: =IF(D101="MAR",0,IF(D101="Cerrada",0,AJ101)) -> 20.51794734 | BF101: =IF(T101-BE101<0,0,T101-BE101) -> 0.003987961304 | BG101: =IF(D101="MAR",IF(AI101+R101+AJ101=0,"Infinito",(I101+U101+AG101)/(AI101+R101)),IF(D101="Cerrada",IF(AI101+R101+AJ101=0,"Infinito",(I101+U101+AG101)/(AI101+R101)),IF(AI101+R101+AJ101=0,"Infinito",(I101+U101+AG101)/(AI101+R101+AJ101)))) -> 1.000007514 | BH101: =IF(BG101<1.4,"1", IF(BG101<3,"2", IF(BG101<9,"3", "4"))) -> 1 | BI101: =IF(BG101<1.4,"ROJO", IF(BG101<3,"AMARILLO", IF(BG101<9,"VERDE", "AZUL"))) -> ROJO | BJ101: =IF(BG101<1.4,"Déficit", IF(BG101<3,"Equilibrio", IF(BG101<9,"Disponibilidad", "Abundante"))) -> Déficit | BK101: =I101+U101+AG101 -> 530.7495923 | BL101: =IF(D101="MAR",AI101+R101,IF(D101="Cerrada",AI101+R101,AI101+R101+AJ101)) -> 530.7456043 | BM101: =BK101/BL101 -> 1.000007514
U102: =IF(U103=0,"",U103/(SUM($U103:$AG103))) -> 0.992272119 | V102: =IF(V103=0,"",V103/(SUM($U103:$AG103))) -> 0.007727881021 | W102: =IF(W103=0,"",W103/(SUM($U103:$AG103))) ->  | AH102: 1 | AN102: =IF(U102=0,"",U102) -> 0.992272119 | AO102: =IF(V102=0,"",V102) -> 0.007727881021 | BA102: 1
A103: B | B103: =A103 -> B | C103: =A103 -> B | D103: C | H103: =C15 -> 2187.837 | I103: =T101 -> 20.5219353 | J103: =J15 -> 0 | K103: =I15 -> 447.2118796 | L103: =SUM(H103:K103) -> 2655.570815 | M103: =H15 -> 1978.169446 | N103: =L15 -> 132.847 | O103: =K15 -> 60.4850446 | P103: =SUM(M103:O103) -> 2171.501491 | Q103: =+P103 -> 2171.501491 | R103: =M15 -> 40.147 | S103: =L103-Q103-R103 -> 443.9223242 | T103: =IF(S103<0,0,S103) -> 443.9223242 | U103: =K103+H103 -> 2635.04888 | V103: =T101 -> 20.5219353 | AG103: =J103 -> 0 | AH103: 2655.570815 | AI103: =+Q103 -> 2171.501491 | AJ103: =(AI105+R105+AJ105)*V104 -> 443.4062758 | AK103: =(AI103+R103+AJ103)*U102 -> 2634.536819 | AL103: =IF(AG103>0,(AI103+R103+AJ103)*AG102,"") ->  | AM103: =SUM(AI103:AK103) -> 5249.444585 | AN103: =IF(AN102="","",$AM103*AN102) -> 5208.877502 | AO103: 40.56708318 | BA103: 5249.444585 | BB103: =+U103 -> 2635.04888 | BC103: =IF(D103="MAR",IF((BB103-AJ103)<0,0,BB103-AJ103),IF(D103="Cerrada",IF((BB103-AJ103)<0,0,BB103-AJ103),IF((BB103-AK103)<0,0,BB103-AK103))) -> 0.5120605251 | BD103: =IF(AG103=0,"",IF(AG103-AL103<0,0,AG103-AL103)) ->  | BE103: =IF(D103="MAR",0,IF(D103="Cerrada",0,AJ103)) -> 443.4062758 | BF103: =IF(T103-BE103<0,0,T103-BE103) -> 0.5160484864 | BG103: =IF(D103="MAR",IF(AI103+R103+AJ103=0,"Infinito",(I103+U103+AG103)/(AI103+R103)),IF(D103="Cerrada",IF(AI103+R103+AJ103=0,"Infinito",(I103+U103+AG103)/(AI103+R103)),IF(AI103+R103+AJ103=0,"Infinito",(I103+U103+AG103)/(AI103+R103+AJ103)))) -> 1.000194365 | BH103: =IF(BG103<1.4,"1", IF(BG103<3,"2", IF(BG103<9,"3", "4"))) -> 1 | BI103: =IF(BG103<1.4,"ROJO", IF(BG103<3,"AMARILLO", IF(BG103<9,"VERDE", "AZUL"))) -> ROJO | BJ103: =IF(BG103<1.4,"Déficit", IF(BG103<3,"Equilibrio", IF(BG103<9,"Disponibilidad", "Abundante"))) -> Déficit | BK103: =I103+U103+AG103 -> 2655.570815 | BL103: =IF(D103="MAR",AI103+R103,IF(D103="Cerrada",AI103+R103,AI103+R103+AJ103)) -> 2655.054766 | BM103: =BK103/BL103 -> 1.000194365
U104: =IF(U105=0,"",U105/(SUM($U105:$AG105))) -> 0.8357757227 | V104: =IF(V105=0,"",V105/(SUM($U105:$AG105))) -> 0.1642242773 | W104: =IF(W105=0,"",W105/(SUM($U105:$AG105))) ->  | AH104: 1 | AN104: =IF(U104=0,"",U104) -> 0.8357757227 | AO104: =IF(V104=0,"",V104) -> 0.1642242773 | BA104: 1
A105: C | B105: =A105 -> C | C105: =A105 -> C | D105: D | H105: =C16 -> 382.623 | I105: =T103 -> 443.9223242 | J105: =J16 -> 0 | K105: =I16 -> 1876.601443 | L105: =SUM(H105:K105) -> 2703.146768 | M105: =H16 -> 1604.22145 | N105: =L16 -> 203.562 | O105: =K16 -> 0 | P105: =SUM(M105:O105) -> 1807.78345 | Q105: =+P105 -> 1807.78345 | R105: =M16 -> 1.203 | S105: =L105-Q105-R105 -> 894.1603178 | T105: =IF(S105<0,0,S105) -> 894.1603178 | U105: =K105+H105 -> 2259.224443 | V105: =T103 -> 443.9223242 | AG105: =J105 -> 0 | AH105: 2703.146768 | AI105: =+Q105 -> 1807.78345 | AJ105: =(AI107+R107)*V106 -> 891.017978 | AK105: =(AI105+R105+AJ105)*U104 -> 2256.598152 | AL105: =IF(AG105>0,(AI105+R105+AJ105)*AG104,"") ->  | AM105: =SUM(AI105:AK105) -> 4955.39958 | AN105: =IF(AN104="","",$AM105*AN104) -> 4141.602665 | AO105: 813.7969145 | BA105: 4955.39958 | BB105: =+U105 -> 2259.224443 | BC105: =IF(D105="MAR",IF((BB105-AJ105)<0,0,BB105-AJ105),IF(D105="Cerrada",IF((BB105-AJ105)<0,0,BB105-AJ105),IF((BB105-AK105)<0,0,BB105-AK105))) -> 2.626291337 | BD105: =IF(AG105=0,"",IF(AG105-AL105<0,0,AG105-AL105)) ->  | BE105: =IF(D105="MAR",0,IF(D105="Cerrada",0,AJ105)) -> 891.017978 | BF105: =IF(T105-BE105<0,0,T105-BE105) -> 3.142339823 | BG105: =IF(D105="MAR",IF(AI105+R105+AJ105=0,"Infinito",(I105+U105+AG105)/(AI105+R105)),IF(D105="Cerrada",IF(AI105+R105+AJ105=0,"Infinito",(I105+U105+AG105)/(AI105+R105)),IF(AI105+R105+AJ105=0,"Infinito",(I105+U105+AG105)/(AI105+R105+AJ105)))) -> 1.001163828 | BH105: =IF(BG105<1.4,"1", IF(BG105<3,"2", IF(BG105<9,"3", "4"))) -> 1 | BI105: =IF(BG105<1.4,"ROJO", IF(BG105<3,"AMARILLO", IF(BG105<9,"VERDE", "AZUL"))) -> ROJO | BJ105: =IF(BG105<1.4,"Déficit", IF(BG105<3,"Equilibrio", IF(BG105<9,"Disponibilidad", "Abundante"))) -> Déficit | BK105: =I105+U105+AG105 -> 2703.146768 | BL105: =IF(D105="MAR",AI105+R105,IF(D105="Cerrada",AI105+R105,AI105+R105+AJ105)) -> 2700.004428 | BM105: =BK105/BL105 -> 1.001163828
U106: =IF(U107=0,"",U107/(SUM($U107:$AG107))) -> 0.6491899048 | V106: =IF(V107=0,"",V107/(SUM($U107:$AG107))) -> 0.3508100952 | AH106: 1 | AN106: =IF(U106=0,"",U106) -> 0.6491899048 | AO106: =IF(V106=0,"",V106) -> 0.3508100952 | BA106: 1
A107: D | B107: =A107 -> D | C107: =A107 -> D | D107: MAR | H107: =C17 -> 54.119 | I107: =T105 -> 894.1603178 | J107: =J17 -> 0 | K107: =I17 -> 1600.565 | L107: =SUM(H107:K107) -> 2548.844318 | M107: =H17 -> 2539.886936 | N107: =L17 -> 0 | O107: =K17 -> 0 | P107: =SUM(M107:O107) -> 2539.886936 | Q107: =+P107 -> 2539.886936 | R107: =M17 -> 0 | S107: =L107-Q107-R107 -> 8.957381404 | T107: =IF(S107<0,0,S107) -> 8.957381404 | U107: =K107+H107 -> 1654.684 | V107: =T105 -> 894.1603178 | AG107: =J107 -> 0 | AH107: 2548.844318 | AI107: =+Q107 -> 2539.886936 | AJ107: =(AI107+R107)*U106 -> 1648.868958 | AL107: =IF(AG107>0,(AI107+R107+AJ107)*AG106,"") ->  | AM107: =SUM(AI107:AK107) -> 4188.755895 | AN107: =IF(AN106="","",$AM107*AN106) -> 2719.298041 | AO107: 1469.457854 | BA107: 4188.755895 | BB107: =+U107 -> 1654.684 | BC107: =IF(D107="MAR",IF((BB107-AJ107)<0,0,BB107-AJ107),IF(D107="Cerrada",IF((BB107-AJ107)<0,0,BB107-AJ107),IF((BB107-AK107)<0,0,BB107-AK107))) -> 5.815041581 | BD107: =IF(AG107=0,"",IF(AG107-AL107<0,0,AG107-AL107)) ->  | BE107: =IF(D107="MAR",0,IF(D107="Cerrada",0,AJ107)) -> 0 | BF107: =IF(T107-BE107<0,0,T107-BE107) -> 8.957381404 | BG107: =IF(D107="MAR",IF(AI107+R107+AJ107=0,"Infinito",(I107+U107+AG107)/(AI107+R107)),IF(D107="Cerrada",IF(AI107+R107+AJ107=0,"Infinito",(I107+U107+AG107)/(AI107+R107)),IF(AI107+R107+AJ107=0,"Infinito",(I107+U107+AG107)/(AI107+R107+AJ107)))) -> 1.003526685 | BH107: =IF(BG107<1.4,"1", IF(BG107<3,"2", IF(BG107<9,"3", "4"))) -> 1 | BI107: =IF(BG107<1.4,"ROJO", IF(BG107<3,"AMARILLO", IF(BG107<9,"VERDE", "AZUL"))) -> ROJO | BJ107: =IF(BG107<1.4,"Déficit", IF(BG107<3,"Equilibrio", IF(BG107<9,"Disponibilidad", "Abundante"))) -> Déficit | BK107: =IF(I107+U107+AG107<=0,0,I107+U107+AG107) -> 2548.844318 | BL107: =IF(D107="MAR",AI107+R107,IF(D107="Cerrada",AI107+R107,AI107+R107+AJ107)) -> 2539.886936 | BM107: =BK107/BL107 -> 1.003526685
AL109: Comprobación | BB109: SDxx | BE109: Ab
BB110: =SUM(BC101:BD107) -> 8.957381404 | BC110: Mm3 | BE110: =T107 -> 8.957381404 | BF110: Mm3
A114: No LINEA | B114: CUENCA O REGION | C114: CONEXION | H114: OFERTA POTENCIAL | M114: DEMANDA CONSUNTIVA | U114: OFERTA REAL | AI114: EXTRACC Y VOLS RESERV PARA A ABAJO | BB114: POR CUENCA PROPIA | BE114: A LA SAL. DEL C PRINCIPAL | BG114: DISPONIBILIDAD RELATIVA | BK114: OFERTA - DEMANDA
B115: HIDROLOGICA | C115: DE | D115: HACIA | H115: Cp | I115: Cp A Arriba | J115: Im | K115: R | L115: TOTAL | M115: Uc | N115: Ev | O115: Ex | P115: TOTAL | Q115: TOTAL ACUM. | R115: Dv | S115: Ab | T115: Ab | U115: Cp | V115: Ar1 | W115: Ar2 | X115: Ar3 | Y115: Ar4 | Z115: Ar5 | AA115: Ar6 | AB115: Ar7 | AC115: Ar8 | AD115: Ar9 | AE115: Ar10 | AF115: Ar11 | AG115: Im | AH115: TOTAL | AI115: Uc | AJ115: Re1 | AK115: Re2 | AL115: RImp | AM115: TOTAL | AN115: para Cp | AO115: para Ar1 | AP115: para Ar2 | AQ115: para Ar3 | AR115: para Ar4 | AS115: para Ar5 | AT115: para Ar6 | AU115: para Ar7 | AV115: para Ar8 | AW115: para Ar9 | AX115: para Ar10 | AY115: para Ar11 | AZ115: para Im | BA115: TOTAL | BB115: RESERVADO | BC115: DISPONIBLE | BD115: DImp | BE115: RESERVADO | BF115: DISPONIBLE | BG115: INDICE | BH115: CLAVE | BI115: COLOR | BK115: OFERTA | BL115: DEMANDA | BM115: Indice
A116: Cuenca Río Matape
U117: =IF(U118=0,"",U118/(SUM($U118:$AG118))) -> 1 | V117: =IF(V118=0,"",V118/(SUM($U118:$AG118))) ->  | AH117: =SUM(U117:AG117) -> 1 | AN117: =IF(U117=0,"",U117) -> 1 | AO117: =IF(V117=0,"",V117) ->  | AP117: =IF(W117=0,"",W117) ->  | AQ117: =IF(X117=0,"",X117) ->  | AR117: =IF(Y117=0,"",Y117) ->  | AY117: =IF(AF117=0,"",AF117) ->  | AZ117: =IF(AG117=0,"",AG117) ->  | BA117: =SUM(AN117:AZ117) -> 1
A118: A | B118: =A118 -> A | C118: =A118 -> A | D118: B | H118: =C18 -> 15.443 | J118: =J18 -> 0 | K118: =I18 -> 0 | L118: =SUM(H118:K118) -> 15.443 | M118: =H18 -> 4.192925 | N118: =L18 -> 0 | O118: =K18 -> 0 | P118: =SUM(M118:O118) -> 4.192925 | Q118: =+P118 -> 4.192925 | R118: =M18 -> 0 | S118: =L118-Q118-R118 -> 11.250075 | T118: =IF(S118<0,0,S118) -> 11.250075 | U118: =K118+H118 -> 15.443 | AG118: =J118 -> 0 | AH118: =SUM(U118:AG118) -> 15.443 | AI118: =+Q118 -> 4.192925 | AJ118: =(AI120+R120)*V119 -> 0.7546276307 | AK118: =AI118+R118+AJ118 -> 4.947552631 | AL118: =IF(AG118>0,(AI118+R118+AJ118)*AG117,"") ->  | AM118: =SUM(AI118:AK118) -> 9.895105261 | AN118: =IF(AN117="","",$AM118*AN117) -> 9.895105261 | BA118: =SUM(AN118:AZ118) -> 9.895105261 | BB118: =+U118 -> 15.443 | BC118: =IF(D118="MAR",IF((BB118-AJ118)<0,0,BB118-AJ118),IF(D118="Cerrada",IF((BB118-AJ118)<0,0,BB118-AJ118),IF((BB118-AK118)<0,0,BB118-AK118))) -> 10.49544737 | BD118: =IF(AG118=0,"",IF(AG118-AL118<0,0,AG118-AL118)) ->  | BE118: =IF(D118="MAR",0,IF(D118="Cerrada",0,AJ118)) -> 0.7546276307 | BF118: =IF(T118-BE118<0,0,T118-BE118) -> 10.49544737 | BG118: =IF(D118="MAR",IF(AI118+R118+AJ118=0,"Infinito",(I118+U118+AG118)/(AI118+R118)),IF(D118="Cerrada",IF(AI118+R118+AJ118=0,"Infinito",(I118+U118+AG118)/(AI118+R118)),IF(AI118+R118+AJ118=0,"Infinito",(I118+U118+AG118)/(AI118+R118+AJ118)))) -> 3.121341227 | BH118: =IF(BG118<1.4,"1", IF(BG118<3,"2", IF(BG118<9,"3", "4"))) -> 3 | BI118: =IF(BG118<1.4,"ROJO", IF(BG118<3,"AMARILLO", IF(BG118<9,"VERDE", "AZUL"))) -> VERDE | BJ118: =IF(BG118<1.4,"Déficit", IF(BG118<3,"Equilibrio", IF(BG118<9,"Disponibilidad", "Abundante"))) -> Disponibilidad | BK118: =I118+U118+AG118 -> 15.443 | BL118: =IF(D118="MAR",AI118+R118,IF(D118="Cerrada",AI118+R118,AI118+R118+AJ118)) -> 4.947552631 | BM118: =BK118/BL118 -> 3.121341227
U119: =IF(U120=0,"",U120/(SUM($U120:$AG120))) -> 0.5459848683 | V119: =IF(V120=0,"",V120/(SUM($U120:$AG120))) -> 0.4540151317 | AH119: =SUM(U119:AG119) -> 1 | AN119: =IF(U119=0,"",U119) -> 0.5459848683 | AO119: =IF(V119=0,"",V119) -> 0.4540151317 | BA119: =SUM(AN119:AZ119) -> 1
A120: B | B120: =A120 -> B | C120: =A120 -> B | D120: MAR | H120: =C19 -> 13.529 | I120: =T118 -> 11.250075 | J120: =J19 -> 0 | K120: =I19 -> 0 | L120: =SUM(H120:K120) -> 24.779075 | M120: =H19 -> 1.66212 | N120: =L19 -> 0 | O120: =K19 -> 0 | P120: =SUM(M120:O120) -> 1.66212 | Q120: =+P120 -> 1.66212 | R120: =M19 -> 0 | S120: =L120-Q120-R120 -> 23.116955 | T120: =IF(S120<0,0,S120) -> 23.116955 | U120: =K120+H120 -> 13.529 | V120: =T118 -> 11.250075 | AG120: =J120 -> 0 | AH120: =SUM(U120:AG120) -> 24.779075 | AI120: =+Q120 -> 1.66212 | AJ120: =(AI120+R120)*U119 -> 0.9074923693 | AL120: =IF(AG120>0,(AI120+R120+AJ120)*AG119,"") ->  | AM120: =SUM(AI120:AK120) -> 2.569612369 | AN120: =IF(AN119="","",$AM120*AN119) -> 1.402969471 | AO120: 1.166642898 | BA120: =SUM(AN120:AZ120) -> 2.569612369 | BB120: =+U120 -> 13.529 | BC120: =IF(D120="MAR",IF((BB120-AJ120)<0,0,BB120-AJ120),IF(D120="Cerrada",IF((BB120-AJ120)<0,0,BB120-AJ120),IF((BB120-AK120)<0,0,BB120-AK120))) -> 12.62150763 | BD120: =IF(AG120=0,"",IF(AG120-AL120<0,0,AG120-AL120)) ->  | BE120: =IF(D120="MAR",0,IF(D120="Cerrada",0,AJ120)) -> 0 | BF120: =IF(T120-BE120<0,0,T120-BE120) -> 23.116955 | BG120: =IF(D120="MAR",IF(AI120+R120+AJ120=0,"Infinito",(I120+U120+AG120)/(AI120+R120)),IF(D120="Cerrada",IF(AI120+R120+AJ120=0,"Infinito",(I120+U120+AG120)/(AI120+R120)),IF(AI120+R120+AJ120=0,"Infinito",(I120+U120+AG120)/(AI120+R120+AJ120)))) -> 14.90811434 | BH120: =IF(BG120<1.4,"1", IF(BG120<3,"2", IF(BG120<9,"3", "4"))) -> 4 | BI120: =IF(BG120<1.4,"ROJO", IF(BG120<3,"AMARILLO", IF(BG120<9,"VERDE", "AZUL"))) -> AZUL | BJ120: =IF(BG120<1.4,"Déficit", IF(BG120<3,"Equilibrio", IF(BG120<9,"Disponibilidad", "Abundante"))) -> Abundante | BK120: =IF(I120+U120+AG120<=0,0,I120+U120+AG120) -> 24.779075 | BL120: =IF(D120="MAR",AI120+R120,IF(D120="Cerrada",AI120+R120,AI120+R120+AJ120)) -> 1.66212 | BM120: =BK120/BL120 -> 14.90811434
AL122: Comprobación | BB122: SDxx | BE122: Ab
BB123: =SUM(BC118:BD120) -> 23.116955 | BC123: Mm3 | BE123: =T120 -> 23.116955 | BF123: Mm3
A127: No LINEA | B127: CUENCA O REGION | C127: CONEXION | H127: OFERTA POTENCIAL | M127: DEMANDA CONSUNTIVA | U127: OFERTA REAL | AI127: EXTRACC Y VOLS RESERV PARA A ABAJO | BB127: POR CUENCA PROPIA | BE127: A LA SAL. DEL C PRINCIPAL | BG127: DISPONIBILIDAD RELATIVA | BK127: OFERTA - DEMANDA
B128: HIDROLOGICA | C128: DE | D128: HACIA | H128: Cp | I128: Cp A Arriba | J128: Im | K128: R | L128: TOTAL | M128: Uc | N128: Ev | O128: Ex | P128: TOTAL | Q128: TOTAL ACUM. | R128: Dv | S128: Ab | T128: Ab | U128: Cp | V128: Ar1 | W128: Ar2 | X128: Ar3 | Y128: Ar4 | Z128: Ar5 | AA128: Ar6 | AB128: Ar7 | AC128: Ar8 | AD128: Ar9 | AE128: Ar10 | AF128: Ar11 | AG128: Im | AH128: TOTAL | AI128: Uc | AJ128: Re1 | AK128: Re2 | AL128: RImp | AM128: TOTAL | AN128: para Cp | AO128: para Ar1 | AP128: para Ar2 | AQ128: para Ar3 | AR128: para Ar4 | AS128: para Ar5 | AT128: para Ar6 | AU128: para Ar7 | AV128: para Ar8 | AW128: para Ar9 | AX128: para Ar10 | AY128: para Ar11 | AZ128: para Im | BA128: TOTAL | BB128: RESERVADO | BC128: DISPONIBLE | BD128: DImp | BE128: RESERVADO | BF128: DISPONIBLE | BG128: INDICE | BH128: CLAVE | BI128: COLOR | BK128: OFERTA | BL128: DEMANDA | BM128: Indice
A129: Cuenca Río Mayo
U130: =IF(U131=0,"",U131/(SUM($U131:$AG131))) -> 1 | V130: =IF(V131=0,"",V131/(SUM($U131:$AG131))) ->  | AH130: =SUM(U130:AG130) -> 1 | AN130: =IF(U130=0,"",U130) -> 1 | AO130: =IF(V130=0,"",V130) ->  | AP130: =IF(W130=0,"",W130) ->  | AQ130: =IF(X130=0,"",X130) ->  | AR130: =IF(Y130=0,"",Y130) ->  | AY130: =IF(AF130=0,"",AF130) ->  | AZ130: =IF(AG130=0,"",AG130) ->  | BA130: =SUM(AN130:AZ130) -> 1
A131: A | B131: =A131 -> A | C131: =A131 -> A | D131: C | H131: =C20 -> 965.053 | J131: =J20 -> 0 | K131: =I20 -> 2.024495625 | L131: =SUM(H131:K131) -> 967.0774956 | M131: =H20 -> 28.2792871 | N131: =L20 -> 0 | O131: =K20 -> 0 | P131: =SUM(M131:O131) -> 28.2792871 | Q131: =+P131 -> 28.2792871 | R131: =M20 -> 0 | S131: =L131-Q131-R131 -> 938.7982085 | T131: =IF(S131<0,0,S131) -> 938.7982085 | U131: =K131+H131 -> 967.0774956 | AG131: =J131 -> 0 | AH131: =SUM(U131:AG131) -> 967.0774956 | AI131: =+Q131 -> 28.2792871 | AJ131: =(AI135+R135+AJ135)*V134 -> 938.7484384 | AK131: =AI131+R131+AJ131 -> 967.0277255 | AL131: =IF(AG131>0,(AI131+R131+AJ131)*AG130,"") ->  | AM131: =SUM(AI131:AK131) -> 1934.055451 | AN131: =IF(AN130="","",$AM131*AN130) -> 1934.055451 | BA131: 1934.055451 | BB131: =+U131 -> 967.0774956 | BC131: =IF(D131="MAR",IF((BB131-AJ131)<0,0,BB131-AJ131),IF(D131="Cerrada",IF((BB131-AJ131)<0,0,BB131-AJ131),IF((BB131-AK131)<0,0,BB131-AK131))) -> 0.04977015404 | BD131: =IF(AG131=0,"",IF(AG131-AL131<0,0,AG131-AL131)) ->  | BE131: =IF(D131="MAR",0,IF(D131="Cerrada",0,AJ131)) -> 938.7484384 | BF131: =IF(T131-BE131<0,0,T131-BE131) -> 0.04977015404 | BG131: =IF(D131="MAR",IF(AI131+R131+AJ131=0,"Infinito",(I131+U131+AG131)/(AI131+R131)),IF(D131="Cerrada",IF(AI131+R131+AJ131=0,"Infinito",(I131+U131+AG131)/(AI131+R131)),IF(AI131+R131+AJ131=0,"Infinito",(I131+U131+AG131)/(AI131+R131+AJ131)))) -> 1.000051467 | BH131: =IF(BG131<1.4,"1", IF(BG131<3,"2", IF(BG131<9,"3", "4"))) -> 1 | BI131: =IF(BG131<1.4,"ROJO", IF(BG131<3,"AMARILLO", IF(BG131<9,"VERDE", "AZUL"))) -> ROJO | BJ131: =IF(BG131<1.4,"Déficit", IF(BG131<3,"Equilibrio", IF(BG131<9,"Disponibilidad", "Abundante"))) -> Déficit | BK131: =I131+U131+AG131 -> 967.0774956 | BL131: =IF(D131="MAR",AI131+R131,IF(D131="Cerrada",AI131+R131,AI131+R131+AJ131)) -> 967.0277255 | BM131: =BK131/BL131 -> 1.000051467
U132: =IF(U133=0,"",U133/(SUM($U133:$AG133))) -> 0.02450660371 | V132: =IF(V133=0,"",V133/(SUM($U133:$AG133))) -> 0.9754933963 | AH132: 1 | AN132: =IF(U132=0,"",U132) -> 0.02450660371 | AO132: =IF(V132=0,"",V132) -> 0.9754933963 | BA132: 1
A133: B | B133: =A133 -> B | C133: =A133 -> B | D133: C | H133: =C21 -> 23.496 | J133: =J21 -> 0 | K133: =I21 -> 0.088737475 | L133: =SUM(H133:K133) -> 23.58473747 | M133: =H21 -> 0.4022345 | N133: =L21 -> 0 | O133: =K21 -> 0 | P133: =SUM(M133:O133) -> 0.4022345 | Q133: =+P133 -> 0.4022345 | R133: =M21 -> 0 | S133: =L133-Q133-R133 -> 23.18250297 | T133: =IF(S133<0,0,S133) -> 23.18250297 | U133: =K133+H133 -> 23.58473747 | V133: =T131 -> 938.7982085 | AG133: =J133 -> 0 | AH133: 962.382946 | AI133: =+Q133 -> 0.4022345 | AJ133: =(AI135+R135+AJ135)*W134 -> 23.18127396 | AK133: =AI133+R133+AJ133 -> 23.58350846 | AL133: =IF(AG133>0,(AI133+R133+AJ133)*AG132,"") ->  | AM133: =SUM(AI133:AK133) -> 47.16701692 | AN133: =IF(AN132="","",$AM133*AN132) -> 1.155903392 | AO133: 46.01111353 | BA133: 47.16701692 | BB133: =+U133 -> 23.58473747 | BC133: =IF(D133="MAR",IF((BB133-AJ133)<0,0,BB133-AJ133),IF(D133="Cerrada",IF((BB133-AJ133)<0,0,BB133-AJ133),IF((BB133-AK133)<0,0,BB133-AK133))) -> 0.001229014642 | BD133: =IF(AG133=0,"",IF(AG133-AL133<0,0,AG133-AL133)) ->  | BE133: =IF(D133="MAR",0,IF(D133="Cerrada",0,AJ133)) -> 23.18127396 | BF133: =IF(T133-BE133<0,0,T133-BE133) -> 0.001229014642 | BG133: =IF(D133="MAR",IF(AI133+R133+AJ133=0,"Infinito",(I133+U133+AG133)/(AI133+R133)),IF(D133="Cerrada",IF(AI133+R133+AJ133=0,"Infinito",(I133+U133+AG133)/(AI133+R133)),IF(AI133+R133+AJ133=0,"Infinito",(I133+U133+AG133)/(AI133+R133+AJ133)))) -> 1.000052113 | BH133: =IF(BG133<1.4,"1", IF(BG133<3,"2", IF(BG133<9,"3", "4"))) -> 1 | BI133: =IF(BG133<1.4,"ROJO", IF(BG133<3,"AMARILLO", IF(BG133<9,"VERDE", "AZUL"))) -> ROJO | BJ133: =IF(BG133<1.4,"Déficit", IF(BG133<3,"Equilibrio", IF(BG133<9,"Disponibilidad", "Abundante"))) -> Déficit | BK133: =I133+U133+AG133 -> 23.58473747 | BL133: =IF(D133="MAR",AI133+R133,IF(D133="Cerrada",AI133+R133,AI133+R133+AJ133)) -> 23.58350846 | BM133: =BK133/BL133 -> 1.000052113
U134: =IF(U135=0,"",U135/(SUM($U135:$AG135))) -> 0.1322418617 | V134: =IF(V135=0,"",V135/(SUM($U135:$AG135))) -> 0.8468462787 | W134: 0.02091185965 | AH134: 1 | AN134: =IF(U134=0,"",U134) -> 0.1322418617 | AO134: =IF(V134=0,"",V134) -> 0.8468462787 | AP134: 0.02091185965 | BA134: 1
A135: C | B135: =A135 -> C | C135: =A135 -> C | D135: D | H135: =C22 -> 146.372 | I135: =T131+T133 -> 961.9807115 | J135: =J22 -> 0 | K135: =I22 -> 0.22889555 | L135: =SUM(H135:K135) -> 1108.581607 | M135: =H22 -> 1034.774113 | N135: =L22 -> 73.009 | O135: =K22 -> 0 | P135: =SUM(M135:O135) -> 1107.783113 | Q135: =+P135 -> 1107.783113 | R135: =M22 -> 0.373 | S135: =L135-Q135-R135 -> 0.42549405 | T135: =IF(S135<0,0,S135) -> 0.42549405 | U135: =K135+H135 -> 146.6008956 | V135: =T131 -> 938.7982085 | W135: =T133 -> 23.18250297 | AG135: =J135 -> 0 | AH135: 1108.581607 | AI135: =+Q135 -> 1107.783113 | AJ135: =(AI137+R137)*V136 -> 0.3667228712 | AK135: =(AI135+R135+AJ135)*U134 -> 146.5931235 | AL135: =IF(AG135>0,(AI135+R135+AJ135)*AG134,"") ->  | AM135: =SUM(AI135:AK135) -> 1254.742959 | AN135: =IF(AN134="","",$AM135*AN134) -> 165.9295449 | AO135: 1062.574406 | AP135: 26.23900866 | BA135: 1254.742959 | BB135: =+U135 -> 146.6008956 | BC135: =IF(D135="MAR",IF((BB135-AJ135)<0,0,BB135-AJ135),IF(D135="Cerrada",IF((BB135-AJ135)<0,0,BB135-AJ135),IF((BB135-AK135)<0,0,BB135-AK135))) -> 0.007772010095 | BD135: =IF(AG135=0,"",IF(AG135-AL135<0,0,AG135-AL135)) ->  | BE135: =IF(D135="MAR",0,IF(D135="Cerrada",0,AJ135)) -> 0.3667228712 | BF135: =IF(T135-BE135<0,0,T135-BE135) -> 0.05877117878 | BG135: =IF(D135="MAR",IF(AI135+R135+AJ135=0,"Infinito",(I135+U135+AG135)/(AI135+R135)),IF(D135="Cerrada",IF(AI135+R135+AJ135=0,"Infinito",(I135+U135+AG135)/(AI135+R135)),IF(AI135+R135+AJ135=0,"Infinito",(I135+U135+AG135)/(AI135+R135+AJ135)))) -> 1.000053018 | BH135: =IF(BG135<1.4,"1", IF(BG135<3,"2", IF(BG135<9,"3", "4"))) -> 1 | BI135: =IF(BG135<1.4,"ROJO", IF(BG135<3,"AMARILLO", IF(BG135<9,"VERDE", "AZUL"))) -> ROJO | BJ135: =IF(BG135<1.4,"Déficit", IF(BG135<3,"Equilibrio", IF(BG135<9,"Disponibilidad", "Abundante"))) -> Déficit | BK135: =I135+U135+AG135 -> 1108.581607 | BL135: =IF(D135="MAR",AI135+R135,IF(D135="Cerrada",AI135+R135,AI135+R135+AJ135)) -> 1108.522836 | BM135: =BK135/BL135 -> 1.000053018
U136: =IF(U137=0,"",U137/(SUM($U137:$AG137))) -> 0.9996153074 | V136: =IF(V137=0,"",V137/(SUM($U137:$AG137))) -> 0.0003846925874 | AH136: 1 | AN136: =IF(U136=0,"",U136) -> 0.9996153074 | AO136: =IF(V136=0,"",V136) -> 0.0003846925874 | BA136: 1
A137: D | B137: =A137 -> D | C137: =A137 -> D | D137: MAR | H137: =C23 -> 68.966 | I137: =T135 -> 0.42549405 | J137: =J23 -> 0 | K137: =I23 -> 1036.671019 | L137: =SUM(H137:K137) -> 1106.062513 | M137: =H23 -> 864.4881142 | N137: =L23 -> 0 | O137: =K23 -> 88.8 | P137: =SUM(M137:O137) -> 953.2881142 | Q137: =+P137 -> 953.2881142 | R137: =M23 -> 0 | S137: =L137-Q137-R137 -> 152.7743988 | T137: =IF(S137<0,0,S137) -> 152.7743988 | U137: =K137+H137 -> 1105.637019 | V137: =T135 -> 0.42549405 | AG137: =J137 -> 0 | AH137: 1106.062513 | AI137: =+Q137 -> 953.2881142 | AJ137: =(AI137+R137)*U136 -> 952.9213913 | AL137: =IF(AG137>0,(AI137+R137+AJ137)*AG136,"") ->  | AM137: =SUM(AI137:AK137) -> 1906.209506 | AN137: =IF(AN136="","",$AM137*AN136) -> 1905.476201 | AO137: 0.7333046669 | BA137: 1906.209506 | BB137: =+U137 -> 1105.637019 | BC137: =IF(D137="MAR",IF((BB137-AJ137)<0,0,BB137-AJ137),IF(D137="Cerrada",IF((BB137-AJ137)<0,0,BB137-AJ137),IF((BB137-AK137)<0,0,BB137-AK137))) -> 152.7156276 | BD137: =IF(AG137=0,"",IF(AG137-AL137<0,0,AG137-AL137)) ->  | BE137: =IF(D137="MAR",0,IF(D137="Cerrada",0,AJ137)) -> 0 | BF137: =IF(T137-BE137<0,0,T137-BE137) -> 152.7743988 | BG137: =IF(D137="MAR",IF(AI137+R137+AJ137=0,"Infinito",(I137+U137+AG137)/(AI137+R137)),IF(D137="Cerrada",IF(AI137+R137+AJ137=0,"Infinito",(I137+U137+AG137)/(AI137+R137)),IF(AI137+R137+AJ137=0,"Infinito",(I137+U137+AG137)/(AI137+R137+AJ137)))) -> 1.160260467 | BH137: =IF(BG137<1.4,"1", IF(BG137<3,"2", IF(BG137<9,"3", "4"))) -> 1 | BI137: =IF(BG137<1.4,"ROJO", IF(BG137<3,"AMARILLO", IF(BG137<9,"VERDE", "AZUL"))) -> ROJO | BJ137: =IF(BG137<1.4,"Déficit", IF(BG137<3,"Equilibrio", IF(BG137<9,"Disponibilidad", "Abundante"))) -> Déficit | BK137: =IF(I137+U137+AG137<=0,0,I137+U137+AG137) -> 1106.062513 | BL137: =IF(D137="MAR",AI137+R137,IF(D137="Cerrada",AI137+R137,AI137+R137+AJ137)) -> 953.2881142 | BM137: =BK137/BL137 -> 1.160260467
AL139: Comprobación | BB139: SDxx | BE139: Ab
BB140: =SUM(BC131:BD137) -> 152.7743988 | BC140: Mm3 | BE140: =T137 -> 152.7743988 | BF140: Mm3

Sheet RH-10
B2: GERENCIA DE AGUAS SUPERFICIALES E INGENIERÍA DE RÍOS
B3: REGION HIDROLOGICA No 10
B4: SINALOA
A8: Cuenca | B8: Nombre | C8: Cp | D8: Ar | E8: Uc (a) | F8: Uc (b) | G8: Uc (c) | H8: Uc | I8: R | J8: Im | K8: Ex | L8: Ev | M8: Δv | N8: Ab | O8: Rxy | P8: Ab - Rxy | Q8: D
A9: 1 | B9: Río Habitas | C9: 372.0246475 | D9: =I90 -> 0 | E9: 0.64827072 | F9: 0 | G9: 0 | H9: =E9+F9+G9 -> 0.64827072 | I9: 0.248082 | J9: 0 | K9: 0 | L9: 32.383 | M9: 8.6 | N9: =$S$90 -> 330.6414588 | O9: =$BE$90 -> 237.8575938 | P9: =N9-O9 -> 92.78386494 | Q9: =IF(BF90<0,0,BF90) -> 92.78386494
A10: 2 | B10: Río Elota | C10: 95.0843329 | D10: =I92 -> 330.6414588 | E10: 213.3165114 | F10: 33.04 | G10: 0 | H10: =E10+F10+G10 -> 246.3565114 | I10: 0 | J10: 0 | K10: 59.903063 | L10: 0 | M10: 0 | N10: =$S$92 -> 119.4662173 | O10: =$BE$92 -> 0 | P10: 119.4662173 | Q10: =IF(BF92<0,0,BF92) -> 119.4662173 | S10: ECUACIONES
A11: 3 | B11: Río Quelite 1 | C11: 101.2955093 | D11: =$I$123 -> 0 | E11: 0.3531324 | F11: 0 | G11: 0 | H11: 0.3531324 | I11: 0 | J11: 0 | K11: 0 | L11: 0 | M11: 0 | N11: =T123 -> 100.9423769 | O11: =BE123 -> 0.3416753385 | P11: 100.6007016 | Q11: =IF(BF123<0,0,BF123) -> 100.6007016
A12: 4 | B12: Río Quelite 2 | C12: 50.76963321 | D12: =$I$125 -> 100.9423769 | E12: 0.5135232 | F12: 0 | G12: 0 | H12: 0.5135232 | I12: 0 | J12: 0 | K12: 0 | L12: 0 | M12: 0 | N12: =T125 -> 151.1984869 | O12: =BE125 -> 0 | P12: 151.1984869 | Q12: =IF(BF125<0,0,BF125) -> 151.1984869 | S12: Ab = Cp + Ar + R + Im - (Uc(a) + Uc(b) + Uc(c) + Ev + Ex + Av)
A13: 5 | B13: Río Mocorito 1 | C13: 148.4593955 | D13: =I101 -> 0 | E13: 3.476239 | F13: 0 | G13: 0 | H13: 3.476239 | I13: 0.105738 | J13: 0 | K13: 0 | L13: 28.102 | M13: -3.222 | N13: =S101 -> 120.2088945 | O13: =$BE$101 -> 116.5119611 | P13: 3.696933438 | Q13: =IF(BF101<0,0,BF101) -> 3.696933438 | S13: D = Ab - Rxy
A14: 6 | B14: Río Mocorito 2 | C14: 73.85231422 | D14: =I103 -> 120.2088945 | E14: 405.9732395 | F14: 0 | G14: 0 | H14: 405.9732395 | I14: 2.479099875 | J14: 314.9451005 | K14: 89.78182353 | L14: 0 | M14: 0 | N14: =S103 -> 15.73034608 | O14: =BE103 -> 0 | P14: 15.73034608 | Q14: =IF(BF103<0,0,BF103) -> 15.73034608
A15: 7 | B15: Río San Lorenzo 1 | C15: 1374.902399 | D15: =I134 -> 0 | E15: 1028.094492 | F15: 0.012 | G15: 0 | H15: 1028.106492 | I15: 0 | J15: 0 | K15: 0 | L15: 60.703 | M15: 23.263 | N15: =T134 -> 262.8299073 | O15: =BE134 -> 212.5269623 | P15: 50.30294498 | Q15: =IF(BF134<0,0,BF134) -> 50.30294498 | S15: SIMBOLOGIA
A16: 8 | B16: Río San Lorenzo 2 | C16: 245.2071364 | D16: =$I$136 -> 262.8299073 | E16: 714.2945553 | F16: 0.0485632 | G16: 0 | H16: 714.3431185 | I16: 1022.870733 | J16: 0 | K16: 523.5646324 | L16: 0 | M16: 0 | N16: =T136 -> 293.000026 | O16: =BE136 -> 0 | P16: 293.000026 | Q16: =IF(BF136<0,0,BF136) -> 293.000026
A17: 9 | B17: Río Humaya | C17: 1869.364263 | D17: =I163 -> 0 | E17: 1284.646848 | F17: 0.153 | G17: 0 | H17: 1284.799848 | I17: 0.001473595 | J17: 0 | K17: 351.5513539 | L17: 106.579 | M17: 25.99 | N17: =S163 -> 100.4455342 | O17: =$AH$163 -> 91.16937248 | P17: 9.276161699 | Q17: =IF(P17<0,0,P17) -> 9.276161699 | S17: Cp.- Volumen medio anual de escurrimiento natural
A18: 10 | B18: Río Tamazula | C18: 758.5304362 | D18: =I165 -> 0 | E18: 530.4093968 | F18: 0 | G18: 0 | H18: 530.4093968 | I18: 0 | J18: 0 | K18: 0 | L18: 40.589 | M18: 5.958 | N18: =S165 -> 181.5740394 | O18: =$AH$165 -> 164.8056469 | P18: 16.76839258 | Q18: =IF(P18<0,0,P18) -> 16.76839258 | S18: Ar.- Volumen medio anual de escurrimiento desde la cuenca aguas arriba
A19: 11 | B19: Río Culiacán | C19: 444.4751861 | D19: =I167 -> 282.0195736 | E19: 2111.391625 | F19: 5.1600796 | G19: 0 | H19: 2116.551704 | I19: 1850.192748 | J19: 309.4185979 | K19: 503.0220249 | L19: 0 | M19: 0 | N19: =S167 -> 266.5323763 | O19: =$AH$167 -> 0 | P19: 266.5323763 | Q19: =IF(P19<0,0,P19) -> 266.5323763 | S19: Uc (a).- Volumen anual de extracción de agua superficial mediante títulos inscritos actualmente en el REPDA
A20: 12 | B20: Río Fuerte 1 | C20: 4024.364323 | D20: =I188 -> 0 | E20: 3725.681968 | F20: 2.08130288 | G20: 31.2015688 | H20: 3758.964839 | I20: 1.425302952 | J20: 0 | K20: 0 | L20: 49.428 | M20: 121.499 | N20: =S188 -> 95.89778691 | O20: =AN188 -> 94.49331605 | P20: 1.404470864 | Q20: =P20 -> 1.404470864 | S20: Uc (b).- Volumen anual de extracción de agua superficial de títulos en proceso de inscripción en el REPDA
A21: 13 | B21: Río Choix | C21: 279.2379414 | D21: =I190 -> 0 | E21: 0.76846 | F21: 0 | G21: 0 | H21: 0.76846 | I21: 0.4735964 | J21: 0 | K21: 0 | L21: 0 | M21: 0 | N21: =S190 -> 278.9430778 | O21: =AN190 -> 274.8578175 | P21: 4.08526034 | Q21: =P21 -> 4.08526034 | S21: Uc (c).- Volumen anual correspondiente a las reservas y las zonas reglamentadas
A22: 14 | B22: Arroyo Alamos | C22: 94.12423241 | D22: =I192 -> 0 | E22: 0.239484 | F22: 0 | G22: 0 | H22: 0.239484 | I22: 0 | J22: 0 | K22: 0 | L22: 0 | M22: 0 | N22: =S192 -> 93.88474841 | O22: =AN192 -> 92.5097595 | P22: 1.374988912 | Q22: =P22 -> 1.374988912 | S22: R.- Volumen anual de retornos
A23: 15 | B23: Río Fuerte 2 | C23: 595.0425811 | D23: =I194 -> 468.7256132 | E23: 6577.57564 | F23: 0 | G23: 0 | H23: 6577.57564 | I23: 6822.227 | J23: 0 | K23: 839.2702259 | L23: 200.244 | M23: 39.611 | N23: =S194 -> 229.2943283 | O23: =AN194 -> 113.8 | P23: =N23-O23 -> 115.4943283 | Q23: =P23 -> 115.4943283 | S23: Im.- Volumen anual de importaciones
A24: 16 | B24: Río Piaxtla 1 | C24: 996.8433518 | D24: =I112 -> 0 | E24: 2.53982145 | F24: 0 | G24: 0 | H24: 2.53982145 | I24: 0 | J24: 0 | K24: 0 | L24: 0 | M24: 0 | N24: =T112 -> 994.3035303 | O24: =BE112 -> 6.48182174 | P24: 987.8217086 | Q24: =BF112 -> 987.8217086 | S24: Ex.- Volumen anual de exportaciones
A25: 17 | B25: Río Piaxtla 2 | C25: 421.9499596 | D25: =I114 -> 994.3035303 | E25: 9.1915257 | F25: 0.0419328 | G25: 0 | H25: 9.2334585 | I25: 0.14775525 | J25: 0 | K25: 0 | L25: 0 | M25: 0 | N25: =T114 -> 1407.167787 | O25: =BE114 -> 0 | P25: 1407.167787 | Q25: =BF114 -> 1407.167787 | S25: Ev.- Volumen medio anual de evaporación en embalses
A26: 18 | B26: Río Sinaloa 1 | C26: 1311.34823 | D26: =I147 -> 0 | E26: 1058.425973 | F26: 0 | G26: 0 | H26: 1058.425973 | I26: 0.0012262 | J26: 0 | K26: 0 | L26: 58.211 | M26: 26.644 | N26: =T147 -> 168.0684827 | O26: =BE147 -> 135.3457491 | P26: 32.72273367 | Q26: =IF(BF147<0,0,BF147) -> 32.72273367 | S26: Av.- Volumen medio anual de variación de almacenamiento en embalses
A27: 19 | B27: Arroyo Ocoroni | C27: 151.1473181 | D27: =I149 -> 0 | E27: 0.144104 | F27: 0 | G27: 0 | H27: 0.144104 | I27: 0 | J27: 0 | K27: 0 | L27: 17.432 | M27: 1.229 | N27: =T149 -> 132.3422141 | O27: =BE149 -> 106.5753425 | P27: 25.76687167 | Q27: =IF(BF149<0,0,BF149) -> 25.76687167 | S27: Ab.- Volumen medio anual de escurrimiento de la cuenca hacia aguas abajo
A28: 20 | B28: Arroyo Cabrera | C28: 83.40093781 | D28: =I151 -> 0 | E28: 1.30722 | F28: 0 | G28: 0 | H28: 1.30722 | I28: 0 | J28: 0 | K28: 0 | L28: 0 | M28: 0 | N28: =T151 -> 82.09371781 | O28: =BE151 -> 66.11016861 | P28: 15.98354921 | Q28: =IF(BF151<0,0,BF151) -> 15.98354921 | S28: Rxy.- Volumen anual actual comprometido aguas abajo y volumenes decretados para reservas medio ambiente
A29: 21 | B29: Río Sinaloa 2 | C29: 462.1835356 | D29: =I153 -> 382.5044147 | E29: 1203.38768 | F29: 2.12121568 | G29: 0 | H29: 1205.508896 | I29: 1055.946594 | J29: 0 | K29: 325.0743633 | L29: 0 | M29: 0 | N29: =T153 -> 370.0512849 | O29: =BE153 -> 0 | P29: 370.0512849 | Q29: =IF(BF153<0,0,BF153) -> 370.0512849 | S29: D.- Disponibilidad media anual de agua superficial en la cuenca hidrológica
A30: 22 | B30: Río pericos 1 | C30: 49.72470647 | D30: =I177 -> 0 | E30: 0.48084308 | F30: 0 | G30: 0 | H30: 0.48084308 | I30: 0 | J30: 0 | K30: 0 | L30: 0 | M30: 0 | N30: =T177 -> 49.24386339 | O30: =BE177 -> 0.8545016032 | P30: 48.38936179 | Q30: =IF(P30<0,0,P30) -> 48.38936179
A31: 23 | B31: Río Pericos 2 | C31: 144.0880997 | D31: =I179 -> 49.24386339 | E31: 3.36679925 | F31: 0 | G31: 0 | H31: 3.36679925 | I31: 0.69248542 | J31: 0 | K31: 0 | L31: 0 | M31: 0 | N31: =T179 -> 190.6576493 | O31: =BE179 -> 0 | P31: 190.6576493 | Q31: =IF(P31<0,0,P31) -> 190.6576493
A32: 24 | B32: Grupo de corrientes Agiabampo | C32: 89.08413138 | D32: 0 | E32: 22.045344 | F32: 0 | G32: 0 | H32: 22.045344 | I32: 1.2754961 | J32: 0 | K32: 0 | L32: 0 | M32: 0 | N32: =C32+D32+I32+J32-H32-K32-L32-M32 -> 68.31428348 | O32: 0 | P32: 68.31428348 | Q32: =IF(P32<0,0,P32) -> 68.31428348
A33: 25 | B33: Grupo de corrientes Topolobampo | C33: 73.48377207 | D33: 0 | E33: 13.01509935 | F33: 2.18986 | G33: 0 | H33: 15.20495935 | I33: 5.588170133 | J33: 0 | K33: 0 | L33: 0 | M33: 0 | N33: 63.86698286 | O33: 0 | P33: =N33-O33 -> 63.86698286 | Q33: 63.86698286
A34: 26 | B34: Grupo de corrientes Huyaqui | C34: 53.77083607 | D34: 0 | E34: 8.50473565 | F34: 0 | G34: 0 | H34: 8.50473565 | I34: 0 | J34: 0 | K34: 0 | L34: 0 | M34: 0 | N34: 45.26610042 | O34: 0 | P34: 45.26610042 | Q34: 45.26610042
A35: 27 | B35: Grupo de corrientes Reforma | C35: 37.21905504 | D35: 0 | E35: 2.09697591 | F35: 0 | G35: 0 | H35: 2.09697591 | I35: 1.3738449 | J35: 0 | K35: 0 | L35: 0 | M35: 0 | N35: 36.49592403 | O35: 0 | P35: 36.49592403 | Q35: 36.49592403
A36: 28 | B36: Grupo de corrientes Pabellones | C36: 116.0140789 | D36: 0 | E36: 11.65357508 | F36: 0 | G36: 0 | H36: 11.65357508 | I36: 0.36417525 | J36: 0 | K36: 0 | L36: 0 | M36: 0 | N36: 104.7246791 | O36: 0 | P36: 104.7246791 | Q36: 104.7246791
A37: 29 | B37: Grupo de corrientes Tempehuaya | C37: 104.5036691 | D37: 0 | E37: 5.565939 | F37: 0.240955 | G37: 0 | H37: 5.806894 | I37: 1.000923 | J37: 0 | K37: 0 | L37: 0 | M37: 0 | N37: 99.69769812 | O37: 0 | P37: 99.69769812 | Q37: 99.69769812
A38: 30 | B38: Grupo de corrientes Altata | C38: 22.67690844 | D38: 0 | E38: 0.4880061 | F38: 0 | G38: 0 | H38: 0.4880061 | I38: 0.001574265 | J38: 0 | K38: 0 | L38: 0 | M38: 0 | N38: 22.1904766 | O38: 0 | P38: 22.1904766 | Q38: 22.1904766
B39: Totales | C39: =SUM(C9:C38) -> 14644.17292 | E39: =SUM(E9:E38) -> 18939.59703 | F39: =SUM(F9:F38) -> 45.08890916 | G39: 31.2015688 | H39: 19015.8875 | I39: 10766.41602 | J39: 624.3636984 | K39: 2692.167487 | L39: 593.671 | M39: =SUM(M9:M38) -> 249.572 | Q39: =SUM(Q32:Q38,Q31,Q29,Q25,Q23,Q19,Q16,Q14,Q12,Q10) -> 3369.854646
A40: Valores en millones de metros cúbicos
BB85: =BB90-AJ90 -> 134.4151357 | BD85: =BB92-AJ92 -> 26.68235234 | BE85: =SUM(BB85:BD85) -> 161.097488
A88: Cuenca Río Matape | BN88: Disponibilidad Hídrica
U89: =IF(U90=0,"",U90/(SUM($U90:$AG90))) -> 1 | V89: =IF(V90=0,"",V90/(SUM($U90:$AG90))) ->  | W89: =IF(W90=0,"",W90/(SUM($U90:$AG90))) ->  | X89: =IF(X90=0,"",X90/(SUM($U90:$AG90))) ->  | AH89: =SUM(U89:AG89) -> 1 | AN89: =IF(U89=0,"",U89) -> 1 | AO89: =IF(V89=0,"",V89) ->  | AP89: =IF(W89=0,"",W89) ->  | AQ89: =IF(X89=0,"",X89) ->  | AR89: =IF(Y89=0,"",Y89) ->  | AY89: =IF(AF89=0,"",AF89) ->  | AZ89: =IF(AG89=0,"",AG89) ->  | BA89: =SUM(AN89:AZ89) -> 1
A90: A | B90: =A90 -> A | C90: =A90 -> A | D90: B | H90: =C9 -> 372.0246475 | J90: =J9 -> 0 | K90: =I9 -> 0.248082 | L90: =SUM(H90:K90) -> 372.2727295 | M90: =H9 -> 0.64827072 | N90: =L9 -> 32.383 | O90: =K9 -> 0 | P90: =SUM(M90:O90) -> 33.03127072 | Q90: =+P90 -> 33.03127072 | R90: =M9 -> 8.6 | S90: =L90-Q90-R90 -> 330.6414588 | T90: =IF(S90<0,0,S90) -> 330.6414588 | U90: =K90+H90 -> 372.2727295 | AG90: =J90 -> 0 | AH90: =SUM(U90:AG90) -> 372.2727295 | AI90: =+Q90 -> 33.03127072 | AJ90: =(AI92+R92)*V91 -> 237.8575938 | AK90: =AI90+R90+AJ90 -> 279.4888646 | AL90: =IF(AG90>0,(AI90+R90+AJ90)*AG89,"") ->  | AM90: =SUM(AI90:AK90) -> 550.3777291 | AN90: =IF(AN89="","",$AM90*AN89) -> 550.3777291 | BA90: =SUM(AN90:AZ90) -> 550.3777291 | BB90: =+U90 -> 372.2727295 | BC90: =IF(D90="MAR",IF((BB90-AJ90)<0,0,BB90-AJ90),IF(D90="Cerrada",IF((BB90-AJ90)<0,0,BB90-AJ90),IF((BB90-AK90)<0,0,BB90-AK90))) -> 92.78386494 | BD90: =IF(AG90=0,"",IF(AG90-AL90<0,0,AG90-AL90)) ->  | BE90: =IF(D90="MAR",0,IF(D90="Cerrada",0,AJ90)) -> 237.8575938 | BF90: =IF(T90-BE90<0,0,T90-BE90) -> 92.78386494 | BG90: =IF(D90="MAR",IF(AI90+R90+AJ90=0,"Infinito",(I90+U90+AG90)/(AI90+R90)),IF(D90="Cerrada",IF(AI90+R90+AJ90=0,"Infinito",(I90+U90+AG90)/(AI90+R90)),IF(AI90+R90+AJ90=0,"Infinito",(I90+U90+AG90)/(AI90+R90+AJ90)))) -> 1.331976965 | BH90: =IF(BG90<1.4,"1", IF(BG90<3,"2", IF(BG90<9,"3", "4"))) -> 1 | BI90: =IF(BG90<1.4,"ROJO", IF(BG90<3,"AMARILLO", IF(BG90<9,"VERDE", "AZUL"))) -> ROJO | BJ90: =IF(BG90<1.4,"Déficit", IF(BG90<3,"Equilibrio", IF(BG90<9,"Disponibilidad", "Abundante"))) -> Déficit | BK90: =I90+U90+AG90 -> 372.2727295 | BL90: =IF(D90="MAR",AI90+R90,IF(D90="Cerrada",AI90+R90,AI90+R90+AJ90)) -> 279.4888646 | BN90: =SUM(BC90:BD90) -> 92.78386494
U91: =IF(U92=0,"",U92/(SUM($U92:$AG92))) -> 0.2233464234 | V91: =IF(V92=0,"",V92/(SUM($U92:$AG92))) -> 0.7766535766 | W91: =IF(W92=0,"",W92/(SUM($U92:$AG92))) ->  | X91: =IF(X92=0,"",X92/(SUM($U92:$AG92))) ->  | AH91: =SUM(U91:AG91) -> 1 | AN91: =IF(U91=0,"",U91) -> 0.2233464234 | AO91: =IF(V91=0,"",V91) -> 0.7766535766 | AP91: =IF(W91=0,"",W91) ->  | AQ91: =IF(X91=0,"",X91) ->  | BA91: =SUM(AN91:AZ91) -> 1
A92: B | B92: =A92 -> B | C92: =A92 -> B | D92: MAR | H92: =C10 -> 95.0843329 | I92: =T90 -> 330.6414588 | J92: =J10 -> 0 | K92: =I10 -> 0 | L92: =SUM(H92:K92) -> 425.7257917 | M92: =H10 -> 246.3565114 | N92: =L10 -> 0 | O92: =K10 -> 59.903063 | P92: =SUM(M92:O92) -> 306.2595744 | Q92: =+P92 -> 306.2595744 | R92: =M10 -> 0 | S92: =L92-Q92-R92 -> 119.4662173 | T92: =IF(S92<0,0,S92) -> 119.4662173 | U92: =K92+H92 -> 95.0843329 | V92: =T90 -> 330.6414588 | AG92: =J92 -> 0 | AH92: =SUM(U92:AG92) -> 425.7257917 | AI92: =+Q92 -> 306.2595744 | AJ92: =(AI92+R92)*U91 -> 68.40198056 | AL92: =IF(AG92>0,(AI92+R92)*AG91,"") ->  | AM92: =SUM(AI92:AK92) -> 374.661555 | AN92: =IF(AN91="","",$AM92*AN91) -> 83.67931827 | AO92: 290.9822367 | BA92: =SUM(AN92:AZ92) -> 374.661555 | BB92: =+U92 -> 95.0843329 | BC92: =IF(D92="MAR",IF((BB92-AJ92)<0,0,BB92-AJ92),IF(D92="Cerrada",IF((BB92-AJ92)<0,0,BB92-AJ92),IF((BB92-AK92)<0,0,BB92-AK92))) -> 26.68235234 | BD92: =IF(AG92=0,"",IF(AG92-AL92<0,0,AG92-AL92)) ->  | BE92: =IF(D92="MAR",0,IF(D92="Cerrada",0,AJ92)) -> 0 | BF92: =IF(T92-BE92<0,0,T92-BE92) -> 119.4662173 | BG92: =IF(D92="MAR",IF(AI92+R92+AJ92=0,"Infinito",(I92+U92+AG92)/(AI92+R92)),IF(D92="Cerrada",IF(AI92+R92+AJ92=0,"Infinito",(I92+U92+AG92)/(AI92+R92)),IF(AI92+R92+AJ92=0,"Infinito",(I92+U92+AG92)/(AI92+R92+AJ92)))) -> 1.390081575 | BH92: =IF(BG92<1.4,"1", IF(BG92<3,"2", IF(BG92<9,"3", "4"))) -> 1 | BI92: =IF(BG92<1.4,"ROJO", IF(BG92<3,"AMARILLO", IF(BG92<9,"VERDE", "AZUL"))) -> ROJO | BJ92: =IF(BG92<1.4,"Déficit", IF(BG92<3,"Equilibrio", IF(BG92<9,"Disponibilidad", "Abundante"))) -> Déficit | BK92: =IF(I92+U92+AG92<=0,0,I92+U92+AG92) -> 425.7257917 | BL92: =IF(D92="MAR",AI92+R92,IF(D92="Cerrada",AI92+R92,AI92+R92+AJ92)) -> 306.2595744 | BN92: =SUM(BC92:BD92) -> 26.68235234
AL94: Comprobación | BB94: SDxx | BE94: Ab
BB95: =SUM(BC90:BD92) -> 119.4662173 | BC95: Mm3 | BE95: =T92 -> 119.4662173 | BF95: Mm3
A97: No LINEA | B97: CUENCA O REGION | C97: CONEXION | H97: OFERTA POTENCIAL | M97: DEMANDA CONSUNTIVA | U97: OFERTA REAL | AI97: EXTRACC Y VOLS RESERV PARA A ABAJO | BB97: POR CUENCA PROPIA | BE97: A LA SAL. DEL C PRINCIPAL | BG97: DISPONIBILIDAD RELATIVA | BK97: OFERTA - DEMANDA
B98: HIDROLOGICA | C98: DE | D98: HACIA | H98: Cp | I98: Cp A Arriba | J98: Im | K98: R | L98: TOTAL | M98: Uc | N98: Ev | O98: Ex | P98: TOTAL | Q98: TOTAL ACUM. | R98: Dv | S98: Ab | T98: Ab | U98: Cp | V98: Ar1 | W98: Ar2 | X98: Ar3 | Y98: Ar4 | Z98: Ar5 | AA98: Ar6 | AB98: Ar7 | AC98: Ar8 | AD98: Ar9 | AE98: Ar10 | AF98: Ar11 | AG98: Im | AH98: TOTAL | AI98: Uc | AJ98: Re1 | AK98: Re2 | AL98: RImp | AM98: TOTAL | AN98: para Cp | AO98: para Ar1 | AP98: para Ar2 | AQ98: para Ar3 | AR98: para Ar4 | AS98: para Ar5 | AT98: para Ar6 | AU98: para Ar7 | AV98: para Ar8 | AW98: para Ar9 | AX98: para Ar10 | AY98: para Ar11 | AZ98: para Im | BA98: TOTAL | BB98: RESERVADO | BC98: DISPONIBLE | BD98: DImp | BE98: RESERVADO | BF98: DISPONIBLE | BG98: INDICE | BH98: CLAVE | BI98: COLOR | BK98: OFERTA | BL98: DEMANDA
A99: Cuenca Río Matape
U100: =IF(U101=0,"",U101/(SUM($U101:$AG101))) -> 1 | V100: =IF(V101=0,"",V101/(SUM($U101:$AG101))) ->  | W100: =IF(W101=0,"",W101/(SUM($U101:$AG101))) ->  | X100: =IF(X101=0,"",X101/(SUM($U101:$AG101))) ->  | AH100: =SUM(U100:AG100) -> 1 | AN100: =IF(U100=0,"",U100) -> 1 | AO100: =IF(V100=0,"",V100) ->  | AP100: =IF(W100=0,"",W100) ->  | AQ100: =IF(X100=0,"",X100) ->  | AR100: =IF(Y100=0,"",Y100) ->  | AY100: =IF(AF100=0,"",AF100) ->  | AZ100: =IF(AG100=0,"",AG100) ->  | BA100: =SUM(AN100:AZ100) -> 1
A101: A | B101: =A101 -> A | C101: =A101 -> A | D101: B | H101: =C13 -> 148.4593955 | J101: =J13 -> 0 | K101: =I13 -> 0.105738 | L101: =SUM(H101:K101) -> 148.5651335 | M101: =H13 -> 3.476239 | N101: =L13 -> 28.102 | O101: =K13 -> 0 | P101: =SUM(M101:O101) -> 31.578239 | Q101: =+P101 -> 31.578239 | R101: =M13 -> -3.222 | S101: =L101-Q101-R101 -> 120.2088945 | T101: =IF(S101<0,0,S101) -> 120.2088945 | U101: =K101+H101 -> 148.5651335 | AG101: =J101 -> 0 | AH101: =SUM(U101:AG101) -> 148.5651335 | AI101: =+Q101 -> 31.578239 | AJ101: =(AI103+R103)*V102 -> 116.5119611 | AK101: =AI101+R101+AJ101 -> 144.8682001 | AL101: =IF(AG101>0,(AI101+R101+AJ101)*AG100,"") ->  | AM101: =SUM(AI101:AK101) -> 292.9584001 | AN101: =IF(AN100="","",$AM101*AN100) -> 292.9584001 | BA101: =SUM(AN101:AZ101) -> 292.9584001 | BB101: =+U101 -> 148.5651335 | BC101: =IF(D101="MAR",IF((BB101-AJ101)<0,0,BB101-AJ101),IF(D101="Cerrada",IF((BB101-AJ101)<0,0,BB101-AJ101),IF((BB101-AK101)<0,0,BB101-AK101))) -> 3.696933438 | BD101: =IF(AG101=0,"",IF(AG101-AL101<0,0,AG101-AL101)) ->  | BE101: =IF(D101="MAR",0,IF(D101="Cerrada",0,AJ101)) -> 116.5119611 | BF101: =IF(T101-BE101<0,0,T101-BE101) -> 3.696933438 | BG101: =IF(D101="MAR",IF(AI101+R101+AJ101=0,"Infinito",(I101+U101+AG101)/(AI101+R101)),IF(D101="Cerrada",IF(AI101+R101+AJ101=0,"Infinito",(I101+U101+AG101)/(AI101+R101)),IF(AI101+R101+AJ101=0,"Infinito",(I101+U101+AG101)/(AI101+R101+AJ101)))) -> 1.025519289 | BH101: =IF(BG101<1.4,"1", IF(BG101<3,"2", IF(BG101<9,"3", "4"))) -> 1 | BI101: =IF(BG101<1.4,"ROJO", IF(BG101<3,"AMARILLO", IF(BG101<9,"VERDE", "AZUL"))) -> ROJO | BJ101: =IF(BG101<1.4,"Déficit", IF(BG101<3,"Equilibrio", IF(BG101<9,"Disponibilidad", "Abundante"))) -> Déficit | BK101: =I101+U101+AG101 -> 148.5651335 | BL101: =IF(D101="MAR",AI101+R101,IF(D101="Cerrada",AI101+R101,AI101+R101+AJ101)) -> 144.8682001 | BM101: =BK90/BL90 -> 1.331976965 | BN101: =SUM(BC101:BD101) -> 3.696933438
U102: =IF(U103=0,"",U103/(SUM($U103:$AG103))) -> 0.1492347831 | V102: =IF(V103=0,"",V103/(SUM($U103:$AG103))) -> 0.2350192055 | W102: =IF(W103=0,"",W103/(SUM($U103:$AG103))) ->  | X102: =IF(X103=0,"",X103/(SUM($U103:$AG103))) ->  | AG102: 0.6157460114 | AH102: =SUM(U102:AG102) -> 1 | AN102: =IF(U102=0,"",U102) -> 0.1492347831 | AO102: =IF(V102=0,"",V102) -> 0.2350192055 | AP102: =IF(W102=0,"",W102) ->  | AQ102: =IF(X102=0,"",X102) ->  | AZ102: 0.6157460114 | BA102: =SUM(AN102:AZ102) -> 1
A103: B | B103: =A103 -> B | C103: =A103 -> B | D103: MAR | H103: =C14 -> 73.85231422 | I103: =T101 -> 120.2088945 | J103: =J14 -> 314.9451005 | K103: =I14 -> 2.479099875 | L103: =SUM(H103:K103) -> 511.4854091 | M103: =H14 -> 405.9732395 | N103: =L14 -> 0 | O103: =K14 -> 89.78182353 | P103: =SUM(M103:O103) -> 495.755063 | Q103: =+P103 -> 495.755063 | R103: =M14 -> 0 | S103: =L103-Q103-R103 -> 15.73034608 | T103: =IF(S103<0,0,S103) -> 15.73034608 | U103: =K103+H103 -> 76.33141409 | V103: =T101 -> 120.2088945 | AG103: =J103 -> 314.9451005 | AH103: =SUM(U103:AG103) -> 511.4854091 | AI103: =+Q103 -> 495.755063 | AJ103: =(AI103+R103)*U102 -> 73.98389931 | AL103: =IF(AG103>0,(AI103+R103)*AG102,"") -> 305.2592027 | AM103: =SUM(AI103:AK103) -> 569.7389623 | AN103: =IF(AN102="","",$AM103*AN102) -> 85.02487048 | AO103: 133.8995983 | AZ103: 350.8144936 | BA103: =SUM(AN103:AZ103) -> 569.7389623 | BB103: =+U103 -> 76.33141409 | BC103: =IF(D103="MAR",IF((BB103-AJ103)<0,0,BB103-AJ103),IF(D103="Cerrada",IF((BB103-AJ103)<0,0,BB103-AJ103),IF((BB103-AK103)<0,0,BB103-AK103))) -> 2.347514785 | BD103: =IF(AG103=0,"",IF(AG103-AL103<0,0,AG103-AL103)) -> 9.685897854 | BE103: =IF(D103="MAR",0,IF(D103="Cerrada",0,AJ103)) -> 0 | BF103: =IF(T103-BE103<0,0,T103-BE103) -> 15.73034608 | BG103: =IF(D103="MAR",IF(AI103+R103+AJ103=0,"Infinito",(I103+U103+AG103)/(AI103+R103)),IF(D103="Cerrada",IF(AI103+R103+AJ103=0,"Infinito",(I103+U103+AG103)/(AI103+R103)),IF(AI103+R103+AJ103=0,"Infinito",(I103+U103+AG103)/(AI103+R103+AJ103)))) -> 1.031730077 | BH103: =IF(BG103<1.4,"1", IF(BG103<3,"2", IF(BG103<9,"3", "4"))) -> 1 | BI103: =IF(BG103<1.4,"ROJO", IF(BG103<3,"AMARILLO", IF(BG103<9,"VERDE", "AZUL"))) -> ROJO | BJ103: =IF(BG103<1.4,"Déficit", IF(BG103<3,"Equilibrio", IF(BG103<9,"Disponibilidad", "Abundante"))) -> Déficit | BK103: =IF(I103+U103+AG103<=0,0,I103+U103+AG103) -> 511.4854091 | BL103: =IF(D103="MAR",AI103+R103,IF(D103="Cerrada",AI103+R103,AI103+R103+AJ103)) -> 495.755063 | BM103: =BK92/BL92 -> 1.390081575 | BN103: =SUM(BC103:BD103) -> 12.03341264
AL105: Comprobación | BB105: SDxx | BE105: Ab
BB106: =SUM(BC101:BD103) -> 15.73034608 | BC106: Mm3 | BE106: =T103 -> 15.73034608 | BF106: Mm3
A108: No LINEA | B108: CUENCA O REGION | C108: CONEXION | H108: OFERTA POTENCIAL | M108: DEMANDA CONSUNTIVA | U108: OFERTA REAL | AI108: EXTRACC Y VOLS RESERV PARA A ABAJO | BB108: POR CUENCA PROPIA | BE108: A LA SAL. DEL C PRINCIPAL | BG108: DISPONIBILIDAD RELATIVA | BK108: OFERTA - DEMANDA
B109: HIDROLOGICA | C109: DE | D109: HACIA | H109: Cp | I109: Cp A Arriba | J109: Im | K109: R | L109: TOTAL | M109: Uc | N109: Ev | O109: Ex | P109: TOTAL | Q109: TOTAL ACUM. | R109: Dv | S109: Ab | T109: Ab | U109: Cp | V109: Ar1 | W109: Ar2 | X109: Ar3 | Y109: Ar4 | Z109: Ar5 | AA109: Ar6 | AB109: Ar7 | AC109: Ar8 | AD109: Ar9 | AE109: Ar10 | AF109: Ar11 | AG109: Im | AH109: TOTAL | AI109: Uc | AJ109: Re1 | AK109: Re2 | AL109: RImp | AM109: TOTAL | AN109: para Cp | AO109: para Ar1 | AP109: para Ar2 | AQ109: para Ar3 | AR109: para Ar4 | AS109: para Ar5 | AT109: para Ar6 | AU109: para Ar7 | AV109: para Ar8 | AW109: para Ar9 | AX109: para Ar10 | AY109: para Ar11 | AZ109: para Im | BA109: TOTAL | BB109: RESERVADO | BC109: DISPONIBLE | BD109: DImp | BE109: RESERVADO | BF109: DISPONIBLE | BG109: INDICE | BH109: CLAVE | BI109: COLOR | BK109: OFERTA | BL109: DEMANDA | BM109: Indice
A110: Cuenca Río Matape
U111: =IF(U112=0,"",U112/(SUM($U112:$AG112))) -> 1 | V111: =IF(V112=0,"",V112/(SUM($U112:$AG112))) ->  | W111: =IF(W112=0,"",W112/(SUM($U112:$AG112))) ->  | X111: =IF(X112=0,"",X112/(SUM($U112:$AG112))) ->  | AH111: =SUM(U111:AG111) -> 1 | AN111: =IF(U111=0,"",U111) -> 1 | AO111: =IF(V111=0,"",V111) ->  | AP111: =IF(W111=0,"",W111) ->  | AQ111: =IF(X111=0,"",X111) ->  | AR111: =IF(Y111=0,"",Y111) ->  | AY111: =IF(AF111=0,"",AF111) ->  | AZ111: =IF(AG111=0,"",AG111) ->  | BA111: =SUM(AN111:AZ111) -> 1
A112: A | B112: =A112 -> A | C112: =A112 -> A | D112: b | H112: =C24 -> 996.8433518 | J112: =J24 -> 0 | K112: =I24 -> 0 | L112: =SUM(H112:K112) -> 996.8433518 | M112: =H24 -> 2.53982145 | N112: =L24 -> 0 | O112: =K24 -> 0 | P112: =SUM(M112:O112) -> 2.53982145 | Q112: =+P112 -> 2.53982145 | R112: =M24 -> 0 | S112: =L112-Q112-R112 -> 994.3035303 | T112: =IF(S112<0,0,S112) -> 994.3035303 | U112: =K112+H112 -> 996.8433518 | AG112: =J112 -> 0 | AH112: =SUM(U112:AG112) -> 996.8433518 | AI112: =+Q112 -> 2.53982145 | AJ112: =(AI114+R114)*V113 -> 6.48182174 | AK112: =AI112+R112+AJ112 -> 9.02164319 | AL112: =IF(AG112>0,(AI112+R112+AJ112)*AG111,"") ->  | AM112: =SUM(AI112:AK112) -> 18.04328638 | AN112: =IF(AN111="","",$AM112*AN111) -> 18.04328638 | BA112: =SUM(AN112:AZ112) -> 18.04328638 | BB112: =+U112 -> 996.8433518 | BC112: =IF(D112="MAR",IF((BB112-AJ112)<0,0,BB112-AJ112),IF(D112="Cerrada",IF((BB112-AJ112)<0,0,BB112-AJ112),IF((BB112-AK112)<0,0,BB112-AK112))) -> 987.8217086 | BD112: =IF(AG112=0,"",IF(AG112-AL112<0,0,AG112-AL112)) ->  | BE112: =IF(D112="MAR",0,IF(D112="Cerrada",0,AJ112)) -> 6.48182174 | BF112: =IF(T112-BE112<0,0,T112-BE112) -> 987.8217086 | BG112: =IF(D112="MAR",IF(AI112+R112+AJ112=0,"Infinito",(I112+U112+AG112)/(AI112+R112)),IF(D112="Cerrada",IF(AI112+R112+AJ112=0,"Infinito",(I112+U112+AG112)/(AI112+R112)),IF(AI112+R112+AJ112=0,"Infinito",(I112+U112+AG112)/(AI112+R112+AJ112)))) -> 110.494655 | BH112: =IF(BG112<1.4,"1", IF(BG112<3,"2", IF(BG112<9,"3", "4"))) -> 4 | BI112: =IF(BG112<1.4,"ROJO", IF(BG112<3,"AMARILLO", IF(BG112<9,"VERDE", "AZUL"))) -> AZUL | BJ112: =IF(BG112<1.4,"Déficit", IF(BG112<3,"Equilibrio", IF(BG112<9,"Disponibilidad", "Abundante"))) -> Abundante | BK112: =I112+U112+AG112 -> 996.8433518 | BL112: =IF(D112="MAR",AI112+R112,IF(D112="Cerrada",AI112+R112,AI112+R112+AJ112)) -> 9.02164319 | BM112: =BK101/BL101 -> 1.025519289 | BN112: =SUM(BC112:BD112) -> 987.8217086
U113: =IF(U114=0,"",U114/(SUM($U114:$AG114))) -> 0.2980071616 | V113: =IF(V114=0,"",V114/(SUM($U114:$AG114))) -> 0.7019928384 | W113: =IF(W114=0,"",W114/(SUM($U114:$AG114))) ->  | X113: =IF(X114=0,"",X114/(SUM($U114:$AG114))) ->  | AH113: =SUM(U113:AG113) -> 1 | AN113: =IF(U113=0,"",U113) -> 0.2980071616 | AO113: =IF(V113=0,"",V113) -> 0.7019928384 | AP113: =IF(W113=0,"",W113) ->  | AQ113: =IF(X113=0,"",X113) ->  | BA113: =SUM(AN113:AZ113) -> 1
A114: B | B114: =A114 -> B | C114: =A114 -> B | D114: MAR | H114: =C25 -> 421.9499596 | I114: =T112 -> 994.3035303 | J114: =J25 -> 0 | K114: =I25 -> 0.14775525 | L114: =SUM(H114:K114) -> 1416.401245 | M114: =H25 -> 9.2334585 | N114: =L25 -> 0 | O114: =K25 -> 0 | P114: =SUM(M114:O114) -> 9.2334585 | Q114: =+P114 -> 9.2334585 | R114: =M25 -> 0 | S114: =L114-Q114-R114 -> 1407.167787 | T114: =IF(S114<0,0,S114) -> 1407.167787 | U114: =K114+H114 -> 422.0977148 | V114: =T112 -> 994.3035303 | AG114: =J114 -> 0 | AH114: =SUM(U114:AG114) -> 1416.401245 | AI114: =+Q114 -> 9.2334585 | AJ114: =(AI114+R114)*U113 -> 2.75163676 | AL114: =IF(AG114>0,(AI114+R114)*AG113,"") ->  | AM114: =SUM(AI114:AK114) -> 11.98509526 | AN114: =IF(AN113="","",$AM114*AN113) -> 3.57164422 | AO114: 8.413451039 | BA114: =SUM(AN114:AZ114) -> 11.98509526 | BB114: =+U114 -> 422.0977148 | BC114: =IF(D114="MAR",IF((BB114-AJ114)<0,0,BB114-AJ114),IF(D114="Cerrada",IF((BB114-AJ114)<0,0,BB114-AJ114),IF((BB114-AK114)<0,0,BB114-AK114))) -> 419.3460781 | BD114: =IF(AG114=0,"",IF(AG114-AL114<0,0,AG114-AL114)) ->  | BE114: =IF(D114="MAR",0,IF(D114="Cerrada",0,AJ114)) -> 0 | BF114: =IF(T114-BE114<0,0,T114-BE114) -> 1407.167787 | BG114: =IF(D114="MAR",IF(AI114+R114+AJ114=0,"Infinito",(I114+U114+AG114)/(AI114+R114)),IF(D114="Cerrada",IF(AI114+R114+AJ114=0,"Infinito",(I114+U114+AG114)/(AI114+R114)),IF(AI114+R114+AJ114=0,"Infinito",(I114+U114+AG114)/(AI114+R114+AJ114)))) -> 153.3987774 | BH114: =IF(BG114<1.4,"1", IF(BG114<3,"2", IF(BG114<9,"3", "4"))) -> 4 | BI114: =IF(BG114<1.4,"ROJO", IF(BG114<3,"AMARILLO", IF(BG114<9,"VERDE", "AZUL"))) -> AZUL | BJ114: =IF(BG114<1.4,"Déficit", IF(BG114<3,"Equilibrio", IF(BG114<9,"Disponibilidad", "Abundante"))) -> Abundante | BK114: =IF(I114+U114+AG114<=0,0,I114+U114+AG114) -> 1416.401245 | BL114: =IF(D114="MAR",AI114+R114,IF(D114="Cerrada",AI114+R114,AI114+R114+AJ114)) -> 9.2334585 | BM114: =BK103/BL103 -> 1.031730077 | BN114: =SUM(BC114:BD114) -> 419.3460781
AL116: Comprobación | BB116: SDxx | BE116: Ab
BB117: =SUM(BC112:BD114) -> 1407.167787 | BC117: Mm3 | BE117: =T114 -> 1407.167787 | BF117: Mm3
A119: No LINEA | B119: CUENCA O REGION | C119: CONEXION | H119: OFERTA POTENCIAL | M119: DEMANDA CONSUNTIVA | U119: OFERTA REAL | AI119: EXTRACC Y VOLS RESERV PARA A ABAJO | BB119: POR CUENCA PROPIA | BE119: A LA SAL. DEL C PRINCIPAL | BG119: DISPONIBILIDAD RELATIVA | BK119: OFERTA - DEMANDA
B120: HIDROLOGICA | C120: DE | D120: HACIA | H120: Cp | I120: Cp A Arriba | J120: Im | K120: R | L120: TOTAL | M120: Uc | N120: Ev | O120: Ex | P120: TOTAL | Q120: TOTAL ACUM. | R120: Dv | S120: Ab | T120: Ab | U120: Cp | V120: Ar1 | W120: Ar2 | X120: Ar3 | Y120: Ar4 | Z120: Ar5 | AA120: Ar6 | AB120: Ar7 | AC120: Ar8 | AD120: Ar9 | AE120: Ar10 | AF120: Ar11 | AG120: Im | AH120: TOTAL | AI120: Uc | AJ120: Re1 | AK120: Re2 | AL120: RImp | AM120: TOTAL | AN120: para Cp | AO120: para Ar1 | AP120: para Ar2 | AQ120: para Ar3 | AR120: para Ar4 | AS120: para Ar5 | AT120: para Ar6 | AU120: para Ar7 | AV120: para Ar8 | AW120: para Ar9 | AX120: para Ar10 | AY120: para Ar11 | AZ120: para Im | BA120: TOTAL | BB120: RESERVADO | BC120: DISPONIBLE | BD120: DImp | BE120: RESERVADO | BF120: DISPONIBLE | BG120: INDICE | BH120: CLAVE | BI120: COLOR | BK120: OFERTA | BL120: DEMANDA | BM120: Indice
A121: Cuenca Río Matape
U122: =IF(U123=0,"",U123/(SUM($U123:$AG123))) -> 1 | V122: =IF(V123=0,"",V123/(SUM($U123:$AG123))) ->  | W122: =IF(W123=0,"",W123/(SUM($U123:$AG123))) ->  | X122: =IF(X123=0,"",X123/(SUM($U123:$AG123))) ->  | AH122: =SUM(U122:AG122) -> 1 | AN122: =IF(U122=0,"",U122) -> 1 | AO122: =IF(V122=0,"",V122) ->  | AP122: =IF(W122=0,"",W122) ->  | AQ122: =IF(X122=0,"",X122) ->  | AR122: =IF(Y122=0,"",Y122) ->  | AY122: =IF(AF122=0,"",AF122) ->  | AZ122: =IF(AG122=0,"",AG122) ->  | BA122: =SUM(AN122:AZ122) -> 1
A123: A | B123: =A123 -> A | C123: =A123 -> A | D123: B | H123: =C11 -> 101.2955093 | J123: =J11 -> 0 | K123: =I11 -> 0 | L123: =SUM(H123:K123) -> 101.2955093 | M123: =H11 -> 0.3531324 | N123: =L11 -> 0 | O123: =K11 -> 0 | P123: =SUM(M123:O123) -> 0.3531324 | Q123: =+P123 -> 0.3531324 | R123: =M11 -> 0 | S123: =L123-Q123-R123 -> 100.9423769 | T123: =IF(S123<0,0,S123) -> 100.9423769 | U123: =K123+H123 -> 101.2955093 | AG123: =J123 -> 0 | AH123: =SUM(U123:AG123) -> 101.2955093 | AI123: =+Q123 -> 0.3531324 | AJ123: =(AI125+R125)*V124 -> 0.3416753385 | AK123: =AI123+R123+AJ123 -> 0.6948077385 | AL123: =IF(AG123>0,(AI123+R123+AJ123)*AG122,"") ->  | AM123: =SUM(AI123:AK123) -> 1.389615477 | AN123: =IF(AN122="","",$AM123*AN122) -> 1.389615477 | BA123: =SUM(AN123:AZ123) -> 1.389615477 | BB123: =+U123 -> 101.2955093 | BC123: =IF(D123="MAR",IF((BB123-AJ123)<0,0,BB123-AJ123),IF(D123="Cerrada",IF((BB123-AJ123)<0,0,BB123-AJ123),IF((BB123-AK123)<0,0,BB123-AK123))) -> 100.6007016 | BE123: =IF(D123="MAR",0,IF(D123="Cerrada",0,AJ123)) -> 0.3416753385 | BF123: =IF(T123-BE123<0,0,T123-BE123) -> 100.6007016 | BG123: =IF(D123="MAR",IF(AI123+R123+AJ123=0,"Infinito",(I123+U123+AG123)/(AI123+R123)),IF(D123="Cerrada",IF(AI123+R123+AJ123=0,"Infinito",(I123+U123+AG123)/(AI123+R123)),IF(AI123+R123+AJ123=0,"Infinito",(I123+U123+AG123)/(AI123+R123+AJ123)))) -> 145.7892648 | BH123: =IF(BG123<1.4,"1", IF(BG123<3,"2", IF(BG123<9,"3", "4"))) -> 4 | BI123: =IF(BG123<1.4,"ROJO", IF(BG123<3,"AMARILLO", IF(BG123<9,"VERDE", "AZUL"))) -> AZUL | BJ123: =IF(BG123<1.4,"Déficit", IF(BG123<3,"Equilibrio", IF(BG123<9,"Disponibilidad", "Abundante"))) -> Abundante | BK123: =I123+U123+AG123 -> 101.2955093 | BL123: =IF(D123="MAR",AI123+R123,IF(D123="Cerrada",AI123+R123,AI123+R123+AJ123)) -> 0.6948077385 | BM123: =BK112/BL112 -> 110.494655 | BN123: =SUM(BC123:BD123) -> 100.6007016
U124: =IF(U125=0,"",U125/(SUM($U125:$AG125))) -> 0.3346447862 | V124: =IF(V125=0,"",V125/(SUM($U125:$AG125))) -> 0.6653552138 | W124: =IF(W125=0,"",W125/(SUM($U125:$AG125))) ->  | X124: =IF(X125=0,"",X125/(SUM($U125:$AG125))) ->  | AH124: =SUM(U124:AG124) -> 1 | AN124: =IF(U124=0,"",U124) -> 0.3346447862 | AO124: =IF(V124=0,"",V124) -> 0.6653552138 | AP124: =IF(W124=0,"",W124) ->  | AQ124: =IF(X124=0,"",X124) ->  | BA124: =SUM(AN124:AZ124) -> 1
A125: B | B125: =A125 -> B | C125: =A125 -> B | D125: MAR | H125: =C12 -> 50.76963321 | I125: =T123 -> 100.9423769 | J125: =J12 -> 0 | K125: =I12 -> 0 | L125: =SUM(H125:K125) -> 151.7120101 | M125: =H12 -> 0.5135232 | N125: =L12 -> 0 | O125: =K12 -> 0 | P125: =SUM(M125:O125) -> 0.5135232 | Q125: =+P125 -> 0.5135232 | R125: =M12 -> 0 | S125: =L125-Q125-R125 -> 151.1984869 | T125: =IF(S125<0,0,S125) -> 151.1984869 | U125: =K125+H125 -> 50.76963321 | V125: =T123 -> 100.9423769 | AG125: =J125 -> 0 | AH125: =SUM(U125:AG125) -> 151.7120101 | AI125: =+Q125 -> 0.5135232 | AJ125: =(AI125+R125)*U124 -> 0.1718478615 | AL125: =IF(AG125>0,(AI125+R125)*AG124,"") ->  | AM125: =SUM(AI125:AK125) -> 0.6853710615 | AN125: =IF(AN124="","",$AM125*AN124) -> 0.2293558524 | AO125: 0.4560152091 | BA125: =SUM(AN125:AZ125) -> 0.6853710615 | BB125: =+U125 -> 50.76963321 | BC125: =IF(D125="MAR",IF((BB125-AJ125)<0,0,BB125-AJ125),IF(D125="Cerrada",IF((BB125-AJ125)<0,0,BB125-AJ125),IF((BB125-AK125)<0,0,BB125-AK125))) -> 50.59778534 | BD125: =IF(AG125=0,"",IF(AG125-AL125<0,0,AG125-AL125)) ->  | BE125: =IF(D125="MAR",0,IF(D125="Cerrada",0,AJ125)) -> 0 | BF125: =IF(T125-BE125<0,0,T125-BE125) -> 151.1984869 | BG125: =IF(D125="MAR",IF(AI125+R125+AJ125=0,"Infinito",(I125+U125+AG125)/(AI125+R125)),IF(D125="Cerrada",IF(AI125+R125+AJ125=0,"Infinito",(I125+U125+AG125)/(AI125+R125)),IF(AI125+R125+AJ125=0,"Infinito",(I125+U125+AG125)/(AI125+R125+AJ125)))) -> 295.4336048 | BH125: =IF(BG125<1.4,"1", IF(BG125<3,"2", IF(BG125<9,"3", "4"))) -> 4 | BI125: =IF(BG125<1.4,"ROJO", IF(BG125<3,"AMARILLO", IF(BG125<9,"VERDE", "AZUL"))) -> AZUL | BJ125: =IF(BG125<1.4,"Déficit", IF(BG125<3,"Equilibrio", IF(BG125<9,"Disponibilidad", "Abundante"))) -> Abundante | BK125: =IF(I125+U125+AG125<=0,0,I125+U125+AG125) -> 151.7120101 | BL125: =IF(D125="MAR",AI125+R125,IF(D125="Cerrada",AI125+R125,AI125+R125+AJ125)) -> 0.5135232 | BM125: =BK114/BL114 -> 153.3987774 | BN125: =SUM(BC125:BD125) -> 50.59778534
AL127: Comprobación | BB127: SDxx | BE127: Ab
BB128: =SUM(BC123:BD125) -> 151.1984869 | BC128: Mm3 | BE128: =T125 -> 151.1984869 | BF128: Mm3
A130: No LINEA | B130: CUENCA O REGION | C130: CONEXION | H130: OFERTA POTENCIAL | M130: DEMANDA CONSUNTIVA | U130: OFERTA REAL | AI130: EXTRACC Y VOLS RESERV PARA A ABAJO | BB130: POR CUENCA PROPIA | BE130: A LA SAL. DEL C PRINCIPAL | BG130: DISPONIBILIDAD RELATIVA | BK130: OFERTA - DEMANDA
B131: HIDROLOGICA | C131: DE | D131: HACIA | H131: Cp | I131: Cp A Arriba | J131: Im | K131: R | L131: TOTAL | M131: Uc | N131: Ev | O131: Ex | P131: TOTAL | Q131: TOTAL ACUM. | R131: Dv | S131: Ab | T131: Ab | U131: Cp | V131: Ar1 | W131: Ar2 | X131: Ar3 | Y131: Ar4 | Z131: Ar5 | AA131: Ar6 | AB131: Ar7 | AC131: Ar8 | AD131: Ar9 | AE131: Ar10 | AF131: Ar11 | AG131: Im | AH131: TOTAL | AI131: Uc | AJ131: Re1 | AK131: Re2 | AL131: RImp | AM131: TOTAL | AN131: para Cp | AO131: para Ar1 | AP131: para Ar2 | AQ131: para Ar3 | AR131: para Ar4 | AS131: para Ar5 | AT131: para Ar6 | AU131: para Ar7 | AV131: para Ar8 | AW131: para Ar9 | AX131: para Ar10 | AY131: para Ar11 | AZ131: para Im | BA131: TOTAL | BB131: RESERVADO | BC131: DISPONIBLE | BD131: DImp | BE131: RESERVADO | BF131: DISPONIBLE | BG131: INDICE | BH131: CLAVE | BI131: COLOR | BK131: OFERTA | BL131: DEMANDA | BM131: Indice
A132: Cuenca Río Matape
U133: =IF(U134=0,"",U134/(SUM($U134:$AG134))) -> 1 | V133: =IF(V134=0,"",V134/(SUM($U134:$AG134))) ->  | W133: =IF(W134=0,"",W134/(SUM($U134:$AG134))) ->  | X133: =IF(X134=0,"",X134/(SUM($U134:$AG134))) ->  | AH133: =SUM(U133:AG133) -> 1 | AN133: =IF(U133=0,"",U133) -> 1 | AO133: =IF(V133=0,"",V133) ->  | AP133: =IF(W133=0,"",W133) ->  | AQ133: =IF(X133=0,"",X133) ->  | BA133: =SUM(AN133:AZ133) -> 1
A134: A | B134: =A134 -> A | C134: =A134 -> A | D134: B | H134: =C15 -> 1374.902399 | J134: =J15 -> 0 | K134: =I15 -> 0 | L134: =SUM(H134:K134) -> 1374.902399 | M134: =H15 -> 1028.106492 | N134: =L15 -> 60.703 | O134: =K15 -> 0 | P134: =SUM(M134:O134) -> 1088.809492 | Q134: =+P134 -> 1088.809492 | R134: =M15 -> 23.263 | S134: =L134-Q134-R134 -> 262.8299073 | T134: =IF(S134<0,0,S134) -> 262.8299073 | U134: =K134+H134 -> 1374.902399 | AG134: =J134 -> 0 | AH134: =SUM(U134:AG134) -> 1374.902399 | AI134: =+Q134 -> 1088.809492 | AJ134: =(AI136+R136)*V135 -> 212.5269623 | AK134: =AI134+R134+AJ134 -> 1324.599454 | AL134: =IF(AG134>0,(AI134+R134+AJ134)*AG133,"") ->  | AM134: =SUM(AI134:AK134) -> 2625.935908 | AN134: =IF(AN133="","",$AM134*AN133) -> 2625.935908 | BA134: =SUM(AN134:AZ134) -> 2625.935908 | BB134: =+U134 -> 1374.902399 | BC134: =IF(D134="MAR",IF((BB134-AJ134)<0,0,BB134-AJ134),IF(D134="Cerrada",IF((BB134-AJ134)<0,0,BB134-AJ134),IF((BB134-AK134)<0,0,BB134-AK134))) -> 50.30294498 | BD134: =IF(AG134=0,"",IF(AG134-AL134<0,0,AG134-AL134)) ->  | BE134: =IF(D134="MAR",0,IF(D134="Cerrada",0,AJ134)) -> 212.5269623 | BF134: =IF(T134-BE134<0,0,T134-BE134) -> 50.30294498 | BG134: =IF(D134="MAR",IF(AI134+R134+AJ134=0,"Infinito",(I134+U134+AG134)/(AI134+R134)),IF(D134="Cerrada",IF(AI134+R134+AJ134=0,"Infinito",(I134+U134+AG134)/(AI134+R134)),IF(AI134+R134+AJ134=0,"Infinito",(I134+U134+AG134)/(AI134+R134+AJ134)))) -> 1.037975967 | BH134: =IF(BG134<1.4,"1", IF(BG134<3,"2", IF(BG134<9,"3", "4"))) -> 1 | BI134: =IF(BG134<1.4,"ROJO", IF(BG134<3,"AMARILLO", IF(BG134<9,"VERDE", "AZUL"))) -> ROJO | BJ134: =IF(BG134<1.4,"Déficit", IF(BG134<3,"Equilibrio", IF(BG134<9,"Disponibilidad", "Abundante"))) -> Déficit | BK134: =I134+U134+AG134 -> 1374.902399 | BL134: =IF(D134="MAR",AI134+R134,IF(D134="Cerrada",AI134+R134,AI134+R134+AJ134)) -> 1324.599454 | BM134: =BK123/BL123 -> 145.7892648 | BN134: =SUM(BC134:BD134) -> 50.30294498
U135: =IF(U136=0,"",U136/(SUM($U136:$AG136))) -> 0.8283176091 | V135: =IF(V136=0,"",V136/(SUM($U136:$AG136))) -> 0.1716823909 | W135: =IF(W136=0,"",W136/(SUM($U136:$AG136))) ->  | X135: =IF(X136=0,"",X136/(SUM($U136:$AG136))) ->  | AH135: =SUM(U135:AG135) -> 1 | AN135: =IF(U135=0,"",U135) -> 0.8283176091 | AO135: =IF(V135=0,"",V135) -> 0.1716823909 | AP135: =IF(W135=0,"",W135) ->  | AQ135: =IF(X135=0,"",X135) ->  | BA135: =SUM(AN135:AZ135) -> 1
A136: B | B136: =A136 -> B | C136: =A136 -> B | D136: MAR | H136: =C16 -> 245.2071364 | I136: =T134 -> 262.8299073 | J136: =J16 -> 0 | K136: =I16 -> 1022.870733 | L136: =SUM(H136:K136) -> 1530.907777 | M136: =H16 -> 714.3431185 | N136: =L16 -> 0 | O136: =K16 -> 523.5646324 | P136: =SUM(M136:O136) -> 1237.907751 | Q136: =+P136 -> 1237.907751 | R136: =M16 -> 0 | S136: =L136-Q136-R136 -> 293.000026 | T136: =IF(S136<0,0,S136) -> 293.000026 | U136: =K136+H136 -> 1268.07787 | V136: =T134 -> 262.8299073 | AG136: =J136 -> 0 | AH136: =SUM(U136:AG136) -> 1530.907777 | AI136: =+Q136 -> 1237.907751 | AJ136: =(AI136+R136)*U135 -> 1025.380789 | AL136: =IF(AG136>0,(AI136+R136)*AG135,"") ->  | AM136: =SUM(AI136:AK136) -> 2263.288539 | AN136: =IF(AN135="","",$AM136*AN135) -> 1874.721752 | AO136: 388.5667876 | BA136: =SUM(AN136:AZ136) -> 2263.288539 | BB136: =+U136 -> 1268.07787 | BC136: =IF(D136="MAR",IF((BB136-AJ136)<0,0,BB136-AJ136),IF(D136="Cerrada",IF((BB136-AJ136)<0,0,BB136-AJ136),IF((BB136-AK136)<0,0,BB136-AK136))) -> 242.697081 | BD136: =IF(AG136=0,"",IF(AG136-AL136<0,0,AG136-AL136)) ->  | BE136: =IF(D136="MAR",0,IF(D136="Cerrada",0,AJ136)) -> 0 | BF136: =IF(T136-BE136<0,0,T136-BE136) -> 293.000026 | BG136: =IF(D136="MAR",IF(AI136+R136+AJ136=0,"Infinito",(I136+U136+AG136)/(AI136+R136)),IF(D136="Cerrada",IF(AI136+R136+AJ136=0,"Infinito",(I136+U136+AG136)/(AI136+R136)),IF(AI136+R136+AJ136=0,"Infinito",(I136+U136+AG136)/(AI136+R136+AJ136)))) -> 1.23668971 | BH136: =IF(BG136<1.4,"1", IF(BG136<3,"2", IF(BG136<9,"3", "4"))) -> 1 | BI136: =IF(BG136<1.4,"ROJO", IF(BG136<3,"AMARILLO", IF(BG136<9,"VERDE", "AZUL"))) -> ROJO | BJ136: =IF(BG136<1.4,"Déficit", IF(BG136<3,"Equilibrio", IF(BG136<9,"Disponibilidad", "Abundante"))) -> Déficit | BK136: =IF(I136+U136+AG136<=0,0,I136+U136+AG136) -> 1530.907777 | BL136: =IF(D136="MAR",AI136+R136,IF(D136="Cerrada",AI136+R136,AI136+R136+AJ136)) -> 1237.907751 | BM136: =BK125/BL125 -> 295.4336048 | BN136: =SUM(BC136:BD136) -> 242.697081
AL138: Comprobación | BB138: SDxx | BE138: Ab
BB139: =SUM(BC134:BD136) -> 293.000026 | BC139: Mm3 | BE139: =T136 -> 293.000026 | BF139: Mm3
BM142: Indice
A143: No LINEA | B143: CUENCA O REGION | C143: CONEXION | H143: OFERTA POTENCIAL | M143: DEMANDA CONSUNTIVA | U143: OFERTA REAL | AI143: EXTRACC Y VOLS RESERV PARA A ABAJO | BB143: POR CUENCA PROPIA | BE143: A LA SAL. DEL C PRINCIPAL | BG143: DISPONIBILIDAD RELATIVA | BK143: OFERTA - DEMANDA
B144: HIDROLOGICA | C144: DE | D144: HACIA | H144: Cp | I144: Cp A Arriba | J144: Im | K144: R | L144: TOTAL | M144: Uc | N144: Ev | O144: Ex | P144: TOTAL | Q144: TOTAL ACUM. | R144: Dv | S144: Ab | T144: Ab | U144: Cp | V144: Ar1 | W144: Ar2 | X144: Ar3 | Y144: Ar4 | Z144: Ar5 | AA144: Ar6 | AB144: Ar7 | AC144: Ar8 | AD144: Ar9 | AE144: Ar10 | AF144: Ar11 | AG144: Im | AH144: TOTAL | AI144: Uc | AJ144: Re1 | AK144: Re2 | AL144: RImp | AM144: TOTAL | AN144: para Cp | AO144: para Ar1 | AP144: para Ar2 | AQ144: para Ar3 | AR144: para Ar4 | AS144: para Ar5 | AT144: para Ar6 | AU144: para Ar7 | AV144: para Ar8 | AW144: para Ar9 | AX144: para Ar10 | AY144: para Ar11 | AZ144: para Im | BA144: TOTAL | BB144: RESERVADO | BC144: DISPONIBLE | BD144: DImp | BE144: RESERVADO | BF144: DISPONIBLE | BG144: INDICE | BH144: CLAVE | BI144: COLOR | BK144: OFERTA | BL144: DEMANDA
A145: Cuenca Río Sinaloa | BM145: =BK134/BL134 -> 1.037975967
U146: =IF(U147=0,"",U147/(SUM($U147:$AG147))) -> 1 | V146: =IF(V147=0,"",V147/(SUM($U147:$AG147))) ->  | W146: =IF(W147=0,"",W147/(SUM($U147:$AG147))) ->  | X146: =IF(X147=0,"",X147/(SUM($U147:$AG147))) ->  | AH146: =SUM(U146:AG146) -> 1 | AN146: =IF(U146=0,"",U146) -> 1 | AO146: =IF(V146=0,"",V146) ->  | AP146: =IF(W146=0,"",W146) ->  | AQ146: =IF(X146=0,"",X146) ->  | AR146: =IF(Y146=0,"",Y146) ->  | AY146: =IF(AF146=0,"",AF146) ->  | AZ146: =IF(AG146=0,"",AG146) ->  | BA146: =SUM(AN146:AZ146) -> 1
A147: A | B147: =A147 -> A | C147: =A147 -> A | D147: D | H147: =C26 -> 1311.34823 | J147: =J26 -> 0 | K147: =I26 -> 0.0012262 | L147: =SUM(H147:K147) -> 1311.349456 | M147: =H26 -> 1058.425973 | N147: =L26 -> 58.211 | O147: =K26 -> 0 | P147: =SUM(M147:O147) -> 1116.636973 | Q147: =+P147 -> 1116.636973 | R147: =M26 -> 26.644 | S147: =L147-Q147-R147 -> 168.0684827 | T147: =IF(S147<0,0,S147) -> 168.0684827 | U147: =K147+H147 -> 1311.349456 | AG147: =J147 -> 0 | AH147: =SUM(U147:AG147) -> 1311.349456 | AI147: =+Q147 -> 1116.636973 | AJ147: =(AI153+R153)*V152 -> 135.3457491 | AK147: =AI147+R147+AJ147 -> 1278.626722 | AL147: =IF(AG147>0,(AI147+R147+AJ147)*AG146,"") ->  | AM147: =SUM(AI147:AK147) -> 2530.609445 | AN147: =IF(AN146="","",$AM147*AN146) -> 2530.609445 | BA147: 2530.609445 | BB147: =+U147 -> 1311.349456 | BC147: =IF(D147="MAR",IF((BB147-AJ147)<0,0,BB147-AJ147),IF(D147="Cerrada",IF((BB147-AJ147)<0,0,BB147-AJ147),IF((BB147-AK147)<0,0,BB147-AK147))) -> 32.72273367 | BD147: =IF(AG147=0,"",IF(AG147-AL147<0,0,AG147-AL147)) ->  | BE147: =IF(D147="MAR",0,IF(D147="Cerrada",0,AJ147)) -> 135.3457491 | BF147: =IF(T147-BE147<0,0,T147-BE147) -> 32.72273367 | BG147: =IF(D147="MAR",IF(AI147+R147+AJ147=0,"Infinito",(I147+U147+AG147)/(AI147+R147)),IF(D147="Cerrada",IF(AI147+R147+AJ147=0,"Infinito",(I147+U147+AG147)/(AI147+R147)),IF(AI147+R147+AJ147=0,"Infinito",(I147+U147+AG147)/(AI147+R147+AJ147)))) -> 1.025592093 | BH147: =IF(BG147<1.4,"1", IF(BG147<3,"2", IF(BG147<9,"3", "4"))) -> 1 | BI147: =IF(BG147<1.4,"ROJO", IF(BG147<3,"AMARILLO", IF(BG147<9,"VERDE", "AZUL"))) -> ROJO | BJ147: =IF(BG147<1.4,"Déficit", IF(BG147<3,"Equilibrio", IF(BG147<9,"Disponibilidad", "Abundante"))) -> Déficit | BK147: =I147+U147+AG147 -> 1311.349456 | BL147: =IF(D147="MAR",AI147+R147,IF(D147="Cerrada",AI147+R147,AI147+R147+AJ147)) -> 1278.626722 | BM147: =BK136/BL136 -> 1.23668971 | BN147: =SUM(BC147:BD147) -> 32.72273367
U148: =IF(U149=0,"",U149/(SUM($U149:$AG149))) -> 1 | V148: =IF(V149=0,"",V149/(SUM($U149:$AG149))) ->  | W148: =IF(W149=0,"",W149/(SUM($U149:$AG149))) ->  | X148: =IF(X149=0,"",X149/(SUM($U149:$AG149))) ->  | AH148: 1 | AN148: =IF(U148=0,"",U148) -> 1 | AO148: =IF(V148=0,"",V148) ->  | AP148: =IF(W148=0,"",W148) ->  | AQ148: =IF(X148=0,"",X148) ->  | BA148: 1
A149: B | B149: =A149 -> B | C149: =A149 -> B | D149: D | H149: =C27 -> 151.1473181 | J149: =J27 -> 0 | K149: =I27 -> 0 | L149: =SUM(H149:K149) -> 151.1473181 | M149: =H27 -> 0.144104 | N149: =L27 -> 17.432 | O149: =K27 -> 0 | P149: =SUM(M149:O149) -> 17.576104 | Q149: =+P149 -> 17.576104 | R149: =M27 -> 1.229 | S149: =L149-Q149-R149 -> 132.3422141 | T149: =IF(S149<0,0,S149) -> 132.3422141 | U149: =K149+H149 -> 151.1473181 | AG149: =J149 -> 0 | AH149: 151.1473181 | AI149: =+Q149 -> 17.576104 | AJ149: =(AI153+R153)*W152 -> 106.5753425 | AK149: =AI149+R149+AJ149 -> 125.3804465 | AL149: =IF(AG149>0,(AI149+R149+AJ149)*AG148,"") ->  | AM149: =SUM(AI149:AK149) -> 249.5318929 | AN149: =IF(AN148="","",$AM149*AN148) -> 249.5318929 | BA149: 249.5318929 | BB149: =+U149 -> 151.1473181 | BC149: =IF(D149="MAR",IF((BB149-AJ149)<0,0,BB149-AJ149),IF(D149="Cerrada",IF((BB149-AJ149)<0,0,BB149-AJ149),IF((BB149-AK149)<0,0,BB149-AK149))) -> 25.76687167 | BD149: =IF(AG149=0,"",IF(AG149-AL149<0,0,AG149-AL149)) ->  | BE149: =IF(D149="MAR",0,IF(D149="Cerrada",0,AJ149)) -> 106.5753425 | BF149: =IF(T149-BE149<0,0,T149-BE149) -> 25.76687167 | BG149: =IF(D149="MAR",IF(AI149+R149+AJ149=0,"Infinito",(I149+U149+AG149)/(AI149+R149)),IF(D149="Cerrada",IF(AI149+R149+AJ149=0,"Infinito",(I149+U149+AG149)/(AI149+R149)),IF(AI149+R149+AJ149=0,"Infinito",(I149+U149+AG149)/(AI149+R149+AJ149)))) -> 1.20550949 | BH149: =IF(BG149<1.4,"1", IF(BG149<3,"2", IF(BG149<9,"3", "4"))) -> 1 | BI149: =IF(BG149<1.4,"ROJO", IF(BG149<3,"AMARILLO", IF(BG149<9,"VERDE", "AZUL"))) -> ROJO | BJ149: =IF(BG149<1.4,"Déficit", IF(BG149<3,"Equilibrio", IF(BG149<9,"Disponibilidad", "Abundante"))) -> Déficit | BK149: =I149+U149+AG149 -> 151.1473181 | BL149: =IF(D149="MAR",AI149+R149,IF(D149="Cerrada",AI149+R149,AI149+R149+AJ149)) -> 125.3804465 | BN149: =SUM(BC149:BD149) -> 25.76687167
U150: =IF(U151=0,"",U151/(SUM($U151:$AG151))) -> 1 | V150: =IF(V151=0,"",V151/(SUM($U151:$AG151))) ->  | W150: =IF(W151=0,"",W151/(SUM($U151:$AG151))) ->  | X150: =IF(X151=0,"",X151/(SUM($U151:$AG151))) ->  | AH150: 1 | AN150: =IF(U150=0,"",U150) -> 1 | AO150: =IF(V150=0,"",V150) ->  | AP150: =IF(W150=0,"",W150) ->  | AQ150: =IF(X150=0,"",X150) ->  | BA150: 1
A151: C | B151: =A151 -> C | C151: =A151 -> C | D151: D | H151: =C28 -> 83.40093781 | J151: =J28 -> 0 | K151: =I28 -> 0 | L151: =SUM(H151:K151) -> 83.40093781 | M151: =H28 -> 1.30722 | N151: =L28 -> 0 | O151: =K28 -> 0 | P151: =SUM(M151:O151) -> 1.30722 | Q151: =+P151 -> 1.30722 | R151: =M28 -> 0 | S151: =L151-Q151-R151 -> 82.09371781 | T151: =IF(S151<0,0,S151) -> 82.09371781 | U151: =K151+H151 -> 83.40093781 | AG151: =J151 -> 0 | AH151: 83.40093781 | AI151: =+Q151 -> 1.30722 | AJ151: =(AI153+R153)*X152 -> 66.11016861 | AK151: =AI151+R151+AJ151 -> 67.41738861 | AL151: =IF(AG151>0,(AI151+R151+AJ151)*AG150,"") ->  | AM151: =SUM(AI151:AK151) -> 134.8347772 | AN151: =IF(AN150="","",$AM151*AN150) -> 134.8347772 | BA151: 134.8347772 | BB151: =+U151 -> 83.40093781 | BC151: =IF(D151="MAR",IF((BB151-AJ151)<0,0,BB151-AJ151),IF(D151="Cerrada",IF((BB151-AJ151)<0,0,BB151-AJ151),IF((BB151-AK151)<0,0,BB151-AK151))) -> 15.98354921 | BD151: =IF(AG151=0,"",IF(AG151-AL151<0,0,AG151-AL151)) ->  | BE151: =IF(D151="MAR",0,IF(D151="Cerrada",0,AJ151)) -> 66.11016861 | BF151: =IF(T151-BE151<0,0,T151-BE151) -> 15.98354921 | BG151: =IF(D151="MAR",IF(AI151+R151+AJ151=0,"Infinito",(I151+U151+AG151)/(AI151+R151)),IF(D151="Cerrada",IF(AI151+R151+AJ151=0,"Infinito",(I151+U151+AG151)/(AI151+R151)),IF(AI151+R151+AJ151=0,"Infinito",(I151+U151+AG151)/(AI151+R151+AJ151)))) -> 1.237083482 | BH151: =IF(BG151<1.4,"1", IF(BG151<3,"2", IF(BG151<9,"3", "4"))) -> 1 | BI151: =IF(BG151<1.4,"ROJO", IF(BG151<3,"AMARILLO", IF(BG151<9,"VERDE", "AZUL"))) -> ROJO | BJ151: =IF(BG151<1.4,"Déficit", IF(BG151<3,"Equilibrio", IF(BG151<9,"Disponibilidad", "Abundante"))) -> Déficit | BK151: =I151+U151+AG151 -> 83.40093781 | BL151: =IF(D151="MAR",AI151+R151,IF(D151="Cerrada",AI151+R151,AI151+R151+AJ151)) -> 67.41738861 | BN151: =SUM(BC151:BD151) -> 15.98354921
U152: =IF(U153=0,"",U153/(SUM($U153:$AG153))) -> 0.7987490989 | V152: =IF(V153=0,"",V153/(SUM($U153:$AG153))) -> 0.08842756398 | W152: =IF(W153=0,"",W153/(SUM($U153:$AG153))) -> 0.06963054237 | X152: =IF(X153=0,"",X153/(SUM($U153:$AG153))) -> 0.04319279478 | AH152: 1 | AN152: =IF(U152=0,"",U152) -> 0.7987490989 | AO152: =IF(V152=0,"",V152) -> 0.08842756398 | AP152: =IF(W152=0,"",W152) -> 0.06963054237 | AQ152: =IF(X152=0,"",X152) -> 0.04319279478 | BA152: 1
A153: D | B153: =A153 -> D | C153: =A153 -> D | D153: MAR | H153: =C29 -> 462.1835356 | I153: =T147+T149+T151 -> 382.5044147 | J153: =J29 -> 0 | K153: =I29 -> 1055.946594 | L153: =SUM(H153:K153) -> 1900.634544 | M153: =H29 -> 1205.508896 | N153: =L29 -> 0 | O153: =K29 -> 325.0743633 | P153: =SUM(M153:O153) -> 1530.583259 | Q153: =+P153 -> 1530.583259 | R153: =M29 -> 0 | S153: =L153-Q153-R153 -> 370.0512849 | T153: =IF(S153<0,0,S153) -> 370.0512849 | U153: =K153+H153 -> 1518.130129 | V153: =T147 -> 168.0684827 | W153: =T149 -> 132.3422141 | X153: =T151 -> 82.09371781 | AG153: =J153 -> 0 | AH153: 1900.634544 | AI153: =+Q153 -> 1530.583259 | AJ153: =(AI153+R153)*U152 -> 1222.551999 | AL153: =IF(AG153>0,(AI153+R153+AJ153)*AG152,"") ->  | AM153: =SUM(AI153:AK153) -> 2753.135258 | AN153: =IF(AN152="","",$AM153*AN152) -> 2199.064306 | AO153: 243.4530442 | AP153: 191.7023012 | AQ153: 118.9156062 | BA153: 2753.135258 | BB153: =+U153 -> 1518.130129 | BC153: =IF(D153="MAR",IF((BB153-AJ153)<0,0,BB153-AJ153),IF(D153="Cerrada",IF((BB153-AJ153)<0,0,BB153-AJ153),IF((BB153-AK153)<0,0,BB153-AK153))) -> 295.5781303 | BD153: =IF(AG153=0,"",IF(AG153-AL153<0,0,AG153-AL153)) ->  | BE153: =IF(D153="MAR",0,IF(D153="Cerrada",0,AJ153)) -> 0 | BF153: =IF(T153-BE153<0,0,T153-BE153) -> 370.0512849 | BG153: =IF(D153="MAR",IF(AI153+R153+AJ153=0,"Infinito",(I153+U153+AG153)/(AI153+R153)),IF(D153="Cerrada",IF(AI153+R153+AJ153=0,"Infinito",(I153+U153+AG153)/(AI153+R153)),IF(AI153+R153+AJ153=0,"Infinito",(I153+U153+AG153)/(AI153+R153+AJ153)))) -> 1.241771418 | BH153: =IF(BG153<1.4,"1", IF(BG153<3,"2", IF(BG153<9,"3", "4"))) -> 1 | BI153: =IF(BG153<1.4,"ROJO", IF(BG153<3,"AMARILLO", IF(BG153<9,"VERDE", "AZUL"))) -> ROJO | BJ153: =IF(BG153<1.4,"Déficit", IF(BG153<3,"Equilibrio", IF(BG153<9,"Disponibilidad", "Abundante"))) -> Déficit | BK153: =IF(I153+U153+AG153<=0,0,I153+U153+AG153) -> 1900.634544 | BL153: =IF(D153="MAR",AI153+R153,IF(D153="Cerrada",AI153+R153,AI153+R153+AJ153)) -> 1530.583259 | BN153: =SUM(BC153:BD153) -> 295.5781303
AL155: Comprobación | BB155: SDxx | BE155: Ab | BM155: Indice
BB156: =SUM(BC147:BD153) -> 370.0512849 | BC156: Mm3 | BE156: =T153 -> 370.0512849 | BF156: Mm3
BM158: =BK147/BL147 -> 1.025592093
A159: No LINEA | B159: CUENCA O REGION | C159: CONEXION | H159: OFERTA POTENCIAL | M159: DEMANDA CONSUNTIVA | T159: OFERTA REAL | AA159: EXTRACC Y VOLS RESERV PARA A ABAJO | AE159: POR CUENCA PROPIA | AH159: A LA SAL. DEL C PRINCIPAL | AJ159: DISPONIBILIDAD RELATIVA
B160: HIDROLOGICA | C160: DE | D160: HACIA | H160: Cp | I160: Cp A Arriba | J160: Im | K160: R | L160: TOTAL | M160: Uc | N160: Ev | O160: Ex | P160: TOTAL | Q160: TOTAL ACUM. | R160: Dv | S160: Ab | T160: Cp | U160: Ar1 | V160: Ar2 | W160: Ar3 | X160: Ar4 | Y160: Im | Z160: TOTAL | AA160: Uc | AB160: Re1 | AC160: Re2 | AD160: RImp | AE160: RESERVADO | AF160: DISPONIBLE | AG160: DImp | AH160: RESERVADO | AI160: DISPONIBLE | AJ160: INDICE | AK160: CLAVE | AL160: COLOR | BM160: =BK149/BL149 -> 1.20550949
A161: Cuenca del río Papaloapan
T162: =IF(T163=0,"",T163/(SUM($T163:$Y163))) -> 1 | Z162: =SUM(T162:Y162) -> 1 | BM162: =BK151/BL151 -> 1.237083482
A163: 1 | B163: A | C163: A | D163: C | H163: =C17 -> 1869.364263 | J163: =J17 -> 0 | K163: =I17 -> 0.001473595 | L163: =SUM(H163:K163) -> 1869.365736 | M163: =H17 -> 1284.799848 | N163: =L17 -> 106.579 | O163: =K17 -> 351.5513539 | P163: =SUM(M163:O163) -> 1742.930202 | Q163: =+P163 -> 1742.930202 | R163: =M17 -> 25.99 | S163: =L163-Q163-R163 -> 100.4455342 | T163: =K163+H163 -> 1869.365736 | Y163: =J163 -> 0 | Z163: 1869.365736 | AA163: =+Q163 -> 1742.930202 | AB163: =AA167*V166 -> 91.16937248 | AC163: =AA163+AB163+R163 -> 1860.089574 | AD163: =IF(Y163>0,(AA163+AB163)*Y162,"") ->  | AE163: =+T163 -> 1869.365736 | AF163: =IF(AC163=0,AE163-AB163,AE163-AC163) -> 9.276161699 | AG163: =IF(Y163=0,"",IF(Y163-AD163<0,0,Y163-AD163)) ->  | AH163: =+AB163 -> 91.16937248 | AI163: =S163-AH163 -> 9.276161699 | AJ163: =IF(D163="MAR",IF(AA163+R163+AB163=0,"Infinito",(I163+T163+Y163)/(AA163+R163)),IF(D163="C",IF(AA163+R163+AB163=0,"Infinito",(I163+T163+Y163)/(AA163+AB163+R163)),IF(AA163+R163+AB163=0,"Infinito",(I163+T163+Y163)/(AA163+R163+AB163)))) -> 1.004986944 | AK163: =IF(AJ163<1.4,"1", IF(AJ163<3,"2", IF(AJ163<9,"3", "4"))) -> 1 | AL163: =IF(AJ163<1.4,"ROJO", IF(AJ163<3,"AMARILLO", IF(AJ163<9,"VERDE", "AZUL"))) -> ROJO | AM163: =IF(AJ163<1.4,"Déficit", IF(AJ163<3,"Equilibrio", IF(AJ163<9,"Disponibilidad", "Abundante"))) -> Déficit | BN163: =SUM(AF163:AG163) -> 9.276161699
T164: =IF(T165=0,"",T165/(SUM($T165:$Y165))) -> 1 | Z164: 1 | BM164: =BK153/BL153 -> 1.241771418
A165: 2 | B165: B | C165: B | D165: C | H165: =C18 -> 758.5304362 | J165: =J18 -> 0 | K165: =I18 -> 0 | L165: =SUM(H165:K165) -> 758.5304362 | M165: =H18 -> 530.4093968 | N165: =L18 -> 40.589 | O165: =K18 -> 0 | P165: =SUM(M165:O165) -> 570.9983968 | Q165: =+P165 -> 570.9983968 | R165: =M18 -> 5.958 | S165: =L165-Q165-R165 -> 181.5740394 | T165: =K165+H165 -> 758.5304362 | Y165: =J165 -> 0 | Z165: 758.5304362 | AA165: =+Q165 -> 570.9983968 | AB165: =AA167*U166 -> 164.8056469 | AC165: =AA165+AB165+R165 -> 741.7620437 | AD165: =IF(Y165>0,(AA165+AB165)*Y164,"") ->  | AE165: =+T165 -> 758.5304362 | AF165: =IF(AC165=0,AE165-AB165,AE165-AC165) -> 16.76839258 | AG165: =IF(Y165=0,"",IF(Y165-AD165<0,0,Y165-AD165)) ->  | AH165: =+AB165 -> 164.8056469 | AI165: =S165-AH165 -> 16.76839258 | AJ165: =IF(D165="MAR",IF(AA165+R165+AB165=0,"Infinito",(I165+T165+Y165)/(AA165+R165)),IF(D165="C",IF(AA165+R165+AB165=0,"Infinito",(I165+T165+Y165)/(AA165+AB165+R165)),IF(AA165+R165+AB165=0,"Infinito",(I165+T165+Y165)/(AA165+R165+AB165)))) -> 1.022606162 | AK165: =IF(AJ165<1.4,"1", IF(AJ165<3,"2", IF(AJ165<9,"3", "4"))) -> 1 | AL165: =IF(AJ165<1.4,"ROJO", IF(AJ165<3,"AMARILLO", IF(AJ165<9,"VERDE", "AZUL"))) -> ROJO | AM165: =IF(AJ165<1.4,"Déficit", IF(AJ165<3,"Equilibrio", IF(AJ165<9,"Disponibilidad", "Abundante"))) -> Déficit | BN165: =SUM(AF165:AG165) -> 16.76839258
T166: =IF(T167=0,"",T167/(SUM($T167:$Y167))) -> 0.7950740029 | U166: 0.06291315454 | V166: 0.03480313284 | Y166: 0.1072097098 | Z166: 1
A167: 3 | B167: C | C167: C | D167: MAR | H167: =C19 -> 444.4751861 | I167: =S163+S165 -> 282.0195736 | J167: =J19 -> 309.4185979 | K167: =I19 -> 1850.192748 | L167: =SUM(H167:K167) -> 2886.106106 | M167: =H19 -> 2116.551704 | N167: =L19 -> 0 | O167: =K19 -> 503.0220249 | P167: =SUM(M167:O167) -> 2619.573729 | Q167: =+P167 -> 2619.573729 | R167: =M19 -> 0 | S167: =L167-Q167-R167 -> 266.5323763 | T167: =K167+H167 -> 2294.667934 | U167: =S165 -> 181.5740394 | V167: =S163 -> 100.4455342 | Y167: =J167 -> 309.4185979 | Z167: 2886.106106 | AA167: =+Q167 -> 2619.573729 | AB167: =AA167*T166 -> 2082.754971 | AD167: =IF(Y167>0,(AA167)*Y166,"") -> 280.8437392 | AE167: =+T167 -> 2294.667934 | AF167: =IF(AC167=0,AE167-AB167,AE167-AC167) -> 211.9129633 | AG167: =IF(Y167=0,"",IF(Y167-AD167<0,0,Y167-AD167)) -> 28.57485871 | AH167: =AC167 -> 0 | AI167: =S167-AH167 -> 266.5323763 | AJ167: =IF(D167="MAR",IF(AA167+R167+AB167=0,"Infinito",(I167+T167+Y167)/(AA167+R167)),IF(D167="C",IF(AA167+R167+AB167=0,"Infinito",(I167+T167+Y167)/(AA167+AB167+R167)),IF(AA167+R167+AB167=0,"Infinito",(I167+T167+Y167)/(AA167+R167+AB167)))) -> 1.101746469 | AK167: =IF(AJ167<1.4,"1", IF(AJ167<3,"2", IF(AJ167<9,"3", "4"))) -> 1 | AL167: =IF(AJ167<1.4,"ROJO", IF(AJ167<3,"AMARILLO", IF(AJ167<9,"VERDE", "AZUL"))) -> ROJO | AM167: =IF(AJ167<1.4,"Déficit", IF(AJ167<3,"Equilibrio", IF(AJ167<9,"Disponibilidad", "Abundante"))) -> Déficit | BN167: =SUM(AF167:AG167) -> 240.487822
AF169: =SUM(AF162:AF167)+141.68+1.05 -> 380.6875176
AD170: Comprobación | AE170: SDxx = | AF170: =SUM(AF163:AG167) -> 266.5323763 | AG170: Mm3
AE171: Ab = | AF171: =S167 -> 266.5323763 | AG171: Mm3
A173: No LINEA | B173: CUENCA O REGION | C173: CONEXION | H173: OFERTA POTENCIAL | M173: DEMANDA CONSUNTIVA | U173: OFERTA REAL | AI173: EXTRACC Y VOLS RESERV PARA A ABAJO | BB173: POR CUENCA PROPIA | BE173: A LA SAL. DEL C PRINCIPAL | BG173: DISPONIBILIDAD RELATIVA | BK173: OFERTA - DEMANDA
B174: HIDROLOGICA | C174: DE | D174: HACIA | H174: Cp | I174: Cp A Arriba | J174: Im | K174: R | L174: TOTAL | M174: Uc | N174: Ev | O174: Ex | P174: TOTAL | Q174: TOTAL ACUM. | R174: Dv | S174: Ab | T174: Ab | U174: Cp | V174: Ar1 | W174: Ar2 | X174: Ar3 | Y174: Ar4 | Z174: Ar5 | AA174: Ar6 | AB174: Ar7 | AC174: Ar8 | AD174: Ar9 | AE174: Ar10 | AF174: Ar11 | AG174: Im | AH174: TOTAL | AI174: Uc | AJ174: Re1 | AK174: Re2 | AL174: RImp | AM174: TOTAL | AN174: para Cp | AO174: para Ar1 | AP174: para Ar2 | AQ174: para Ar3 | AR174: para Ar4 | AS174: para Ar5 | AT174: para Ar6 | AU174: para Ar7 | AV174: para Ar8 | AW174: para Ar9 | AX174: para Ar10 | AY174: para Ar11 | AZ174: para Im | BA174: TOTAL | BB174: RESERVADO | BC174: DISPONIBLE | BD174: DImp | BE174: RESERVADO | BF174: DISPONIBLE | BG174: INDICE | BH174: CLAVE | BI174: COLOR | BK174: OFERTA | BL174: DEMANDA
A175: Cuenca Río Matape
U176: =IF(U177=0,"",U177/(SUM($U177:$AG177))) -> 1 | AH176: =SUM(U176:AG176) -> 1 | AN176: =IF(U176=0,"",U176) -> 1 | AO176: =IF(V176=0,"",V176) ->  | AP176: =IF(W176=0,"",W176) ->  | AQ176: =IF(X176=0,"",X176) ->  | AR176: =IF(Y176=0,"",Y176) ->  | AY176: =IF(AF176=0,"",AF176) ->  | AZ176: =IF(AG176=0,"",AG176) ->  | BA176: =SUM(AN176:AZ176) -> 1
A177: A | B177: =A177 -> A | C177: =A177 -> A | D177: B | H177: =C30 -> 49.72470647 | J177: =J30 -> 0 | K177: =I30 -> 0 | L177: =SUM(H177:K177) -> 49.72470647 | M177: =H30 -> 0.48084308 | N177: =L30 -> 0 | O177: =K30 -> 0 | P177: =SUM(M177:O177) -> 0.48084308 | Q177: =+P177 -> 0.48084308 | R177: =M30 -> 0 | S177: =L177-Q177-R177 -> 49.24386339 | T177: =IF(S177<0,0,S177) -> 49.24386339 | U177: =K177+H177 -> 49.72470647 | AG177: =J177 -> 0 | AH177: =SUM(U177:AG177) -> 49.72470647 | AI177: =+Q177 -> 0.48084308 | AJ177: =(AI179+R179)*V178 -> 0.8545016032 | AK177: =AI177+R177+AJ177 -> 1.335344683 | AL177: =IF(AG177>0,(AI177+R177+AJ177)*AG176,"") ->  | AM177: =SUM(AI177:AK177) -> 2.670689366 | AN177: =IF(AN176="","",$AM177*AN176) -> 2.670689366 | BA177: =SUM(AN177:AZ177) -> 2.670689366 | BB177: =+U177 -> 49.72470647 | BC177: =IF(D177="MAR",IF((BB177-AJ177)<0,0,BB177-AJ177),IF(D177="Cerrada",IF((BB177-AJ177)<0,0,BB177-AJ177),IF((BB177-AK177)<0,0,BB177-AK177))) -> 48.38936179 | BD177: =IF(AG177=0,"",IF(AG177-AL177<0,0,AG177-AL177)) ->  | BE177: =IF(D177="MAR",0,IF(D177="Cerrada",0,AJ177)) -> 0.8545016032 | BF177: =IF(T177-BE177<0,0,T177-BE177) -> 48.38936179 | BG177: =IF(D177="MAR",IF(AI177+R177+AJ177=0,"Infinito",(I177+U177+AG177)/(AI177+R177)),IF(D177="Cerrada",IF(AI177+R177+AJ177=0,"Infinito",(I177+U177+AG177)/(AI177+R177)),IF(AI177+R177+AJ177=0,"Infinito",(I177+U177+AG177)/(AI177+R177+AJ177)))) -> 37.23735684 | BH177: =IF(BG177<1.4,"1", IF(BG177<3,"2", IF(BG177<9,"3", "4"))) -> 4 | BI177: =IF(BG177<1.4,"ROJO", IF(BG177<3,"AMARILLO", IF(BG177<9,"VERDE", "AZUL"))) -> AZUL | BJ177: =IF(BG177<1.4,"Déficit", IF(BG177<3,"Equilibrio", IF(BG177<9,"Disponibilidad", "Abundante"))) -> Abundante | BK177: =I177+U177+AG177 -> 49.72470647 | BL177: =IF(D177="MAR",AI177+R177,IF(D177="Cerrada",AI177+R177,AI177+R177+AJ177)) -> 1.335344683 | BN177: =SUM(BC177:BD177) -> 48.38936179
U178: =IF(U179=0,"",U179/(SUM($U179:$AG179))) -> 0.7461976377 | V178: 0.2538023623 | AH178: =SUM(U178:AG178) -> 1 | AN178: =IF(U178=0,"",U178) -> 0.7461976377 | AO178: 0.2538023623 | BA178: =SUM(AN178:AZ178) -> 1
A179: B | B179: =A179 -> B | C179: =A179 -> B | D179: MAR | H179: =C31 -> 144.0880997 | I179: =T177 -> 49.24386339 | J179: =J31 -> 0 | K179: =I31 -> 0.69248542 | L179: =SUM(H179:K179) -> 194.0244485 | M179: =H31 -> 3.36679925 | N179: =L31 -> 0 | O179: =K31 -> 0 | P179: =SUM(M179:O179) -> 3.36679925 | Q179: =+P179 -> 3.36679925 | R179: =M31 -> 0 | S179: =L179-Q179-R179 -> 190.6576493 | T179: =IF(S179<0,0,S179) -> 190.6576493 | U179: =K179+H179 -> 144.7805852 | V179: =T177 -> 49.24386339 | AG179: =J179 -> 0 | AH179: =SUM(U179:AG179) -> 194.0244485 | AI179: =+Q179 -> 3.36679925 | AJ179: =(AI179+R179)*U178 -> 2.512297647 | AL179: =IF(AG179>0,(AI179+R179+AJ179)*AG178,"") ->  | AM179: =SUM(AI179:AK179) -> 5.879096897 | AN179: =IF(AN178="","",$AM179*AN178) -> 4.386968216 | AO179: 1.492128681 | BA179: =SUM(AN179:AZ179) -> 5.879096897 | BB179: =+U179 -> 144.7805852 | BC179: =IF(D179="MAR",IF((BB179-AJ179)<0,0,BB179-AJ179),IF(D179="Cerrada",IF((BB179-AJ179)<0,0,BB179-AJ179),IF((BB179-AK179)<0,0,BB179-AK179))) -> 142.2682875 | BD179: =IF(AG179=0,"",IF(AG179-AL179<0,0,AG179-AL179)) ->  | BE179: =IF(D179="MAR",0,IF(D179="Cerrada",0,AJ179)) -> 0 | BF179: =IF(T179-BE179<0,0,T179-BE179) -> 190.6576493 | BG179: =IF(D179="MAR",IF(AI179+R179+AJ179=0,"Infinito",(I179+U179+AG179)/(AI179+R179)),IF(D179="Cerrada",IF(AI179+R179+AJ179=0,"Infinito",(I179+U179+AG179)/(AI179+R179)),IF(AI179+R179+AJ179=0,"Infinito",(I179+U179+AG179)/(AI179+R179+AJ179)))) -> 57.62875483 | BH179: =IF(BG179<1.4,"1", IF(BG179<3,"2", IF(BG179<9,"3", "4"))) -> 4 | BI179: =IF(BG179<1.4,"ROJO", IF(BG179<3,"AMARILLO", IF(BG179<9,"VERDE", "AZUL"))) -> AZUL | BJ179: =IF(BG179<1.4,"Déficit", IF(BG179<3,"Equilibrio", IF(BG179<9,"Disponibilidad", "Abundante"))) -> Abundante | BK179: =IF(I179+U179+AG179<=0,0,I179+U179+AG179) -> 194.0244485 | BL179: =IF(D179="MAR",AI179+R179,IF(D179="Cerrada",AI179+R179,AI179+R179+AJ179)) -> 3.36679925 | BN179: =SUM(BC179:BD179) -> 142.2682875
AA180: 113.8
AL181: Comprobación | BB181: SDxx | BE181: Ab
BB182: =SUM(BC177:BD179) -> 190.6576493 | BC182: Mm3 | BE182: =T179 -> 190.6576493 | BF182: Mm3
A184: No LINEA | B184: CUENCA O REGION | C184: CONEXION | H184: OFERTA POTENCIAL | M184: DEMANDA CONSUNTIVA | T184: OFERTA REAL | Z184: EXTRACC Y VOLS RESERV PARA A ABAJO | AK184: POR CUENCA PROPIA | AN184: A LA SAL. DEL C PRINCIPAL | AP184: DISPONIBILIDAD RELATIVA
B185: HIDROLOGICA | C185: DE | D185: HACIA | H185: Cp | I185: Cp A Arriba | J185: Im | K185: R | L185: TOTAL | M185: Uc | N185: Ev | O185: Ex | P185: TOTAL | Q185: TOTAL ACUM. | R185: Dv | S185: Ab | T185: Cp | U185: Ar1 | V185: Ar2 | W185: Ar3 | X185: Im | Y185: TOTAL | Z185: Uc | AA185: Re1 | AB185: Re2 | AC185: RImp | AD185: TOTAL | AE185: para Cp | AF185: para Ar1 | AG185: para Ar2 | AH185: para Ar3 | AI185: para Im | AJ185: TOTAL | AK185: RESERVADO | AL185: DISPONIBLE | AM185: DImp | AN185: RESERVADO | AO185: DISPONIBLE | AP185: INDICE | AQ185: CLAVE | AR185: COLOR | BM185: Indice
A186: Cuenca del río Fuerte
T187: =IF(T188=0,"",T188/(SUM($T188:$X188))) -> 1 | U187: =IF(U188=0,"",U188/(SUM($T188:$X188))) ->  | V187: =IF(V188=0,"",V188/(SUM($T188:$X188))) ->  | W187: =IF(W188=0,"",W188/(SUM($T188:$X188))) ->  | X187: =IF(X188=0,"",X188/(SUM($T188:$X188))) ->  | Y187: =SUM(T187:X187) -> 1 | AE187: =IF(T187=0,"",T187) -> 1 | AF187: =IF(U187=0,"",U187) ->  | AG187: =IF(V187=0,"",V187) ->  | AH187: =IF(W187=0,"",W187) ->  | AJ187: =SUM(AE187:AI187) -> 1
A188: 1 | B188: A | C188: A | D188: D | H188: =C20 -> 4024.364323 | J188: =J20 -> 0 | K188: =I20 -> 1.425302952 | L188: =SUM(H188:K188) -> 4025.789626 | M188: =H20 -> 3758.964839 | N188: =L20 -> 49.428 | O188: =K20 -> 0 | P188: =SUM(M188:O188) -> 3808.392839 | Q188: =+P188 -> 3808.392839 | R188: =M20 -> 121.499 | S188: =L188-Q188-R188 -> 95.89778691 | T188: =K188+H188 -> 4025.789626 | X188: 0 | Y188: 4025.789626 | Z188: =+Q188 -> 3808.392839 | AA188: =(R194+Z194+AA194)*U193 -> 94.49331605 | AB188: =(Z188+AA188+R188)*T187 -> 4024.385155 | AC188: =IF(X188>0,(Z188+R188+AA188)*X187,"") ->  | AD188: =SUM(Z188:AB188) -> 7927.271311 | AE188: =IF(AE187="","",$AD188*AE187) -> 7927.271311 | AF188: =IF(AF187="","",$AD188*AF187) ->  | AG188: =IF(AG187="","",$AD188*AG187) ->  | AH188: =IF(AH187="","",$AD188*AH187) ->  | AJ188: =SUM(AE188:AI188) -> 7927.271311 | AK188: =+T188 -> 4025.789626 | AL188: =IF(AB188=0,AK188-AA188,AK188-AB188) -> 1.404470864 | AM188: =IF(X188=0,"",IF(X188-AC188<0,0,X188-AC188)) ->  | AN188: =+AA188 -> 94.49331605 | AO188: =S188-AN188 -> 1.404470864 | AP188: =(T188+X188+I188)/(Z188+R188+AA188) -> 1.00034899 | AQ188: =IF(AP188<1.4,"1", IF(AP188<3,"2", IF(AP188<9,"3", "4"))) -> 1 | AR188: =IF(AP188<1.4,"ROJO", IF(AP188<3,"AMARILLO", IF(AP188<9,"VERDE", "AZUL"))) -> ROJO | AS188: =IF(AP188<1.4,"Déficit", IF(AP188<3,"Equilibrio", IF(AP188<9,"Disponibilidad", "Abundante"))) -> Déficit | BM188: =BK177/BL177 -> 37.23735684 | BN188: =SUM(AL188:AM188) -> 1.404470864
T189: =IF(T190=0,"",T190/(SUM($T190:$X190))) -> 1 | U189: =IF(U190=0,"",U190/(SUM($T190:$X190))) ->  | V189: =IF(V190=0,"",V190/(SUM($T190:$X190))) ->  | W189: =IF(W190=0,"",W190/(SUM($T190:$X190))) ->  | X189: =IF(X190=0,"",X190/(SUM($T190:$X190))) ->  | Y189: 1 | AE189: =IF(T189=0,"",T189) -> 1 | AF189: =IF(U189=0,"",U189) ->  | AG189: =IF(V189=0,"",V189) ->  | AH189: =IF(W189=0,"",W189) ->  | AJ189: =SUM(AE189:AI189) -> 1
A190: 2 | B190: B | C190: B | D190: D | H190: =C21 -> 279.2379414 | J190: =J21 -> 0 | K190: =I21 -> 0.4735964 | L190: =SUM(H190:K190) -> 279.7115378 | M190: =H21 -> 0.76846 | N190: =L21 -> 0 | O190: =K21 -> 0 | P190: =SUM(M190:O190) -> 0.76846 | Q190: =+P190 -> 0.76846 | R190: =M21 -> 0 | S190: =L190-Q190-R190 -> 278.9430778 | T190: =K190+H190 -> 279.7115378 | X190: 0 | Y190: 279.7115378 | Z190: =+Q190 -> 0.76846 | AA190: =(R194+Z18+AA194+Z194)*V193 -> 274.8578175 | AB190: =(Z190+AA190+R190)*T189 -> 275.6262775 | AC190: =IF(X190>0,(Z190+R190+AA190)*X189,"") ->  | AD190: =SUM(Z190:AB190) -> 551.252555 | AE190: =IF(AE189="","",$AD190*AE189) -> 551.252555 | AF190: =IF(AF189="","",$AD190*AF189) ->  | AG190: =IF(AG189="","",$AD190*AG189) ->  | AH190: =IF(AH189="","",$AD190*AH189) ->  | AJ190: 551.252555 | AK190: =+T190 -> 279.7115378 | AL190: =IF(AB190=0,AK190-AA190,AK190-AB190) -> 4.08526034 | AM190: =IF(X190=0,"",IF(X190-AC190<0,0,X190-AC190)) ->  | AN190: =+AA190 -> 274.8578175 | AO190: =S190-AN190 -> 4.08526034 | AP190: =(T190+X190+I190)/(Z190+R190+AA190) -> 1.014821738 | AQ190: =IF(AP190<1.4,"1", IF(AP190<3,"2", IF(AP190<9,"3", "4"))) -> 1 | AR190: =IF(AP190<1.4,"ROJO", IF(AP190<3,"AMARILLO", IF(AP190<9,"VERDE", "AZUL"))) -> ROJO | AS190: =IF(AP190<1.4,"Déficit", IF(AP190<3,"Equilibrio", IF(AP190<9,"Disponibilidad", "Abundante"))) -> Déficit | BM190: =BK179/BL179 -> 57.62875483 | BN190: =SUM(AL190:AM190) -> 4.08526034
T191: =IF(T192=0,"",T192/(SUM($T192:$X192))) -> 1 | U191: =IF(U192=0,"",U192/(SUM($T192:$X192))) ->  | V191: =IF(V192=0,"",V192/(SUM($T192:$X192))) ->  | W191: =IF(W192=0,"",W192/(SUM($T192:$X192))) ->  | X191: =IF(X192=0,"",X192/(SUM($T192:$X192))) ->  | Y191: 1 | AE191: =IF(T191=0,"",T191) -> 1 | AF191: =IF(U191=0,"",U191) ->  | AG191: =IF(V191=0,"",V191) ->  | AH191: =IF(W191=0,"",W191) ->  | AJ191: 1
A192: 3 | B192: C | C192: C | D192: D | H192: =C22 -> 94.12423241 | J192: =J22 -> 0 | K192: =I22 -> 0 | L192: =SUM(H192:K192) -> 94.12423241 | M192: =H22 -> 0.239484 | N192: =L22 -> 0 | O192: =K22 -> 0 | P192: =SUM(M192:O192) -> 0.239484 | Q192: =+P192 -> 0.239484 | R192: =M22 -> 0 | S192: =L192-Q192-R192 -> 93.88474841 | T192: =K192+H192 -> 94.12423241 | X192: 0 | Y192: =SUM(T192:X192) -> 94.12423241 | Z192: =+Q192 -> 0.239484 | AA192: =(R194+Z194+AA194)*W193 -> 92.5097595 | AB192: =(Z192+AA192+R192)*T191 -> 92.7492435 | AC192: =IF(X192>0,(Z192+R192+AA192)*X191,"") ->  | AD192: =SUM(Z192:AB192) -> 185.498487 | AE192: =IF(AE191="","",$AD192*AE191) -> 185.498487 | AF192: =IF(AF191="","",$AD192*AF191) ->  | AG192: =IF(AG191="","",$AD192*AG191) ->  | AH192: =IF(AH191="","",$AD192*AH191) ->  | AJ192: 185.498487 | AK192: =+T192 -> 94.12423241 | AL192: =IF(AB192=0,AK192-AA192,AK192-AB192) -> 1.374988912 | AM192: =IF(X192=0,"",IF(X192-AC192<0,0,X192-AC192)) ->  | AN192: =+AA192 -> 92.5097595 | AO192: =S192-AN192 -> 1.374988912 | AP192: =(T192+X192+I192)/(Z192+R192+AA192) -> 1.014824799 | AQ192: =IF(AP192<1.4,"1", IF(AP192<3,"2", IF(AP192<9,"3", "4"))) -> 1 | AR192: =IF(AP192<1.4,"ROJO", IF(AP192<3,"AMARILLO", IF(AP192<9,"VERDE", "AZUL"))) -> ROJO | AS192: =IF(AP192<1.4,"Déficit", IF(AP192<3,"Equilibrio", IF(AP192<9,"Disponibilidad", "Abundante"))) -> Déficit | BN192: =SUM(AL192:AM192) -> 1.374988912
T193: =IF(T194=0,"",T194/(SUM($T194:$X194))) -> 0.9405622751 | U193: =IF(U194=0,"",U194/(SUM($T194:$X194))) -> 0.01216051805 | V193: =IF(V194=0,"",V194/(SUM($T194:$X194))) -> 0.03537195636 | W193: =IF(W194=0,"",W194/(SUM($T194:$X194))) -> 0.01190525052 | X193: =IF(X194=0,"",X194/(SUM($T194:$X194))) ->  | Y193: 1 | AE193: =IF(T193=0,"",T193) -> 0.9405622751 | AF193: =IF(U193=0,"",U193) -> 0.01216051805 | AG193: =IF(V193=0,"",V193) -> 0.03537195636 | AH193: =IF(W193=0,"",W193) -> 0.01190525052 | AJ193: 1
A194: 4 | B194: D | C194: D | D194: MAR | H194: =C23 -> 595.0425811 | I194: =S188+S190+S192 -> 468.7256132 | J194: =J23 -> 0 | K194: =I23 -> 6822.227 | L194: =SUM(H194:K194) -> 7885.995194 | M194: =H23 -> 6577.57564 | N194: =L23 -> 200.244 | O194: =K23 -> 839.2702259 | P194: =SUM(M194:O194) -> 7617.089866 | Q194: =+P194 -> 7617.089866 | R194: =M23 -> 39.611 | S194: =L194-Q194-R194 -> 229.2943283 | T194: =K194+H194 -> 7417.269581 | U194: =S188 -> 95.89778691 | V194: =S190 -> 278.9430778 | W194: =S192 -> 93.88474841 | X194: 0 | Y194: =SUM(T194:X194) -> 7885.995194 | Z194: =+Q194 -> 7617.089866 | AA194: 113.8 | AB194: =(R194+Z194+AA194)*T193 -> 7308.639973 | AC194: =IF(X194>0,(Z194+R194+AA194)*X193,"") ->  | AD194: =SUM(Z194:AB194) -> 15039.52984 | AE194: =IF(AE193="","",$AD194*AE193) -> 14145.6144 | AF194: =IF(AF193="","",$AD194*AF193) -> 182.8884741 | AG194: =IF(AG193="","",$AD194*AG193) -> 531.9775931 | AH194: =IF(AH193="","",$AD194*AH193) -> 179.0493705 | AJ194: 15039.52984 | AK194: =+T194+AA194 -> 7531.069581 | AL194: =IF(AB194=0,AK194-AA194,AK194-AB194) -> 222.4296082 | AM194: =IF(X194=0,"",IF(X194-AC194<0,0,X194-AC194)) ->  | AN194: =AA194 -> 113.8 | AO194: =S194-AN194 -> 115.4943283 | AP194: =(T194+X194+I194)/(Z194+R194) -> 1.029946883 | AQ194: =IF(AP194<1.4,"1", IF(AP194<3,"2", IF(AP194<9,"3", "4"))) -> 1 | AR194: =IF(AP194<1.4,"ROJO", IF(AP194<3,"AMARILLO", IF(AP194<9,"VERDE", "AZUL"))) -> ROJO | AS194: =IF(AP194<1.4,"Déficit", IF(AP194<3,"Equilibrio", IF(AP194<9,"Disponibilidad", "Abundante"))) -> Déficit | BN194: =SUM(AL194:AM194)-AN194 -> 108.6296082
AK196: SDxx = | AL196: =SUM(AL188:AM194) -> 229.2943283 | AM196: Mm3
AK197: Ab = | AL197: =S194 -> 229.2943283 | AM197: Mm3
A198: RESERVAS
A199: RH10 | B199: =AA194 -> 113.8
A200: RH11 | B200: ='RH-11'!AJ119 -> 13 | C200: 4000
A201: RH11 | B201: ='RH-11'!AJ89 -> 0.32
A202: RH11 | B202: ='RH-11'!AJ91 -> 13.29
A203: RH11 | B203: ='RH-11'!AJ109 -> 2296.66
A204: RH12 | B204: ='RH-12'!AB196 -> 3705.14
A205: RH14 | B205: ='RH-14'!AA74 -> 1640
A206: RH15 | B206: ='RH-15'!$O$9 -> 62.626
A207: RH15 | B207: ='RH-15'!$AJ$79 -> 496.9
A208: RH15 | B208: ='RH-15'!O13 -> 316.67
A209: RH15 | B209: ='RH-15'!O14 -> 39.05
A210: RH15 | B210: ='RH-15'!O15 -> 153
A211: RH15 | B211: ='RH-15'!O16 -> 186.81
A212: RH15 | B212: ='RH-15'!O17 -> 269.792
A213: RH19
A214: RH19
A215: RH19
A216: RH19
A217: RH19
A218: RH19
A219: RH19
A220: RH19
A221: RH19

Sheet RH-11
B2: GERENCIA DE AGUAS SUPERFICIALES E INGENIERÍA DE RÍOS
B3: REGION HIDROLOGICA No 11
B4: PRESIDIO-SAN PEDRO
A7: Cuenca | B7: Nombre | C7: Cp | D7: Ar | E7: Uc (a) | F7: Uc (b) | G7: Uc (c) | H7: Uc | I7: R | J7: Im | K7: Ex | L7: Ev | M7: Δv | N7: Ab | O7: Rxy | P7: Ab - Rxy | Q7: D | S7: ECUACIONES
A8: 1 | B8: Río Cañas 1 | C8: 123.131 | D8: 0 | E8: 3.046757 | F8: 0 | G8: 0 | H8: =G8+E8+F8 -> 3.046757 | I8: 0 | J8: 0 | K8: 0 | L8: 0 | M8: 0 | N8: =C8+D8+I8+J8-H8-K8 -> 120.084243 | O8: =$BE$137 -> 1.297144322 | P8: =N8-O8 -> 118.7870987 | Q8: =IF(N8-O8<0,0,N8-O8) -> 118.7870987
A9: 2 | B9: Río Cañas 2 | C9: 58.474 | D9: =N8 -> 120.084243 | E9: 1.872223 | F9: 0.0566208 | G9: 0 | H9: =G9+E9+F9 -> 1.9288438 | I9: 0.0061185 | J9: 0 | K9: 0 | L9: 0 | M9: 0 | N9: =C9+D9+I9+J9-H9-K9-L9-M9 -> 176.6355177 | O9: =$BE$139 -> 0 | P9: =N9-O9 -> 176.6355177 | Q9: =IF(N9-O9<0,0,N9-O9) -> 176.6355177 | S9: Ab = Cp + Ar + R + Im - (Uc(a) + Uc(b) + Uc(c) + Ev + Ex + Av)
A10: 3 | B10: Laguna de Santiaguillo | C10: 142.178 | D10: =$I$89 -> 0 | E10: 13.19887325 | F10: 0.036 | G10: 0 | H10: 13.23487325 | I10: 2.756354787 | J10: 0 | K10: 0 | L10: 84.41522286 | M10: 0 | N10: =$T$89 -> 47.28425868 | O10: =$BE$89 -> 0.32 | P10: =N10-O10 -> 46.96425868 | Q10: =IF(N10-O10<0,0,N10-O10) -> 46.96425868 | S10: D = Ab - Rxy
A11: 4 | B11: La Tapona | C11: 139.912 | D11: =$I$91 -> 0 | E11: 2.544515 | F11: 0 | G11: 0 | H11: 2.544515 | I11: 0.67814345 | J11: 0 | K11: 0 | L11: 0 | M11: 0 | N11: =$T$91 -> 138.0456285 | O11: =$BE$91 -> 13.29 | P11: 124.7556285 | Q11: =IF(N11-O11<0,0,N11-O11) -> 124.7556285
A12: 5 | B12: Río La Sauceda | C12: 141.962 | D12: =$I$93 -> 0 | E12: 22.81553025 | F12: 0 | G12: 0 | H12: 22.81553025 | I12: 4.575873438 | J12: 0 | K12: 0 | L12: 33.95955396 | M12: 2.58431792 | N12: =$T$93 -> 87.17847131 | O12: =$BE$93 -> 85.11338462 | P12: 2.065086686 | Q12: 2.065086686 | S12: SIMBOLOGIA
A13: 6 | B13: Río El Tunal | C13: 138.578 | D13: =$I$95 -> 0 | E13: 1.02109101 | F13: 0 | G13: 52.27 | H13: 53.29109101 | I13: 0.8416322075 | J13: 0 | K13: 0 | L13: 7.314677671 | M13: 1.138521538 | N13: =$T$95 -> 77.67534199 | O13: =$BE$95 -> 75.83536576 | P13: 1.839976225 | Q13: 1.839976225
A14: 7 | B14: Río Santiago Bayacora | C14: 90.856 | D14: =$I$97 -> 0 | E14: 23.8299106 | F14: 0 | G14: 26.38 | H14: 50.2099106 | I14: 4.78169852 | J14: 0 | K14: 0 | L14: 7.327320253 | M14: 1.337571146 | N14: =$T$97 -> 36.76289652 | O14: =$BE$97 -> 35.89205574 | P14: 0.8708407822 | Q14: 0.8708407822 | S14: Cp.- Volumen medio anual de escurrimiento natural
A15: 8 | B15: Río Durango | C15: 112.771 | D15: =$I$99 -> 201.6167098 | E15: 91.80407663 | F15: 0.0438 | G15: 0 | H15: 91.84787663 | I15: 28.52028202 | J15: 0 | K15: 0 | L15: 0 | M15: 0 | N15: =$T$99 -> 251.0601152 | O15: =$BE$99 -> 242.9372987 | P15: 8.122816538 | Q15: 8.122816538 | S15: Ar.- Volumen medio anual de escurrimiento desde la cuenca aguas arriba
A16: 9 | B16: Río Poanas | C16: 64.35 | D16: =$I$101 -> 0 | E16: 35.488167 | F16: 0.00146 | G16: 0 | H16: 35.489627 | I16: 7.10032365 | J16: 0 | K16: 0 | L16: 5.761767888 | M16: 1.520264069 | N16: =$T$101 -> 28.67866469 | O16: =$BE$101 -> 27.75079317 | P16: 0.9278715245 | Q16: 0.9278715245 | S16: Uc (a).- Volumen anual de extracción de agua superficial mediante títulos inscritos actualmente en el REPDA
A17: 10 | B17: Río Suchil | C17: 36.667 | D17: =$I$103 -> 0 | E17: 15.05740078 | F17: 0.030548 | G17: 0 | H17: 15.08794878 | I17: 3.102332767 | J17: 0 | K17: 0 | L17: 0 | M17: 0 | N17: =$T$103 -> 24.68138399 | O17: =$BE$103 -> 23.88284076 | P17: 0.7985432248 | Q17: 0.7985432248 | S17: Uc (b).- Volumen anual de extracción de agua superficial de títulos en proceso de inscripción en el REPDA
A18: 11 | B18: Río Graseros | C18: 15.534 | D18: =$I$105 -> 0 | E18: 0.13323111 | F18: 0 | G18: 0 | H18: 0.13323111 | I18: 0.0239374665 | J18: 0 | K18: 0 | L18: 0 | M18: 0 | N18: =$T$105 -> 15.42470636 | O18: =$BE$105 -> 14.92565433 | P18: 0.499052029 | Q18: 0.499052029 | S18: Uc (c).- Volumen anual correspondiente a las reservas y las zonas reglamentadas
A19: 12 | B19: Río San Pedro-Mezquital | C19: 2245.054 | D19: =$I$107 -> 319.8448702 | E19: 1979.89632 | F19: 0 | G19: 49.92585 | H19: 2029.82217 | I19: 5.56556745 | J19: 0 | K19: 0 | L19: 0 | M19: 0 | N19: =$T$107 -> 540.6422673 | O19: =$BE$107 -> 457.4772809 | P19: 83.16498631 | Q19: 83.16498631 | S19: R.- Volumen anual de retornos
A20: 13 | B20: Río San Pedro-Desembocadura | C20: 269.663 | D20: =$I$109 -> 540.6422673 | E20: 59.49512864 | F20: 0 | G20: 0 | H20: 59.49512864 | I20: 1974.176288 | J20: 0 | K20: 0 | L20: 0 | M20: 0 | N20: =$T$109 -> 2724.986427 | O20: =$BE$109 -> 2296.66 | P20: 428.3264267 | Q20: 428.3264267 | S20: Im.- Volumen anual de importaciones
A21: 14 | B21: Río Baluarte 1 | C21: 1671.086 | D21: 0 | E21: 7.95787224 | F21: 0.566064 | G21: 0 | H21: 8.52393624 | I21: 0.680895425 | J21: 0 | K21: 0 | L21: 0 | M21: 0 | N21: =C21+D21+I21+J21-H21-K21 -> 1663.242959 | O21: =$BE$127 -> 25.55639514 | P21: =N21-O21 -> 1637.686564 | Q21: =IF(N21-O21<0,0,N21-O21) -> 1637.686564 | S21: Ex.- Volumen anual de exportaciones
A22: 15 | B22: Río Baluarte 2 | C22: 186.915 | D22: =N21 -> 1663.242959 | E22: 28.42842754 | F22: 0 | G22: 0 | H22: 28.42842754 | I22: 0.0005505 | J22: 0 | K22: 0 | L22: 0 | M22: 0 | N22: =C22+D22+I22+J22-H22-K22-L22-M22 -> 1821.730082 | O22: 0 | P22: 1821.730082 | Q22: 1821.730082 | S22: Ev.- Volumen medio anual de evaporación en embalses
A23: 16 | B23: Río Presidio 1 | C23: 1004.131 | D23: 0 | E23: 3.71670355 | F23: 0 | G23: 0 | H23: 3.71670355 | I23: 0 | J23: 0 | K23: 327.7 | L23: 0 | M23: 0 | N23: =C23+D23+I23+J23-H23-K23 -> 672.7142964 | O23: =BE117 -> 271.1561322 | P23: 401.5581643 | Q23: 401.5581643 | S23: Av.- Volumen medio anual de variación de almacenamiento en embalses
A24: 17 | B24: Río Presidio 2 | C24: 73.926 | D24: =N23 -> 672.7142964 | E24: 92.342617 | F24: 327.7 | G24: 0 | H24: 420.042617 | I24: 0 | J24: 327.7 | K24: 0 | L24: 0 | M24: 0 | N24: =C24+D24+I24+J24-H24-K24-L24-M24 -> 654.2976794 | O24: =$BE$119 -> 13 | P24: =N24-O24 -> 641.2976794 | Q24: 641.2976794 | S24: Ab.- Volumen medio anual de escurrimiento de la cuenca hacia aguas abajo
A25: 18 | B25: Río Acaponeta 1 | C25: 1357.01 | D25: 0 | E25: 3.24617057 | F25: 0.031837 | G25: 0 | H25: 3.27800757 | I25: 1.157971245 | J25: 0 | K25: 0 | L25: 0 | M25: 0 | N25: =C25+D25+I25+J25-H25-K25 -> 1354.889964 | O25: =BE147 -> 3.282824652 | P25: 1351.607139 | Q25: 1351.607139 | S25: Rxy.- Volumen anual actual comprometido aguas abajo y volumenes decretados para reservas medio ambiente
A26: 19 | B26: Río Acaponeta 2 | C26: 78.24 | D26: =N25 -> 1354.889964 | E26: 2.218641 | F26: 1.25904 | G26: 0 | H26: 3.477681 | I26: 2.18126475 | J26: 0 | K26: 0 | L26: 0 | M26: 0 | N26: =C26+D26+I26+J26-H26-K26-L26-M26 -> 1431.833547 | O26: =BE149 -> 0 | P26: 1431.833547 | Q26: 1431.833547 | S26: D.- Disponibilidad media anual de agua superficial en la cuenca hidrológica
A27: 20 | B27: Río Rosa Morada 1 | C27: 80.087 | D27: 0 | E27: 0.436562 | F27: 0.000657 | G27: 0 | H27: 0.437219 | I27: 0.10626425 | J27: 0 | K27: 0 | L27: 0 | M27: 0 | N27: =C27+D27+I27+J27-H27-K27 -> 79.75604525 | O27: =BE157 -> 4.049462816 | P27: 75.70658243 | Q27: 75.70658243
A28: 21 | B28: Río Rosa Morada 2 | C28: 66.5 | D28: =N27 -> 79.75604525 | E28: 7.66594212 | F28: 0 | G28: 0 | H28: 7.66594212 | I28: 4.728234498 | J28: 0 | K28: 0 | L28: 0 | M28: 0 | N28: =C28+D28+I28+J28-H28-K28-L28-M28 -> 143.3183376 | O28: =BE159 -> 0 | P28: 143.3183376 | Q28: 143.3183376
A29: 22 | B29: Río Bejuco 1 | C29: 147.972 | D29: 0 | E29: 0.795214 | F29: 0 | G29: 0 | H29: 0.795214 | I29: 0.1754769 | J29: 0 | K29: 0 | L29: 0 | M29: 0 | N29: =C29+D29+I29+J29-H29-K29 -> 147.3522629 | O29: =BE167 -> 6.088954138 | P29: 141.2633088 | Q29: 141.2633088
A30: 23 | B30: Río Bejuco 2 | C30: 51.402 | D30: =N29 -> 147.3522629 | E30: 8.56702 | F30: 0 | G30: 0 | H30: 8.56702 | I30: 8.56702 | J30: 0 | K30: 0 | L30: 0 | M30: 0 | N30: =C30+D30+I30+J30-H30-K30-L30-M30 -> 198.7542629 | O30: =BE169 -> 0 | P30: 198.7542629 | Q30: 198.7542629
A31: 24 | B31: Grupo de corrientes Mazatlan | C31: 21.501 | D31: 0 | E31: 0.006165 | F31: 0 | G31: 0 | H31: 0.006165 | I31: 0.00462375 | J31: 0 | K31: 0 | L31: 0 | M31: 0 | N31: =C31+D31+I31+J31-H31-K31-L31-M31 -> 21.49945875 | O31: 0 | P31: 21.49945875 | Q31: 21.49945875
A32: 25 | B32: Grupo de corrientes Huizache | C32: 52.968 | D32: 0 | E32: 0.084192 | F32: 0 | G32: 0 | H32: 0.084192 | I32: 0.01354275 | J32: 0 | K32: 0 | L32: 0 | M32: 0 | N32: =C32+D32+I32+J32-H32-K32-L32-M32 -> 52.89735075 | O32: 0 | P32: 52.89735075 | Q32: 52.89735075
A33: 26 | B33: Grupo de corrientes Marismas Nacionales | C33: 554.476 | D33: 0 | E33: 295.4885112 | F33: 4.5694422 | G33: 0 | H33: 300.0579535 | I33: 0.0586741875 | J33: 0 | K33: 0 | L33: 0 | M33: 0 | N33: =C33+D33+I33+J33-H33-K33-L33-M33 -> 254.4767207 | O33: 0 | P33: 254.4767207 | Q33: 254.4767207
B34: Totales | C34: =SUM(C8:C33) -> 8925.344 | E34: =SUM(E8:E33) -> 2701.157263 | F34: =SUM(F8:F33) -> 334.295469 | G34: 128.57585 | H34: 3164.028582 | I34: 2049.803071 | J34: 327.7 | K34: 327.7 | L34: 138.7785426 | M34: 6.580674674 | P34: =SUM(P29:P30) -> 340.0175717 | Q34: =Q33+Q32+Q31+Q30+Q28+Q26+Q24+Q22+Q20+Q11+Q10+Q9 -> 5342.489271
A35: Valores en millones de metros cúbicos
A84: =B5 -> 0
A85: No LINEA | B85: CUENCA O REGION | C85: CONEXION | H85: OFERTA POTENCIAL | M85: DEMANDA CONSUNTIVA | U85: OFERTA REAL | AI85: EXTRACC Y VOLS RESERV PARA A ABAJO | BB85: POR CUENCA PROPIA | BE85: A LA SAL. DEL C PRINCIPAL | BG85: DISPONIBILIDAD RELATIVA | BK85: OFERTA - DEMANDA | BN85: Disponibilidad Hídrica
B86: HIDROLOGICA | C86: DE | D86: HACIA | H86: Cp | I86: Cp A Arriba | J86: Im | K86: R | L86: TOTAL | M86: Uc | N86: Ev | O86: Ex | P86: TOTAL | Q86: TOTAL ACUM. | R86: Dv | S86: Ab | T86: Ab | U86: Cp | V86: Ar1 | W86: Ar2 | X86: Ar3 | Y86: Ar4 | Z86: Ar5 | AA86: Ar6 | AB86: Ar7 | AC86: Ar8 | AD86: Ar9 | AE86: Ar10 | AF86: Ar11 | AG86: Im | AH86: TOTAL | AI86: Uc | AJ86: Re1 | AK86: Re2 | AL86: RImp | AM86: TOTAL | AN86: para Cp | AO86: para Ar1 | AP86: para Ar2 | AQ86: para Ar3 | AR86: para Ar4 | AS86: para Ar5 | AT86: para Ar6 | AU86: para Ar7 | AV86: para Ar8 | AW86: para Ar9 | AX86: para Ar10 | AY86: para Ar11 | AZ86: para Im | BA86: TOTAL | BB86: RESERVADO | BC86: DISPONIBLE | BD86: DImp | BE86: RESERVADO | BF86: DISPONIBLE | BG86: INDICE | BH86: CLAVE | BI86: COLOR | BK86: OFERTA | BL86: DEMANDA | BM86: Indice
A87: Cuenca Río San Pedro
U88: =IF(U89=0,"",U89/(SUM($U89:$AG89))) -> 1 | AH88: =SUM(U88:AG88) -> 1 | AJ88: 0 | AN88: =IF(U88=0,"",U88) -> 1 | AO88: =IF(V88=0,"",V88) ->  | AP88: =IF(W88=0,"",W88) ->  | AQ88: =IF(X88=0,"",X88) ->  | AR88: =IF(Y88=0,"",Y88) ->  | AY88: =IF(AF88=0,"",AF88) ->  | AZ88: =IF(AG88=0,"",AG88) ->  | BA88: =SUM(AN88:AZ88) -> 1
A89: A | B89: =A89 -> A | C89: =A89 -> A | D89: Cerrada | H89: =C10 -> 142.178 | J89: =J10 -> 0 | K89: =$I$10 -> 2.756354787 | L89: =SUM(H89:K89) -> 144.9343548 | M89: =H10 -> 13.23487325 | N89: =L10 -> 84.41522286 | O89: =$K$10 -> 0 | P89: =SUM(M89:O89) -> 97.65009611 | Q89: =+P89 -> 97.65009611 | R89: =M10 -> 0 | S89: =L89-Q89-R89 -> 47.28425868 | T89: =IF(S89<0,0,S89) -> 47.28425868 | U89: =K89+H89 -> 144.9343548 | AG89: =J89 -> 0 | AH89: =SUM(U89:AG89) -> 144.9343548 | AI89: =+Q89 -> 97.65009611 | AJ89: 0.32 | AK89: =AI89+R89 -> 97.65009611 | AL89: =IF(AG89>0,(AI89+R89+AJ89)*AG88,"") ->  | AM89: =SUM(AI89:AK89) -> 195.6201922 | AN89: =IF(AN88="","",$AM89*AN88) -> 195.6201922 | BA89: 195.6201922 | BB89: =+U89 -> 144.9343548 | BC89: =IF(D89="MAR",IF((BB89-AJ89)<0,0,BB89-AJ89),IF(D89="Cerrada",IF((BB89-AJ89)<0,0,BB89-AJ89),IF((BB89-AK89)<0,0,BB89-AK89))) -> 144.6143548 | BD89: =IF(AG89=0,"",IF(AG89-AL89<0,0,AG89-AL89)) ->  | BE89: =AJ89 -> 0.32 | BF89: =IF(T89-BE89<0,0,T89-BE89) -> 46.96425868 | BG89: =IF(D89="MAR",IF(AI89+R89+AJ89=0,"Infinito",(I89+U89+AG89)/(AI89+R89)),IF(D89="Cerrada",IF(AI89+R89+AJ89=0,"Infinito",(I89+U89+AG89)/(AI89+R89)),IF(AI89+R89+AJ89=0,"Infinito",(I89+U89+AG89)/(AI89+R89+AJ89)))) -> 1.484221322 | BH89: =IF(BG89<1.4,"1", IF(BG89<3,"2", IF(BG89<9,"3", "4"))) -> 2 | BI89: =IF(BG89<1.4,"ROJO", IF(BG89<3,"AMARILLO", IF(BG89<9,"VERDE", "AZUL"))) -> AMARILLO | BJ89: =IF(BG89<1.4,"Déficit", IF(BG89<3,"Equilibrio", IF(BG89<9,"Disponibilidad", "Abundante"))) -> Equilibrio | BK89: =I89+U89+AG89 -> 144.9343548 | BL89: =IF(D89="MAR",AI89+R89,IF(D89="Cerrada",AI89+R89,AI89+R89+AJ89)) -> 97.65009611 | BM89: =BK89/BL89 -> 1.484221322 | BN89: =BB89-AK89-BE89 -> 46.96425868
U90: =IF(U91=0,"",U91/(SUM($U91:$AG91))) -> 1 | AH90: 1 | AJ90: 0 | AN90: =IF(U90=0,"",U90) -> 1 | BA90: 1
A91: B | B91: =A91 -> B | C91: =A91 -> B | D91: Cerrada | H91: =C11 -> 139.912 | J91: =J11 -> 0 | K91: =I11 -> 0.67814345 | L91: =SUM(H91:K91) -> 140.5901434 | M91: =+H11 -> 2.544515 | N91: =+L11 -> 0 | O91: =+K11 -> 0 | P91: =SUM(M91:O91) -> 2.544515 | Q91: =+P91 -> 2.544515 | R91: =+M11 -> 0 | S91: =L91-Q91-R91 -> 138.0456285 | T91: =IF(S91<0,0,S91) -> 138.0456285 | U91: =K91+H91 -> 140.5901434 | AG91: =J91 -> 0 | AH91: 140.5901434 | AI91: =+Q91 -> 2.544515 | AJ91: 13.29 | AK91: =AI91+R91 -> 2.544515 | AL91: =IF(AG91>0,(AI91+R91+AJ91)*AG90,"") ->  | AM91: =SUM(AI91:AK91) -> 18.37903 | AN91: =IF(AN90="","",$AM91*AN90) -> 18.37903 | BA91: 18.37903 | BB91: =+U91 -> 140.5901434 | BC91: =IF(D91="MAR",IF((BB91-AJ91)<0,0,BB91-AJ91),IF(D91="Cerrada",IF((BB91-AJ91)<0,0,BB91-AJ91),IF((BB91-AK91)<0,0,BB91-AK91))) -> 127.3001435 | BD91: =IF(AG91=0,"",IF(AG91-AL91<0,0,AG91-AL91)) ->  | BE91: =AJ91 -> 13.29 | BF91: =IF(T91-BE91<0,0,T91-BE91) -> 124.7556285 | BG91: =IF(D91="MAR",IF(AI91+R91+AJ91=0,"Infinito",(I91+U91+AG91)/(AI91+R91)),IF(D91="Cerrada",IF(AI91+R91+AJ91=0,"Infinito",(I91+U91+AG91)/(AI91+R91)),IF(AI91+R91+AJ91=0,"Infinito",(I91+U91+AG91)/(AI91+R91+AJ91)))) -> 55.25223606 | BH91: =IF(BG91<1.4,"1", IF(BG91<3,"2", IF(BG91<9,"3", "4"))) -> 4 | BI91: =IF(BG91<1.4,"ROJO", IF(BG91<3,"AMARILLO", IF(BG91<9,"VERDE", "AZUL"))) -> AZUL | BJ91: =IF(BG91<1.4,"Déficit", IF(BG91<3,"Equilibrio", IF(BG91<9,"Disponibilidad", "Abundante"))) -> Abundante | BK91: =I91+U91+AG91 -> 140.5901434 | BL91: =IF(D91="MAR",AI91+R91,IF(D91="Cerrada",AI91+R91,AI91+R91+AJ91)) -> 2.544515 | BM91: =BK91/BL91 -> 55.25223606 | BN91: =BB91-AK91-BE91 -> 124.7556285
U92: =IF(U93=0,"",U93/(SUM($U93:$AG93))) -> 1 | AH92: 1 | AN92: =IF(U92=0,"",U92) -> 1 | BA92: 1
A93: C | B93: =A93 -> C | C93: =A93 -> C | D93: F | H93: =C12 -> 141.962 | J93: =J12 -> 0 | K93: =I12 -> 4.575873438 | L93: 146.5378734 | M93: =+H12 -> 22.81553025 | N93: =+L12 -> 33.95955396 | O93: =+K12 -> 0 | P93: 56.77508421 | Q93: 56.77508421 | R93: =+M12 -> 2.58431792 | S93: =L93-Q93-R93 -> 87.17847131 | T93: =IF(S93<0,0,S93) -> 87.17847131 | U93: =K93+H93 -> 146.5378734 | AG93: =J93 -> 0 | AH93: 146.5378734 | AI93: =+Q93 -> 56.77508421 | AJ93: =(AI99+R99+AJ99)*V98 -> 85.11338462 | AK93: =AI93+R93+AJ93 -> 144.4727868 | AL93: =IF(AG93>0,(AI93+R93+AJ93)*AG92,"") ->  | AM93: =SUM(AI93:AK93) -> 286.3612556 | AN93: =IF(AN92="","",$AM93*AN92) -> 286.3612556 | BA93: 286.3612556 | BB93: =+U93 -> 146.5378734 | BC93: =IF(D93="MAR",IF((BB93-AJ93)<0,0,BB93-AJ93),IF(D93="Cerrada",IF((BB93-AJ93)<0,0,BB93-AJ93),IF((BB93-AK93)<0,0,BB93-AK93))) -> 2.065086686 | BD93: =IF(AG93=0,"",IF(AG93-AL93<0,0,AG93-AL93)) ->  | BE93: =IF(D93="MAR",0,IF(D93="Cerrada",0,AJ93)) -> 85.11338462 | BF93: =IF(T93-BE93<0,0,T93-BE93) -> 2.065086686 | BG93: =IF(D93="MAR",IF(AI93+R93+AJ93=0,"Infinito",(I93+U93+AG93)/(AI93+R93)),IF(D93="Cerrada",IF(AI93+R93+AJ93=0,"Infinito",(I93+U93+AG93)/(AI93+R93)),IF(AI93+R93+AJ93=0,"Infinito",(I93+U93+AG93)/(AI93+R93+AJ93)))) -> 1.014293949 | BH93: =IF(BG93<1.4,"1", IF(BG93<3,"2", IF(BG93<9,"3", "4"))) -> 1 | BI93: =IF(BG93<1.4,"ROJO", IF(BG93<3,"AMARILLO", IF(BG93<9,"VERDE", "AZUL"))) -> ROJO | BJ93: =IF(BG93<1.4,"Déficit", IF(BG93<3,"Equilibrio", IF(BG93<9,"Disponibilidad", "Abundante"))) -> Déficit | BK93: =IF(I93+U93+AG93<=0,0,I93+U93+AG93) -> 146.5378734 | BL93: =IF(D93="MAR",AI93+R93,IF(D93="Cerrada",AI93+R93,AI93+R93+AJ93)) -> 144.4727868 | BM93: =BK93/BL93 -> 1.014293949 | BN93: =SUM(BC93:BD93) -> 2.065086686
U94: =IF(U95=0,"",U95/(SUM($U95:$AG95))) -> 1 | AH94: 1 | AN94: =IF(U94=0,"",U94) -> 1 | BA94: 1
A95: D | B95: =A95 -> D | C95: =A95 -> D | D95: F | H95: =C13 -> 138.578 | J95: =J13 -> 0 | K95: =I13 -> 0.8416322075 | L95: 139.4196322 | M95: =+H13 -> 53.29109101 | N95: =+L13 -> 7.314677671 | O95: =+K13 -> 0 | P95: 60.60576868 | Q95: 60.60576868 | R95: =+M13 -> 1.138521538 | S95: =L95-Q95-R95 -> 77.67534199 | T95: =IF(S95<0,0,S95) -> 77.67534199 | U95: =K95+H95 -> 139.4196322 | AG95: =J95 -> 0 | AH95: 139.4196322 | AI95: =+Q95 -> 60.60576868 | AJ95: =(AI99+R99+AJ99)*W98 -> 75.83536576 | AK95: =AI95+R95+AJ95 -> 137.579656 | AL95: =IF(AG95>0,(AI95+R95+AJ95)*AG94,"") ->  | AM95: =SUM(AI95:AK95) -> 274.0207904 | AN95: =IF(AN94="","",$AM95*AN94) -> 274.0207904 | BA95: 274.0207904 | BB95: =+U95 -> 139.4196322 | BC95: =IF(D95="MAR",IF((BB95-AJ95)<0,0,BB95-AJ95),IF(D95="Cerrada",IF((BB95-AJ95)<0,0,BB95-AJ95),IF((BB95-AK95)<0,0,BB95-AK95))) -> 1.839976225 | BD95: =IF(AG95=0,"",IF(AG95-AL95<0,0,AG95-AL95)) ->  | BE95: =IF(D95="MAR",0,IF(D95="Cerrada",0,AJ95)) -> 75.83536576 | BF95: =IF(T95-BE95<0,0,T95-BE95) -> 1.839976225 | BG95: =IF(D95="MAR",IF(AI95+R95+AJ95=0,"Infinito",(I95+U95+AG95)/(AI95+R95)),IF(D95="Cerrada",IF(AI95+R95+AJ95=0,"Infinito",(I95+U95+AG95)/(AI95+R95)),IF(AI95+R95+AJ95=0,"Infinito",(I95+U95+AG95)/(AI95+R95+AJ95)))) -> 1.013373898 | BH95: =IF(BG95<1.4,"1", IF(BG95<3,"2", IF(BG95<9,"3", "4"))) -> 1 | BI95: =IF(BG95<1.4,"ROJO", IF(BG95<3,"AMARILLO", IF(BG95<9,"VERDE", "AZUL"))) -> ROJO | BJ95: =IF(BG95<1.4,"Déficit", IF(BG95<3,"Equilibrio", IF(BG95<9,"Disponibilidad", "Abundante"))) -> Déficit | BK95: =IF(I95+U95+AG95<=0,0,I95+U95+AG95) -> 139.4196322 | BL95: =IF(D95="MAR",AI95+R95,IF(D95="Cerrada",AI95+R95,AI95+R95+AJ95)) -> 137.579656 | BM95: =BK95/BL95 -> 1.013373898 | BN95: 1.839976225
U96: =IF(U97=0,"",U97/(SUM($U97:$AG97))) -> 1 | AH96: 1 | AN96: =IF(U96=0,"",U96) -> 1 | BA96: 1
A97: E | B97: =A97 -> E | C97: =A97 -> E | D97: F | H97: =C14 -> 90.856 | J97: =J14 -> 0 | K97: =I14 -> 4.78169852 | L97: 95.63769852 | M97: =+H14 -> 50.2099106 | N97: =+L14 -> 7.327320253 | O97: =+K14 -> 0 | P97: 57.53723085 | Q97: 57.53723085 | R97: =+M14 -> 1.337571146 | S97: =L97-Q97-R97 -> 36.76289652 | T97: =IF(S97<0,0,S97) -> 36.76289652 | U97: =K97+H97 -> 95.63769852 | AG97: =J97 -> 0 | AH97: 95.63769852 | AI97: =+Q97 -> 57.53723085 | AJ97: =(AI99+R99+AJ99)*X98 -> 35.89205574 | AK97: =AI97+R97+AJ97 -> 94.76685774 | AL97: =IF(AG97>0,(AI97+R97+AJ97)*AG96,"") ->  | AM97: =SUM(AI97:AK97) -> 188.1961443 | AN97: =IF(AN96="","",$AM97*AN96) -> 188.1961443 | BA97: 188.1961443 | BB97: =+U97 -> 95.63769852 | BC97: =IF(D97="MAR",IF((BB97-AJ97)<0,0,BB97-AJ97),IF(D97="Cerrada",IF((BB97-AJ97)<0,0,BB97-AJ97),IF((BB97-AK97)<0,0,BB97-AK97))) -> 0.8708407822 | BD97: =IF(AG97=0,"",IF(AG97-AL97<0,0,AG97-AL97)) ->  | BE97: =IF(D97="MAR",0,IF(D97="Cerrada",0,AJ97)) -> 35.89205574 | BF97: =IF(T97-BE97<0,0,T97-BE97) -> 0.8708407822 | BG97: =IF(D97="MAR",IF(AI97+R97+AJ97=0,"Infinito",(I97+U97+AG97)/(AI97+R97)),IF(D97="Cerrada",IF(AI97+R97+AJ97=0,"Infinito",(I97+U97+AG97)/(AI97+R97)),IF(AI97+R97+AJ97=0,"Infinito",(I97+U97+AG97)/(AI97+R97+AJ97)))) -> 1.009189297 | BH97: =IF(BG97<1.4,"1", IF(BG97<3,"2", IF(BG97<9,"3", "4"))) -> 1 | BI97: =IF(BG97<1.4,"ROJO", IF(BG97<3,"AMARILLO", IF(BG97<9,"VERDE", "AZUL"))) -> ROJO | BJ97: =IF(BG97<1.4,"Déficit", IF(BG97<3,"Equilibrio", IF(BG97<9,"Disponibilidad", "Abundante"))) -> Déficit | BK97: =IF(I97+U97+AG97<=0,0,I97+U97+AG97) -> 95.63769852 | BL97: =IF(D97="MAR",AI97+R97,IF(D97="Cerrada",AI97+R97,AI97+R97+AJ97)) -> 94.76685774 | BM97: =BK97/BL97 -> 1.009189297 | BN97: 0.8708407822
U98: =IF(U99=0,"",U99/(SUM($U99:$AG99))) -> 0.4120384633 | V98: 0.2542328362 | W98: 0.2265194858 | X98: 0.1072092147 | AH98: 1 | AN98: =IF(U98=0,"",U98) -> 0.4120384633 | AO98: 0.2542328362 | AP98: 0.2265194858 | AQ98: 0.1072092147 | BA98: 1
A99: F | B99: =A99 -> F | C99: =A99 -> F | D99: J | H99: =C15 -> 112.771 | I99: =T93+T95+T97 -> 201.6167098 | J99: =J15 -> 0 | K99: =+I15 -> 28.52028202 | L99: 342.9079918 | M99: =+H15 -> 91.84787663 | N99: =+L15 -> 0 | O99: =+K15 -> 0 | P99: 91.84787663 | Q99: 91.84787663 | R99: =+M15 -> 0 | S99: =L99-Q99-R99 -> 251.0601152 | T99: =IF(S99<0,0,S99) -> 251.0601152 | U99: =K99+H99 -> 141.291282 | V99: =T93 -> 87.17847131 | W99: =T95 -> 77.67534199 | X99: =T97 -> 36.76289652 | AG99: =J99 -> 0 | AH99: 342.9079918 | AI99: =+Q99 -> 91.84787663 | AJ99: =(AI107+R107+AJ107)*V106 -> 242.9372987 | AK99: =(AI99+R99+AJ99)*U98 -> 137.9443692 | AL99: =IF(AG99>0,(AI99+R99+AJ99)*AG98,"") ->  | AM99: =SUM(AI99:AK99) -> 472.7295445 | AN99: =IF(AN98="","",$AM99*AN98) -> 194.7827551 | AO99: 120.1833728 | AP99: 107.0824533 | AQ99: 50.68096323 | BA99: 472.7295445 | BB99: =+U99 -> 141.291282 | BC99: =IF(D99="MAR",IF((BB99-AJ99)<0,0,BB99-AJ99),IF(D99="Cerrada",IF((BB99-AJ99)<0,0,BB99-AJ99),IF((BB99-AK99)<0,0,BB99-AK99))) -> 3.346912844 | BD99: =IF(AG99=0,"",IF(AG99-AL99<0,0,AG99-AL99)) ->  | BE99: =IF(D99="MAR",0,IF(D99="Cerrada",0,AJ99)) -> 242.9372987 | BF99: =IF(T99-BE99<0,0,T99-BE99) -> 8.122816538 | BG99: =IF(D99="MAR",IF(AI99+R99+AJ99=0,"Infinito",(I99+U99+AG99)/(AI99+R99)),IF(D99="Cerrada",IF(AI99+R99+AJ99=0,"Infinito",(I99+U99+AG99)/(AI99+R99)),IF(AI99+R99+AJ99=0,"Infinito",(I99+U99+AG99)/(AI99+R99+AJ99)))) -> 1.024262772 | BH99: =IF(BG99<1.4,"1", IF(BG99<3,"2", IF(BG99<9,"3", "4"))) -> 1 | BI99: =IF(BG99<1.4,"ROJO", IF(BG99<3,"AMARILLO", IF(BG99<9,"VERDE", "AZUL"))) -> ROJO | BJ99: =IF(BG99<1.4,"Déficit", IF(BG99<3,"Equilibrio", IF(BG99<9,"Disponibilidad", "Abundante"))) -> Déficit | BK99: =IF(I99+U99+AG99<=0,0,I99+U99+AG99) -> 342.9079918 | BL99: =IF(D99="MAR",AI99+R99,IF(D99="Cerrada",AI99+R99,AI99+R99+AJ99)) -> 334.7851753 | BM99: =BK99/BL99 -> 1.024262772 | BN99: 3.346912844
U100: =IF(U101=0,"",U101/(SUM($U101:$AG101))) -> 1 | AH100: 1 | AN100: =IF(U100=0,"",U100) -> 1 | BA100: 1
A101: G | B101: =A101 -> G | C101: =A101 -> G | D101: J | H101: =C16 -> 64.35 | J101: =J16 -> 0 | K101: =+I16 -> 7.10032365 | L101: 71.45032365 | M101: =+H16 -> 35.489627 | N101: =+L16 -> 5.761767888 | O101: =+K16 -> 0 | P101: 41.25139489 | Q101: 41.25139489 | R101: =+M16 -> 1.520264069 | S101: =L101-Q101-R101 -> 28.67866469 | T101: =IF(S101<0,0,S101) -> 28.67866469 | U101: =K101+H101 -> 71.45032365 | AG101: =J101 -> 0 | AH101: 71.45032365 | AI101: =+Q101 -> 41.25139489 | AJ101: =(AI107+R107+AJ107)*W106 -> 27.75079317 | AK101: =AI101+R101+AJ101 -> 70.52245213 | AL101: =IF(AG101>0,(AI101+R101+AJ101)*AG100,"") ->  | AM101: =SUM(AI101:AK101) -> 139.5246402 | AN101: =IF(AN100="","",$AM101*AN100) -> 139.5246402 | BA101: 139.5246402 | BB101: =+U101 -> 71.45032365 | BC101: =IF(D101="MAR",IF((BB101-AJ101)<0,0,BB101-AJ101),IF(D101="Cerrada",IF((BB101-AJ101)<0,0,BB101-AJ101),IF((BB101-AK101)<0,0,BB101-AK101))) -> 0.9278715245 | BD101: =IF(AG101=0,"",IF(AG101-AL101<0,0,AG101-AL101)) ->  | BE101: =IF(D101="MAR",0,IF(D101="Cerrada",0,AJ101)) -> 27.75079317 | BF101: =IF(T101-BE101<0,0,T101-BE101) -> 0.9278715245 | BG101: =IF(D101="MAR",IF(AI101+R101+AJ101=0,"Infinito",(I101+U101+AG101)/(AI101+R101)),IF(D101="Cerrada",IF(AI101+R101+AJ101=0,"Infinito",(I101+U101+AG101)/(AI101+R101)),IF(AI101+R101+AJ101=0,"Infinito",(I101+U101+AG101)/(AI101+R101+AJ101)))) -> 1.013157108 | BH101: =IF(BG101<1.4,"1", IF(BG101<3,"2", IF(BG101<9,"3", "4"))) -> 1 | BI101: =IF(BG101<1.4,"ROJO", IF(BG101<3,"AMARILLO", IF(BG101<9,"VERDE", "AZUL"))) -> ROJO | BJ101: =IF(BG101<1.4,"Déficit", IF(BG101<3,"Equilibrio", IF(BG101<9,"Disponibilidad", "Abundante"))) -> Déficit | BK101: =IF(I101+U101+AG101<=0,0,I101+U101+AG101) -> 71.45032365 | BL101: =IF(D101="MAR",AI101+R101,IF(D101="Cerrada",AI101+R101,AI101+R101+AJ101)) -> 70.52245213 | BM101: =BK101/BL101 -> 1.013157108 | BN101: 0.9278715245
U102: =IF(U103=0,"",U103/(SUM($U103:$AG103))) -> 1 | AH102: 1 | AN102: =IF(U102=0,"",U102) -> 1 | BA102: 1
A103: H | B103: =A103 -> H | C103: =A103 -> H | D103: J | H103: =C17 -> 36.667 | J103: =J17 -> 0 | K103: =+I17 -> 3.102332767 | L103: 39.76933277 | M103: =+H17 -> 15.08794878 | N103: =+L17 -> 0 | O103: =+K17 -> 0 | P103: 15.08794878 | Q103: 15.08794878 | R103: =+M17 -> 0 | S103: =L103-Q103-R103 -> 24.68138399 | T103: =IF(S103<0,0,S103) -> 24.68138399 | U103: =K103+H103 -> 39.76933277 | AG103: =J103 -> 0 | AH103: 39.76933277 | AI103: =+Q103 -> 15.08794878 | AJ103: =(AI107+R107+AJ107)*X106 -> 23.88284076 | AK103: =AI103+R103+AJ103 -> 38.97078954 | AL103: =IF(AG103>0,(AI103+R103+AJ103)*AG102,"") ->  | AM103: =SUM(AI103:AK103) -> 77.94157908 | AN103: =IF(AN102="","",$AM103*AN102) -> 77.94157908 | BA103: 77.94157908 | BB103: =+U103 -> 39.76933277 | BC103: =IF(D103="MAR",IF((BB103-AJ103)<0,0,BB103-AJ103),IF(D103="Cerrada",IF((BB103-AJ103)<0,0,BB103-AJ103),IF((BB103-AK103)<0,0,BB103-AK103))) -> 0.7985432248 | BD103: =IF(AG103=0,"",IF(AG103-AL103<0,0,AG103-AL103)) ->  | BE103: =IF(D103="MAR",0,IF(D103="Cerrada",0,AJ103)) -> 23.88284076 | BF103: =IF(T103-BE103<0,0,T103-BE103) -> 0.7985432248 | BG103: =IF(D103="MAR",IF(AI103+R103+AJ103=0,"Infinito",(I103+U103+AG103)/(AI103+R103)),IF(D103="Cerrada",IF(AI103+R103+AJ103=0,"Infinito",(I103+U103+AG103)/(AI103+R103)),IF(AI103+R103+AJ103=0,"Infinito",(I103+U103+AG103)/(AI103+R103+AJ103)))) -> 1.020490815 | BH103: =IF(BG103<1.4,"1", IF(BG103<3,"2", IF(BG103<9,"3", "4"))) -> 1 | BI103: =IF(BG103<1.4,"ROJO", IF(BG103<3,"AMARILLO", IF(BG103<9,"VERDE", "AZUL"))) -> ROJO | BJ103: =IF(BG103<1.4,"Déficit", IF(BG103<3,"Equilibrio", IF(BG103<9,"Disponibilidad", "Abundante"))) -> Déficit | BK103: =IF(I103+U103+AG103<=0,0,I103+U103+AG103) -> 39.76933277 | BL103: =IF(D103="MAR",AI103+R103,IF(D103="Cerrada",AI103+R103,AI103+R103+AJ103)) -> 38.97078954 | BM103: =BK103/BL103 -> 1.020490815 | BN103: 0.7985432248
U104: =IF(U105=0,"",U105/(SUM($U105:$AG105))) -> 1 | AH104: 1 | AN104: =IF(U104=0,"",U104) -> 1 | BA104: 1
A105: I | B105: =A105 -> I | C105: =A105 -> I | D105: J | H105: =C18 -> 15.534 | J105: =J18 -> 0 | K105: =+I18 -> 0.0239374665 | L105: 15.55793747 | M105: =+H18 -> 0.13323111 | N105: =+L18 -> 0 | O105: =+K18 -> 0 | P105: 0.13323111 | Q105: 0.13323111 | R105: =+M18 -> 0 | S105: =L105-Q105-R105 -> 15.42470636 | T105: =IF(S105<0,0,S105) -> 15.42470636 | U105: =K105+H105 -> 15.55793747 | AG105: =J105 -> 0 | AH105: 15.55793747 | AI105: =+Q105 -> 0.13323111 | AJ105: =(AI107+R107+AJ107)*Y106 -> 14.92565433 | AK105: =AI105+R105+AJ105 -> 15.05888544 | AL105: =IF(AG105>0,(AI105+R105+AJ105)*AG104,"") ->  | AM105: =SUM(AI105:AK105) -> 30.11777088 | AN105: =IF(AN104="","",$AM105*AN104) -> 30.11777088 | BA105: 30.11777088 | BB105: =+U105 -> 15.55793747 | BC105: =IF(D105="MAR",IF((BB105-AJ105)<0,0,BB105-AJ105),IF(D105="Cerrada",IF((BB105-AJ105)<0,0,BB105-AJ105),IF((BB105-AK105)<0,0,BB105-AK105))) -> 0.499052029 | BD105: =IF(AG105=0,"",IF(AG105-AL105<0,0,AG105-AL105)) ->  | BE105: =IF(D105="MAR",0,IF(D105="Cerrada",0,AJ105)) -> 14.92565433 | BF105: =IF(T105-BE105<0,0,T105-BE105) -> 0.499052029 | BG105: =IF(D105="MAR",IF(AI105+R105+AJ105=0,"Infinito",(I105+U105+AG105)/(AI105+R105)),IF(D105="Cerrada",IF(AI105+R105+AJ105=0,"Infinito",(I105+U105+AG105)/(AI105+R105)),IF(AI105+R105+AJ105=0,"Infinito",(I105+U105+AG105)/(AI105+R105+AJ105)))) -> 1.033140038 | BH105: =IF(BG105<1.4,"1", IF(BG105<3,"2", IF(BG105<9,"3", "4"))) -> 1 | BI105: =IF(BG105<1.4,"ROJO", IF(BG105<3,"AMARILLO", IF(BG105<9,"VERDE", "AZUL"))) -> ROJO | BJ105: =IF(BG105<1.4,"Déficit", IF(BG105<3,"Equilibrio", IF(BG105<9,"Disponibilidad", "Abundante"))) -> Déficit | BK105: =IF(I105+U105+AG105<=0,0,I105+U105+AG105) -> 15.55793747 | BL105: =IF(D105="MAR",AI105+R105,IF(D105="Cerrada",AI105+R105,AI105+R105+AJ105)) -> 15.05888544 | BM105: =BK105/BL105 -> 1.033140038 | BN105: 0.499052029
U106: =IF(U107=0,"",U107/(SUM($U107:$AG107))) -> 0.8755692296 | V106: 0.09767111014 | W106: 0.01115699726 | X106: 0.009601916146 | Y106: 0.006000746842 | AH106: 1 | AO106: =IF(V106=0,"",V106) -> 0.09767111014 | AP106: 0.01115699726 | AQ106: 0.009601916146 | AR106: 0.006000746842
A107: J | B107: =A107 -> J | C107: =A107 -> J | D107: K | H107: =C19 -> 2245.054 | I107: =T99+T101+T103+T105 -> 319.8448702 | J107: =J19 -> 0 | K107: =+I19 -> 5.56556745 | L107: 2570.464438 | M107: =+H19 -> 2029.82217 | N107: =+L19 -> 0 | O107: =+K19 -> 0 | P107: 2029.82217 | Q107: 2029.82217 | R107: =+M19 -> 0 | S107: =L107-Q107-R107 -> 540.6422673 | T107: =IF(S107<0,0,S107) -> 540.6422673 | U107: =K107+H107 -> 2250.619567 | V107: =T99 -> 251.0601152 | W107: =T101 -> 28.67866469 | X107: =T103 -> 24.68138399 | Y107: =T105 -> 15.42470636 | AG107: =J107 -> 0 | AH107: 2570.464438 | AI107: =+Q107 -> 2029.82217 | AJ107: =(AI109+R109+AJ109)*V108 -> 457.4772809 | AK107: =(AI107+R107+AJ107)*U106 -> 2177.802864 | AL107: =IF(AG107>0,(AI107+R107+AJ107)*AG106,"") ->  | AM107: =SUM(AI107:AK107) -> 4665.102316 | AN107: =IF(AN106="","",$AM107*AN106) ->  | AO107: 455.6457221 | AP107: 52.04853376 | AQ107: 44.79392125 | AR107: 27.99409799 | BA107: =SUM(AN107:AZ107) -> 580.4822751 | BB107: =+U107 -> 2250.619567 | BC107: =IF(D107="MAR",IF((BB107-AJ107)<0,0,BB107-AJ107),IF(D107="Cerrada",IF((BB107-AJ107)<0,0,BB107-AJ107),IF((BB107-AK107)<0,0,BB107-AK107))) -> 72.816703 | BD107: =IF(AG107=0,"",IF(AG107-AL107<0,0,AG107-AL107)) ->  | BE107: =IF(D107="MAR",0,IF(D107="Cerrada",0,AJ107)) -> 457.4772809 | BF107: =IF(T107-BE107<0,0,T107-BE107) -> 83.16498631 | BG107: =IF(D107="MAR",IF(AI107+R107+AJ107=0,"Infinito",(I107+U107+AG107)/(AI107+R107)),IF(D107="Cerrada",IF(AI107+R107+AJ107=0,"Infinito",(I107+U107+AG107)/(AI107+R107)),IF(AI107+R107+AJ107=0,"Infinito",(I107+U107+AG107)/(AI107+R107+AJ107)))) -> 1.033435856 | BH107: =IF(BG107<1.4,"1", IF(BG107<3,"2", IF(BG107<9,"3", "4"))) -> 1 | BI107: =IF(BG107<1.4,"ROJO", IF(BG107<3,"AMARILLO", IF(BG107<9,"VERDE", "AZUL"))) -> ROJO | BJ107: =IF(BG107<1.4,"Déficit", IF(BG107<3,"Equilibrio", IF(BG107<9,"Disponibilidad", "Abundante"))) -> Déficit | BK107: =IF(I107+U107+AG107<=0,0,I107+U107+AG107) -> 2570.464438 | BL107: =IF(D107="MAR",AI107+R107,IF(D107="Cerrada",AI107+R107,AI107+R107+AJ107)) -> 2487.299451 | BM107: =BK107/BL107 -> 1.033435856 | BN107: 72.816703
U108: =IF(U109=0,"",U109/(SUM($U109:$AG109))) -> 0.8058373681 | V108: 0.1941626319 | AH108: 1 | AJ108: 0 | AO108: =IF(V108=0,"",V108) -> 0.1941626319
A109: K | B109: =A109 -> K | C109: =A109 -> K | D109: MAR | H109: =C20 -> 269.663 | I109: =T107 -> 540.6422673 | J109: =J20 -> 0 | K109: =+I20 -> 1974.176288 | L109: 2784.481555 | M109: =+H20 -> 59.49512864 | N109: =+L20 -> 0 | O109: =+K20 -> 0 | P109: 59.49512864 | Q109: 59.49512864 | R109: =+M18 -> 0 | S109: =L109-Q109-R109 -> 2724.986427 | T109: =IF(S109<0,0,S109) -> 2724.986427 | U109: =K109+H109 -> 2243.839288 | V109: =T107 -> 540.6422673 | AG109: =J109 -> 0 | AH109: 2784.481555 | AI109: =+Q109 -> 59.49512864 | AJ109: 2296.66 | AK109: =(AI109+R109+AJ109)*U108 -> 1898.677848 | AL109: =IF(AG109>0,(AI109+R109+AJ109)*AG108,"") ->  | AM109: =SUM(AI109:AK109) -> 4254.832976 | AN109: =IF(AN108="","",$AM109*AN108) ->  | AO109: 826.129569 | BA109: =SUM(AN109:AZ109) -> 826.129569 | BB109: =+U109 -> 2243.839288 | BC109: =BB109-AK109 -> 345.1614403 | BD109: =IF(AG109=0,"",IF(AG109-AL109<0,0,AG109-AL109)) ->  | BE109: =AJ109 -> 2296.66 | BF109: =IF(T109-BE109<0,0,T109-BE109) -> 428.3264267 | BG109: =IF(D109="MAR",IF(AI109+R109+AJ109=0,"Infinito",(I109+U109+AG109)/(AI109+R109)),IF(D109="Cerrada",IF(AI109+R109+AJ109=0,"Infinito",(I109+U109+AG109)/(AI109+R109)),IF(AI109+R109+AJ109=0,"Infinito",(I109+U109+AG109)/(AI109+R109+AJ109)))) -> 46.80184107 | BH109: =IF(BG109<1.4,"1", IF(BG109<3,"2", IF(BG109<9,"3", "4"))) -> 4 | BI109: =IF(BG109<1.4,"ROJO", IF(BG109<3,"AMARILLO", IF(BG109<9,"VERDE", "AZUL"))) -> AZUL | BJ109: =IF(BG109<1.4,"Déficit", IF(BG109<3,"Equilibrio", IF(BG109<9,"Disponibilidad", "Abundante"))) -> Abundante | BK109: =IF(I109+U109+AG109<=0,0,I109+U109+AG109) -> 2784.481555 | BL109: =IF(D109="MAR",AI109+R109,IF(D109="Cerrada",AI109+R109,AI109+R109+AJ109)) -> 59.49512864 | BM109: =BK109/BL109 -> 46.80184107 | BN109: =SUM(BC109:BD109) -> 345.1614403
A112: =#REF! -> 
A113: No LINEA | B113: CUENCA O REGION | C113: CONEXION | H113: OFERTA POTENCIAL | M113: DEMANDA CONSUNTIVA | U113: OFERTA REAL | AI113: EXTRACC Y VOLS RESERV PARA A ABAJO | BB113: POR CUENCA PROPIA | BE113: A LA SAL. DEL C PRINCIPAL | BG113: DISPONIBILIDAD RELATIVA | BK113: OFERTA - DEMANDA
B114: HIDROLOGICA | C114: DE | D114: HACIA | H114: Cp | I114: Cp A Arriba | J114: Im | K114: R | L114: TOTAL | M114: Uc | N114: Ev | O114: Ex | P114: TOTAL | Q114: TOTAL ACUM. | R114: Dv | S114: Ab | T114: Ab | U114: Cp | V114: Ar1 | W114: Ar2 | X114: Ar3 | Y114: Ar4 | Z114: Ar5 | AA114: Ar6 | AB114: Ar7 | AC114: Ar8 | AD114: Ar9 | AE114: Ar10 | AF114: Ar11 | AG114: Im | AH114: TOTAL | AI114: Uc | AJ114: Re1 | AK114: Re2 | AL114: RImp | AM114: TOTAL | AN114: para Cp | AO114: para Ar1 | AP114: para Ar2 | AQ114: para Ar3 | AR114: para Ar4 | AS114: para Ar5 | AT114: para Ar6 | AU114: para Ar7 | AV114: para Ar8 | AW114: para Ar9 | AX114: para Ar10 | AY114: para Ar11 | AZ114: para Im | BA114: TOTAL | BB114: RESERVADO | BC114: DISPONIBLE | BD114: DImp | BE114: RESERVADO | BF114: DISPONIBLE | BG114: INDICE | BH114: CLAVE | BI114: COLOR | BK114: OFERTA | BL114: DEMANDA | BM114: Indice
A115: Cuenca Río Matape
U116: =IF(U117=0,"",U117/(SUM($U117:$AG117))) -> 1 | AH116: =SUM(U116:AG116) -> 1 | AN116: =IF(U116=0,"",U116) -> 1 | AO116: =IF(V116=0,"",V116) ->  | AP116: =IF(W116=0,"",W116) ->  | AQ116: =IF(X116=0,"",X116) ->  | AR116: =IF(Y116=0,"",Y116) ->  | AY116: =IF(AF116=0,"",AF116) ->  | AZ116: =IF(AG116=0,"",AG116) ->  | BA116: =SUM(AN116:AZ116) -> 1
A117: A | B117: =A117 -> A | C117: =A117 -> A | D117: B | H117: =$C$23 -> 1004.131 | J117: =$J$23 -> 0 | K117: =$I$23 -> 0 | L117: =SUM(H117:K117) -> 1004.131 | M117: =$H$23 -> 3.71670355 | N117: =$L$23 -> 0 | O117: =$K$23 -> 327.7 | P117: =SUM(M117:O117) -> 331.4167035 | Q117: =+P117 -> 331.4167035 | R117: =$M$23 -> 0 | S117: =L117-Q117-R117 -> 672.7142965 | T117: =IF(S117<0,0,S117) -> 672.7142965 | U117: =K117+H117 -> 1004.131 | AG117: =J117 -> 0 | AH117: =SUM(U117:AG117) -> 1004.131 | AI117: =+Q117 -> 331.4167035 | AJ117: =(AI119+R119+AJ119)*V118 -> 271.1561322 | AK117: =AI117+R117+AJ117 -> 602.5728357 | AL117: =IF(AG117>0,(AI117+R117+AJ117)*AG116,"") ->  | AM117: =SUM(AI117:AK117) -> 1205.145671 | AN117: =IF(AN116="","",$AM117*AN116) -> 1205.145671 | BA117: =SUM(AN117:AZ117) -> 1205.145671 | BB117: =+U117 -> 1004.131 | BC117: =IF(D117="MAR",IF((BB117-AJ117)<0,0,BB117-AJ117),IF(D117="Cerrada",IF((BB117-AJ117)<0,0,BB117-AJ117),IF((BB117-AK117)<0,0,BB117-AK117))) -> 401.5581643 | BD117: =IF(AG117=0,"",IF(AG117-AL117<0,0,AG117-AL117)) ->  | BE117: =IF(D117="MAR",0,IF(D117="Cerrada",0,AJ117)) -> 271.1561322 | BF117: =IF(T117-BE117<0,0,T117-BE117) -> 401.5581643 | BG117: =IF(D117="MAR",IF(AI117+R117+AJ117=0,"Infinito",(I117+U117+AG117)/(AI117+R117)),IF(D117="Cerrada",IF(AI117+R117+AJ117=0,"Infinito",(I117+U117+AG117)/(AI117+R117)),IF(AI117+R117+AJ117=0,"Infinito",(I117+U117+AG117)/(AI117+R117+AJ117)))) -> 1.666406018 | BH117: =IF(BG117<1.4,"1", IF(BG117<3,"2", IF(BG117<9,"3", "4"))) -> 2 | BI117: =IF(BG117<1.4,"ROJO", IF(BG117<3,"AMARILLO", IF(BG117<9,"VERDE", "AZUL"))) -> AMARILLO | BJ117: =IF(BG117<1.4,"Déficit", IF(BG117<3,"Equilibrio", IF(BG117<9,"Disponibilidad", "Abundante"))) -> Equilibrio | BK117: =I117+U117+AG117 -> 1004.131 | BL117: =IF(D117="MAR",AI117+R117,IF(D117="Cerrada",AI117+R117,AI117+R117+AJ117)) -> 602.5728357 | BM117: =BK117/BL117 -> 1.666406018 | BN117: =SUM(BC117:BD117) -> 401.5581643
U118: =IF(U119=0,"",U119/(SUM($U119:$AG119))) -> 0.06881059962 | V118: 0.6261650044 | AG118: 0.305024396 | AH118: =SUM(U118:AG118) -> 1 | AJ118: 0 | AN118: =IF(U118=0,"",U118) -> 0.06881059962 | AO118: 0.6261650044 | AZ118: 0.305024396 | BA118: =SUM(AN118:AZ118) -> 1
A119: B | B119: =A119 -> B | C119: =A119 -> B | D119: MAR | H119: =$C$24 -> 73.926 | I119: =T117 -> 672.7142965 | J119: =$J$24 -> 327.7 | K119: =$I$24 -> 0 | L119: =SUM(H119:K119) -> 1074.340296 | M119: =$H$24 -> 420.042617 | N119: =$L$24 -> 0 | O119: =$K$24 -> 0 | P119: =SUM(M119:O119) -> 420.042617 | Q119: =+P119 -> 420.042617 | R119: =$M$24 -> 0 | S119: =L119-Q119-R119 -> 654.2976795 | T119: =IF(S119<0,0,S119) -> 654.2976795 | U119: =K119+H119 -> 73.926 | V119: =T117 -> 672.7142965 | AG119: =J119 -> 327.7 | AH119: =SUM(U119:AG119) -> 1074.340296 | AI119: =+Q119 -> 420.042617 | AJ119: 13 | AK119: =(AI119+R119+AJ119)*U118 -> 29.79792214 | AL119: =IF(AG119>0,(AI119+R119+AJ119)*AG118,"") -> 132.0885627 | AM119: =SUM(AI119:AK119) -> 462.8405391 | AN119: =IF(AN118="","",$AM119*AN118) -> 31.84833503 | AO119: 289.8145482 | AZ119: 141.1776559 | BA119: =SUM(AN119:AZ119) -> 462.8405391 | BB119: =+U119 -> 73.926 | BC119: =BB119-AK119 -> 44.12807786 | BD119: =IF(AG119=0,"",IF(AG119-AL119<0,0,AG119-AL119)) -> 195.6114373 | BE119: =AJ119 -> 13 | BF119: =IF(T119-BE119<0,0,T119-BE119) -> 641.2976795 | BG119: =IF(D119="MAR",IF(AI119+R119+AJ119=0,"Infinito",(I119+U119+AG119)/(AI119+R119)),IF(D119="Cerrada",IF(AI119+R119+AJ119=0,"Infinito",(I119+U119+AG119)/(AI119+R119)),IF(AI119+R119+AJ119=0,"Infinito",(I119+U119+AG119)/(AI119+R119+AJ119)))) -> 2.55769356 | BH119: =IF(BG119<1.4,"1", IF(BG119<3,"2", IF(BG119<9,"3", "4"))) -> 2 | BI119: =IF(BG119<1.4,"ROJO", IF(BG119<3,"AMARILLO", IF(BG119<9,"VERDE", "AZUL"))) -> AMARILLO | BJ119: =IF(BG119<1.4,"Déficit", IF(BG119<3,"Equilibrio", IF(BG119<9,"Disponibilidad", "Abundante"))) -> Equilibrio | BK119: =IF(I119+U119+AG119<=0,0,I119+U119+AG119) -> 1074.340296 | BL119: =IF(D119="MAR",AI119+R119,IF(D119="Cerrada",AI119+R119,AI119+R119+AJ119)) -> 420.042617 | BM119: =BK119/BL119 -> 2.55769356 | BN119: =SUM(BC119:BD119) -> 239.7395152
A122: =#REF! -> 
A123: No LINEA | B123: CUENCA O REGION | C123: CONEXION | H123: OFERTA POTENCIAL | M123: DEMANDA CONSUNTIVA | U123: OFERTA REAL | AI123: EXTRACC Y VOLS RESERV PARA A ABAJO | BB123: POR CUENCA PROPIA | BE123: A LA SAL. DEL C PRINCIPAL | BG123: DISPONIBILIDAD RELATIVA | BK123: OFERTA - DEMANDA
B124: HIDROLOGICA | C124: DE | D124: HACIA | H124: Cp | I124: Cp A Arriba | J124: Im | K124: R | L124: TOTAL | M124: Uc | N124: Ev | O124: Ex | P124: TOTAL | Q124: TOTAL ACUM. | R124: Dv | S124: Ab | T124: Ab | U124: Cp | V124: Ar1 | W124: Ar2 | X124: Ar3 | Y124: Ar4 | Z124: Ar5 | AA124: Ar6 | AB124: Ar7 | AC124: Ar8 | AD124: Ar9 | AE124: Ar10 | AF124: Ar11 | AG124: Im | AH124: TOTAL | AI124: Uc | AJ124: Re1 | AK124: Re2 | AL124: RImp | AM124: TOTAL | AN124: para Cp | AO124: para Ar1 | AP124: para Ar2 | AQ124: para Ar3 | AR124: para Ar4 | AS124: para Ar5 | AT124: para Ar6 | AU124: para Ar7 | AV124: para Ar8 | AW124: para Ar9 | AX124: para Ar10 | AY124: para Ar11 | AZ124: para Im | BA124: TOTAL | BB124: RESERVADO | BC124: DISPONIBLE | BD124: DImp | BE124: RESERVADO | BF124: DISPONIBLE | BG124: INDICE | BH124: CLAVE | BI124: COLOR | BK124: OFERTA | BL124: DEMANDA | BM124: Indice
A125: Cuenca Río Matape
U126: =IF(U127=0,"",U127/(SUM($U127:$AG127))) -> 1 | AH126: =SUM(U126:AG126) -> 1 | AN126: =IF(U126=0,"",U126) -> 1 | BA126: =SUM(AN126:AZ126) -> 1
A127: A | B127: =A127 -> A | C127: =A127 -> A | D127: B | H127: =$C$21 -> 1671.086 | J127: =$J$21 -> 0 | K127: =$I$21 -> 0.680895425 | L127: =SUM(H127:K127) -> 1671.766895 | M127: =$H$21 -> 8.52393624 | N127: =$L$21 -> 0 | O127: =$K$21 -> 0 | P127: =SUM(M127:O127) -> 8.52393624 | Q127: =+P127 -> 8.52393624 | R127: =$M$21 -> 0 | S127: =L127-Q127-R127 -> 1663.242959 | T127: =IF(S127<0,0,S127) -> 1663.242959 | U127: =K127+H127 -> 1671.766895 | AG127: =J127 -> 0 | AH127: =SUM(U127:AG127) -> 1671.766895 | AI127: =+Q127 -> 8.52393624 | AJ127: =(AI129+R129)*V128 -> 25.55639514 | AK127: =AI127+R127+AJ127 -> 34.08033138 | AL127: =IF(AG127>0,(AI127+R127+AJ127)*AG126,"") ->  | AM127: =SUM(AI127:AK127) -> 68.16066276 | AN127: =IF(AN126="","",$AM127*AN126) -> 68.16066276 | BA127: =SUM(AN127:AZ127) -> 68.16066276 | BB127: =+U127 -> 1671.766895 | BC127: =IF(D127="MAR",IF((BB127-AJ127)<0,0,BB127-AJ127),IF(D127="Cerrada",IF((BB127-AJ127)<0,0,BB127-AJ127),IF((BB127-AK127)<0,0,BB127-AK127))) -> 1637.686564 | BD127: =IF(AG127=0,"",IF(AG127-AL127<0,0,AG127-AL127)) ->  | BE127: =IF(D127="MAR",0,IF(D127="Cerrada",0,AJ127)) -> 25.55639514 | BF127: =IF(T127-BE127<0,0,T127-BE127) -> 1637.686564 | BG127: =IF(D127="MAR",IF(AI127+R127+AJ127=0,"Infinito",(I127+U127+AG127)/(AI127+R127)),IF(D127="Cerrada",IF(AI127+R127+AJ127=0,"Infinito",(I127+U127+AG127)/(AI127+R127)),IF(AI127+R127+AJ127=0,"Infinito",(I127+U127+AG127)/(AI127+R127+AJ127)))) -> 49.05371596 | BH127: =IF(BG127<1.4,"1", IF(BG127<3,"2", IF(BG127<9,"3", "4"))) -> 4 | BI127: =IF(BG127<1.4,"ROJO", IF(BG127<3,"AMARILLO", IF(BG127<9,"VERDE", "AZUL"))) -> AZUL | BJ127: =IF(BG127<1.4,"Déficit", IF(BG127<3,"Equilibrio", IF(BG127<9,"Disponibilidad", "Abundante"))) -> Abundante | BK127: =I127+U127+AG127 -> 1671.766895 | BL127: =IF(D127="MAR",AI127+R127,IF(D127="Cerrada",AI127+R127,AI127+R127+AJ127)) -> 34.08033138 | BM127: =BK127/BL127 -> 49.05371596 | BN127: =SUM(BC127:BD127) -> 1637.686564
U128: =IF(U129=0,"",U129/(SUM($U129:$AG129))) -> 0.1010267766 | V128: 0.8989732234 | AH128: =SUM(U128:AG128) -> 1 | AJ128: 0.32 | AN128: =IF(U128=0,"",U128) -> 0.1010267766 | AO128: 0.8989732234 | BA128: =SUM(AN128:AZ128) -> 1
A129: B | B129: =A129 -> B | C129: =A129 -> B | D129: MAR | H129: =$C$22 -> 186.915 | I129: =T127 -> 1663.242959 | J129: =$J$22 -> 0 | K129: =$I$22 -> 0.0005505 | L129: =SUM(H129:K129) -> 1850.15851 | M129: =$H$22 -> 28.42842754 | N129: =$L$22 -> 0 | O129: =$K$22 -> 0 | P129: =SUM(M129:O129) -> 28.42842754 | Q129: =+P129 -> 28.42842754 | R129: =$M$22 -> 0 | S129: =L129-Q129-R129 -> 1821.730082 | T129: =IF(S129<0,0,S129) -> 1821.730082 | U129: =K129+H129 -> 186.9155505 | V129: =T127 -> 1663.242959 | AG129: =J129 -> 0 | AH129: =SUM(U129:AG129) -> 1850.15851 | AI129: =+Q129 -> 28.42842754 | AK129: =(AI129+R129)*U128 -> 2.872032399 | AL129: =IF(AG129>0,(AI129+R129+AK129)*AG128,"") ->  | AM129: =SUM(AI129:AK129) -> 31.30045994 | AN129: =IF(AN128="","",$AM129*AN128) -> 3.162184575 | AO129: 28.13827536 | BA129: =SUM(AN129:AZ129) -> 31.30045994 | BB129: =+U129 -> 186.9155505 | BC129: =IF(D129="MAR",IF((BB129-AK129)<0,0,BB129-AK129),IF(D129="Cerrada",IF((BB129-AK129)<0,0,BB129-AK129),IF((BB129-#REF!)<0,0,BB129-#REF!))) -> 184.0435181 | BD129: =IF(AG129=0,"",IF(AG129-AL129<0,0,AG129-AL129)) ->  | BE129: =AK129 -> 2.872032399 | BF129: =IF(T129-BE129<0,0,T129-BE129) -> 1818.85805 | BG129: =IF(D129="MAR",IF(AI129+R129+AK129=0,"Infinito",(I129+U129+AG129)/(AI129+R129)),IF(D129="Cerrada",IF(AI129+R129+AK129=0,"Infinito",(I129+U129+AG129)/(AI129+R129)),IF(AI129+R129+AK129=0,"Infinito",(I129+U129+AG129)/(AI129+R129+AK129)))) -> 65.081282 | BH129: =IF(BG129<1.4,"1", IF(BG129<3,"2", IF(BG129<9,"3", "4"))) -> 4 | BI129: =IF(BG129<1.4,"ROJO", IF(BG129<3,"AMARILLO", IF(BG129<9,"VERDE", "AZUL"))) -> AZUL | BJ129: =IF(BG129<1.4,"Déficit", IF(BG129<3,"Equilibrio", IF(BG129<9,"Disponibilidad", "Abundante"))) -> Abundante | BK129: =IF(I129+U129+AG129<=0,0,I129+U129+AG129) -> 1850.15851 | BL129: =IF(D129="MAR",AI129+R129,IF(D129="Cerrada",AI129+R129,AI129+R129+AK129)) -> 28.42842754 | BM129: =BK129/BL129 -> 65.081282 | BN129: =SUM(BC129:BD129) -> 184.0435181
AJ130: 13.29
A132: =B36 -> 0
A133: No LINEA | B133: CUENCA O REGION | C133: CONEXION | H133: OFERTA POTENCIAL | M133: DEMANDA CONSUNTIVA | U133: OFERTA REAL | AI133: EXTRACC Y VOLS RESERV PARA A ABAJO | BB133: POR CUENCA PROPIA | BE133: A LA SAL. DEL C PRINCIPAL | BG133: DISPONIBILIDAD RELATIVA | BK133: OFERTA - DEMANDA
B134: HIDROLOGICA | C134: DE | D134: HACIA | H134: Cp | I134: Cp A Arriba | J134: Im | K134: R | L134: TOTAL | M134: Uc | N134: Ev | O134: Ex | P134: TOTAL | Q134: TOTAL ACUM. | R134: Dv | S134: Ab | T134: Ab | U134: Cp | V134: Ar1 | W134: Ar2 | X134: Ar3 | Y134: Ar4 | Z134: Ar5 | AA134: Ar6 | AB134: Ar7 | AC134: Ar8 | AD134: Ar9 | AE134: Ar10 | AF134: Ar11 | AG134: Im | AH134: TOTAL | AI134: Uc | AJ134: Re1 | AK134: Re2 | AL134: RImp | AM134: TOTAL | AN134: para Cp | AO134: para Ar1 | AP134: para Ar2 | AQ134: para Ar3 | AR134: para Ar4 | AS134: para Ar5 | AT134: para Ar6 | AU134: para Ar7 | AV134: para Ar8 | AW134: para Ar9 | AX134: para Ar10 | AY134: para Ar11 | AZ134: para Im | BA134: TOTAL | BB134: RESERVADO | BC134: DISPONIBLE | BD134: DImp | BE134: RESERVADO | BF134: DISPONIBLE | BG134: INDICE | BH134: CLAVE | BI134: COLOR | BK134: OFERTA | BL134: DEMANDA | BM134: Indice
A135: Cuenca Río Matape
U136: =IF(U137=0,"",U137/(SUM($U137:$AG137))) -> 1 | AH136: =SUM(U136:AG136) -> 1 | AN136: =IF(U136=0,"",U136) -> 1 | BA136: =SUM(AN136:AZ136) -> 1
A137: A | B137: =A137 -> A | C137: =A137 -> A | D137: B | H137: =$C$8 -> 123.131 | J137: =$J$8 -> 0 | K137: =$I$8 -> 0 | L137: =SUM(H137:K137) -> 123.131 | M137: =$H$8 -> 3.046757 | N137: =$L$8 -> 0 | O137: =$K$8 -> 0 | P137: =SUM(M137:O137) -> 3.046757 | Q137: =+P137 -> 3.046757 | R137: =$M$8 -> 0 | S137: =L137-Q137-R137 -> 120.084243 | T137: =IF(S137<0,0,S137) -> 120.084243 | U137: =K137+H137 -> 123.131 | AG137: =J137 -> 0 | AH137: =SUM(U137:AG137) -> 123.131 | AI137: =+Q137 -> 3.046757 | AJ137: =(AI139+R139)*V138 -> 1.297144322 | AK137: =AI137+R137+AJ137 -> 4.343901322 | AL137: =IF(AG137>0,(AI137+R137+AJ137)*AG136,"") ->  | AM137: =SUM(AI137:AK137) -> 8.687802644 | AN137: =IF(AN136="","",$AM137*AN136) -> 8.687802644 | BA137: =SUM(AN137:AZ137) -> 8.687802644 | BB137: =+U137 -> 123.131 | BC137: =IF(D137="MAR",IF((BB137-AJ137)<0,0,BB137-AJ137),IF(D137="Cerrada",IF((BB137-AJ137)<0,0,BB137-AJ137),IF((BB137-AK137)<0,0,BB137-AK137))) -> 118.7870987 | BD137: =IF(AG137=0,"",IF(AG137-AL137<0,0,AG137-AL137)) ->  | BE137: =IF(D137="MAR",0,IF(D137="Cerrada",0,AJ137)) -> 1.297144322 | BF137: =IF(T137-BE137<0,0,T137-BE137) -> 118.7870987 | BG137: =IF(D137="MAR",IF(AI137+R137+AJ137=0,"Infinito",(I137+U137+AG137)/(AI137+R137)),IF(D137="Cerrada",IF(AI137+R137+AJ137=0,"Infinito",(I137+U137+AG137)/(AI137+R137)),IF(AI137+R137+AJ137=0,"Infinito",(I137+U137+AG137)/(AI137+R137+AJ137)))) -> 28.34571757 | BH137: =IF(BG137<1.4,"1", IF(BG137<3,"2", IF(BG137<9,"3", "4"))) -> 4 | BI137: =IF(BG137<1.4,"ROJO", IF(BG137<3,"AMARILLO", IF(BG137<9,"VERDE", "AZUL"))) -> AZUL | BJ137: =IF(BG137<1.4,"Déficit", IF(BG137<3,"Equilibrio", IF(BG137<9,"Disponibilidad", "Abundante"))) -> Abundante | BK137: =I137+U137+AG137 -> 123.131 | BL137: =IF(D137="MAR",AI137+R137,IF(D137="Cerrada",AI137+R137,AI137+R137+AJ137)) -> 4.343901322 | BM137: =BK137/BL137 -> 28.34571757 | BN137: =SUM(BC137:BD137) -> 118.7870987
U138: =IF(U139=0,"",U139/(SUM($U139:$AG139))) -> 0.3275016247 | V138: 0.6724983753 | AH138: =SUM(U138:AG138) -> 1 | AN138: =IF(U138=0,"",U138) -> 0.3275016247 | AO138: 0.6724983753 | BA138: =SUM(AN138:AZ138) -> 1
A139: B | B139: =A139 -> B | C139: =A139 -> B | D139: MAR | H139: =$C$9 -> 58.474 | I139: =T137 -> 120.084243 | J139: =$J$9 -> 0 | K139: =$I$9 -> 0.0061185 | L139: =SUM(H139:K139) -> 178.5643615 | M139: =$H$9 -> 1.9288438 | N139: =$L$9 -> 0 | O139: =$K$9 -> 0 | P139: =SUM(M139:O139) -> 1.9288438 | Q139: =+P139 -> 1.9288438 | R139: =$M$9 -> 0 | S139: =L139-Q139-R139 -> 176.6355177 | T139: =IF(S139<0,0,S139) -> 176.6355177 | U139: =K139+H139 -> 58.4801185 | V139: =T137 -> 120.084243 | AG139: =J139 -> 0 | AH139: =SUM(U139:AG139) -> 178.5643615 | AI139: =+Q139 -> 1.9288438 | AJ139: =(AI139+R139)*U138 -> 0.6316994782 | AL139: =IF(AG139>0,(AI139+R139+AJ139)*AG138,"") ->  | AM139: =SUM(AI139:AK139) -> 2.560543278 | AN139: =IF(AN138="","",$AM139*AN138) -> 0.8385820837 | AO139: 1.721961195 | BA139: =SUM(AN139:AZ139) -> 2.560543278 | BB139: =+U139 -> 58.4801185 | BC139: =IF(D139="MAR",IF((BB139-AJ139)<0,0,BB139-AJ139),IF(D139="Cerrada",IF((BB139-AJ139)<0,0,BB139-AJ139),IF((BB139-AK139)<0,0,BB139-AK139))) -> 57.84841902 | BD139: =IF(AG139=0,"",IF(AG139-AL139<0,0,AG139-AL139)) ->  | BE139: =IF(D139="MAR",0,IF(D139="Cerrada",0,AJ139)) -> 0 | BF139: =IF(T139-BE139<0,0,T139-BE139) -> 176.6355177 | BG139: =IF(D139="MAR",IF(AI139+R139+AJ139=0,"Infinito",(I139+U139+AG139)/(AI139+R139)),IF(D139="Cerrada",IF(AI139+R139+AJ139=0,"Infinito",(I139+U139+AG139)/(AI139+R139)),IF(AI139+R139+AJ139=0,"Infinito",(I139+U139+AG139)/(AI139+R139+AJ139)))) -> 92.57585373 | BH139: =IF(BG139<1.4,"1", IF(BG139<3,"2", IF(BG139<9,"3", "4"))) -> 4 | BI139: =IF(BG139<1.4,"ROJO", IF(BG139<3,"AMARILLO", IF(BG139<9,"VERDE", "AZUL"))) -> AZUL | BJ139: =IF(BG139<1.4,"Déficit", IF(BG139<3,"Equilibrio", IF(BG139<9,"Disponibilidad", "Abundante"))) -> Abundante | BK139: =IF(I139+U139+AG139<=0,0,I139+U139+AG139) -> 178.5643615 | BL139: =IF(D139="MAR",AI139+R139,IF(D139="Cerrada",AI139+R139,AI139+R139+AJ139)) -> 1.9288438 | BM139: =BK139/BL139 -> 92.57585373 | BN139: =SUM(BC139:BD139) -> 57.84841902
A142: =B41 -> 0
A143: No LINEA | B143: CUENCA O REGION | C143: CONEXION | H143: OFERTA POTENCIAL | M143: DEMANDA CONSUNTIVA | U143: OFERTA REAL | AI143: EXTRACC Y VOLS RESERV PARA A ABAJO | BB143: POR CUENCA PROPIA | BE143: A LA SAL. DEL C PRINCIPAL | BG143: DISPONIBILIDAD RELATIVA | BK143: OFERTA - DEMANDA
B144: HIDROLOGICA | C144: DE | D144: HACIA | H144: Cp | I144: Cp A Arriba | J144: Im | K144: R | L144: TOTAL | M144: Uc | N144: Ev | O144: Ex | P144: TOTAL | Q144: TOTAL ACUM. | R144: Dv | S144: Ab | T144: Ab | U144: Cp | V144: Ar1 | W144: Ar2 | X144: Ar3 | Y144: Ar4 | Z144: Ar5 | AA144: Ar6 | AB144: Ar7 | AC144: Ar8 | AD144: Ar9 | AE144: Ar10 | AF144: Ar11 | AG144: Im | AH144: TOTAL | AI144: Uc | AJ144: Re1 | AK144: Re2 | AL144: RImp | AM144: TOTAL | AN144: para Cp | AO144: para Ar1 | AP144: para Ar2 | AQ144: para Ar3 | AR144: para Ar4 | AS144: para Ar5 | AT144: para Ar6 | AU144: para Ar7 | AV144: para Ar8 | AW144: para Ar9 | AX144: para Ar10 | AY144: para Ar11 | AZ144: para Im | BA144: TOTAL | BB144: RESERVADO | BC144: DISPONIBLE | BD144: DImp | BE144: RESERVADO | BF144: DISPONIBLE | BG144: INDICE | BH144: CLAVE | BI144: COLOR | BK144: OFERTA | BL144: DEMANDA | BM144: Indice
A145: Cuenca Río Matape
U146: =IF(U147=0,"",U147/(SUM($U147:$AG147))) -> 1 | AH146: =SUM(U146:AG146) -> 1 | AN146: =IF(U146=0,"",U146) -> 1 | BA146: =SUM(AN146:AZ146) -> 1
A147: A | B147: =A147 -> A | C147: =A147 -> A | D147: B | H147: =$C$25 -> 1357.01 | J147: =$J$25 -> 0 | K147: =$I$25 -> 1.157971245 | L147: =SUM(H147:K147) -> 1358.167971 | M147: =$H$25 -> 3.27800757 | N147: =$L$25 -> 0 | O147: =$K$25 -> 0 | P147: =SUM(M147:O147) -> 3.27800757 | Q147: =+P147 -> 3.27800757 | R147: =$M$25 -> 0 | S147: =L147-Q147-R147 -> 1354.889964 | T147: =IF(S147<0,0,S147) -> 1354.889964 | U147: =K147+H147 -> 1358.167971 | AG147: =J147 -> 0 | AH147: =SUM(U147:AG147) -> 1358.167971 | AI147: =+Q147 -> 3.27800757 | AJ147: =(AI149+R149)*V148 -> 3.282824652 | AK147: =AI147+R147+AJ147 -> 6.560832222 | AL147: =IF(AG147>0,(AI147+R147+AJ147)*AG146,"") ->  | AM147: =SUM(AI147:AK147) -> 13.12166444 | AN147: =IF(AN146="","",$AM147*AN146) -> 13.12166444 | BA147: =SUM(AN147:AZ147) -> 13.12166444 | BB147: =+U147 -> 1358.167971 | BC147: =IF(D147="MAR",IF((BB147-AJ147)<0,0,BB147-AJ147),IF(D147="Cerrada",IF((BB147-AJ147)<0,0,BB147-AJ147),IF((BB147-AK147)<0,0,BB147-AK147))) -> 1351.607139 | BD147: =IF(AG147=0,"",IF(AG147-AL147<0,0,AG147-AL147)) ->  | BE147: =IF(D147="MAR",0,IF(D147="Cerrada",0,AJ147)) -> 3.282824652 | BF147: =IF(T147-BE147<0,0,T147-BE147) -> 1351.607139 | BG147: =IF(D147="MAR",IF(AI147+R147+AJ147=0,"Infinito",(I147+U147+AG147)/(AI147+R147)),IF(D147="Cerrada",IF(AI147+R147+AJ147=0,"Infinito",(I147+U147+AG147)/(AI147+R147)),IF(AI147+R147+AJ147=0,"Infinito",(I147+U147+AG147)/(AI147+R147+AJ147)))) -> 207.0115384 | BH147: =IF(BG147<1.4,"1", IF(BG147<3,"2", IF(BG147<9,"3", "4"))) -> 4 | BI147: =IF(BG147<1.4,"ROJO", IF(BG147<3,"AMARILLO", IF(BG147<9,"VERDE", "AZUL"))) -> AZUL | BJ147: =IF(BG147<1.4,"Déficit", IF(BG147<3,"Equilibrio", IF(BG147<9,"Disponibilidad", "Abundante"))) -> Abundante | BK147: =I147+U147+AG147 -> 1358.167971 | BL147: =IF(D147="MAR",AI147+R147,IF(D147="Cerrada",AI147+R147,AI147+R147+AJ147)) -> 6.560832222 | BM147: =BK147/BL147 -> 207.0115384 | BN147: =SUM(BC147:BD147) -> 1351.607139
U148: =IF(U149=0,"",U149/(SUM($U149:$AG149))) -> 0.05603054108 | V148: 0.9439694589 | AH148: =SUM(U148:AG148) -> 1 | AJ148: 2296.66 | AN148: =IF(U148=0,"",U148) -> 0.05603054108 | AO148: 0.9439694589 | BA148: =SUM(AN148:AZ148) -> 1
A149: B | B149: =A149 -> B | C149: =A149 -> B | D149: MAR | H149: =$C$26 -> 78.24 | I149: =T147 -> 1354.889964 | J149: =$J$26 -> 0 | K149: =$I$26 -> 2.18126475 | L149: =SUM(H149:K149) -> 1435.311228 | M149: =$H$26 -> 3.477681 | N149: =$L$26 -> 0 | O149: =$K$26 -> 0 | P149: =SUM(M149:O149) -> 3.477681 | Q149: =+P149 -> 3.477681 | R149: =$M$26 -> 0 | S149: =L149-Q149-R149 -> 1431.833547 | T149: =IF(S149<0,0,S149) -> 1431.833547 | U149: =K149+H149 -> 80.42126475 | V149: =T147 -> 1354.889964 | AG149: =J149 -> 0 | AH149: =SUM(U149:AG149) -> 1435.311228 | AI149: =+Q149 -> 3.477681 | AJ149: =(AI149+R149)*U148 -> 0.1948563481 | AL149: =IF(AG149>0,(AI149+R149+AJ149)*AG148,"") ->  | AM149: =SUM(AI149:AK149) -> 3.672537348 | AN149: =IF(AN148="","",$AM149*AN148) -> 0.2057742548 | AO149: 3.466763093 | BA149: =SUM(AN149:AZ149) -> 3.672537348 | BB149: =+U149 -> 80.42126475 | BC149: =IF(D149="MAR",IF((BB149-AJ149)<0,0,BB149-AJ149),IF(D149="Cerrada",IF((BB149-AJ149)<0,0,BB149-AJ149),IF((BB149-AK149)<0,0,BB149-AK149))) -> 80.2264084 | BD149: =IF(AG149=0,"",IF(AG149-AL149<0,0,AG149-AL149)) ->  | BE149: =IF(D149="MAR",0,IF(D149="Cerrada",0,AJ149)) -> 0 | BF149: =IF(T149-BE149<0,0,T149-BE149) -> 1431.833547 | BG149: =IF(D149="MAR",IF(AI149+R149+AJ149=0,"Infinito",(I149+U149+AG149)/(AI149+R149)),IF(D149="Cerrada",IF(AI149+R149+AJ149=0,"Infinito",(I149+U149+AG149)/(AI149+R149)),IF(AI149+R149+AJ149=0,"Infinito",(I149+U149+AG149)/(AI149+R149+AJ149)))) -> 412.7207839 | BH149: =IF(BG149<1.4,"1", IF(BG149<3,"2", IF(BG149<9,"3", "4"))) -> 4 | BI149: =IF(BG149<1.4,"ROJO", IF(BG149<3,"AMARILLO", IF(BG149<9,"VERDE", "AZUL"))) -> AZUL | BJ149: =IF(BG149<1.4,"Déficit", IF(BG149<3,"Equilibrio", IF(BG149<9,"Disponibilidad", "Abundante"))) -> Abundante | BK149: =IF(I149+U149+AG149<=0,0,I149+U149+AG149) -> 1435.311228 | BL149: =IF(D149="MAR",AI149+R149,IF(D149="Cerrada",AI149+R149,AI149+R149+AJ149)) -> 3.477681 | BM149: =BK149/BL149 -> 412.7207839 | BN149: =SUM(BC149:BD149) -> 80.2264084
A152: SUBREGION HIDROLOGICA QUE COMPRENDE EL RIO ROSA MORADA
A153: No LINEA | B153: CUENCA O REGION | C153: CONEXION | H153: OFERTA POTENCIAL | M153: DEMANDA CONSUNTIVA | U153: OFERTA REAL | AI153: EXTRACC Y VOLS RESERV PARA A ABAJO | BB153: POR CUENCA PROPIA | BE153: A LA SAL. DEL C PRINCIPAL | BG153: DISPONIBILIDAD RELATIVA | BK153: OFERTA - DEMANDA
B154: HIDROLOGICA | C154: DE | D154: HACIA | H154: Cp | I154: Cp A Arriba | J154: Im | K154: R | L154: TOTAL | M154: Uc | N154: Ev | O154: Ex | P154: TOTAL | Q154: TOTAL ACUM. | R154: Dv | S154: Ab | T154: Ab | U154: Cp | V154: Ar1 | W154: Ar2 | X154: Ar3 | Y154: Ar4 | Z154: Ar5 | AA154: Ar6 | AB154: Ar7 | AC154: Ar8 | AD154: Ar9 | AE154: Ar10 | AF154: Ar11 | AG154: Im | AH154: TOTAL | AI154: Uc | AJ154: Re1 | AK154: Re2 | AL154: RImp | AM154: TOTAL | AN154: para Cp | AO154: para Ar1 | AP154: para Ar2 | AQ154: para Ar3 | AR154: para Ar4 | AS154: para Ar5 | AT154: para Ar6 | AU154: para Ar7 | AV154: para Ar8 | AW154: para Ar9 | AX154: para Ar10 | AY154: para Ar11 | AZ154: para Im | BA154: TOTAL | BB154: RESERVADO | BC154: DISPONIBLE | BD154: DImp | BE154: RESERVADO | BF154: DISPONIBLE | BG154: INDICE | BH154: CLAVE | BI154: COLOR | BK154: OFERTA | BL154: DEMANDA | BM154: Indice
A155: Cuenca Río Matape
U156: =IF(U157=0,"",U157/(SUM($U157:$AG157))) -> 1 | AH156: =SUM(U156:AG156) -> 1 | AN156: =IF(U156=0,"",U156) -> 1 | BA156: =SUM(AN156:AZ156) -> 1
A157: A | B157: =A157 -> A | C157: =A157 -> A | D157: B | H157: =C27 -> 80.087 | J157: =$J$27 -> 0 | K157: =$I$27 -> 0.10626425 | L157: =SUM(H157:K157) -> 80.19326425 | M157: =$H$27 -> 0.437219 | N157: =$L$27 -> 0 | O157: =$K$27 -> 0 | P157: =SUM(M157:O157) -> 0.437219 | Q157: =+P157 -> 0.437219 | R157: =$M$27 -> 0 | S157: =L157-Q157-R157 -> 79.75604525 | T157: =IF(S157<0,0,S157) -> 79.75604525 | U157: =K157+H157 -> 80.19326425 | AG157: =J157 -> 0 | AH157: =SUM(U157:AG157) -> 80.19326425 | AI157: =+Q157 -> 0.437219 | AJ157: =(AI159+R159)*V158 -> 4.049462816 | AK157: =AI157+R157+AJ157 -> 4.486681816 | AL157: =IF(AG157>0,(AI157+R157+AJ157)*AG156,"") ->  | AM157: =SUM(AI157:AK157) -> 8.973363632 | AN157: =IF(AN156="","",$AM157*AN156) -> 8.973363632 | BA157: =SUM(AN157:AZ157) -> 8.973363632 | BB157: =+U157 -> 80.19326425 | BC157: =IF(D157="MAR",IF((BB157-AJ157)<0,0,BB157-AJ157),IF(D157="Cerrada",IF((BB157-AJ157)<0,0,BB157-AJ157),IF((BB157-AK157)<0,0,BB157-AK157))) -> 75.70658243 | BD157: =IF(AG157=0,"",IF(AG157-AL157<0,0,AG157-AL157)) ->  | BE157: =IF(D157="MAR",0,IF(D157="Cerrada",0,AJ157)) -> 4.049462816 | BF157: =IF(T157-BE157<0,0,T157-BE157) -> 75.70658243 | BG157: =IF(D157="MAR",IF(AI157+R157+AJ157=0,"Infinito",(I157+U157+AG157)/(AI157+R157)),IF(D157="Cerrada",IF(AI157+R157+AJ157=0,"Infinito",(I157+U157+AG157)/(AI157+R157)),IF(AI157+R157+AJ157=0,"Infinito",(I157+U157+AG157)/(AI157+R157+AJ157)))) -> 17.8736241 | BH157: =IF(BG157<1.4,"1", IF(BG157<3,"2", IF(BG157<9,"3", "4"))) -> 4 | BI157: =IF(BG157<1.4,"ROJO", IF(BG157<3,"AMARILLO", IF(BG157<9,"VERDE", "AZUL"))) -> AZUL | BJ157: =IF(BG157<1.4,"Déficit", IF(BG157<3,"Equilibrio", IF(BG157<9,"Disponibilidad", "Abundante"))) -> Abundante | BK157: =I157+U157+AG157 -> 80.19326425 | BL157: =IF(D157="MAR",AI157+R157,IF(D157="Cerrada",AI157+R157,AI157+R157+AJ157)) -> 4.486681816 | BM157: =BK157/BL157 -> 17.8736241 | BN157: =SUM(BC157:BD157) -> 75.70658243
U158: =IF(U159=0,"",U159/(SUM($U159:$AG159))) -> 0.471759276 | V158: 0.528240724 | AH158: =SUM(U158:AG158) -> 1 | AJ158: 13 | AN158: =IF(U158=0,"",U158) -> 0.471759276 | AO158: 0.528240724 | BA158: =SUM(AN158:AZ158) -> 1
A159: B | B159: =A159 -> B | C159: =A159 -> B | D159: MAR | H159: =C28 -> 66.5 | I159: =T157 -> 79.75604525 | J159: =$J$28 -> 0 | K159: =$I$28 -> 4.728234498 | L159: =SUM(H159:K159) -> 150.9842797 | M159: =$H$28 -> 7.66594212 | N159: =$L$28 -> 0 | O159: =$K$28 -> 0 | P159: =SUM(M159:O159) -> 7.66594212 | Q159: =+P159 -> 7.66594212 | R159: =$M$28 -> 0 | S159: =L159-Q159-R159 -> 143.3183376 | T159: =IF(S159<0,0,S159) -> 143.3183376 | U159: =K159+H159 -> 71.2282345 | V159: =T157 -> 79.75604525 | AG159: =J159 -> 0 | AH159: =SUM(U159:AG159) -> 150.9842797 | AI159: =+Q159 -> 7.66594212 | AJ159: =(AI159+R159)*U158 -> 3.616479304 | AL159: =IF(AG159>0,(AI159+R159+AJ159)*AG158,"") ->  | AM159: =SUM(AI159:AK159) -> 11.28242142 | AN159: =IF(AN158="","",$AM159*AN158) -> 5.322586962 | AO159: 5.959834462 | BA159: =SUM(AN159:AZ159) -> 11.28242142 | BB159: =+U159 -> 71.2282345 | BC159: =IF(D159="MAR",IF((BB159-AJ159)<0,0,BB159-AJ159),IF(D159="Cerrada",IF((BB159-AJ159)<0,0,BB159-AJ159),IF((BB159-AK159)<0,0,BB159-AK159))) -> 67.61175519 | BD159: =IF(AG159=0,"",IF(AG159-AL159<0,0,AG159-AL159)) ->  | BE159: =IF(D159="MAR",0,IF(D159="Cerrada",0,AJ159)) -> 0 | BF159: =IF(T159-BE159<0,0,T159-BE159) -> 143.3183376 | BG159: =IF(D159="MAR",IF(AI159+R159+AJ159=0,"Infinito",(I159+U159+AG159)/(AI159+R159)),IF(D159="Cerrada",IF(AI159+R159+AJ159=0,"Infinito",(I159+U159+AG159)/(AI159+R159)),IF(AI159+R159+AJ159=0,"Infinito",(I159+U159+AG159)/(AI159+R159+AJ159)))) -> 19.69546305 | BH159: =IF(BG159<1.4,"1", IF(BG159<3,"2", IF(BG159<9,"3", "4"))) -> 4 | BI159: =IF(BG159<1.4,"ROJO", IF(BG159<3,"AMARILLO", IF(BG159<9,"VERDE", "AZUL"))) -> AZUL | BJ159: =IF(BG159<1.4,"Déficit", IF(BG159<3,"Equilibrio", IF(BG159<9,"Disponibilidad", "Abundante"))) -> Abundante | BK159: =IF(I159+U159+AG159<=0,0,I159+U159+AG159) -> 150.9842797 | BL159: =IF(D159="MAR",AI159+R159,IF(D159="Cerrada",AI159+R159,AI159+R159+AJ159)) -> 7.66594212 | BM159: =BK159/BL159 -> 19.69546305 | BN159: =SUM(BC159:BD159) -> 67.61175519
A162: SUBREGION HIDROLOGICA QUE COMPRENDE EL RIO BEJUCO
A163: No LINEA | B163: CUENCA O REGION | C163: CONEXION | H163: OFERTA POTENCIAL | M163: DEMANDA CONSUNTIVA | U163: OFERTA REAL | AI163: EXTRACC Y VOLS RESERV PARA A ABAJO | BB163: POR CUENCA PROPIA | BE163: A LA SAL. DEL C PRINCIPAL | BG163: DISPONIBILIDAD RELATIVA | BK163: OFERTA - DEMANDA
B164: HIDROLOGICA | C164: DE | D164: HACIA | H164: Cp | I164: Cp A Arriba | J164: Im | K164: R | L164: TOTAL | M164: Uc | N164: Ev | O164: Ex | P164: TOTAL | Q164: TOTAL ACUM. | R164: Dv | S164: Ab | T164: Ab | U164: Cp | V164: Ar1 | W164: Ar2 | X164: Ar3 | Y164: Ar4 | Z164: Ar5 | AA164: Ar6 | AB164: Ar7 | AC164: Ar8 | AD164: Ar9 | AE164: Ar10 | AF164: Ar11 | AG164: Im | AH164: TOTAL | AI164: Uc | AJ164: Re1 | AK164: Re2 | AL164: RImp | AM164: TOTAL | AN164: para Cp | AO164: para Ar1 | AP164: para Ar2 | AQ164: para Ar3 | AR164: para Ar4 | AS164: para Ar5 | AT164: para Ar6 | AU164: para Ar7 | AV164: para Ar8 | AW164: para Ar9 | AX164: para Ar10 | AY164: para Ar11 | AZ164: para Im | BA164: TOTAL | BB164: RESERVADO | BC164: DISPONIBLE | BD164: DImp | BE164: RESERVADO | BF164: DISPONIBLE | BG164: INDICE | BH164: CLAVE | BI164: COLOR | BK164: OFERTA | BL164: DEMANDA | BM164: Indice
A165: Cuenca Río Matape
U166: =IF(U167=0,"",U167/(SUM($U167:$AG167))) -> 1 | AH166: =SUM(U166:AG166) -> 1 | AN166: =IF(U166=0,"",U166) -> 1 | BA166: =SUM(AN166:AZ166) -> 1
A167: A | B167: =A167 -> A | C167: =A167 -> A | D167: B | H167: =$C$29 -> 147.972 | J167: =$J$29 -> 0 | K167: =$I$29 -> 0.1754769 | L167: =SUM(H167:K167) -> 148.1474769 | M167: =$H$29 -> 0.795214 | N167: =$L$29 -> 0 | O167: =$K$29 -> 0 | P167: =SUM(M167:O167) -> 0.795214 | Q167: =+P167 -> 0.795214 | R167: =$M$29 -> 0 | S167: =L167-Q167-R167 -> 147.3522629 | T167: =IF(S167<0,0,S167) -> 147.3522629 | U167: =K167+H167 -> 148.1474769 | AG167: =J167 -> 0 | AH167: =SUM(U167:AG167) -> 148.1474769 | AI167: =+Q167 -> 0.795214 | AJ167: =(AI169+R169)*V168 -> 6.088954138 | AK167: =AI167+R167+AJ167 -> 6.884168138 | AL167: =IF(AG167>0,(AI167+R167+AJ167)*AG166,"") ->  | AM167: =SUM(AI167:AK167) -> 13.76833628 | AN167: =IF(AN166="","",$AM167*AN166) -> 13.76833628 | BA167: =SUM(AN167:AZ167) -> 13.76833628 | BB167: =+U167 -> 148.1474769 | BC167: =IF(D167="MAR",IF((BB167-AJ167)<0,0,BB167-AJ167),IF(D167="Cerrada",IF((BB167-AJ167)<0,0,BB167-AJ167),IF((BB167-AK167)<0,0,BB167-AK167))) -> 141.2633088 | BD167: =IF(AG167=0,"",IF(AG167-AL167<0,0,AG167-AL167)) ->  | BE167: =IF(D167="MAR",0,IF(D167="Cerrada",0,AJ167)) -> 6.088954138 | BF167: =IF(T167-BE167<0,0,T167-BE167) -> 141.2633088 | BG167: =IF(D167="MAR",IF(AI167+R167+AJ167=0,"Infinito",(I167+U167+AG167)/(AI167+R167)),IF(D167="Cerrada",IF(AI167+R167+AJ167=0,"Infinito",(I167+U167+AG167)/(AI167+R167)),IF(AI167+R167+AJ167=0,"Infinito",(I167+U167+AG167)/(AI167+R167+AJ167)))) -> 21.52002594 | BH167: =IF(BG167<1.4,"1", IF(BG167<3,"2", IF(BG167<9,"3", "4"))) -> 4 | BI167: =IF(BG167<1.4,"ROJO", IF(BG167<3,"AMARILLO", IF(BG167<9,"VERDE", "AZUL"))) -> AZUL | BJ167: =IF(BG167<1.4,"Déficit", IF(BG167<3,"Equilibrio", IF(BG167<9,"Disponibilidad", "Abundante"))) -> Abundante | BK167: =I167+U167+AG167 -> 148.1474769 | BL167: =IF(D167="MAR",AI167+R167,IF(D167="Cerrada",AI167+R167,AI167+R167+AJ167)) -> 6.884168138 | BM167: =BK167/BL167 -> 21.52002594 | BN167: =SUM(BC167:BD167) -> 141.2633088
U168: =IF(U169=0,"",U169/(SUM($U169:$AG169))) -> 0.2892564582 | V168: 0.7107435418 | AH168: =SUM(U168:AG168) -> 1 | AN168: =IF(U168=0,"",U168) -> 0.2892564582 | AO168: 0.7107435418 | BA168: =SUM(AN168:AZ168) -> 1
A169: B | B169: =A169 -> B | C169: =A169 -> B | D169: MAR | H169: =$C$30 -> 51.402 | I169: =T167 -> 147.3522629 | J169: =$J$30 -> 0 | K169: =$I$30 -> 8.56702 | L169: =SUM(H169:K169) -> 207.3212829 | M169: =$H$30 -> 8.56702 | N169: =$L$30 -> 0 | O169: =$K$30 -> 0 | P169: =SUM(M169:O169) -> 8.56702 | Q169: =+P169 -> 8.56702 | R169: =$M$30 -> 0 | S169: =L169-Q169-R169 -> 198.7542629 | T169: =IF(S169<0,0,S169) -> 198.7542629 | U169: =K169+H169 -> 59.96902 | V169: =T167 -> 147.3522629 | AG169: =J169 -> 0 | AH169: =SUM(U169:AG169) -> 207.3212829 | AI169: =+Q169 -> 8.56702 | AJ169: =(AI169+R169)*U168 -> 2.478065862 | AL169: =IF(AG169>0,(AI169+R169+AJ169)*AG168,"") ->  | AM169: =SUM(AI169:AK169) -> 11.04508586 | AN169: =IF(AN168="","",$AM169*AN168) -> 3.194862417 | AO169: 7.850223445 | BA169: =SUM(AN169:AZ169) -> 11.04508586 | BB169: =+U169 -> 59.96902 | BC169: =IF(D169="MAR",IF((BB169-AJ169)<0,0,BB169-AJ169),IF(D169="Cerrada",IF((BB169-AJ169)<0,0,BB169-AJ169),IF((BB169-AK169)<0,0,BB169-AK169))) -> 57.49095414 | BD169: =IF(AG169=0,"",IF(AG169-AL169<0,0,AG169-AL169)) ->  | BE169: =IF(D169="MAR",0,IF(D169="Cerrada",0,AJ169)) -> 0 | BF169: =IF(T169-BE169<0,0,T169-BE169) -> 198.7542629 | BG169: =IF(D169="MAR",IF(AI169+R169+AJ169=0,"Infinito",(I169+U169+AG169)/(AI169+R169)),IF(D169="Cerrada",IF(AI169+R169+AJ169=0,"Infinito",(I169+U169+AG169)/(AI169+R169)),IF(AI169+R169+AJ169=0,"Infinito",(I169+U169+AG169)/(AI169+R169+AJ169)))) -> 24.19992984 | BH169: =IF(BG169<1.4,"1", IF(BG169<3,"2", IF(BG169<9,"3", "4"))) -> 4 | BI169: =IF(BG169<1.4,"ROJO", IF(BG169<3,"AMARILLO", IF(BG169<9,"VERDE", "AZUL"))) -> AZUL | BJ169: =IF(BG169<1.4,"Déficit", IF(BG169<3,"Equilibrio", IF(BG169<9,"Disponibilidad", "Abundante"))) -> Abundante | BK169: =IF(I169+U169+AG169<=0,0,I169+U169+AG169) -> 207.3212829 | BL169: =IF(D169="MAR",AI169+R169,IF(D169="Cerrada",AI169+R169,AI169+R169+AJ169)) -> 8.56702 | BM169: =BK169/BL169 -> 24.19992984 | BN169: =SUM(BC169:BD169) -> 57.49095414

Sheet RH-12
E2: GERENCIA DE AGUAS SUPERFICIALES E INGENIERÍA DE RÍOS
E3: REGION HIDROLOGICA No 12
E4: LERMA - SANTIAGO
A7: Cuenca | B7: Nombre | C7: Cp | D7: Ar | E7: Uc (a) | F7: Uc (b) | G7: Uc (c) | H7: Uc | I7: R | J7: Im | K7: Ex | L7: Ev | M7: Dv | N7: Ab | O7: Rxy | P7: Ab - Rxy | Q7: D | S7: ECUACIONES
A8: 1 | B8: Río Lerma 1 | C8: 228.529 | D8: 0 | E8: 94.43909 | F8: 0.502272 | G8: 0 | H8: =E8+F8+G8 -> 94.941362 | I8: 65.65627128 | J8: 44.371152 | K8: 0 | L8: 12.157 | M8: -0.575 | N8: =T204 -> 232.0330613 | O8: =BE204 -> 232.0332287 | P8: =N8-O8 -> -0.0001673669615 | Q8: =P8 -> -0.0001673669615
A9: 2 | B9: Río La Gavia | C9: 104.118 | D9: 0 | E9: 31.5353396 | F9: 0.5835 | G9: 0 | H9: =E9+F9+G9 -> 32.1188396 | I9: 4.0560743 | J9: 0 | K9: 0 | L9: 12.774 | M9: 0.004 | N9: =T206 -> 63.2772347 | O9: =+BE206 -> 63.27728034 | P9: =N9-O9 -> -4.564228239e-05 | Q9: =P9 -> -4.564228239e-05 | S9: Ab = Cp + Ar + R + Im - (Uc(a) + Uc(b) + Uc(c) + Ev + Ex + Av)
A10: 3 | B10: Río Jaltepec | C10: 92.501 | D10: 0 | E10: 32.7560466 | F10: 1.056 | G10: 0 | H10: 33.8120466 | I10: 5.32243095 | J10: 0 | K10: 0 | L10: 14.351 | M10: 0.904 | N10: =T208 -> 48.75638435 | O10: =+BE208 -> 48.75641952 | P10: -3.516829825e-05 | Q10: =P10 -> -3.516829825e-05 | S10: D = Ab - Rxy
A11: 4 | B11: Río Lerma 2 | C11: 386.84 | D11: =N10+N9+N8 -> 344.0666803 | E11: 594.4614637 | F11: 0.612040205 | G11: 0 | H11: 595.0735039 | I11: 16.71227327 | J11: 0 | K11: 0 | L11: 74.511 | M11: 2.486 | N11: =+T210 -> 75.54844974 | O11: =+BE210 -> 75.548989 | P11: -0.0005392624309 | Q11: -0.0005392624309
A12: 5 | B12: Río Lerma 3 | C12: 475.613 | D12: =N11 -> 75.54844974 | E12: 950.6370003 | F12: 0.5666731 | G12: 0 | H12: 951.2036734 | I12: 501.4412275 | J12: 0 | K12: 0 | L12: 91.506 | M12: 6.517 | N12: =+T212 -> 3.376003829 | O12: =+BE212 -> 3.383517273 | P12: -0.007513444425 | Q12: -0.007513444425 | S12: SIMBOLOGIA
A13: 6 | B13: Río Lerma 4 | C13: 102.836 | D13: =N16+N12 -> 119.5418031 | E13: 436.864263 | F13: 0.005 | G13: 0 | H13: 436.869263 | I13: 761.5931078 | J13: 118.2549383 | K13: 587.9076177 | L13: 6.417 | M13: 0 | N13: =T222 -> 71.03196851 | O13: =BE222 -> 73.48502042 | P13: -2.453051916 | Q13: -2.453051916
A14: 7 | B14: Río La Laja 1 | C14: 251.617 | D14: 0 | E14: 108.5032958 | F14: 0.6 | G14: 0 | H14: 109.1032958 | I14: 16.12737825 | J14: 0 | K14: 0 | L14: 52.416 | M14: 1.973 | N14: =+T214 -> 104.2520825 | O14: =+BE214 -> 104.3567478 | P14: -0.104665348 | Q14: -0.104665348 | S14: Cp.- Volumen medio anual de escurrimiento natural
A15: 8 | B15: Río Querétaro | C15: 105.229 | D15: 0 | E15: 121.6433751 | F15: 0.00365 | G15: 0 | H15: 121.6470251 | I15: 66.06822562 | J15: 0 | K15: 0 | L15: 12.111 | M15: 0 | N15: =+T216 -> 37.5392005 | O15: =+BE216 -> 37.57688851 | P15: -0.03768800959 | Q15: -0.03768800959 | S15: Ar.- Volumen medio anual de escurrimiento desde la cuenca aguas arriba
A16: 9 | B16: Río La Laja 2 | C16: 77.311 | D16: =N15+N14 -> 141.791283 | E16: 138.5354762 | F16: 0.306 | G16: 0 | H16: 138.8414762 | I16: 38.40899248 | J16: 0 | K16: 0 | L16: 2.504 | M16: 0 | N16: =+T218 -> 116.1657993 | O16: =+BE218 -> 116.4243313 | P16: -0.2585320755 | Q16: -0.2585320755 | S16: Uc (a).- Volumen anual de extracción de agua superficial mediante títulos inscritos actualmente en el REPDA
A17: 10 | B17: Laguna de Yuríria | C17: 188.609 | D17: 0 | E17: 4.5329598 | F17: 0 | G17: 0 | H17: 4.5329598 | I17: 1.27810365 | J17: 96.69761771 | K17: 118.2549383 | L17: 169.965 | M17: -3.65 | N17: =+T220 -> -2.518176781 | O17: =+BE220 -> 0 | P17: =N17-O17 -> -2.518176781 | Q17: =P17 -> -2.518176781 | S17: Uc (b).- Volumen anual de extracción de agua superficial de títulos en proceso de inscripción en el REPDA
A18: 11 | B18: Río Turbio | C18: 183.395 | D18: 0 | E18: 187.3398666 | F18: 0 | G18: 0 | H18: 187.3398666 | I18: 115.7788846 | J18: 0 | K18: 0 | L18: 19.408 | M18: 0 | N18: =+T224 -> 92.42601803 | O18: =+BE224 -> 95.61790227 | P18: -3.191884238 | Q18: -3.191884238 | S18: Uc (c).- Volumen anual correspondiente a las reservas y las zonas reglamentadas
A19: 12 | B19: Río Angulo | C19: 352.204 | D19: 0 | E19: 276.3524565 | F19: 0 | G19: 0 | H19: 276.3524565 | I19: 213.9078248 | J19: 0 | K19: 0 | L19: 36.8 | M19: 0.526 | N19: =+T226 -> 252.4333683 | O19: =+BE226 -> 261.1510227 | P19: -8.717654471 | Q19: -8.717654471 | S19: R.- Volumen anual de retornos
A20: 13 | B20: Río Lerma 5 | C20: 279.948 | D20: =N19+N18+N13 -> 415.8913548 | E20: 680.9842871 | F20: 1.629627 | G20: 0 | H20: 682.6139141 | I20: 117.8007653 | J20: 491.21 | K20: 0 | L20: 27.5 | M20: 0 | N20: =+T228 -> 594.736206 | O20: =+BE228 -> 639.7985231 | P20: -45.06231708 | Q20: -45.06231708 | S20: Im.- Volumen anual de importaciones
A21: 14 | B21: Río Lerma 6 | C21: 307.195 | D21: =N20 -> 594.736206 | E21: 295.7448874 | F21: 0 | G21: 0 | H21: 295.7448874 | I21: 29.76275438 | J21: 0 | K21: 92.39 | L21: 27.107 | M21: 0 | N21: =+T230 -> 516.452073 | O21: =+BE230 -> 587.0452002 | P21: -70.59312724 | Q21: -70.59312724 | S21: Ex.- Volumen anual de exportaciones
A22: 15 | B22: Río Zula | C22: 209.175 | D22: 0 | E22: 80.04129698 | F22: 0 | G22: 0 | H22: 80.04129698 | I22: 9.499498135 | J22: 0 | K22: 0 | L22: 10.982 | M22: 0 | N22: =+T232 -> 127.6512012 | O22: =+BE232 -> 145.0996692 | P22: -17.44846803 | Q22: =P22 -> -17.44846803 | S22: Ev.- Volumen medio anual de evaporación en embalses
A23: 16 | B23: Río Duero | C23: 504.67 | D23: 0 | E23: 490.1151459 | F23: 0 | G23: 0 | H23: 490.1151459 | I23: 266.1755661 | J23: 0 | K23: 0 | L23: 6.295 | M23: 0 | N23: =+T234 -> 274.4354202 | O23: =+BE234 -> 311.9476223 | P23: -37.5122021 | Q23: -37.5122021 | S23: Av.- Volumen medio anual de variación de almacenamiento en embalses
A24: 17 | B24: Río Lerma 7 | C24: 787.314 | D24: =N23+N22+N21 -> 918.5386943 | E24: 445.7809064 | F24: 0 | G24: 0 | H24: 445.7809064 | I24: 35.62882341 | J24: 92.39 | K24: 325.71 | L24: 1391.729 | M24: -78.679 | N24: =+T236 -> -250.6693886 | O24: =+BE236 -> 0 | P24: -250.6693886 | Q24: -250.6693886 | S24: Ab.- Volumen medio anual de escurrimiento de la cuenca hacia aguas abajo
A25: 18 | B25: Lago de Pátzcuaro | C25: 69.58 | D25: 0 | E25: 27.49645916 | F25: 0 | G25: 0 | H25: 27.49645916 | I25: 2.924202516 | J25: 0 | K25: 0 | L25: 105.93 | M25: 0 | N25: =+T238 -> -60.92225664 | O25: =+BE238 -> 0 | P25: -60.92225664 | Q25: -60.92225664 | S25: Rxy.- Volumen anual actual comprometido aguas abajo y volumenes decretados para reservas medio ambiente
A26: 19 | B26: Lago de Cuitzeo | C26: 488.54 | D26: 0 | E26: 177.7019058 | F26: 0.012996384 | G26: 0 | H26: 177.7149022 | I26: 98.92226436 | J26: 0 | K26: 0 | L26: 443.293 | M26: -2.017 | N26: =+T240 -> -31.52863784 | O26: =+BE240 -> 0 | P26: -31.52863784 | Q26: -31.52863784 | S26: D.- Disponibilidad media anual de agua superficial en la cuenca hidrológica
A27: 20 | B27: Río San Pedro | C27: 85.521 | D27: =N28 -> 69.97258207 | E27: 75.15373854 | F27: 0.061327 | G27: 3.75 | H27: 78.96506554 | I27: 7.655332504 | J27: 0 | K27: 14.16497623 | L27: 0 | M27: 0 | N27: =$S$120 -> 70.01887281 | O27: =$AQ$120 -> 70.0128878 | P27: 0.005985012901 | Q27: =N27-O27 -> 0.005985012901
A28: 21 | B28: Presa Calles | C28: 78.137 | D28: 0 | E28: 4.096271 | F28: 0.04785 | G28: 0 | H28: 4.144121 | I28: 0.60372685 | J28: 127.6949762 | K28: 113.53 | L28: 14.063 | M28: 4.726 | N28: =+S122 -> 69.97258207 | O28: =$AQ$122 -> 69.97001518 | P28: 0.002566899127 | Q28: 0.002566899127
A29: 22 | B29: Presa El Niágara | C29: 41.302 | D29: =N27 -> 70.01887281 | E29: 57.94169916 | F29: 0.40414824 | G29: 115.40962 | H29: 173.7554674 | I29: 7.218807291 | J29: 113.53 | K29: 0 | L29: 7.197 | M29: 0.114 | N29: =+S124 -> 51.0032127 | O29: =$AQ$124 -> 50.98337605 | P29: 0.01983665223 | Q29: 0.01983665223
A30: 23 | B30: Presa El Cuarenta | C30: 61.996 | D30: 0 | E30: 25.7657591 | F30: 0.94173045 | G30: 0.358 | H30: 27.06548955 | I30: 2.795481198 | J30: 0 | K30: 0 | L30: 2.586 | M30: -0.176 | N30: =+S126 -> 35.31599165 | O30: =$AQ$126 -> 35.30451926 | P30: 0.01147239275 | Q30: 0.01147239275
A31: 24 | B31: Río de Lagos | C31: 131.679 | D31: =N30 -> 35.31599165 | E31: 47.20849678 | F31: 2.91719069 | G31: 2.678 | H31: 52.80368747 | I31: 5.201531978 | J31: 0 | K31: 0 | L31: 9.728 | M31: 0 | N31: =+S128 -> 109.6648362 | O31: =$AQ$128 -> 109.6088981 | P31: 0.0559380059 | Q31: 0.0559380059
A32: 25 | B32: Presa Ajojucar | C32: 57.144 | D32: =N29 -> 51.0032127 | E32: 14.27351575 | F32: 0.64105862 | G32: 0.044 | H32: 14.95857437 | I32: 1.558761013 | J32: 0 | K32: 0 | L32: 2.315 | M32: 0 | N32: =+S130 -> 92.43239935 | O32: =$AQ$130 -> 92.38973146 | P32: 0.04266788566 | Q32: 0.04266788566
A33: 26 | B33: Río Grande | C33: 21.569 | D33: 0 | E33: 1.5286785 | F33: 0.61434308 | G33: 0.386 | H33: 2.52902158 | I33: 0.22907065 | J33: 0 | K33: 0 | L33: 1.615 | M33: 0 | N33: =+S132 -> 17.65404907 | O33: =$AQ$132 -> 17.64589975 | P33: 0.008149317258 | Q33: 0.008149317258
A34: 27 | B34: Río Encarnación | C34: 100.647 | D34: 0 | E34: 27.49393632 | F34: 2.476131045 | G34: 2.931 | H34: 32.90106736 | I34: 3.097386282 | J34: 0 | K34: 0 | L34: 12.405 | M34: 0 | N34: =+S134 -> 58.43831892 | O34: =$AQ$134 -> 58.4113431 | P34: 0.02697581722 | Q34: 0.02697581722
A35: 28 | B35: Río Aguascalientes | C35: 32.833 | D35: =N32+N33+N34 -> 168.5247673 | E35: 15.3958353 | F35: 0.73406437 | G35: 0.025 | H35: 16.15489967 | I35: 2.317145345 | J35: 0 | K35: 0 | L35: 3.199 | M35: 0 | N35: =+S136 -> 184.321013 | O35: =$AQ$136 -> 184.2269943 | P35: 0.09401874178 | Q35: 0.09401874178
A36: 29 | B36: Río San Miguel | C36: 74.036 | D36: 0 | E36: 4.09267241 | F36: 1.17573062 | G36: 0.569 | H36: 5.83740303 | I36: 0.6730201575 | J36: 0 | K36: 0 | L36: 2.268 | M36: 0 | N36: =+S138 -> 66.60361713 | O36: =$AQ$138 -> 66.56964385 | P36: 0.03397327401 | Q36: 0.03397327401
A37: 30 | B37: Río del Valle | C37: 60.704 | D37: 0 | E37: 12.35850945 | F37: 0.8115647 | G37: 27.5240928 | H37: 40.69416695 | I37: 9.148182937 | J37: 0 | K37: 0 | L37: 10.989 | M37: 0 | N37: =+S140 -> 18.16901599 | O37: =$AQ$140 -> 18.15974831 | P37: 0.009267679222 | Q37: 0.009267679222
A38: 31 | B38: Río Verde 1 | C38: 164.452 | D38: =N37+N36+N31+N35 -> 378.7584823 | E38: 26.3826218 | F38: 1.39501122 | G38: 0.889 | H38: 28.66663302 | I38: 3.34224107 | J38: 0 | K38: 119.837 | L38: 3.752 | M38: 0 | N38: =+S142 -> 394.2970903 | O38: =$AQ$142 -> 394.0183039 | P38: 0.2787864418 | Q38: 0.2787864418
A39: 32 | B39: Río Verde 2 | C39: 187.33 | D39: =N38 -> 394.2970903 | E39: 201.0602667 | F39: 1.46552456 | G39: 159.042396 | H39: 361.5681873 | I39: 5.976878463 | J39: 0 | K39: 0 | L39: 4.573 | M39: 0 | N39: =+S144 -> 221.4627815 | O39: =$AQ$144 -> 221.0473181 | P39: 0.4154634251 | Q39: 0.4154634251
A40: 33 | B40: Río Palomas | C40: 29.112 | D40: 0 | E40: 0.65531 | F40: 0 | G40: 0.04 | H40: 0.69531 | I40: 0.0663825 | J40: 0 | K40: 0 | L40: 1.544 | M40: 0 | N40: =$S$152 -> 26.9390725 | O40: =$AO$152 -> 26.93671183 | P40: 0.002360670654 | Q40: 0.002360670654
A41: 34 | B41: Presa El Chique | C41: 95.452 | D41: =N40 -> 26.9390725 | E41: 48.3271205 | F41: 0.388 | G41: 0.927 | H41: 49.6421205 | I41: 4.99968235 | J41: 0 | K41: 0 | L41: 11.481 | M41: -0.167 | N41: =$S$154 -> 66.43463435 | O41: =$AO$154 -> 66.4234711 | P41: 0.01116325058 | Q41: 0.01116325058
A42: 35 | B42: Río Juchipila 1 | C42: 149.129 | D42: =N41 -> 66.43463435 | E42: 87.6356505 | F42: 1.021497 | G42: 0 | H42: 88.6571475 | I42: 9.135364718 | J42: 0 | K42: 113.53 | L42: 6.499 | M42: -0.08 | N42: =$S$156 -> 16.09285157 | O42: =$AO$156 -> 16.05509459 | P42: 0.03775698106 | Q42: 0.03775698106
A43: 36 | B43: Río Juchipila 2 | C43: 186.365 | D43: =N42 -> 16.09285157 | E43: 20.352645 | F43: 1.994578 | G43: 0.046 | H43: 22.393223 | I43: 3.42754625 | J43: 0 | K43: 0 | L43: 0.937 | M43: 0 | N43: =$S$158 -> 182.5551748 | O43: =$AO$158 -> 182.0721274 | P43: 0.4830474595 | Q43: 0.4830474595
A44: 37 | B44: Río Santiago 1 | C44: 474.193 | D44: 0 | E44: 1877.522522 | F44: 0 | G44: 14.036 | H44: 1891.558522 | I44: 1746.321153 | J44: 168.3957697 | K44: 0 | L44: 38.927 | M44: 0.308 | N44: =$S$166 -> 458.1164003 | O44: =$AO$166 -> 457.2569755 | P44: 0.8594248093 | Q44: 0.8594248093
A45: 38 | B45: Río Santiago 2 | C45: 385.853 | D45: =N44+N39 -> 679.5791818 | E45: 384.9962022 | F45: 0 | G45: 70.743 | H45: 455.7392022 | I45: 357.012416 | J45: =157314230.282581/1000000 -> 157.3142303 | K45: 0 | L45: 3.996 | M45: 0 | N45: =+S168 -> 1120.023626 | O45: =$AO$168 -> 1117.060004 | P45: 2.96362219 | Q45: 2.96362219
A46: 39 | B46: Presa Santa Rosa | C46: 446.638 | D46: =N45+N43 -> 1302.578801 | E46: 1574.162937 | F46: 2.45628348 | G46: 2.585 | H46: 1579.20422 | I46: 1560.922085 | J46: 0 | K46: 0 | L46: 15.53 | M46: 6.319 | N46: =+S170 -> 1709.085666 | O46: =$AO$170 -> 1700.326921 | P46: 8.758744752 | Q46: 8.758744752
A47: 40 | B47: Río Santiago 3 | C47: 401.491 | D47: =N46 -> 1709.085666 | E47: 3.965674 | F47: 0 | G47: 3.743 | H47: 7.708674 | I47: 1.32265905 | J47: 0 | K47: 0 | L47: 0.341 | M47: 0 | N47: =+S172 -> 2103.849651 | O47: =$AO$172 -> 2093.026561 | P47: 10.8230895 | Q47: 10.8230895
A48: 41 | B48: Río Tepetongo | C48: 84.203 | D48: 0 | E48: 42.0439012 | F48: 0.43765 | G48: 3.661 | H48: 46.1425512 | I48: 4.38779662 | J48: 0 | K48: 0 | L48: 10.438 | M48: 0.461 | N48: =+S174 -> 31.54924542 | O48: =$AO$174 -> 31.39192931 | P48: 0.1573161127 | Q48: 0.1573161127
A49: 42 | B49: Río Tlaltenango | C49: 242.191 | D49: 0 | E49: 75.18425082 | F49: 0.100125 | G49: 0.213 | H49: 75.49737582 | I49: 8.263285957 | J49: 0 | K49: 0 | L49: 7.96 | M49: 1.258 | N49: =+S176 -> 165.7389101 | O49: =$AO$176 -> 164.9124751 | P49: 0.8264350135 | Q49: 0.8264350135
A50: 43 | B50: Arroyo Lobatos | C50: 65.279 | D50: 0 | E50: 6.98114 | F50: 0.5505 | G50: 0 | H50: 7.53164 | I50: 0.9019901 | J50: 0 | K50: 0 | L50: 1.015 | M50: 0.001 | N50: =+S178 -> 57.6333501 | O50: =$AO$178 -> 57.34596907 | P50: 0.2873810286 | Q50: 0.2873810286
A51: 44 | B51: Río Bolaños 1 | C51: 392.703 | D51: =N48+N49+N50 -> 254.9215057 | E51: 13.1919325 | F51: 0 | G51: 0.6 | H51: 13.7919325 | I51: 2.042997125 | J51: 0 | K51: 0 | L51: 1.932 | M51: 0 | N51: =+S180 -> 633.9435703 | O51: =$AO$180 -> 630.7040898 | P51: 3.239480524 | Q51: 3.239480524
A52: 45 | B52: Río Bolaños 2 | C52: 285.894 | D52: =N51 -> 633.9435703 | E52: 4.48815107 | F52: 0 | G52: 0.678 | H52: 5.16615107 | I52: 1.290189896 | J52: 0 | K52: 0 | L52: 0.989 | M52: 0 | N52: =+S182 -> 914.9726091 | O52: =$AO$182 -> 910.2656043 | P52: 4.707004817 | Q52: 4.707004817
A53: 46 | B53: Río San Juan | C53: 406.664 | D53: 0 | E53: 51.72289893 | F53: 52.701433 | G53: 0.151 | H53: 104.5753319 | I53: 75.8714562 | J53: 0 | K53: 0 | L53: 1.7 | M53: 0 | N53: =+S184 -> 376.2601243 | O53: =$AO$184 -> 362.081309 | P53: 14.17881531 | Q53: 14.17881531
A54: 47 | B54: Río Atengo | C54: 762.675 | D54: =N53 -> 376.2601243 | E54: 3.03683522 | F54: 0.0082125 | G54: 3.7968609 | H54: 6.84190862 | I54: 1.095729668 | J54: 0 | K54: 0 | L54: 0.645 | M54: 0 | N54: =+S186 -> 1132.543945 | O54: =$AO$186 -> 1089.583541 | P54: 42.96040395 | Q54: 42.96040395
A55: 48 | B55: Río Jesús María | C55: 370.41 | D55: 0 | E55: 0.74764834 | F55: 0 | G55: 0.1132611 | H55: 0.86090944 | I55: 0.560736255 | J55: 0 | K55: 0 | L55: 0 | M55: 0 | N55: =+S188 -> 370.1098268 | O55: =$AO$188 -> 356.152904 | P55: 13.95692277 | Q55: 13.95692277
A56: 49 | B56: Río Huaynamota | C56: 242.99 | D56: =N55 -> 370.1098268 | E56: 0.72189445 | F56: 0 | G56: 2.8765476 | H56: 3.59844205 | I56: 0.5414208375 | J56: 0 | K56: 0 | L56: 0 | M56: 0 | N56: =+S190 -> 610.0428056 | O56: =$AO$190 -> 586.9022595 | P56: 23.14054608 | Q56: 23.14054608
A57: 50 | B57: Río Santiago 4 | C57: 351.153 | D57: =N47+N52 -> 3018.82226 | E57: 5413.211948 | F57: 0 | G57: 0.670328 | H57: 5413.882276 | I57: 2955.994013 | J57: 0 | K57: 0 | L57: 53.155 | M57: 1.005 | N57: =+S192 -> 857.9269965 | O57: =$AO$192 -> 825.3835438 | P57: 32.54345271 | Q57: 32.54345271
A58: 51 | B58: Río Santiago 5 | C58: 402.327 | D58: =N57+N56+N54 -> 2600.513747 | E58: 4172.79965 | F58: 0 | G58: 2.6320853 | H58: 4175.431735 | I58: 2457.989965 | J58: 0 | K58: 0 | L58: 132.691 | M58: -11.532 | N58: =+S194 -> 1164.239977 | O58: =$AO$194 -> 957.0961442 | P58: 207.1438325 | Q58: 207.1438325
A59: 52 | B59: Río Santiago 6 | C59: 734.065 | D59: =N58 -> 1164.239977 | E59: 4677.806016 | F59: 0.001825 | G59: 68.4477337 | H59: 4746.255575 | I59: 8591.339333 | J59: 0 | K59: 167.624895 | L59: 4.286 | M59: 0 | N59: =+S196 -> 5571.47784 | O59: =AB196 -> 3705.14 | P59: 1866.33784 | Q59: 1866.33784
A60: 53 | B60: Laguna Villa Corona A | C60: 35.93 | D60: 0 | E60: 1.663775 | F60: 0 | G60: 0 | H60: 1.663775 | I60: 0.718510325 | J60: 0 | K60: 0 | L60: 7.192 | M60: -0.15 | N60: =C60-H60-K60-L60-M60+I60+J60+D60 -> 27.94273532 | O60: =N60 -> 27.94273532 | P60: 0 | Q60: =P60 -> 0
A61: 54 | B61: Laguna Villa Corona B | C61: 62.5 | D61: =N60 -> 27.94273532 | E61: 20.365925 | F61: 0 | G61: 0 | H61: 20.365925 | I61: 2.03718875 | J61: 0 | K61: 0 | L61: 50.062 | M61: 0 | N61: 22.05199907 | O61: =N61 -> 22.05199907 | P61: 0 | Q61: 0
A62: 55 | B62: Laguna San Marcos-Zacoalco | C62: 47.09 | D62: 0 | E62: 0.109292 | F62: 0 | G62: 0 | H62: 0.109292 | I62: 0.081969 | J62: 0 | K62: 0 | L62: 71.852 | M62: 0 | N62: =C62-H62-K62-L62-M62+I62+J62+D62 -> -24.789323 | O62: 0 | P62: -24.789323 | Q62: -24.789323
A63: 56 | B63: Laguna de Sayula A | C63: 12.67 | D63: 0 | E63: 0.1956625 | F63: 0 | G63: 0 | H63: 0.1956625 | I63: 0.100842175 | J63: 0 | K63: 0 | L63: 2.092 | M63: 0.784 | N63: 9.699179675 | O63: =$BE$262 -> 11.46030699 | P63: -1.76112732 | Q63: -1.76112732
A64: 57 | B64: Laguna de Sayula B | C64: 204.18 | D64: =N63 -> 9.699179675 | E64: 36.0168155 | F64: 0 | G64: 0 | H64: 36.0168155 | I64: 4.303198225 | J64: 0 | K64: 0 | L64: 221.393 | M64: 0.389 | N64: -39.6164376 | O64: =$BE$264 -> 0 | P64: -39.6164376 | Q64: -39.6164376
A65: 58 | B65: Laguna de Zapotlán | C65: 76 | D65: 0 | E65: 3.1641395 | F65: 0.077125 | G65: 0 | H65: 3.2412645 | I65: 1.265798125 | J65: 0 | K65: 0 | L65: 17.198 | M65: 0 | N65: 56.82653363 | O65: 45.54 | P65: 11.28653363 | Q65: 11.28653363
B66: Totales | C66: =SUM(C8:C65) -> 13239.731 | E66: =SUM(E8:E65) -> 24209.28746 | F66: =SUM(F8:F65) -> 79.30066226 | G66: 489.5659254 | H66: 24778.15405 | I66: 20208.87594 | J66: 1409.858684 | K66: 1652.949427 | L66: 3256.301 | M66: -69.251 | P66: =SUM(P8:P65) -> 1648.517037 | Q66: =Q59+Q65 -> 1877.624374
A67: Valores en millones de metros cúbicos
B115: RIO VERDE
A116: No LINEA | B116: CUENCA O REGION | C116: CONEXION | H116: OFERTA POTENCIAL | M116: DEMANDA CONSUNTIVA | U116: OFERTA REAL | AB116: EXTRACC Y VOLS RESERV PARA A ABAJO | AN116: POR CUENCA PROPIA | AQ116: A LA SAL. DEL C PRINCIPAL | AS116: DISPONIBILIDAD RELATIVA | BN116: Disponibilidad Hídrica
B117: HIDROLOGICA | C117: DE | D117: HACIA | H117: Cp | I117: Cp A Arriba | J117: Im | K117: R | L117: TOTAL | M117: Uc | N117: Ev | O117: Ex | P117: TOTAL | Q117: TOTAL ACUM. | R117: Dv | S117: Ab | T117: Ab | U117: Cp | V117: Ar1 | W117: Ar2 | X117: Ar3 | Y117: Ar4 | Z117: Im | AA117: TOTAL | AB117: Uc | AC117: Re1 | AD117: Re2 | AE117: RImp | AF117: TOTAL | AG117: para Cp | AH117: para Ar1 | AI117: para Ar2 | AJ117: para Ar3 | AK117: para Ar4 | AL117: para Im | AM117: TOTAL | AN117: RESERVADO | AO117: DISPONIBLE | AP117: DImp | AQ117: RESERVADO | AR117: DISPONIBLE | AS117: INDICE | AT117: CLAVE | AU117: COLOR
A118: Cuenca del río Verde
U119: =IF(U120=0,"",U120/(SUM($U120:$Z120))) -> 0.5711121814 | V119: 0.4288878186 | AA119: =SUM(U119:Z119) -> 1 | AG119: =IF(U119=0,"",U119) -> 0.5711121814 | AH119: 0.4288878186 | AM119: =SUM(AG119:AL119) -> 1
A120: 1 | B120: 1 | C120: 2 | D120: 3 | H120: =C27 -> 85.521 | I120: =T122 -> 69.97258207 | J120: =$J$27 -> 0 | K120: =$I$27 -> 7.655332504 | L120: =SUM(H120:K120) -> 163.1489146 | M120: =$H$27 -> 78.96506554 | N120: =$L$27 -> 0 | O120: =$K$27 -> 14.16497623 | P120: =SUM(M120:O120) -> 93.13004177 | Q120: =+P120 -> 93.13004177 | R120: =$M$27 -> 0 | S120: =L120-Q120-R120 -> 70.01887281 | T120: =IF(S120>=0,S120,0) -> 70.01887281 | U120: =K120+H120 -> 93.1763325 | V120: =T122 -> 69.97258207 | Z120: =J120 -> 0 | AA120: 163.1489146 | AB120: =+Q120 -> 93.13004177 | AC120: =(AB124+AC124+R124)*V123 -> 70.0128878 | AD120: =(AB120+AC120+R120)*U119 -> 93.17291439 | AE120: =IF(Z120>0,(AB120+R120+AC120)*Z119,"") ->  | AF120: =SUM(AB120:AD120) -> 256.315844 | AG120: =IF(AG119="","",$AF120*AG119) -> 146.3851008 | AH120: 109.9307432 | AM120: 256.315844 | AN120: =+U120 -> 93.1763325 | AO120: =IF(D120="MAR",IF((AN120-AC120)<0,0,AN120-AC120),IF(D120="Cerrada",IF((AN120-AC120)<0,0,AN120-AC120),IF((AN120-AD120)<0,0,AN120-AD120))) -> 0.003418113774 | AP120: =IF(Z120=0,"",IF(Z120-AE120<0,0,Z120-AE120)) ->  | AQ120: =+AC120 -> 70.0128878 | AR120: =T120-AQ120 -> 0.005985012901 | AS120: =(I120+U120+Z120)/(AB120+R120+AC120) -> 1.000036686 | AT120: =IF(AS120<1.4,"1", IF(AS120<3,"2", IF(AS120<9,"3", "4"))) -> 1 | AU120: =IF(AS120<1.4,"ROJO", IF(AS120<3,"AMARILLO", IF(AS120<9,"VERDE", "AZUL"))) -> ROJO | AV120: =IF(AS120<1.4,"Déficit", IF(AS120<3,"Equilibrio", IF(AS120<9,"Disponibilidad", "Abundante"))) -> Déficit | BN120: =SUM(AO120:AP120) -> 0.003418113774
U121: =IF(U122=0,"",U122/(SUM($U122:$Z122))) -> 0.3814297899 | Z121: 0.6185702101 | AA121: 1 | AG121: =IF(U121=0,"",U121) -> 0.3814297899 | AL121: 0.6185702101 | AM121: 1
A122: 2 | B122: 2 | D122: 1 | H122: =C28 -> 78.137 | J122: =J28 -> 127.6949762 | K122: =I28 -> 0.60372685 | L122: =SUM(H122:K122) -> 206.4357031 | M122: =+H28 -> 4.144121 | N122: =+L28 -> 14.063 | O122: =+K28 -> 113.53 | P122: =SUM(M122:O122) -> 131.737121 | Q122: =+P122 -> 131.737121 | R122: =+M28 -> 4.726 | S122: =L122-Q122-R122 -> 69.97258207 | T122: =IF(S122>=0,S122,0) -> 69.97258207 | U122: =K122+H122 -> 78.74072685 | Z122: =J122 -> 127.6949762 | AA122: 206.4357031 | AB122: =+Q122 -> 131.737121 | AC122: =(AB120+AC120+R120)*V119 -> 69.97001518 | AD122: =(AB122+AC122+R122)*U121 -> 78.73974776 | AE122: =IF(Z122>0,(AB122+R122+AC122)*Z121,"") -> 127.6933884 | AF122: =SUM(AB122:AD122) -> 280.4468839 | AG122: =IF(AG121="","",$AF122*AG121) -> 106.970796 | AL122: 173.4760879 | AM122: 280.4468839 | AN122: =+U122 -> 78.74072685 | AO122: =IF(D122="MAR",IF((AN122-AC122)<0,0,AN122-AC122),IF(D122="Cerrada",IF((AN122-AC122)<0,0,AN122-AC122),IF((AN122-AD122)<0,0,AN122-AD122))) -> 0.0009790917948 | AP122: =IF(Z122=0,"",IF(Z122-AE122<0,0,Z122-AE122)) -> 0.001587807332 | AQ122: =+AC122 -> 69.97001518 | AR122: =T122-AQ122 -> 0.002566899127 | AS122: =(I122+U122+Z122)/(AB122+R122+AC122) -> 1.000012435 | AT122: =IF(AS122<1.4,"1", IF(AS122<3,"2", IF(AS122<9,"3", "4"))) -> 1 | AU122: =IF(AS122<1.4,"ROJO", IF(AS122<3,"AMARILLO", IF(AS122<9,"VERDE", "AZUL"))) -> ROJO | AV122: =IF(AS122<1.4,"Déficit", IF(AS122<3,"Equilibrio", IF(AS122<9,"Disponibilidad", "Abundante"))) -> Déficit | BN122: =SUM(AO122:AP122) -> 0.002566899127
U123: =IF(U124=0,"",U124/(SUM($U124:$Z124))) -> 0.209078615 | V123: 0.3017148676 | Z123: 0.4892065174 | AA123: 1 | AG123: =IF(U123=0,"",U123) -> 0.209078615 | AH123: 0.3017148676 | AL123: 0.4892065174 | AM123: 1
A124: 3 | B124: 3 | C124: 1, 2 | D124: 6 | H124: =C29 -> 41.302 | I124: =T120 -> 70.01887281 | J124: =J29 -> 113.53 | K124: =+I29 -> 7.218807291 | L124: =SUM(H124:K124) -> 232.0696801 | M124: =+H29 -> 173.7554674 | N124: =+L29 -> 7.197 | O124: =+K29 -> 0 | P124: =SUM(M124:O124) -> 180.9524674 | Q124: =+P124 -> 180.9524674 | R124: =+M29 -> 0.114 | S124: =L124-Q124-R124 -> 51.0032127 | T124: =IF(S124>=0,S124,0) -> 51.0032127 | U124: =K124+H124 -> 48.52080729 | V124: =+T120 -> 70.01887281 | Z124: =J124 -> 113.53 | AA124: 232.0696801 | AB124: =+Q124 -> 180.9524674 | AC124: =(R130+AB130+AC130)*V129 -> 50.98337605 | AD124: =(AB124+AC124+R124)*U123 -> 48.51665987 | AE124: =IF(Z124>0,(AB124+R124+AC124)*Z123,"") -> 113.5202958 | AF124: =SUM(AB124:AD124) -> 280.4525033 | AG124: =IF(AG123="","",$AF124*AG123) -> 58.63662096 | AH124: 84.61668992 | AI124: =IF(AI123="","",$AF124*AI123) ->  | AL124: 137.1991924 | AM124: 280.4525033 | AN124: =+U124 -> 48.52080729 | AO124: 0.004147419773 | AP124: =IF(Z124=0,"",IF(Z124-AE124<0,0,Z124-AE124)) -> 0.009704219554 | AQ124: =+AC124 -> 50.98337605 | AR124: =T124-AQ124 -> 0.01983665223 | AS124: =(I124+U124+Z124)/(AB124+R124+AC124) -> 1.000085484 | AT124: =IF(AS124<1.4,"1", IF(AS124<3,"2", IF(AS124<9,"3", "4"))) -> 1 | AU124: =IF(AS124<1.4,"ROJO", IF(AS124<3,"AMARILLO", IF(AS124<9,"VERDE", "AZUL"))) -> ROJO | AV124: =IF(AS124<1.4,"Déficit", IF(AS124<3,"Equilibrio", IF(AS124<9,"Disponibilidad", "Abundante"))) -> Déficit | BN124: 0.01385163933
U125: =IF(U126=0,"",U126/(SUM($U126:$Z126))) -> 1 | AA125: 1 | AG125: =IF(U125=0,"",U125) -> 1 | AM125: 1
A126: 4 | B126: 4 | D126: 5 | H126: =C30 -> 61.996 | J126: =J30 -> 0 | K126: =+I30 -> 2.795481198 | L126: =SUM(H126:K126) -> 64.7914812 | M126: =+H30 -> 27.06548955 | N126: =+L30 -> 2.586 | O126: =+K30 -> 0 | P126: =SUM(M126:O126) -> 29.65148955 | Q126: =+P126 -> 29.65148955 | R126: =+M30 -> -0.176 | S126: =L126-Q126-R126 -> 35.31599165 | T126: =IF(S126>=0,S126,0) -> 35.31599165 | U126: =K126+H126 -> 64.7914812 | Z126: =J126 -> 0 | AA126: 64.7914812 | AB126: =+Q126 -> 29.65148955 | AC126: =(R128+AB128+AC128)*V127 -> 35.30451926 | AD126: =(AB126+AC126+R126)*U125 -> 64.78000881 | AE126: =IF(Z126>0,(AB126+R126+AC126)*Z125,"") ->  | AF126: =SUM(AB126:AD126) -> 129.7360176 | AG126: =IF(AG125="","",$AF126*AG125) -> 129.7360176 | AM126: 129.7360176 | AN126: =+U126 -> 64.7914812 | AO126: 0.01147239275 | AP126: =IF(Z126=0,"",IF(Z126-AE126<0,0,Z126-AE126)) ->  | AQ126: =+AC126 -> 35.30451926 | AR126: =T126-AQ126 -> 0.01147239275 | AS126: =(I126+U126+Z126)/(AB126+R126+AC126) -> 1.000177098 | AT126: =IF(AS126<1.4,"1", IF(AS126<3,"2", IF(AS126<9,"3", "4"))) -> 1 | AU126: =IF(AS126<1.4,"ROJO", IF(AS126<3,"AMARILLO", IF(AS126<9,"VERDE", "AZUL"))) -> ROJO | AV126: =IF(AS126<1.4,"Déficit", IF(AS126<3,"Equilibrio", IF(AS126<9,"Disponibilidad", "Abundante"))) -> Déficit | BN126: 0.01147239275
U127: =IF(U128=0,"",U128/(SUM($U128:$Z128))) -> 0.7949088001 | V127: 0.2050911999 | AA127: 1 | AG127: =IF(U127=0,"",U127) -> 0.7949088001 | AH127: 0.2050911999 | AM127: 1
A128: 5 | B128: 5 | C128: 4 | D128: 12 | H128: =C31 -> 131.679 | I128: =+T126 -> 35.31599165 | J128: =J31 -> 0 | K128: =+I31 -> 5.201531978 | L128: =SUM(H128:K128) -> 172.1965236 | M128: =+H31 -> 52.80368747 | N128: =+L31 -> 9.728 | O128: =+K31 -> 0 | P128: =SUM(M128:O128) -> 62.53168747 | Q128: =+P128 -> 62.53168747 | R128: =+M31 -> 0 | S128: =L128-Q128-R128 -> 109.6648362 | T128: =IF(S128>=0,S128,0) -> 109.6648362 | U128: =K128+H128 -> 136.880532 | V128: =+T126 -> 35.31599165 | Z128: =J128 -> 0 | AA128: 172.1965236 | AB128: =+Q128 -> 62.53168747 | AC128: =(R142+AB142+AC142)*Y141 -> 109.6088981 | AD128: =(R128+AB128+AC128)*U127 -> 136.8360664 | AE128: =IF(Z128>0,(AB128+R128+AC128)*Z127,"") ->  | AF128: =SUM(AB128:AD128) -> 308.976652 | AG128: =IF(AG127="","",$AF128*AG127) -> 245.6082597 | AH128: 63.36839229 | AM128: 308.976652 | AN128: =+U128 -> 136.880532 | AO128: 0.04446561315 | AP128: =IF(Z128=0,"",IF(Z128-AE128<0,0,Z128-AE128)) ->  | AQ128: =+AC128 -> 109.6088981 | AR128: =T128-AQ128 -> 0.0559380059 | AS128: =(I128+U128+Z128)/(AB128+R128+AC128) -> 1.000324955 | AT128: =IF(AS128<1.4,"1", IF(AS128<3,"2", IF(AS128<9,"3", "4"))) -> 1 | AU128: =IF(AS128<1.4,"ROJO", IF(AS128<3,"AMARILLO", IF(AS128<9,"VERDE", "AZUL"))) -> ROJO | AV128: =IF(AS128<1.4,"Déficit", IF(AS128<3,"Equilibrio", IF(AS128<9,"Disponibilidad", "Abundante"))) -> Déficit | BN128: 0.04446561315
U129: =IF(U130=0,"",U130/(SUM($U130:$Z130))) -> 0.5350917459 | V129: 0.4649082541 | AA129: 1 | AG129: =IF(U129=0,"",U129) -> 0.5350917459 | AH129: 0.4649082541 | AM129: 1
A130: 6 | B130: 6 | C130: 3 | D130: 9 | H130: =C32 -> 57.144 | I130: =+T124 -> 51.0032127 | J130: =+J32 -> 0 | K130: =+I32 -> 1.558761013 | L130: =SUM(H130:K130) -> 109.7059737 | M130: =+H32 -> 14.95857437 | N130: =+L32 -> 2.315 | O130: =+K32 -> 0 | P130: =SUM(M130:O130) -> 17.27357437 | Q130: =+P130 -> 17.27357437 | R130: =+M32 -> 0 | S130: =L130-Q130-R130 -> 92.43239935 | T130: =IF(S130>=0,S130,0) -> 92.43239935 | U130: =K130+H130 -> 58.70276101 | V130: =+T124 -> 51.0032127 | Z130: =J130 -> 0 | AA130: 109.7059737 | AB130: =+Q130 -> 17.27357437 | AC130: =(R136+AB136+AC136)*X135 -> 92.38973146 | AD130: =(R130+AB130+AC130)*U129 -> 58.67992978 | AE130: =IF(Z130>0,(AB130+R130+AC130)*Z129,"") ->  | AF130: =SUM(AB130:AD130) -> 168.3432356 | AG130: =IF(AG129="","",$AF130*AG129) -> 90.07907585 | AH130: 78.26415976 | AM130: 168.3432356 | AN130: =+U130 -> 58.70276101 | AO130: 0.02283123343 | AP130: =IF(Z130=0,"",IF(Z130-AE130<0,0,Z130-AE130)) ->  | AQ130: =+AC130 -> 92.38973146 | AR130: =T130-AQ130 -> 0.04266788566 | AS130: =(I130+U130+Z130)/(AB130+R130+AC130) -> 1.000389081 | AT130: =IF(AS130<1.4,"1", IF(AS130<3,"2", IF(AS130<9,"3", "4"))) -> 1 | AU130: =IF(AS130<1.4,"ROJO", IF(AS130<3,"AMARILLO", IF(AS130<9,"VERDE", "AZUL"))) -> ROJO | AV130: =IF(AS130<1.4,"Déficit", IF(AS130<3,"Equilibrio", IF(AS130<9,"Disponibilidad", "Abundante"))) -> Déficit | BN130: 0.02283123343
U131: =IF(U132=0,"",U132/(SUM($U132:$Z132))) -> 1 | AA131: 1 | AG131: =IF(U131=0,"",U131) -> 1 | AM131: 1
A132: 7 | B132: 7 | D132: 9 | H132: =C33 -> 21.569 | J132: =+J33 -> 0 | K132: =+I33 -> 0.22907065 | L132: =SUM(H132:K132) -> 21.79807065 | M132: =+H33 -> 2.52902158 | N132: =+L33 -> 1.615 | O132: =+K33 -> 0 | P132: =SUM(M132:O132) -> 4.14402158 | Q132: =+P132 -> 4.14402158 | R132: =+M33 -> 0 | S132: =L132-Q132-R132 -> 17.65404907 | T132: =IF(S132>=0,S132,0) -> 17.65404907 | U132: =K132+H132 -> 21.79807065 | Z132: =J132 -> 0 | AA132: 21.79807065 | AB132: =+Q132 -> 4.14402158 | AC132: =(R136+AB136+AC136)*W135 -> 17.64589975 | AD132: =(AB132+AC132+R132)*U131 -> 21.78992133 | AE132: =IF(Z132>0,(AB132+R132+AC132)*Z131,"") ->  | AF132: =SUM(AB132:AD132) -> 43.57984267 | AG132: =IF(AG131="","",$AF132*AG131) -> 43.57984267 | AM132: 43.57984267 | AN132: =+U132 -> 21.79807065 | AO132: 0.008149317258 | AP132: =IF(Z132=0,"",IF(Z132-AE132<0,0,Z132-AE132)) ->  | AQ132: =+AC132 -> 17.64589975 | AR132: =T132-AQ132 -> 0.008149317258 | AS132: =(I132+U132+Z132)/(AB132+R132+AC132) -> 1.000373995 | AT132: =IF(AS132<1.4,"1", IF(AS132<3,"2", IF(AS132<9,"3", "4"))) -> 1 | AU132: =IF(AS132<1.4,"ROJO", IF(AS132<3,"AMARILLO", IF(AS132<9,"VERDE", "AZUL"))) -> ROJO | AV132: =IF(AS132<1.4,"Déficit", IF(AS132<3,"Equilibrio", IF(AS132<9,"Disponibilidad", "Abundante"))) -> Déficit | BN132: 0.008149317258
U133: =IF(U134=0,"",U134/(SUM($U134:$Z134))) -> 1 | AA133: 1 | AG133: =IF(U133=0,"",U133) -> 1 | AM133: 1
A134: 8 | B134: 8 | D134: 9 | H134: =C34 -> 100.647 | J134: =+J34 -> 0 | K134: =+I34 -> 3.097386282 | L134: =SUM(H134:K134) -> 103.7443863 | M134: =+H34 -> 32.90106736 | N134: =+L34 -> 12.405 | O134: =+K34 -> 0 | P134: =SUM(M134:O134) -> 45.30606736 | Q134: =+P134 -> 45.30606736 | R134: =+M34 -> 0 | S134: =L134-Q134-R134 -> 58.43831892 | T134: =IF(S134>=0,S134,0) -> 58.43831892 | U134: =K134+H134 -> 103.7443863 | Z134: =J134 -> 0 | AA134: 103.7443863 | AB134: =+Q134 -> 45.30606736 | AC134: =(R136+AB136+AC136)*V135 -> 58.4113431 | AD134: =(AB134+AC134+R134)*U133 -> 103.7174105 | AE134: =IF(Z134>0,(AB134+R134+AC134)*Z133,"") ->  | AF134: =SUM(AB134:AD134) -> 207.4348209 | AG134: =IF(AG133="","",$AF134*AG133) -> 207.4348209 | AM134: 207.4348209 | AN134: =+U134 -> 103.7443863 | AO134: 0.02697581722 | AP134: =IF(Z134=0,"",IF(Z134-AE134<0,0,Z134-AE134)) ->  | AQ134: =+AC134 -> 58.4113431 | AR134: =T134-AQ134 -> 0.02697581722 | AS134: =(I134+U134+Z134)/(AB134+R134+AC134) -> 1.00026009 | AT134: =IF(AS134<1.4,"1", IF(AS134<3,"2", IF(AS134<9,"3", "4"))) -> 1 | AU134: =IF(AS134<1.4,"ROJO", IF(AS134<3,"AMARILLO", IF(AS134<9,"VERDE", "AZUL"))) -> ROJO | AV134: =IF(AS134<1.4,"Déficit", IF(AS134<3,"Equilibrio", IF(AS134<9,"Disponibilidad", "Abundante"))) -> Déficit | BN134: 0.02697581722
U135: =IF(U136=0,"",U136/(SUM($U136:$Z136))) -> 0.172579651 | V135: 0.2869195727 | W135: 0.08667758261 | X135: 0.4538231937 | AA135: 1 | AG135: =IF(U135=0,"",U135) -> 0.172579651 | AH135: 0.2869195727 | AI135: 0.08667758261 | AJ135: 0.4538231937 | AM135: 1
A136: 9 | B136: 9 | C136: 6, 7, 8 | D136: 12 | H136: =C35 -> 32.833 | I136: =T134+T130+T132 -> 168.5247673 | J136: =+J35 -> 0 | K136: =+I35 -> 2.317145345 | L136: =SUM(H136:K136) -> 203.6749127 | M136: =+H35 -> 16.15489967 | N136: =+L35 -> 3.199 | O136: =+K35 -> 0 | P136: =SUM(M136:O136) -> 19.35389967 | Q136: =+P136 -> 19.35389967 | R136: =+M35 -> 0 | S136: =L136-Q136-R136 -> 184.321013 | T136: =IF(S136>=0,S136,0) -> 184.321013 | U136: =K136+H136 -> 35.15014534 | V136: =+T134 -> 58.43831892 | W136: =+T132 -> 17.65404907 | X136: =+T130 -> 92.43239935 | Z136: =J136 -> 0 | AA136: 203.6749127 | AB136: =+Q136 -> 19.35389967 | AC136: =(R142+AB142+AC142)*X141 -> 184.2269943 | AD136: =(R136+AB136+AC136)*U135 -> 35.13391962 | AE136: =IF(Z136>0,(AB136+R136+AC136)*Z135,"") ->  | AF136: =SUM(AB136:AD136) -> 238.7148136 | AG136: =IF(AG135="","",$AF136*AG135) -> 41.19731921 | AH136: 68.49195231 | AI136: 20.69122297 | AJ136: 108.3343191 | AM136: 238.7148136 | AN136: =+U136 -> 35.15014534 | AO136: 0.01622572164 | AP136: =IF(Z136=0,"",IF(Z136-AE136<0,0,Z136-AE136)) ->  | AQ136: =+AC136 -> 184.2269943 | AR136: =T136-AQ136 -> 0.09401874178 | AS136: =(I136+U136+Z136)/(AB136+R136+AC136) -> 1.000461825 | AT136: =IF(AS136<1.4,"1", IF(AS136<3,"2", IF(AS136<9,"3", "4"))) -> 1 | AU136: =IF(AS136<1.4,"ROJO", IF(AS136<3,"AMARILLO", IF(AS136<9,"VERDE", "AZUL"))) -> ROJO | AV136: =IF(AS136<1.4,"Déficit", IF(AS136<3,"Equilibrio", IF(AS136<9,"Disponibilidad", "Abundante"))) -> Déficit | BN136: 0.01622572164
U137: =IF(U138=0,"",U138/(SUM($U138:$Z138))) -> 1 | AA137: 1 | AG137: =IF(U137=0,"",U137) -> 1 | AM137: 1
A138: 10 | B138: 10 | D138: 12 | H138: =C36 -> 74.036 | J138: =+J36 -> 0 | K138: =+I36 -> 0.6730201575 | L138: =SUM(H138:K138) -> 74.70902016 | M138: =+H36 -> 5.83740303 | N138: =+L36 -> 2.268 | O138: =+K36 -> 0 | P138: =SUM(M138:O138) -> 8.10540303 | Q138: =+P138 -> 8.10540303 | R138: =+M36 -> 0 | S138: =L138-Q138-R138 -> 66.60361713 | T138: =IF(S138>=0,S138,0) -> 66.60361713 | U138: =K138+H138 -> 74.70902016 | Z138: =J138 -> 0 | AA138: 74.70902016 | AB138: =+Q138 -> 8.10540303 | AC138: =(R142+AB142+AC142)*W141 -> 66.56964385 | AD138: =(AB138+AC138+R138)*U137 -> 74.67504688 | AE138: =IF(Z138>0,(AB138+R138+AC138)*Z137,"") ->  | AF138: =SUM(AB138:AD138) -> 149.3500938 | AG138: =IF(AG137="","",$AF138*AG137) -> 149.3500938 | AM138: 149.3500938 | AN138: =+U138 -> 74.70902016 | AO138: 0.03397327401 | AP138: =IF(Z138=0,"",IF(Z138-AE138<0,0,Z138-AE138)) ->  | AQ138: =+AC138 -> 66.56964385 | AR138: =T138-AQ138 -> 0.03397327401 | AS138: =(I138+U138+Z138)/(AB138+R138+AC138) -> 1.000454948 | AT138: =IF(AS138<1.4,"1", IF(AS138<3,"2", IF(AS138<9,"3", "4"))) -> 1 | AU138: =IF(AS138<1.4,"ROJO", IF(AS138<3,"AMARILLO", IF(AS138<9,"VERDE", "AZUL"))) -> ROJO | AV138: =IF(AS138<1.4,"Déficit", IF(AS138<3,"Equilibrio", IF(AS138<9,"Disponibilidad", "Abundante"))) -> Déficit | BN138: 0.03397327401
U139: =IF(U140=0,"",U140/(SUM($U140:$Z140))) -> 1 | AA139: 1 | AG139: =IF(U139=0,"",U139) -> 1 | AM139: 1
A140: 11 | B140: 11 | D140: 12 | H140: =C37 -> 60.704 | J140: =+J37 -> 0 | K140: =+I37 -> 9.148182937 | L140: =SUM(H140:K140) -> 69.85218294 | M140: =+H37 -> 40.69416695 | N140: =+L37 -> 10.989 | O140: =+K37 -> 0 | P140: =SUM(M140:O140) -> 51.68316695 | Q140: =+P140 -> 51.68316695 | R140: =+M37 -> 0 | S140: =L140-Q140-R140 -> 18.16901599 | T140: =IF(S140>=0,S140,0) -> 18.16901599 | U140: =K140+H140 -> 69.85218294 | Z140: =J140 -> 0 | AA140: 69.85218294 | AB140: =+Q140 -> 51.68316695 | AC140: =(R142+AB142+AC142)*V141 -> 18.15974831 | AD140: =(AB140+AC140+R140)*U139 -> 69.84291526 | AE140: =IF(Z140>0,(AB140+R140+AC140)*Z139,"") ->  | AF140: =SUM(AB140:AD140) -> 139.6858305 | AG140: =IF(AG139="","",$AF140*AG139) -> 139.6858305 | AM140: 139.6858305 | AN140: =+U140 -> 69.85218294 | AO140: 0.009267679222 | AP140: =IF(Z140=0,"",IF(Z140-AE140<0,0,Z140-AE140)) ->  | AQ140: =+AC140 -> 18.15974831 | AR140: =T140-AQ140 -> 0.009267679222 | AS140: =(I140+U140+Z140)/(AB140+R140+AC140) -> 1.000132693 | AT140: =IF(AS140<1.4,"1", IF(AS140<3,"2", IF(AS140<9,"3", "4"))) -> 1 | AU140: =IF(AS140<1.4,"ROJO", IF(AS140<3,"AMARILLO", IF(AS140<9,"VERDE", "AZUL"))) -> ROJO | AV140: =IF(AS140<1.4,"Déficit", IF(AS140<3,"Equilibrio", IF(AS140<9,"Disponibilidad", "Abundante"))) -> Déficit | BN140: 0.009267679222
U141: =IF(U142=0,"",U142/(SUM($U142:$Z142))) -> 0.3070046748 | V141: 0.03324293378 | W141: 0.1218612849 | X141: 0.3372428773 | Y141: 0.2006482293 | AA141: 1 | AG141: =IF(U141=0,"",U141) -> 0.3070046748 | AH141: 0.03324293378 | AI141: 0.1218612849 | AJ141: 0.3372428773 | AK141: 0.2006482293 | AM141: 1
A142: 12 | B142: 12 | C142: 5, 9, 10, 11 | D142: 13 | H142: =C38 -> 164.452 | I142: =T128+T136+T138+T140 -> 378.7584823 | J142: =+J38 -> 0 | K142: =+I38 -> 3.34224107 | L142: =SUM(H142:K142) -> 546.5527233 | M142: =+H38 -> 28.66663302 | N142: =+L38 -> 3.752 | O142: =+K38 -> 119.837 | P142: =SUM(M142:O142) -> 152.255633 | Q142: =+P142 -> 152.255633 | R142: =+M38 -> 0 | S142: =L142-Q142-R142 -> 394.2970903 | T142: =IF(S142>=0,S142,0) -> 394.2970903 | U142: =K142+H142 -> 167.7942411 | V142: =+T140 -> 18.16901599 | W142: =+T138 -> 66.60361713 | X142: =+T136 -> 184.321013 | Y142: =+T128 -> 109.6648362 | Z142: =J142 -> 0 | AA142: 546.5527233 | AB142: =+Q142 -> 152.255633 | AC142: =(R144+AB144+AC144)*V143 -> 394.0183039 | AD142: =(R142+AB142+AC142)*U141 -> 167.7086523 | AE142: =IF(Z142>0,(AB142+R142+AC142)*Z141,"") ->  | AF142: =SUM(AB142:AD142) -> 713.9825892 | AG142: =IF(AG141="","",$AF142*AG141) -> 219.1959926 | AH142: 23.73487593 | AI142: 87.00683571 | AJ142: 240.7855427 | AK142: 143.2593423 | AM142: 713.9825892 | AN142: =+U142 -> 167.7942411 | AO142: 0.08558874089 | AP142: =IF(Z142=0,"",IF(Z142-AE142<0,0,Z142-AE142)) ->  | AQ142: =+AC142 -> 394.0183039 | AR142: =T142-AQ142 -> 0.2787864418 | AS142: =(I142+U142+Z142)/(AB142+R142+AC142) -> 1.000510342 | AT142: =IF(AS142<1.4,"1", IF(AS142<3,"2", IF(AS142<9,"3", "4"))) -> 1 | AU142: =IF(AS142<1.4,"ROJO", IF(AS142<3,"AMARILLO", IF(AS142<9,"VERDE", "AZUL"))) -> ROJO | AV142: =IF(AS142<1.4,"Déficit", IF(AS142<3,"Equilibrio", IF(AS142<9,"Disponibilidad", "Abundante"))) -> Déficit | BN142: 0.08558874089
U143: =IF(U144=0,"",U144/(SUM($U144:$Z144))) -> 0.3289747666 | V143: =IF(V144=0,"",V144/(SUM($U144:$Z144))) -> 0.6710252334 | W143: =IF(W144=0,"",W144/(SUM($U144:$Z144))) ->  | Y143: =IF(Y144=0,"",Y144/(SUM($U144:$Z144))) ->  | Z143: =IF(Z144=0,"",Z144/(SUM($U144:$Z144))) ->  | AA143: 1 | AG143: =IF(U143=0,"",U143) -> 0.3289747666 | AH143: 0.6710252334 | AM143: 1
A144: 13 | B144: 13 | C144: 12 | D144: 19 | H144: =C39 -> 187.33 | I144: =T142 -> 394.2970903 | J144: =J39 -> 0 | K144: =+I39 -> 5.976878463 | L144: =SUM(H144:K144) -> 587.6039688 | M144: =+H39 -> 361.5681873 | N144: =+L39 -> 4.573 | O144: =+K39 -> 0 | P144: =SUM(M144:O144) -> 366.1411873 | Q144: =+P144 -> 366.1411873 | R144: =+M39 -> 0 | S144: =L144-Q144-R144 -> 221.4627815 | T144: =IF(S144>=0,S144,0) -> 221.4627815 | U144: =K144+H144 -> 193.3068785 | V144: =+T142 -> 394.2970903 | Z144: =J144 -> 0 | AA144: 587.6039688 | AB144: =+Q144 -> 366.1411873 | AC144: =(R168+AA168+AB168)*W167 -> 221.0473181 | AD144: =(R144+AB144+AC144)*U143 -> 193.1702015 | AE144: =IF(Z144>0,(AB144+R144+AC144)*Z143,"") ->  | AF144: =SUM(AB144:AD144) -> 780.3587068 | AG144: =IF(AG143="","",$AF144*AG143) -> 256.7183234 | AH144: 523.6403834 | AM144: 780.3587068 | AN144: =+U144 -> 193.3068785 | AO144: 0.1366769833 | AP144: =IF(Z144=0,"",IF(Z144-AE144<0,0,Z144-AE144)) ->  | AQ144: =+AC144 -> 221.0473181 | AR144: =T144-AQ144 -> 0.4154634251 | AS144: =(I144+U144+Z144)/(AB144+R144+AC144) -> 1.000707547 | AT144: =IF(AS144<1.4,"1", IF(AS144<3,"2", IF(AS144<9,"3", "4"))) -> 1 | AU144: =IF(AS144<1.4,"ROJO", IF(AS144<3,"AMARILLO", IF(AS144<9,"VERDE", "AZUL"))) -> ROJO | AV144: =IF(AS144<1.4,"Déficit", IF(AS144<3,"Equilibrio", IF(AS144<9,"Disponibilidad", "Abundante"))) -> Déficit | BN144: =SUM(AO144:AP144) -> 0.1366769833
B147: RIO JUCHIPILA
A148: No LINEA | B148: CUENCA O REGION | C148: CONEXION | H148: OFERTA POTENCIAL | M148: DEMANDA CONSUNTIVA | U148: OFERTA REAL | AA148: EXTRACC Y VOLS RESERV PARA A ABAJO | AL148: POR CUENCA PROPIA | AO148: A LA SAL. DEL C PRINCIPAL | AQ148: DISPONIBILIDAD RELATIVA
B149: HIDROLOGICA | C149: DE | D149: HACIA | H149: Cp | I149: Cp A Arriba | J149: Im | K149: R | L149: TOTAL | M149: Uc | N149: Ev | O149: Ex | P149: TOTAL | Q149: TOTAL ACUM. | R149: Dv | S149: Ab | T149: Ab | U149: Cp | V149: Ar1 | W149: Ar2 | X149: Ar3 | Y149: Im | Z149: TOTAL | AA149: Uc | AB149: Re1 | AC149: Re2 | AD149: RImp | AE149: TOTAL | AF149: para Cp | AG149: para Ar1 | AH149: para Ar2 | AI149: para Ar3 | AJ149: para Im | AK149: TOTAL | AL149: RESERVADO | AM149: DISPONIBLE | AN149: DImp | AO149: RESERVADO | AP149: DISPONIBLE | AQ149: INDICE | AR149: CLAVE | AS149: COLOR
A150: Cuenca del río Juchipila
U151: =IF(U152=0,"",U152/(SUM($U152:$Y152))) -> 1 | V151: =IF(V152=0,"",V152/(SUM($U152:$Y152))) ->  | W151: =IF(W152=0,"",W152/(SUM($U152:$Y152))) ->  | X151: =IF(X152=0,"",X152/(SUM($U152:$Y152))) ->  | Y151: =IF(Y152=0,"",Y152/(SUM($U152:$Y152))) ->  | Z151: =SUM(U151:Y151) -> 1 | AF151: =IF(U151=0,"",U151) -> 1 | AG151: =IF(V151=0,"",V151) ->  | AH151: =IF(W151=0,"",W151) ->  | AI151: =IF(X151=0,"",X151) ->  | AK151: =SUM(AF151:AJ151) -> 1
A152: 14 | B152: 14 | D152: 15 | H152: =$C$40 -> 29.112 | J152: =$J$40 -> 0 | K152: =$I$40 -> 0.0663825 | L152: =SUM(H152:K152) -> 29.1783825 | M152: =$H$40 -> 0.69531 | N152: =$L$40 -> 1.544 | O152: =$K$40 -> 0 | P152: =SUM(M152:O152) -> 2.23931 | Q152: =+P152 -> 2.23931 | R152: =$M$40 -> 0 | S152: =L152-Q152-R152 -> 26.9390725 | T152: =IF(S152>=0,S152,0) -> 26.9390725 | U152: =K152+H152 -> 29.1783825 | Y152: =J152 -> 0 | Z152: 29.1783825 | AA152: =+Q152 -> 2.23931 | AB152: =(AA154+AB154+R154)*V153 -> 26.93671183 | AC152: =(AA152+AB152+R152)*U151 -> 29.17602183 | AD152: =IF(Y152>0,(AA152+R152+AB152)*Y151,"") ->  | AE152: =SUM(AA152:AC152) -> 58.35204366 | AF152: =IF(AF151="","",$AE152*AF151) -> 58.35204366 | AG152: =IF(AG151="","",$AE152*AG151) ->  | AH152: =IF(AH151="","",$AE152*AH151) ->  | AI152: =IF(AI151="","",$AE152*AI151) ->  | AK152: =SUM(AF152:AJ152) -> 58.35204366 | AL152: =+U152 -> 29.1783825 | AM152: =IF(D152="MAR",IF((AL152-AB152)<0,0,AL152-AB152),IF(D152="Cerrada",IF((AL152-AB152)<0,0,AL152-AB152),IF((AL152-AC152)<0,0,AL152-AC152))) -> 0.002360670654 | AN152: =IF(Y152=0,"",IF(Y152-AD152<0,0,Y152-AD152)) ->  | AO152: =+AB152 -> 26.93671183 | AP152: =T152-AO152 -> 0.002360670654 | AQ152: =(U152+Y152+I152)/(AA152+R152+AB152) -> 1.000080911 | AR152: =IF(AQ152<1.4,"1", IF(AQ152<3,"2", IF(AQ152<9,"3", "4"))) -> 1 | AS152: =IF(AQ152<1.4,"ROJO", IF(AQ152<3,"AMARILLO", IF(AQ152<9,"VERDE", "AZUL"))) -> ROJO | AT152: =IF(AQ152<1.4,"Déficit", IF(AQ152<3,"Equilibrio", IF(AQ152<9,"Disponibilidad", "Abundante"))) -> Déficit | BN152: =SUM(AM152:AN152) -> 0.002360670654
U153: =IF(U154=0,"",U154/(SUM($U154:$Y154))) -> 0.7885319658 | V153: =IF(V154=0,"",V154/(SUM($U154:$Y154))) -> 0.2114680342 | W153: =IF(W154=0,"",W154/(SUM($U154:$Y154))) ->  | X153: =IF(X154=0,"",X154/(SUM($U154:$Y154))) ->  | Y153: =IF(Y154=0,"",Y154/(SUM($U154:$Y154))) ->  | Z153: 1 | AF153: =IF(U153=0,"",U153) -> 0.7885319658 | AG153: =IF(V153=0,"",V153) -> 0.2114680342 | AH153: =IF(W153=0,"",W153) ->  | AI153: =IF(X153=0,"",X153) ->  | AK153: =SUM(AF153:AJ153) -> 1
A154: 15 | B154: 15 | C154: 14 | D154: 16 | H154: =$C$41 -> 95.452 | I154: =T152 -> 26.9390725 | J154: =$J$41 -> 0 | K154: =$I$41 -> 4.99968235 | L154: =SUM(H154:K154) -> 127.3907549 | M154: =$H$41 -> 49.6421205 | N154: =$L$41 -> 11.481 | O154: =$K$41 -> 0 | P154: =SUM(M154:O154) -> 61.1231205 | Q154: =+P154 -> 61.1231205 | R154: =$M$41 -> -0.167 | S154: =L154-Q154-R154 -> 66.43463435 | T154: =IF(S154>=0,S154,0) -> 66.43463435 | U154: =K154+H154 -> 100.4516824 | V154: =+T152 -> 26.9390725 | Y154: =J154 -> 0 | Z154: 127.3907549 | AA154: =+Q154 -> 61.1231205 | AB154: =(R156+AA156+AB156)*V155 -> 66.4234711 | AC154: =(AA154+AB154+R154)*U153 -> 100.4428798 | AD154: =IF(Y154>0,(AA154+R154+AB154)*Y153,"") ->  | AE154: =SUM(AA154:AC154) -> 227.9894714 | AF154: =IF(AF153="","",$AE154*AF153) -> 179.776986 | AG154: =IF(AG153="","",$AE154*AG153) -> 48.21248532 | AH154: =IF(AH153="","",$AE154*AH153) ->  | AI154: =IF(AI153="","",$AE154*AI153) ->  | AK154: 227.9894714 | AL154: =+U154 -> 100.4516824 | AM154: =IF(D154="MAR",IF((AL154-AB154)<0,0,AL154-AB154),IF(D154="Cerrada",IF((AL154-AB154)<0,0,AL154-AB154),IF((AL154-AC154)<0,0,AL154-AC154))) -> 0.008802579921 | AN154: =IF(Y154=0,"",IF(Y154-AD154<0,0,Y154-AD154)) ->  | AO154: =+AB154 -> 66.4234711 | AP154: =T154-AO154 -> 0.01116325058 | AQ154: =(U154+Y154+I154)/(AA154+R154+AB154) -> 1.000087638 | AR154: =IF(AQ154<1.4,"1", IF(AQ154<3,"2", IF(AQ154<9,"3", "4"))) -> 1 | AS154: =IF(AQ154<1.4,"ROJO", IF(AQ154<3,"AMARILLO", IF(AQ154<9,"VERDE", "AZUL"))) -> ROJO | AT154: =IF(AQ154<1.4,"Déficit", IF(AQ154<3,"Equilibrio", IF(AQ154<9,"Disponibilidad", "Abundante"))) -> Déficit | BN154: =SUM(AM154:AN154) -> 0.008802579921
U155: =IF(U156=0,"",U156/(SUM($U156:$Y156))) -> 0.7043394291 | V155: =IF(V156=0,"",V156/(SUM($U156:$Y156))) -> 0.2956605709 | W155: =IF(W156=0,"",W156/(SUM($U156:$Y156))) ->  | X155: =IF(X156=0,"",X156/(SUM($U156:$Y156))) ->  | Y155: =IF(Y156=0,"",Y156/(SUM($U156:$Y156))) ->  | Z155: 1 | AF155: =IF(U155=0,"",U155) -> 0.7043394291 | AG155: =IF(V155=0,"",V155) -> 0.2956605709 | AH155: =IF(W155=0,"",W155) ->  | AI155: =IF(X155=0,"",X155) ->  | AK155: 1
A156: 16 | B156: 16 | C156: 15 | D156: 17 | H156: =$C$42 -> 149.129 | I156: =T154 -> 66.43463435 | J156: =$J$42 -> 0 | K156: =$I$42 -> 9.135364718 | L156: =SUM(H156:K156) -> 224.6989991 | M156: =$H$42 -> 88.6571475 | N156: =$L$42 -> 6.499 | O156: =$K$42 -> 113.53 | P156: =SUM(M156:O156) -> 208.6861475 | Q156: =+P156 -> 208.6861475 | R156: =$M$42 -> -0.08 | S156: =L156-Q156-R156 -> 16.09285157 | T156: =IF(S156>=0,S156,0) -> 16.09285157 | U156: =K156+H156 -> 158.2643647 | V156: =+T154 -> 66.43463435 | Y156: =J156 -> 0 | Z156: 224.6989991 | AA156: =+Q156 -> 208.6861475 | AB156: =(R158+AA158+AB158)*V157 -> 16.05509459 | AC156: =(R156+AA156+AB156)*U155 -> 158.237771 | AD156: =IF(Y156>0,(AA156+R156+AB156)*Y155,"") ->  | AE156: =SUM(AA156:AC156) -> 382.9790131 | AF156: =IF(AF155="","",$AE156*AF155) -> 269.7472194 | AG156: =IF(AG155="","",$AE156*AG155) -> 113.2317937 | AH156: =IF(AH155="","",$AE156*AH155) ->  | AI156: =IF(AI155="","",$AE156*AI155) ->  | AK156: 382.9790131 | AL156: =+U156 -> 158.2643647 | AM156: =IF(D156="MAR",IF((AL156-AB156)<0,0,AL156-AB156),IF(D156="Cerrada",IF((AL156-AB156)<0,0,AL156-AB156),IF((AL156-AC156)<0,0,AL156-AC156))) -> 0.02659373048 | AN156: =IF(Y156=0,"",IF(Y156-AD156<0,0,Y156-AD156)) ->  | AO156: =+AB156 -> 16.05509459 | AP156: =T156-AO156 -> 0.03775698106 | AQ156: =(U156+Y156+I156)/(AA156+R156+AB156) -> 1.000168062 | AR156: =IF(AQ156<1.4,"1", IF(AQ156<3,"2", IF(AQ156<9,"3", "4"))) -> 1 | AS156: =IF(AQ156<1.4,"ROJO", IF(AQ156<3,"AMARILLO", IF(AQ156<9,"VERDE", "AZUL"))) -> ROJO | AT156: =IF(AQ156<1.4,"Déficit", IF(AQ156<3,"Equilibrio", IF(AQ156<9,"Disponibilidad", "Abundante"))) -> Déficit | BN156: =SUM(AM156:AN156) -> 0.02659373048
U157: =IF(U158=0,"",U158/(SUM($U158:$Y158))) -> 0.921835877 | V157: =IF(V158=0,"",V158/(SUM($U158:$Y158))) -> 0.07816412304 | W157: =IF(W158=0,"",W158/(SUM($U158:$Y158))) ->  | X157: =IF(X158=0,"",X158/(SUM($U158:$Y158))) ->  | Y157: =IF(Y158=0,"",Y158/(SUM($U158:$Y158))) ->  | Z157: 1 | AF157: =IF(U157=0,"",U157) -> 0.921835877 | AG157: =IF(V157=0,"",V157) -> 0.07816412304 | AH157: =IF(W157=0,"",W157) ->  | AI157: =IF(X157=0,"",X157) ->  | AK157: 1
A158: 17 | B158: 17 | C158: 16 | D158: 20 | H158: =$C$43 -> 186.365 | I158: =T156 -> 16.09285157 | J158: =$J$43 -> 0 | K158: =$I$43 -> 3.42754625 | L158: =SUM(H158:K158) -> 205.8853978 | M158: =$H$43 -> 22.393223 | N158: =$L$43 -> 0.937 | O158: =$K$43 -> 0 | P158: =SUM(M158:O158) -> 23.330223 | Q158: =+P158 -> 23.330223 | R158: =$M$43 -> 0 | S158: =L158-Q158-R158 -> 182.5551748 | T158: =IF(S158>=0,S158,0) -> 182.5551748 | U158: =K158+H158 -> 189.7925463 | V158: =+T156 -> 16.09285157 | Y158: =J158 -> 0 | Z158: 205.8853978 | AA158: =+Q158 -> 23.330223 | AB158: =(R170+AA170+AB170)*W169 -> 182.0721274 | AC158: =(R158+AA158+AB158)*U157 -> 189.3472558 | AD158: =IF(Y158>0,(AA158+R158+AB158)*Y157,"") ->  | AE158: =SUM(AA158:AC158) -> 394.7496061 | AF158: =IF(AF157="","",$AE158*AF157) -> 363.8943493 | AG158: =IF(AG157="","",$AE158*AG157) -> 30.85525678 | AH158: =IF(AH157="","",$AE158*AH157) ->  | AI158: =IF(AI157="","",$AE158*AI157) ->  | AK158: 394.7496061 | AL158: =+U158 -> 189.7925463 | AM158: =IF(D158="MAR",IF((AL158-AB158)<0,0,AL158-AB158),IF(D158="Cerrada",IF((AL158-AB158)<0,0,AL158-AB158),IF((AL158-AC158)<0,0,AL158-AC158))) -> 0.4452904784 | AN158: =IF(Y158=0,"",IF(Y158-AD158<0,0,Y158-AD158)) ->  | AO158: =+AB158 -> 182.0721274 | AP158: =T158-AO158 -> 0.4830474595 | AQ158: =(U158+Y158+I158)/(AA158+R158+AB158) -> 1.002351713 | AR158: =IF(AQ158<1.4,"1", IF(AQ158<3,"2", IF(AQ158<9,"3", "4"))) -> 1 | AS158: =IF(AQ158<1.4,"ROJO", IF(AQ158<3,"AMARILLO", IF(AQ158<9,"VERDE", "AZUL"))) -> ROJO | AT158: =IF(AQ158<1.4,"Déficit", IF(AQ158<3,"Equilibrio", IF(AQ158<9,"Disponibilidad", "Abundante"))) -> Déficit | BN158: =SUM(AM158:AN158) -> 0.4452904784
B161: RIO SANTIAGO
A162: No LINEA | B162: CUENCA O REGION | C162: CONEXION | H162: OFERTA POTENCIAL | M162: DEMANDA CONSUNTIVA | U162: OFERTA REAL | AA162: EXTRACC Y VOLS RESERV PARA A ABAJO | AL162: POR CUENCA PROPIA | AO162: A LA SAL. DEL C PRINCIPAL | AQ162: DISPONIBILIDAD RELATIVA
B163: HIDROLOGICA | C163: DE | D163: HACIA | H163: Cp | I163: Cp A Arriba | J163: Im | K163: R | L163: TOTAL | M163: Uc | N163: Ev | O163: Ex | P163: TOTAL | Q163: TOTAL ACUM. | R163: Dv | S163: Ab | T163: Ab | U163: Cp | V163: Ar1 | W163: Ar2 | X163: Ar3 | Y163: Im | Z163: TOTAL | AA163: Uc | AB163: Re1 | AC163: Re2 | AD163: RImp | AE163: TOTAL | AF163: para Cp | AG163: para Ar1 | AH163: para Ar2 | AI163: para Ar3 | AJ163: para Im | AK163: TOTAL | AL163: RESERVADO | AM163: DISPONIBLE | AN163: DImp | AO163: RESERVADO | AP163: DISPONIBLE | AQ163: INDICE | AR163: CLAVE | AS163: COLOR
A164: Cuenca del río Santiago
U165: =IF(U166=0,"",U166/(SUM($U166:$Y166))) -> 0.9295093682 | V165: =IF(V166=0,"",V166/(SUM($U166:$Y166))) ->  | W165: =IF(W166=0,"",W166/(SUM($U166:$Y166))) ->  | X165: =IF(X166=0,"",X166/(SUM($U166:$Y166))) ->  | Y165: =IF(Y166=0,"",Y166/(SUM($U166:$Y166))) -> 0.07049063178 | Z165: =SUM(U165:Y165) -> 1 | AF165: =IF(U165=0,"",U165) -> 0.9295093682 | AG165: =IF(V165=0,"",V165) ->  | AH165: =IF(W165=0,"",W165) ->  | AI165: =IF(X165=0,"",X165) ->  | AK165: =SUM(AF165:AJ165) -> 0.9295093682
A166: 18 | B166: 18 | D166: 19 | H166: =$C$44 -> 474.193 | J166: =$J$44 -> 168.3957697 | K166: =$I$44 -> 1746.321153 | L166: =SUM(H166:K166) -> 2388.909923 | M166: =$H$44 -> 1891.558522 | N166: =$L$44 -> 38.927 | O166: =$K$44 -> 0 | P166: =SUM(M166:O166) -> 1930.485522 | Q166: =+P166 -> 1930.485522 | R166: =$M$44 -> 0.308 | S166: =L166-Q166-R166 -> 458.1164003 | T166: =IF(S166>=0,S166,0) -> 458.1164003 | U166: =K166+H166 -> 2220.514153 | Y166: =+J166 -> 168.3957697 | Z166: 2388.909923 | AA166: =+Q166 -> 1930.485522 | AB166: =(R168+AA168+AB168)*V167 -> 457.2569755 | AC166: =(R166+AA166+AB166)*U165 -> 2219.715309 | AD166: =IF(Y166>0,(AA166+R166+AB166)*Y165,"") -> 168.3351883 | AE166: =SUM(AA166:AC166) -> 4607.457807 | AF166: =IF(AF165="","",$AE166*AF165) -> 4282.675195 | AG166: =IF(AG165="","",$AE166*AG165) ->  | AH166: =IF(AH165="","",$AE166*AH165) ->  | AI166: =IF(AI165="","",$AE166*AI165) ->  | AK166: 4282.675195 | AL166: =+U166 -> 2220.514153 | AM166: =IF(D166="Lago",IF((AL166-AB166)<0,0,AL166-AB166),IF(D166="Cerrada",IF((AL166-AB166)<0,0,AL166-AB166),IF((AL166-AC166)<0,0,AL166-AC166))) -> 0.7988434116 | AN166: =IF(Y166=0,"",IF(Y166-AD166<0,0,Y166-AD166)) -> 0.06058139778 | AO166: =+AB166 -> 457.2569755 | AP166: =T166-AO166 -> 0.8594248093 | AQ166: =(I166+U166+Y166)/(AA166+R166+AB166) -> 1.000359886 | AR166: =IF(AQ166<1.4,"1", IF(AQ166<3,"2", IF(AQ166<9,"3", "4"))) -> 1 | AS166: =IF(AQ166<1.4,"ROJO", IF(AQ166<3,"AMARILLO", IF(AQ166<9,"VERDE", "AZUL"))) -> ROJO | AT166: =IF(AQ166<1.4,"Déficit", IF(AQ166<3,"Equilibrio", IF(AQ166<9,"Disponibilidad", "Abundante"))) -> Déficit | BN166: =SUM(AM166:AN166) -> 0.8594248093
U167: =IF(U168=0,"",U168/(SUM($U168:$Y168))) -> 0.4702397624 | V167: =IF(V168=0,"",V168/(SUM($U168:$Y168))) -> 0.2899913532 | W167: =IF(W168=0,"",W168/(SUM($U168:$Y168))) -> 0.1401877157 | X167: =IF(X168=0,"",X168/(SUM($U168:$Y168))) ->  | Y167: =IF(Y168=0,"",Y168/(SUM($U168:$Y168))) -> 0.09958116865 | Z167: 1 | AF167: =IF(U167=0,"",U167) -> 0.4702397624 | AG167: =IF(V167=0,"",V167) -> 0.2899913532 | AH167: =IF(W167=0,"",W167) -> 0.1401877157 | AI167: =IF(X167=0,"",X167) ->  | AK167: 0.9004188313
A168: 19 | B168: 19 | C168: 13, 18 | D168: 20 | H168: =+C45 -> 385.853 | I168: =T144+T166 -> 679.5791818 | J168: =$J$45 -> 157.3142303 | K168: =+I45 -> 357.012416 | L168: =SUM(H168:K168) -> 1579.758828 | M168: =+H45 -> 455.7392022 | N168: =+L45 -> 3.996 | O168: =+K45 -> 0 | P168: =SUM(M168:O168) -> 459.7352022 | Q168: =+P168 -> 459.7352022 | R168: =+M45 -> 0 | S168: =L168-Q168-R168 -> 1120.023626 | T168: =IF(S168>=0,S168,0) -> 1120.023626 | U168: =K168+H168 -> 742.865416 | V168: =+T166 -> 458.1164003 | W168: =T144 -> 221.4627815 | Y168: =+J168 -> 157.3142303 | Z168: 1579.758828 | AA168: =+Q168 -> 459.7352022 | AB168: =(AA170+AB170+R170)*V169 -> 1117.060004 | AC168: =(R168+AA168+AB168)*U167 -> 741.471803 | AD168: =IF(Y168>0,(AA168+R168+AB168)*Y167,"") -> 157.0191093 | AE168: =SUM(AA168:AC168) -> 2318.267009 | AF168: =IF(AF167="","",$AE168*AF167) -> 1090.141327 | AG168: =IF(AG167="","",$AE168*AG167) -> 672.277387 | AH168: =IF(AH167="","",$AE168*AH167) -> 324.9925564 | AI168: =IF(AI167="","",$AE168*AI167) ->  | AK168: 2087.411271 | AL168: =+U168 -> 742.865416 | AM168: =IF(D168="Lago",IF((AL168-AB168)<0,0,AL168-AB168),IF(D168="Cerrada",IF((AL168-AB168)<0,0,AL168-AB168),IF((AL168-AC168)<0,0,AL168-AC168))) -> 1.393612995 | AN168: =IF(Y168=0,"",IF(Y168-AD168<0,0,Y168-AD168)) -> 0.2951209611 | AO168: =+AB168 -> 1117.060004 | AP168: =T168-AO168 -> 2.96362219 | AQ168: =(I168+U168+Y168)/(AA168+R168+AB168) -> 1.001879523 | AR168: =IF(AQ168<1.4,"1", IF(AQ168<3,"2", IF(AQ168<9,"3", "4"))) -> 1 | AS168: =IF(AQ168<1.4,"ROJO", IF(AQ168<3,"AMARILLO", IF(AQ168<9,"VERDE", "AZUL"))) -> ROJO | AT168: =IF(AQ168<1.4,"Déficit", IF(AQ168<3,"Equilibrio", IF(AQ168<9,"Disponibilidad", "Abundante"))) -> Déficit | BN168: =SUM(AM168:AN168) -> 1.688733956
U169: =IF(U170=0,"",U170/(SUM($U170:$Y170))) -> 0.606488173 | V169: =IF(V170=0,"",V170/(SUM($U170:$Y170))) -> 0.3383615203 | W169: =IF(W170=0,"",W170/(SUM($U170:$Y170))) -> 0.05515030672 | X169: =IF(X170=0,"",X170/(SUM($U170:$Y170))) ->  | Y169: =IF(Y170=0,"",Y170/(SUM($U170:$Y170))) ->  | Z169: 1 | AF169: =IF(U169=0,"",U169) -> 0.606488173 | AG169: =IF(V169=0,"",V169) -> 0.3383615203 | AH169: =IF(W169=0,"",W169) -> 0.05515030672 | AI169: =IF(X169=0,"",X169) ->  | AK169: 1
A170: 20 | B170: 20 | C170: 17, 19 | D170: 21 | H170: =+C46 -> 446.638 | I170: =T158+T168 -> 1302.578801 | J170: =+J46 -> 0 | K170: =+I46 -> 1560.922085 | L170: =SUM(H170:K170) -> 3310.138886 | M170: =+H46 -> 1579.20422 | N170: =+L46 -> 15.53 | O170: =+K46 -> 0 | P170: =SUM(M170:O170) -> 1594.73422 | Q170: =+P170 -> 1594.73422 | R170: =+M46 -> 6.319 | S170: =L170-Q170-R170 -> 1709.085666 | T170: =IF(S170>=0,S170,0) -> 1709.085666 | U170: =K170+H170 -> 2007.560085 | V170: =+T168 -> 1120.023626 | W170: =T158 -> 182.5551748 | Y170: =+J170 -> 0 | Z170: 3310.138886 | AA170: =+Q170 -> 1594.73422 | AB170: =(R172+AA172+AB172)*V171 -> 1700.326921 | AC170: =(AA170+AB170+R170)*U169 -> 2002.24801 | AD170: =IF(Y170>0,(AA170+R170+AB170)*Y169,"") ->  | AE170: =SUM(AA170:AC170) -> 5297.309151 | AF170: =IF(AF169="","",$AE170*AF169) -> 3212.755349 | AG170: =IF(AG169="","",$AE170*AG169) -> 1792.405578 | AH170: =IF(AH169="","",$AE170*AH169) -> 292.1482244 | AI170: =IF(AI169="","",$AE170*AI169) ->  | AK170: 5297.309151 | AL170: =+U170 -> 2007.560085 | AM170: 5.312075102 | AN170: =IF(Y170=0,"",IF(Y170-AD170<0,0,Y170-AD170)) ->  | AO170: =+AB170 -> 1700.326921 | AP170: =T170-AO170 -> 8.758744752 | AQ170: =(I170+U170+Y170)/(AA170+R170+AB170) -> 1.002653056 | AR170: =IF(AQ170<1.4,"1", IF(AQ170<3,"2", IF(AQ170<9,"3", "4"))) -> 1 | AS170: =IF(AQ170<1.4,"ROJO", IF(AQ170<3,"AMARILLO", IF(AQ170<9,"VERDE", "AZUL"))) -> ROJO | AT170: =IF(AQ170<1.4,"Déficit", IF(AQ170<3,"Equilibrio", IF(AQ170<9,"Disponibilidad", "Abundante"))) -> Déficit | BN170: =SUM(AM170:AN170) -> 5.312075102
U171: =IF(U172=0,"",U172/(SUM($U172:$Y172))) -> 0.1907352563 | V171: =IF(V172=0,"",V172/(SUM($U172:$Y172))) -> 0.8092647437 | W171: =IF(W172=0,"",W172/(SUM($U172:$Y172))) ->  | X171: =IF(X172=0,"",X172/(SUM($U172:$Y172))) ->  | Y171: =IF(Y172=0,"",Y172/(SUM($U172:$Y172))) ->  | Z171: 1 | AF171: =IF(U171=0,"",U171) -> 0.1907352563 | AG171: =IF(V171=0,"",V171) -> 0.8092647437 | AH171: =IF(W171=0,"",W171) ->  | AI171: =IF(X171=0,"",X171) ->  | AK171: 1
A172: 21 | B172: 21 | C172: 20 | D172: 31 | H172: =+C47 -> 401.491 | I172: =T170 -> 1709.085666 | J172: =+J47 -> 0 | K172: =+I47 -> 1.32265905 | L172: =SUM(H172:K172) -> 2111.899325 | M172: =+H47 -> 7.708674 | N172: =+L47 -> 0.341 | O172: =+K47 -> 0 | P172: =SUM(M172:O172) -> 8.049674 | Q172: =+P172 -> 8.049674 | R172: =+M47 -> 0 | S172: =L172-Q172-R172 -> 2103.849651 | T172: =IF(S172>=0,S172,0) -> 2103.849651 | U172: =K172+H172 -> 402.8136591 | V172: =+T170 -> 1709.085666 | Y172: =+J172 -> 0 | Z172: 2111.899325 | AA172: =+Q172 -> 8.049674 | AB172: =(R192+AA192+AB192)*V191 -> 2093.026561 | AC172: =(R172+AA172+AB172)*U171 -> 400.7493143 | AD172: =IF(Y172>0,(AA172+R172+AB172)*Y171,"") ->  | AE172: =SUM(AA172:AC172) -> 2501.825549 | AF172: =IF(AF171="","",$AE172*AF171) -> 477.1863375 | AG172: =IF(AG171="","",$AE172*AG171) -> 2024.639212 | AH172: =IF(AH171="","",$AE172*AH171) ->  | AI172: =IF(AI171="","",$AE172*AI171) ->  | AK172: 2501.825549 | AL172: =+U172 -> 402.8136591 | AM172: 2.064344751 | AN172: =IF(Y172=0,"",IF(Y172-AD172<0,0,Y172-AD172)) ->  | AO172: =+AB172 -> 2093.026561 | AP172: =T172-AO172 -> 10.8230895 | AQ172: =(I172+U172+Y172)/(AA172+R172+AB172) -> 1.005151212 | AR172: =IF(AQ172<1.4,"1", IF(AQ172<3,"2", IF(AQ172<9,"3", "4"))) -> 1 | AS172: =IF(AQ172<1.4,"ROJO", IF(AQ172<3,"AMARILLO", IF(AQ172<9,"VERDE", "AZUL"))) -> ROJO | AT172: =IF(AQ172<1.4,"Déficit", IF(AQ172<3,"Equilibrio", IF(AQ172<9,"Disponibilidad", "Abundante"))) -> Déficit | BN172: =SUM(AM172:AN172) -> 2.064344751
U173: =IF(U174=0,"",U174/(SUM($U174:$Y174))) -> 1 | V173: =IF(V174=0,"",V174/(SUM($U174:$Y174))) ->  | W173: =IF(W174=0,"",W174/(SUM($U174:$Y174))) ->  | X173: =IF(X174=0,"",X174/(SUM($U174:$Y174))) ->  | Y173: =IF(Y174=0,"",Y174/(SUM($U174:$Y174))) ->  | Z173: 1 | AF173: =IF(U173=0,"",U173) -> 1 | AG173: =IF(V173=0,"",V173) ->  | AH173: =IF(W173=0,"",W173) ->  | AI173: =IF(X173=0,"",X173) ->  | AK173: 1
A174: 22 | B174: 22 | D174: 25 | H174: =+C48 -> 84.203 | J174: =+J48 -> 0 | K174: =+I48 -> 4.38779662 | L174: =SUM(H174:K174) -> 88.59079662 | M174: =+H48 -> 46.1425512 | N174: =+L48 -> 10.438 | O174: =+K48 -> 0 | P174: =SUM(M174:O174) -> 56.5805512 | Q174: =+P174 -> 56.5805512 | R174: =+M48 -> 0.461 | S174: =L174-Q174-R174 -> 31.54924542 | T174: =IF(S174>=0,S174,0) -> 31.54924542 | U174: =K174+H174 -> 88.59079662 | Y174: =+J174 -> 0 | Z174: 88.59079662 | AA174: =+Q174 -> 56.5805512 | AB174: =(AA180+AB180+R180)*V179 -> 31.39192931 | AC174: =(R174+AA174+AB174)*U173 -> 88.43348051 | AD174: =IF(Y174>0,(AA174+R174+AB174)*Y173,"") ->  | AE174: =SUM(AA174:AC174) -> 176.405961 | AF174: =IF(AF173="","",$AE174*AF173) -> 176.405961 | AG174: =IF(AG173="","",$AE174*AG173) ->  | AH174: =IF(AH173="","",$AE174*AH173) ->  | AI174: =IF(AI173="","",$AE174*AI173) ->  | AK174: 176.405961 | AL174: =+U174 -> 88.59079662 | AM174: 0.1573161127 | AN174: =IF(Y174=0,"",IF(Y174-AD174<0,0,Y174-AD174)) ->  | AO174: =+AB174 -> 31.39192931 | AP174: =T174-AO174 -> 0.1573161127 | AQ174: =(I174+U174+Y174)/(AA174+R174+AB174) -> 1.00177892 | AR174: =IF(AQ174<1.4,"1", IF(AQ174<3,"2", IF(AQ174<9,"3", "4"))) -> 1 | AS174: =IF(AQ174<1.4,"ROJO", IF(AQ174<3,"AMARILLO", IF(AQ174<9,"VERDE", "AZUL"))) -> ROJO | AT174: =IF(AQ174<1.4,"Déficit", IF(AQ174<3,"Equilibrio", IF(AQ174<9,"Disponibilidad", "Abundante"))) -> Déficit | BN174: =SUM(AM174:AN174) -> 0.1573161127
U175: =IF(U176=0,"",U176/(SUM($U176:$Y176))) -> 1 | V175: =IF(V176=0,"",V176/(SUM($U176:$Y176))) ->  | W175: =IF(W176=0,"",W176/(SUM($U176:$Y176))) ->  | X175: =IF(X176=0,"",X176/(SUM($U176:$Y176))) ->  | Y175: =IF(Y176=0,"",Y176/(SUM($U176:$Y176))) ->  | Z175: 1 | AF175: =IF(U175=0,"",U175) -> 1 | AG175: =IF(V175=0,"",V175) ->  | AH175: =IF(W175=0,"",W175) ->  | AI175: =IF(X175=0,"",X175) ->  | AK175: 1
A176: 23 | B176: 23 | D176: 25 | H176: =+C49 -> 242.191 | J176: =+J49 -> 0 | K176: =+I49 -> 8.263285957 | L176: =SUM(H176:K176) -> 250.454286 | M176: =+H49 -> 75.49737582 | N176: =+L49 -> 7.96 | O176: =+K49 -> 0 | P176: =SUM(M176:O176) -> 83.45737582 | Q176: =+P176 -> 83.45737582 | R176: =+M49 -> 1.258 | S176: =L176-Q176-R176 -> 165.7389101 | T176: =IF(S176>=0,S176,0) -> 165.7389101 | U176: =K176+H176 -> 250.454286 | Y176: =+J176 -> 0 | Z176: 250.454286 | AA176: =+Q176 -> 83.45737582 | AB176: =(AA180+AB180+R180)*W179 -> 164.9124751 | AC176: =(R176+AA176+AB176)*U175 -> 249.6278509 | AD176: =IF(Y176>0,(AA176+R176+AB176)*Y175,"") ->  | AE176: =SUM(AA176:AC176) -> 497.9977019 | AF176: =IF(AF175="","",$AE176*AF175) -> 497.9977019 | AG176: =IF(AG175="","",$AE176*AG175) ->  | AH176: =IF(AH175="","",$AE176*AH175) ->  | AI176: =IF(AI175="","",$AE176*AI175) ->  | AK176: 497.9977019 | AL176: =+U176 -> 250.454286 | AM176: 0.8264350135 | AN176: =IF(Y176=0,"",IF(Y176-AD176<0,0,Y176-AD176)) ->  | AO176: =+AB176 -> 164.9124751 | AP176: =T176-AO176 -> 0.8264350135 | AQ176: =(I176+U176+Y176)/(AA176+R176+AB176) -> 1.003310668 | AR176: =IF(AQ176<1.4,"1", IF(AQ176<3,"2", IF(AQ176<9,"3", "4"))) -> 1 | AS176: =IF(AQ176<1.4,"ROJO", IF(AQ176<3,"AMARILLO", IF(AQ176<9,"VERDE", "AZUL"))) -> ROJO | AT176: =IF(AQ176<1.4,"Déficit", IF(AQ176<3,"Equilibrio", IF(AQ176<9,"Disponibilidad", "Abundante"))) -> Déficit | BN176: =SUM(AM176:AN176) -> 0.8264350135
U177: =IF(U178=0,"",U178/(SUM($U178:$Y178))) -> 1 | V177: =IF(V178=0,"",V178/(SUM($U178:$Y178))) ->  | W177: =IF(W178=0,"",W178/(SUM($U178:$Y178))) ->  | X177: =IF(X178=0,"",X178/(SUM($U178:$Y178))) ->  | Y177: =IF(Y178=0,"",Y178/(SUM($U178:$Y178))) ->  | Z177: 1 | AF177: =IF(U177=0,"",U177) -> 1 | AG177: =IF(V177=0,"",V177) ->  | AH177: =IF(W177=0,"",W177) ->  | AI177: =IF(X177=0,"",X177) ->  | AK177: 1
A178: 24 | B178: 24 | D178: 25 | H178: =+C50 -> 65.279 | J178: =+J50 -> 0 | K178: =+I50 -> 0.9019901 | L178: =SUM(H178:K178) -> 66.1809901 | M178: =+H50 -> 7.53164 | N178: =+L50 -> 1.015 | O178: =+K50 -> 0 | P178: =SUM(M178:O178) -> 8.54664 | Q178: =+P178 -> 8.54664 | R178: =+M50 -> 0.001 | S178: =L178-Q178-R178 -> 57.6333501 | T178: =IF(S178>=0,S178,0) -> 57.6333501 | U178: =K178+H178 -> 66.1809901 | Y178: =+J178 -> 0 | Z178: 66.1809901 | AA178: =+Q178 -> 8.54664 | AB178: =(AA180+AB180+R180)*X179 -> 57.34596907 | AC178: =(R178+AA178+AB178)*U177 -> 65.89360907 | AD178: =IF(Y178>0,(AA178+R178+AB178)*Y177,"") ->  | AE178: =SUM(AA178:AC178) -> 131.7862181 | AF178: =IF(AF177="","",$AE178*AF177) -> 131.7862181 | AG178: =IF(AG177="","",$AE178*AG177) ->  | AH178: =IF(AH177="","",$AE178*AH177) ->  | AI178: =IF(AI177="","",$AE178*AI177) ->  | AK178: 131.7862181 | AL178: =+U178 -> 66.1809901 | AM178: 0.2873810286 | AN178: =IF(Y178=0,"",IF(Y178-AD178<0,0,Y178-AD178)) ->  | AO178: =+AB178 -> 57.34596907 | AP178: =T178-AO178 -> 0.2873810286 | AQ178: =(I178+U178+Y178)/(AA178+R178+AB178) -> 1.004361288 | AR178: =IF(AQ178<1.4,"1", IF(AQ178<3,"2", IF(AQ178<9,"3", "4"))) -> 1 | AS178: =IF(AQ178<1.4,"ROJO", IF(AQ178<3,"AMARILLO", IF(AQ178<9,"VERDE", "AZUL"))) -> ROJO | AT178: =IF(AQ178<1.4,"Déficit", IF(AQ178<3,"Equilibrio", IF(AQ178<9,"Disponibilidad", "Abundante"))) -> Déficit | BN178: =SUM(AM178:AN178) -> 0.2873810286
U179: =IF(U180=0,"",U180/(SUM($U180:$Y180))) -> 0.6076123485 | V179: =IF(V180=0,"",V180/(SUM($U180:$Y180))) -> 0.04856214184 | W179: =IF(W180=0,"",W180/(SUM($U180:$Y180))) -> 0.2551134379 | X179: =IF(X180=0,"",X180/(SUM($U180:$Y180))) -> 0.08871207172 | Y179: =IF(Y180=0,"",Y180/(SUM($U180:$Y180))) ->  | Z179: 1 | AF179: =IF(U179=0,"",U179) -> 0.6076123485 | AG179: =IF(V179=0,"",V179) -> 0.04856214184 | AH179: =IF(W179=0,"",W179) -> 0.2551134379 | AI179: =IF(X179=0,"",X179) -> 0.08871207172 | AK179: 1
A180: 25 | B180: 25 | C180: 22, 23, 24 | D180: 26 | H180: =+C51 -> 392.703 | I180: =T174+T176+T178 -> 254.9215057 | J180: =+J51 -> 0 | K180: =+I51 -> 2.042997125 | L180: =SUM(H180:K180) -> 649.6675028 | M180: =+H51 -> 13.7919325 | N180: =+L51 -> 1.932 | O180: =+K51 -> 0 | P180: =SUM(M180:O180) -> 15.7239325 | Q180: =+P180 -> 15.7239325 | R180: =+M51 -> 0 | S180: =L180-Q180-R180 -> 633.9435703 | T180: =IF(S180>=0,S180,0) -> 633.9435703 | U180: =K180+H180 -> 394.7459971 | V180: =+T174 -> 31.54924542 | W180: =+T176 -> 165.7389101 | X180: =+T178 -> 57.6333501 | Y180: =+J180 -> 0 | Z180: 649.6675028 | AA180: =+Q180 -> 15.7239325 | AB180: =(R182+AA182+AB182)*V181 -> 630.7040898 | AC180: =(AA180+AB180+R180)*U179 -> 392.7776488 | AD180: =IF(Y180>0,(AA180+R180+AB180)*Y179,"") ->  | AE180: =SUM(AA180:AC180) -> 1039.205671 | AF180: =IF(AF179="","",$AE180*AF179) -> 631.4341984 | AG180: =IF(AG179="","",$AE180*AG179) -> 50.4660532 | AH180: =IF(AH179="","",$AE180*AH179) -> 265.1153314 | AI180: =IF(AI179="","",$AE180*AI179) -> 92.19008802 | AK180: 1039.205671 | AL180: =+U180 -> 394.7459971 | AM180: 1.968348369 | AN180: =IF(Y180=0,"",IF(Y180-AD180<0,0,Y180-AD180)) ->  | AO180: =+AB180 -> 630.7040898 | AP180: =T180-AO180 -> 3.239480524 | AQ180: =(I180+U180+Y180)/(AA180+R180+AB180) -> 1.005011355 | AR180: =IF(AQ180<1.4,"1", IF(AQ180<3,"2", IF(AQ180<9,"3", "4"))) -> 1 | AS180: =IF(AQ180<1.4,"ROJO", IF(AQ180<3,"AMARILLO", IF(AQ180<9,"VERDE", "AZUL"))) -> ROJO | AT180: =IF(AQ180<1.4,"Déficit", IF(AQ180<3,"Equilibrio", IF(AQ180<9,"Disponibilidad", "Abundante"))) -> Déficit | BN180: =SUM(AM180:AN180) -> 1.968348369
U181: =IF(U182=0,"",U182/(SUM($U182:$Y182))) -> 0.3117745467 | V181: =IF(V182=0,"",V182/(SUM($U182:$Y182))) -> 0.6882254533 | W181: =IF(W182=0,"",W182/(SUM($U182:$Y182))) ->  | X181: =IF(X182=0,"",X182/(SUM($U182:$Y182))) ->  | Y181: =IF(Y182=0,"",Y182/(SUM($U182:$Y182))) ->  | Z181: 1 | AF181: =IF(U181=0,"",U181) -> 0.3117745467 | AG181: =IF(V181=0,"",V181) -> 0.6882254533 | AH181: =IF(W181=0,"",W181) ->  | AI181: =IF(X181=0,"",X181) ->  | AK181: 1
A182: 26 | B182: 26 | C182: 25 | D182: 31 | H182: =+C52 -> 285.894 | I182: =T180 -> 633.9435703 | J182: =+J52 -> 0 | K182: =+I52 -> 1.290189896 | L182: =SUM(H182:K182) -> 921.1277602 | M182: =+H52 -> 5.16615107 | N182: =+L52 -> 0.989 | O182: =+K52 -> 0 | P182: =SUM(M182:O182) -> 6.15515107 | Q182: =+P182 -> 6.15515107 | R182: =+M52 -> 0 | S182: =L182-Q182-R182 -> 914.9726091 | T182: =IF(S182>=0,S182,0) -> 914.9726091 | U182: =K182+H182 -> 287.1841899 | V182: =+T180 -> 633.9435703 | Y182: =+J182 -> 0 | Z182: 921.1277602 | AA182: =+Q182 -> 6.15515107 | AB182: =(R192+AA192+AB192)*W191 -> 910.2656043 | AC182: =(R182+AA182+AB182)*U181 -> 285.7166656 | AD182: =IF(Y182>0,(AA182+R182+AB182)*Y181,"") ->  | AE182: =SUM(AA182:AC182) -> 1202.137421 | AF182: =IF(AF181="","",$AE182*AF181) -> 374.7958495 | AG182: =IF(AG181="","",$AE182*AG181) -> 827.3415715 | AH182: =IF(AH181="","",$AE182*AH181) ->  | AI182: =IF(AI181="","",$AE182*AI181) ->  | AK182: 1202.137421 | AL182: =+U182 -> 287.1841899 | AM182: 1.467524293 | AN182: =IF(Y182=0,"",IF(Y182-AD182<0,0,Y182-AD182)) ->  | AO182: =+AB182 -> 910.2656043 | AP182: =T182-AO182 -> 4.707004817 | AQ182: =(I182+U182+Y182)/(AA182+R182+AB182) -> 1.005136292 | AR182: =IF(AQ182<1.4,"1", IF(AQ182<3,"2", IF(AQ182<9,"3", "4"))) -> 1 | AS182: =IF(AQ182<1.4,"ROJO", IF(AQ182<3,"AMARILLO", IF(AQ182<9,"VERDE", "AZUL"))) -> ROJO | AT182: =IF(AQ182<1.4,"Déficit", IF(AQ182<3,"Equilibrio", IF(AQ182<9,"Disponibilidad", "Abundante"))) -> Déficit | BN182: =SUM(AM182:AN182) -> 1.467524293
U183: =IF(U184=0,"",U184/(SUM($U184:$Y184))) -> 1 | V183: =IF(V184=0,"",V184/(SUM($U184:$Y184))) ->  | W183: =IF(W184=0,"",W184/(SUM($U184:$Y184))) ->  | X183: =IF(X184=0,"",X184/(SUM($U184:$Y184))) ->  | Y183: =IF(Y184=0,"",Y184/(SUM($U184:$Y184))) ->  | Z183: 1 | AF183: =IF(U183=0,"",U183) -> 1 | AG183: =IF(V183=0,"",V183) ->  | AH183: =IF(W183=0,"",W183) ->  | AI183: =IF(X183=0,"",X183) ->  | AK183: 1
